Workbook

Sheet PLAATJES
A2: uit Annual 2
A3: tab solleveld conc

Sheet ANNUAL
B2: CALC & PICT 2014 | J2: CALC & PICT 2015
X3: NH3 | AH3: NO2 | AM3: Anders
C4: 2011 | D4: 2012 | E4: 2013 | F4: 2014 | J4: 2011 | K4: 2012 | L4: 2013 | M4: 2014 | O4: differ | AS4: NH3 | AT4: NO2&HNO3 | AU4: Anders | AX4: NH3 | AY4: NO2&HNO3 | AZ4: Anders
B5: Goeree 1 | C5: 1.649920612 | D5: 1.536835783 | E5: 1.547981611 | I5: Goeree 1 | J5: 1.704832381 | K5: 1.589119101 | L5: 1.515540794 | M5: 1.968048714 | O5: =J5-C5 -> 0.05491176946 | P5: =K5-D5 -> 0.05228331801 | Q5: =L5-E5 -> -0.03244081763 | S5: 0.8639975668 | T5: 0.839126082 | U5: 0.6466438578 | V5: 0.6791435607 | X5: =(J5-S5)/J5 -> 0.4932067362 | Y5: 0.4719551972 | Z5: 0.5733246769 | AA5: 0.6549152691 | AC5: 1.264629012 | AD5: 1.229911517 | AE5: 1.221956184 | AF5: 1.640438902 | AH5: =(J5-AC5)/J5 -> 0.258209179 | AI5: 0.2260419519 | AJ5: 0.1937160721 | AK5: 0.16646428 | AM5: =1-AH5-X5 -> 0.2485840847 | AN5: 0.3020028509 | AO5: 0.232959251 | AP5: 0.1786204509 | AR5: =I5 -> Goeree 1 | AS5: =AVERAGE(X5:AA5) -> 0.5483504699 | AT5: =AVERAGE(AH5:AK5) -> 0.2111078708 | AU5: =AVERAGE(AM5:AP5) -> 0.2405416594 | AV5: =SUM(AS5:AU5) -> 1 | AX5: =AS5*AVERAGE(J5:M5) -> 0.9291169465 | AY5: =AT5*AVERAGE(J5:M5) -> 0.3576980618 | AZ5: =AVERAGE(J5:M5)*AM5 -> 0.4211972059
B6: Goeree 2 | C6: 1.400443945 | D6: 1.498172104 | E6: 1.584800308 | I6: Goeree 2 | J6: 1.46118947 | K6: 1.561063332 | L6: 1.557033522 | M6: 2.228567629 | O6: =J6-C6 -> 0.06074552577 | P6: 0.06289122863 | Q6: -0.02776678539 | S6: 0.7849730796 | T6: 0.7768931825 | U6: 0.6822185435 | V6: 0.7257250688 | X6: 0.4627848779 | Y6: 0.5023307726 | Z6: 0.5618472347 | AA6: 0.6743535806 | AC6: 1.081415551 | AD6: 1.236373731 | AE6: 1.234894362 | AF6: 1.868600388 | AH6: 0.2599073749 | AI6: 0.207992587 | AJ6: 0.2068928871 | AK6: 0.1615240371 | AM6: 0.2773077471 | AN6: 0.2896766404 | AO6: 0.2312598782 | AP6: 0.1641223823 | AR6: Goeree 2 | AS6: =AVERAGE(X6:AA6) -> 0.5503291165 | AT6: =AVERAGE(AH6:AK6) -> 0.2090792215 | AU6: =AVERAGE(AM6:AP6) -> 0.240591662 | AV6: =SUM(AS6:AU6) -> 1 | AX6: =AS6*AVERAGE(J6:M6) -> 0.9366400629 | AY6: =AT6*AVERAGE(J6:M6) -> 0.3558452013 | AZ6: =AVERAGE(J6:M6)*AM6 -> 0.4719676607
B7: Oostvoorne Panduin * | E7: 1.978177727 | I7: Oostvoorne Panduin * | L7: 1.539094655 | M7: 1.703905971 | O7: 0 | P7: 0 | Q7: -0.4390830724 | S7: 0.5485064869 | T7: 0.5065147881 | U7: 0.7119371991 | V7: 0.6823474345 | Z7: =(L7-U7)/L7 -> 0.5374311795 | AA7: =(M7-V7)/M7 -> 0.5995392667 | AC7: 0.6856644323 | AD7: 0.4898113234 | AE7: 1.080644656 | AF7: 1.340312126 | AJ7: =(L7-AE7)/L7 -> 0.2978699182 | AK7: =(M7-AF7)/M7 -> 0.2133884444 | AO7: =1-AJ7-Z7 -> 0.1646989023 | AP7: =1-AK7-AA7 -> 0.1870722889 | AR7: Oostvoorne Panduin * | AS7: =AVERAGE(X7:AA7) -> 0.5684852231 | AT7: =AVERAGE(AH7:AK7) -> 0.2556291813 | AU7: =AVERAGE(AM7:AP7) -> 0.1758855956 | AV7: =SUM(AS7:AU7) -> 1 | AX7: 0.9217989671 | AY7: 0.4145027974 | AZ7: 0
B8: Oostvoorne Zuid 1 | C8: 1.409324668 | D8: 1.353759818 | E8: 1.394768039 | I8: Oostvoorne Zuid 1 | J8: 1.45281158 | K8: 1.323085862 | L8: 1.363376287 | M8: 1.773032796 | O8: 0.04348691171 | P8: -0.03067395629 | Q8: -0.03139175134 | S8: 0.7690279707 | T8: 0.6512230995 | U8: 0.6053277198 | V8: 0.6566897691 | X8: =(J8-S8)/J8 -> 0.4706622791 | Y8: 0.50779982 | Z8: 0.5560083262 | AA8: 0.6296234506 | AC8: 0.9929155437 | AD8: 0.9708421255 | AE8: 0.9975944581 | AF8: 1.417842338 | AH8: =(J8-AC8)/J8 -> 0.3165558719 | AI8: 0.2662289325 | AJ8: 0.2682911773 | AK8: 0.2003293223 | AM8: =1-AH8-X8 -> 0.212781849 | AN8: 0.2259712475 | AO8: 0.1757004965 | AP8: 0.1700472272 | AR8: Oostvoorne Zuid 1 | AS8: 0.541023469 | AT8: 0.262851326 | AU8: 0.196125205 | AV8: 1 | AX8: 0.7996741466 | AY8: 0.3885144025 | AZ8: 0.3145078786
B9: Oostvoorne Zuid 2 | C9: 1.531386353 | D9: 1.252565538 | E9: 1.349320981 | I9: Oostvoorne Zuid 2 | J9: 1.600027307 | K9: 1.199989459 | L9: 1.298375847 | M9: 1.326185756 | O9: 0.06864095443 | P9: -0.05257607937 | Q9: -0.05094513414 | S9: 0.8369532496 | T9: 0.6680426808 | U9: 0.5910231896 | V9: 0.6086592652 | X9: 0.4769131465 | Y9: 0.4432928757 | Z9: 0.5447980713 | AA9: 0.5410452403 | AC9: 1.096402363 | AD9: 0.852293844 | AE9: 0.9388631197 | AF9: 1.006907132 | AH9: 0.3147602181 | AI9: 0.2897488909 | AJ9: 0.276894189 | AK9: 0.2407495505 | AM9: 0.2083266354 | AN9: 0.2669582334 | AO9: 0.1783077398 | AP9: 0.2182052092 | AR9: Oostvoorne Zuid 2 | AS9: 0.5015123334 | AT9: 0.2805382121 | AU9: 0.2179494545 | AV9: 1 | AX9: 0.680123239 | AY9: 0.3804503793 | AZ9: 0.28252104
B10: Oostvoorne Zuid 3 | C10: 1.453058779 | D10: 1.789466638 | E10: 1.513840794 | I10: Oostvoorne Zuid 3 | J10: 1.50209328 | K10: 1.757862608 | L10: 1.459538479 | M10: 1.893918862 | O10: 0.04903450075 | P10: -0.03160402971 | Q10: -0.05430231447 | S10: 0.8662023455 | T10: 0.8448079538 | U10: 0.6224434139 | V10: 0.591770688 | X10: 0.4233365151 | Y10: 0.5194118415 | Z10: 0.5735340845 | AA10: 0.6875416894 | AC10: 0.9630196672 | AD10: 1.30806351 | AE10: 1.062034965 | AF10: 1.584957586 | AH10: 0.3588815821 | AI10: 0.2558784151 | AJ10: 0.2723487735 | AK10: 0.1631333219 | AM10: 0.2177819028 | AN10: 0.2247097434 | AO10: 0.1541171421 | AP10: 0.1493249887 | AR10: Oostvoorne Zuid 3 | AS10: 0.5509560326 | AT10: 0.2625605232 | AU10: 0.1864834442 | AV10: 1 | AX10: 0.9109249787 | AY10: 0.4341053093 | AZ10: 0.3600704293
B11: Oostvoorne Noord 1 | C11: 1.380470134 | D11: 1.46433522 | E11: 1.281868481 | I11: Oostvoorne Noord 1 | J11: 1.431360645 | K11: 1.430975482 | L11: 1.216494392 | M11: 1.131910034 | O11: 0.0508905101 | P11: -0.03335973805 | Q11: -0.06537408855 | S11: 0.8706580051 | T11: 0.9106940121 | U11: 0.6591363559 | V11: 0.5351977444 | X11: 0.3917270197 | Y11: 0.3635851743 | Z11: 0.4581673701 | AA11: 0.5271728952 | AC11: 0.8994240676 | AD11: 0.8968587971 | AE11: 0.8011533686 | AF11: 0.8618409334 | AH11: 0.3716300144 | AI11: 0.3732535545 | AJ11: 0.3414245281 | AK11: 0.2385959067 | AM11: 0.2366429659 | AN11: 0.2631612712 | AO11: 0.2004081018 | AP11: 0.2342311981 | AR11: Oostvoorne Noord 1 | AS11: 0.4351631148 | AT11: 0.3312260009 | AU11: 0.2336108843 | AV11: 1 | AX11: 0.5668805225 | AY11: 0.4314831888 | AZ11: 0.3082712748
B12: Oostvoorne Noord 2 | C12: 1.766972628 | D12: 1.587891683 | E12: 1.339026689 | I12: Oostvoorne Noord 2 | J12: 1.797594353 | K12: 1.525507854 | L12: 1.269177794 | M12: 1.139137116 | O12: 0.03062172554 | P12: -0.06238382948 | Q12: -0.06984889544 | S12: 0.8228239998 | T12: 0.7860992138 | U12: 0.6774051844 | V12: 0.5142232114 | X12: 0.5422638048 | Y12: 0.4846967113 | Z12: 0.4662645473 | AA12: 0.5485853248 | AC12: 1.312086834 | AD12: 1.123309044 | AE12: 0.8419950966 | AF12: 0.9084681469 | AH12: 0.2700873633 | AI12: 0.2636491245 | AJ12: 0.3365822341 | AK12: 0.2024944725 | AM12: 0.1876488319 | AN12: 0.2516541641 | AO12: 0.1971532185 | AP12: 0.2489202027 | AR12: Oostvoorne Noord 2 | AS12: 0.5104525971 | AT12: 0.2682032986 | AU12: 0.2213441043 | AV12: 1 | AX12: 0.7314041881 | AY12: 0.3842962441 | AZ12: 0.2688734319
B13: Maasvlakte 2 Zuid | E13: 0.9614183245 | I13: Maasvlakte 2 Zuid | L13: 0.809378259 | M13: 0.7892923511 | O13: 0 | P13: 0 | Q13: -0.1520400655 | U13: 0.5373524799 | V13: 0.4968835342 | Z13: =(L13-U13)/L13 -> 0.3360922734 | AA13: 0.370469594 | AE13: 0.5912301936 | AF13: 0.588010335 | AJ13: =(L13-AE13)/L13 -> 0.269525482 | AK13: 0.2550157946 | AO13: =1-AJ13-Z13 -> 0.3943822446 | AP13: =1-AK13-AA13 -> 0.3745146114 | AR13: Maasvlakte 2 Zuid | AS13: =AVERAGE(X13:AA13) -> 0.3532809337 | AT13: =AVERAGE(AH13:AK13) -> 0.2622706383 | AU13: =AVERAGE(AM13:AP13) -> 0.384448428 | AV13: =SUM(AS13:AU13) -> 1 | AX13: 0.2823899229 | AY13: 0.2096421807 | AZ13: 0
B14: Maasvlakte 2 Noord | E14: 0.8960240674 | I14: Maasvlakte 2 Noord | L14: 0.7814344573 | M14: 0.8306573454 | O14: 0 | P14: 0 | Q14: -0.11458961 | U14: 0.5429046852 | V14: 0.608651283 | Z14: 0.3052460381 | AA14: 0.2672655139 | AE14: 0.5512726637 | AF14: 0.5187857116 | AJ14: 0.294537554 | AK14: 0.3754516052 | AO14: =1-AJ14-Z14 -> 0.4002164079 | AP14: 0.3572828808 | AR14: Maasvlakte 2 Noord | AS14: =AVERAGE(X14:AA14) -> 0.286255776 | AT14: =AVERAGE(AH14:AK14) -> 0.3349945796 | AU14: =AVERAGE(AM14:AP14) -> 0.3787496444 | AV14: =SUM(AS14:AU14) -> 1 | AX14: 0.230735295 | AY14: 0.2700210079 | AZ14: 0
B15: Hoek 1 | C15: 2.626310617 | D15: 2.7173317 | E15: 2.515641419 | I15: Hoek 1 | J15: 2.091197046 | K15: 2.281569657 | L15: 1.959814043 | M15: 2.152207615 | O15: -0.5351135714 | P15: -0.4357620427 | Q15: -0.5558273759 | S15: 1.221484834 | T15: 1.452406529 | U15: 1.062405506 | V15: 1.051981782 | X15: =(J15-S15)/J15 -> 0.4158920433 | Y15: 0.3634178451 | Z15: 0.457904943 | AA15: 0.5112080382 | AC15: 1.347972867 | AD15: 1.49418237 | AE15: 1.386701881 | AF15: 1.588091697 | AH15: =(J15-AC15)/J15 -> 0.3554060962 | AI15: 0.3451077135 | AJ15: 0.2924319093 | AK15: 0.2621103625 | AM15: =1-AH15-X15 -> 0.2287018605 | AN15: 0.2914744414 | AO15: =1-AJ15-Z15 -> 0.2496631477 | AP15: 0.2266815993 | AR15: Hoek 1 | AS15: =AVERAGE(X15:AA15) -> 0.4371057174 | AT15: =AVERAGE(AH15:AK15) -> 0.3137640204 | AU15: =AVERAGE(AM15:AP15) -> 0.2491302623 | AV15: =SUM(AS15:AU15) -> 1 | AX15: 0.9271873759 | AY15: 0.6655553271 | AZ15: 0.4851217211
B16: Hoek 2 | C16: 2.917505898 | D16: 3.661838825 | E16: 3.041508322 | I16: Hoek 2 | J16: 2.416917552 | K16: 3.279308005 | L16: 2.707830912 | M16: 2.715884402 | O16: -0.5005883461 | P16: -0.3825308201 | Q16: -0.3336774102 | S16: 1.351535772 | T16: 1.649855082 | U16: 1.0877704 | V16: 1.20611159 | X16: 0.4408018712 | Y16: 0.4968892585 | Z16: 0.5982871769 | AA16: 0.5559046664 | AC16: 1.535302743 | AD16: 2.222404325 | AE16: 2.026127347 | AF16: 1.964868585 | AH16: 0.3647682595 | AI16: 0.3222947274 | AJ16: 0.2517526343 | AK16: 0.2765271661 | AM16: 0.1944298693 | AN16: 0.1808160141 | AO16: =1-AJ16-Z16 -> 0.1499601888 | AP16: 0.1675681675 | AR16: Hoek 2 | AS16: =AVERAGE(X16:AA16) -> 0.5229707433 | AT16: =AVERAGE(AH16:AK16) -> 0.3038356968 | AU16: =AVERAGE(AM16:AP16) -> 0.1731935599 | AV16: =SUM(AS16:AU16) -> 1 | AX16: 1.453850936 | AY16: 0.8446587459 | AZ16: 0.5405121625
B17: s-Gravezande | C17: 2.521186596 | D17: 2.363959615 | E17: 4.013677004 | I17: s-Gravezande | J17: 2.138557478 | K17: 1.990346628 | L17: 3.111028072 | M17: 2.831785363 | O17: -0.382629118 | P17: -0.3736129872 | Q17: -0.9026489324 | S17: 1.083573258 | T17: 0.8603668807 | U17: 0.9201263591 | V17: 0.9591596332 | X17: 0.4933158127 | Y17: 0.5677301287 | Z17: 0.7042372046 | AA17: 0.6612880178 | AC17: 1.514265579 | AD17: 1.542979473 | AE17: 2.592423802 | AF17: 2.305475982 | AH17: 0.2919219639 | AI17: 0.2247684644 | AJ17: 0.1666986791 | AK17: 0.1858577942 | AM17: 0.2147622235 | AN17: 0.2075014069 | AO17: =1-AJ17-Z17 -> 0.1290641163 | AP17: 0.152854188 | AR17: s-Gravezande | AS17: =AVERAGE(X17:AA17) -> 0.6066427909 | AT17: =AVERAGE(AH17:AK17) -> 0.2173117254 | AU17: =AVERAGE(AM17:AP17) -> 0.1760454837 | AV17: =SUM(AS17:AU17) -> 1 | AX17: 1.52748371 | AY17: 0.5471755791 | AZ17: 0.5407561133
B18: Solleveld 1 | C18: 2.459305547 | D18: 1.953651513 | E18: 1.301478166 | I18: Solleveld 1 | J18: 1.790543421 | K18: 1.474243477 | L18: 0.9857964974 | M18: 1.134560197 | O18: -0.6687621262 | P18: -0.4794080367 | Q18: -0.3156816688 | S18: 1.067753763 | T18: 1.011681723 | U18: 0.632744791 | V18: 0.6902758172 | X18: 0.4036705559 | Y18: 0.3137621164 | Z18: =(L18-U18)/L18 -> 0.3581385279 | AA18: =(M18-V18)/M18 -> 0.3915917205 | AC18: 1.164029177 | AD18: 0.9830224482 | AE18: 0.6638994989 | AF18: 0.8151880268 | AH18: 0.3499017318 | AI18: 0.3332021041 | AJ18: =(L18-AE18)/L18 -> 0.3265349384 | AK18: =(M18-AF18)/M18 -> 0.2814942484 | AM18: 0.2464277123 | AN18: 0.3530357795 | AO18: =1-AJ18-Z18 -> 0.3153265338 | AP18: 0.326914031 | AR18: Solleveld 1 | AS18: =AVERAGE(X18:AA18) -> 0.3667907302 | AT18: =AVERAGE(AH18:AK18) -> 0.3227832557 | AU18: =AVERAGE(AM18:AP18) -> 0.3104260141 | AV18: =SUM(AS18:AU18) -> 1 | AX18: 0.4938051875 | AY18: 0.4345585452 | AZ18: 0.3317621539
B19: Solleveld 2 | C19: 1.569979679 | D19: 1.620364029 | E19: 1.452304997 | I19: Solleveld 2 | J19: 1.504429528 | K19: 1.552779778 | L19: 1.349003219 | M19: 1.49897005 | O19: -0.06555015055 | P19: -0.06758425144 | Q19: -0.1033017776 | S19: 0.9801033395 | T19: 0.9890222499 | U19: 0.807737754 | V19: 0.8369283331 | X19: 0.3485216015 | Y19: 0.3630634144 | Z19: 0.401233635 | AA19: 0.441664406 | AC19: 0.9840397481 | AD19: 1.096601125 | AE19: 0.8867287221 | AF19: 1.056452143 | AH19: 0.3459050559 | AI19: 0.293781938 | AJ19: 0.3426785722 | AK19: 0.2952146419 | AM19: 0.3055733426 | AN19: 0.3431546476 | AO19: 0.2560877928 | AP19: 0.2631209521 | AR19: Solleveld 2 | AS19: 0.3886207642 | AT19: 0.319395052 | AU19: 0.2919841838 | AV19: 1 | AX19: 0.5737191413 | AY19: 0.4715215239 | AZ19: 0.4511165946
B20: Solleveld 3 | C20: 1.296009651 | D20: 1.192467495 | E20: 1.112938945 | I20: Solleveld 3 | J20: 1.279410202 | K20: 1.134044994 | L20: 0.9720603219 | M20: 1.093071849 | O20: -0.01659944861 | P20: -0.05842250057 | Q20: -0.1408786231 | S20: 0.8533313454 | T20: 0.7689620358 | U20: 0.6102628752 | V20: 0.6223020854 | X20: 0.3330275592 | Y20: 0.3219298707 | Z20: 0.372196497 | AA20: 0.4306851043 | AC20: 0.8645047893 | AD20: 0.8112301936 | AE20: 0.6822818408 | AF20: 0.8220355771 | AH20: 0.324294282 | AI20: 0.2846578417 | AJ20: 0.298107509 | AK20: 0.2479583312 | AM20: 0.3426781588 | AN20: 0.3934122876 | AO20: 0.329695994 | AP20: 0.3213565645 | AR20: Solleveld 3 | AS20: 0.3644597578 | AT20: 0.288754491 | AU20: 0.3467857512 | AV20: 1 | AX20: 0.4080662167 | AY20: 0.3233030538 | AZ20: 0.3836785182
B21: Solleveld 4 | C21: 1.464808761 | D21: 2.47266389 | E21: 2.476122755 | I21: Solleveld 4 | J21: 1.524306409 | K21: 2.585540622 | L21: 2.437142189 | M21: 2.408145984 | O21: 0.05949764849 | P21: 0.1128767323 | Q21: -0.03898056577 | S21: 0.9065284216 | T21: 0.964506892 | U21: 0.6928727549 | V21: 0.6693065849 | X21: 0.4052846487 | Y21: 0.6269612306 | Z21: 0.7157027776 | AA21: 0.7220656101 | AC21: 1.027110285 | AD21: 2.104168598 | AE21: 2.098338483 | AF21: 2.04973584 | AH21: 0.3261785958 | AI21: 0.1861784806 | AJ21: 0.1390167993 | AK21: 0.148832399 | AM21: 0.2685367555 | AN21: 0.1868602888 | AO21: 0.1452804231 | AP21: 0.1291019908 | AR21: Solleveld 4 | AS21: 0.6175035668 | AT21: 0.2000515687 | AU21: 0.1824448646 | AV21: 1 | AX21: 1.382456982 | AY21: 0.4478722113 | AZ21: 0.6011957383
B22: Westduinpark | E22: 1.174531184 | I22: Westduinpark | L22: 1.2029827 | M22: 1.229411258 | O22: 0 | P22: 0 | Q22: 0.02845151586 | S22: 0.2961474594 | T22: 0.3726917137 | U22: 0.6727150152 | V22: 0.6050279536 | Z22: 0.4407941067 | AA22: 0.5078717967 | AE22: 0.8146395139 | AF22: 0.891205951 | AJ22: 0.3228169332 | AK22: 0.2750953392 | AO22: 0.2363889601 | AP22: 0.2170328642 | AR22: Westduinpark | AS22: 0.4743329517 | AT22: 0.2989561362 | AU22: 0.2267109122 | AV22: 1 | AX22: 0.5768823028 | AY22: 0.3635895496 | AZ22: 0
B23: Meijendell | E23: 0.9038422302 | I23: Meijendell | L23: 0.9342323873 | M23: 0.9934383995 | O23: 0 | P23: 0 | Q23: 0.03039015713 | S23: 0.2961474594 | T23: 0.381556155 | U23: 0.5329098244 | V23: 0.5133455836 | Z23: 0.429574663 | AA23: 0.4832637999 | AE23: 0.6813627841 | AF23: 0.7522987658 | AJ23: 0.2706709879 | AK23: 0.2427323464 | AO23: 0.2997543491 | AP23: 0.2740038536 | AR23: Meijendell | AS23: 0.4564192315 | AT23: 0.2567016672 | AU23: 0.2868791014 | AV23: 1 | AX23: 0.4399130095 | AY23: 0.2474181524 | AZ23: 0
E25: =SUM(E5:E23) -> 31.83927205 | K25: =E25/L25 -> 1.118370775 | L25: =SUM(L5:L23) -> 28.46933483 | M25: =SUM(M5:M23) -> 30.84213169
M26: =PERCENTILE(J5:M23,0.2) -> 1.199989459

Sheet Sheet1
E2: 40544 | F2: 40575 | G2: 40603 | H2: 40634 | I2: 40664 | J2: 40695 | K2: 40725 | L2: 40756 | M2: 40787 | N2: 40817 | O2: 40848 | P2: 40878 | Q2: 40909 | R2: 40940 | S2: 40969 | T2: 41000 | U2: 41030 | V2: 41061 | W2: 41091 | X2: 41122 | Y2: 41153 | Z2: 41183 | AA2: 41214 | AB2: 41244 | AC2: 41275 | AD2: 41306 | AE2: 41334 | AF2: 41365 | AG2: 41395 | AH2: 41426 | AI2: 41456 | AJ2: 41487 | AK2: 41518 | AL2: 41548 | AM2: 41579 | AN2: 41609 | AO2: 41640 | AP2: 41671 | AQ2: 41699 | AR2: 41730 | AS2: 41760 | AT2: 41791 | AU2: 41821 | AV2: 41852 | AW2: 41883 | AX2: 41913 | AY2: 41944 | AZ2: 41974 | BA2: 42005 | BB2: 42036 | BC2: 42064 | BD2: 42095 | BE2: 42125 | BF2: 42156 | BG2: 42186 | BH2: 42217 | BI2: 42248 | BJ2: 42278 | BK2: 42309 | BL2: 42339 | BM2: 42370 | BN2: 42401 | BO2: 42430 | BP2: 42461 | BQ2: 42491 | BR2: 42522 | BS2: 42552 | BT2: 42583 | BU2: 42614 | BV2: 42644 | BW2: 42675 | BX2: 42705
E3: 33 | F3: 36 | G3: 35 | H3: 29 | I3: 35 | J3: 28 | K3: 28 | L3: 23 | M3: 33 | N3: 28 | O3: 28 | P3: 28 | Q3: 35 | R3: 33 | S3: 30 | T3: 28 | U3: 35 | V3: 28 | W3: 33 | X3: 30 | Y3: 28 | Z3: 33 | AA3: 28 | AB3: 30 | AC3: 34 | AD3: 28 | AE3: 28 | AF3: 27 | AG3: 36 | AH3: 28 | AI3: 34 | AJ3: 29 | AK3: 28 | AL3: 35 | AM3: 28 | AN3: 21 | AO3: 35 | AP3: 35 | AQ3: 35 | AR3: 28 | AS3: 27 | AT3: 29 | AU3: 35 | AV3: 28 | AW3: 28 | AX3: 35 | AY3: 27 | AZ3: 27 | BA3: 24 | BB3: 27 | BC3: 21 | BD3: 35 | BE3: 28 | BF3: 35 | BG3: 42 | BH3: 27 | BI3: 28 | BJ3: 28 | BK3: 28 | BL3: 27 | BM3: 36 | BN3: 28 | BO3: 35 | BP3: 29 | BQ3: 28 | BR3: 34 | BS3: 28 | BT3: 34 | BU3: 29 | BV3: 29 | BW3: 27 | BX3: 28
A4: Goeree 1 | B4: 1 | C4: NH3 | D4: NH3 | E4: 1.330377561 | F4: 2.815547848 | G4: 3.816548003 | H4: 4.017558416 | I4: 2.184146255 | J4: 1.732715765 | K4: 1.137199166 | L4: 0.6439243067 | M4: 1.067624453 | N4: 2.054970969 | O4: 3.086151319 | P4: 0.8881449001 | Q4: 0.3393817748 | R4: 0.8418137394 | S4: 2.368356958 | T4: 1.234298991 | U4: 4.312187773 | V4: 1.643566051 | W4: 2.272326045 | X4: 2.37592788 | Y4: 1.823938871 | Z4: 1.564055938 | AA4: 1.134553694 | AB4: 0.6274281274 | AC4: 0.05477509988 | AD4: 0.5112342656 | AE4: 1.947559107 | AF4: 1.245094877 | AG4: 2.449408331 | AH4: 2.953119232 | AI4: 3.782743542 | AJ4: 3.680911681 | AK4: 2.341414141 | AL4: 2.356122578 | AM4: 1.317971264 | AN4: 0.9927637425 | AO4: 1.240919564 | AP4: 1.403367737 | AQ4: 4.141863211 | AR4: 4.267336053 | AS4: 2.967099236 | AT4: 2.886137587 | AU4: 5.254126124 | AV4: 2.4078638 | AW4: 4.141610386 | AX4: 2.639729633 | AY4: 3.665040281 | AZ4: 3.139932171 | BA4: 0.7551837728 | BB4: 1.485809891 | BC4: 3.865323516 | BD4: 0.2497175141 | BE4: 2.546689304 | BF4: 2.432581987 | BG4: 3.527698756 | BH4: 4.622815525 | BI4: 2.095329058 | BJ4: 2.120722407 | BK4: 2.598120509 | BL4: 1.673569842 | BM4: 1.62835249 | BN4: 2.156086035 | BO4: 2.588613484 | BP4: 4.612218168 | BQ4: 13.78892411 | BR4: 7.990164688 | BS4: 3.220632983 | BT4: 4.264684381 | BU4: 6.895411013 | BV4: 9.526137646 | BW4: 3.476636064 | BX4: 3.495337443
A5: Goeree 2 | B5: 2 | C5: NH3 | D5: NH3 | E5: 0.6321130955 | F5: 3.705025151 | G5: 3.6359003 | H5: 2.798934076 | I5: 1.337090481 | J5: 1.127074618 | K5: 1.229208859 | L5: 0.5630071204 | M5: 0.3853857159 | N5: 2.605168695 | O5: 1.201438548 | P5: 0.4293563966 | Q5: 0.3362607801 | R5: 0.4780951191 | S5: 2.233803256 | T5: 1.46441046 | U5: 2.964322845 | V5: 2.392483133 | W5: 3.626431892 | X5: 3.160175061 | Y5: 2.024999623 | Z5: 1.512990059 | AA5: 0.8344192512 | AB5: 0.6159298565 | AC5: 0.6145484689 | AD5: 0.5615701526 | AE5: 2.956190049 | AF5: 1.862630966 | AG5: 3.006723362 | AH5: 3.349037756 | AI5: 3.72271723 | AJ5: 0.1415958687 | AK5: 2.649188079 | AL5: 2.620733667 | AM5: 1.003433208 | AN5: 0.970430878 | AO5: 1.015086154 | AP5: 1.24734023 | AQ5: 4.226908555 | AR5: 4.583547999 | AS5: 0.2462376338 | AT5: 4.068084971 | AU5: 5.922400188 | AV5: 3.31812952 | AW5: 3.249787596 | AX5: 2.826756227 | AY5: 8.612593911 | AZ5: 5.433636483 | BA5: 0.7551837728 | BB5: 0.9169363538 | BC5: 3.018031897 | BD5: 2.587306795 | BE5: 2.363937558 | BF5: 2.531809785 | BG5: 0 | BH5: 0 | BI5: 0 | BJ5: 0 | BK5: 0 | BL5: 0 | BM5: 0 | BN5: 0 | BO5: 0 | BP5: 0 | BQ5: 0 | BR5: 0 | BS5: 0 | BT5: 0 | BU5: 0 | BV5: 0 | BW5: 0 | BX5: 0
A6: Oostvoorne Panduin | B6: 3 | C6: NH3 | D6: NH3 | E6: 1.639083957 | F6: 2.937659611 | G6: 5.755733075 | H6: 2.146087175 | I6: 0.8981481481 | J6: 1.051703127 | K6: 0.8330813807 | L6: 0.8114856429 | M6: 0.2759929706 | N6: 1.125647875 | O6: 2.559131731 | P6: 0.4153564794 | Q6: 0.2248328129 | R6: 0.8967399638 | S6: 1.817891945 | T6: 0.6729714614 | U6: 2.080572733 | V6: 1.575318938 | W6: 2.584807578 | X6: 3.844487763 | Y6: 2.371538731 | Z6: 0.2010758328 | AA6: 0.899365154 | AB6: 0.2798353909 | AC6: 0.8301269606 | AD6: 0.5600856602 | AE6: 2.120324285 | AF6: 2.932077281 | AG6: 3.531818327 | AH6: 1.633943769 | AI6: 3.630489541 | AJ6: 4.084009251 | AK6: 3.298534219 | AL6: 2.097799261 | AM6: 1.039925113 | AN6: 1.043497227 | AO6: 0.9299041254 | AP6: 1.228795374 | AQ6: 3.79287186 | AR6: 4.10283078 | AS6: 2.958162699 | AT6: 4.267489712 | AU6: 5.277890879 | AV6: 3.606970282 | AW6: 3.877868713 | AX6: 1.867901235 | AY6: 1.65141536 | AZ6: 1.387188902 | BA6: 0.5848442585 | BB6: 0.7019406595 | BC6: 2.004521624 | BD6: 1.843151428 | BE6: 1.899114892 | BF6: 2.242683682 | BG6: 0 | BH6: 0 | BI6: 0 | BJ6: 0 | BK6: 0 | BL6: 0 | BM6: 0 | BN6: 0 | BO6: 0 | BP6: 0 | BQ6: 0 | BR6: 0 | BS6: 0 | BT6: 0 | BU6: 0 | BV6: 0 | BW6: 0 | BX6: 0
A7: Oostvoorne Zuid 1 | B7: 4 | C7: NH3 | D7: NH3 | E7: 0.2278547205 | F7: 2.170294072 | G7: 2.99484725 | H7: 2.448061832 | I7: 1.311654789 | J7: 1.20851221 | K7: 1.042581095 | L7: 0.8114856429 | M7: 1.729668469 | N7: 1.317479297 | O7: 2.559131731 | P7: 0.4153564794 | Q7: 0.2248328129 | R7: 0.8967399638 | S7: 1.817891945 | T7: 0.6729714614 | U7: 2.080572733 | V7: 1.575318938 | W7: 2.584807578 | X7: 2.889292621 | Y7: 1.474036154 | Z7: 1.992452636 | AA7: 1.594525116 | AB7: 0.9133309718 | AC7: 0.9707828985 | AD7: 0.6127072392 | AE7: 2.808904616 | AF7: 2.614154816 | AG7: 1.726641653 | AH7: 1.654785422 | AI7: 3.127779605 | AJ7: 2.394330885 | AK7: 2.417614591 | AL7: 2.050803101 | AM7: 0.3765895563 | AN7: 0.6705348441 | AO7: 0.8610577948 | AP7: 1.331504269 | AQ7: 4.362665845 | AR7: 3.91 | AS7: 2.267240198 | AT7: 2.341597796 | AU7: 2.321285141 | AV7: 1.776192535 | AW7: 6.145197647 | AX7: 2.026462263 | AY7: 3.882896497 | AZ7: 2.066941101 | BA7: 0.951257505 | BB7: 1.367438867 | BC7: 4.323499491 | BD7: 2.012240892 | BE7: 1.946734721 | BF7: 2.566778282 | BG7: 0 | BH7: 0 | BI7: 0 | BJ7: 0 | BK7: 0 | BL7: 0 | BM7: 0 | BN7: 0 | BO7: 0 | BP7: 0 | BQ7: 0 | BR7: 0 | BS7: 0 | BT7: 0 | BU7: 0 | BV7: 0 | BW7: 0 | BX7: 0
A8: Oostvoorne Zuid 2 | B8: 5 | C8: NH3 | D8: NH3 | E8: 0.8967185773 | F8: 3.413344948 | G8: 4.181128764 | H8: 4.620804855 | I8: 2.0552959 | J8: 2.240369453 | K8: 1.158248168 | L8: 0.4853347758 | M8: 0.8294486917 | N8: 1.213902589 | O8: 1.326053042 | P8: 1.082457816 | Q8: 0.3685752852 | R8: 0.3460220901 | S8: 1.817891945 | T8: 0.6692804728 | U8: 1.887915179 | V8: 2.171212509 | W8: 2.395107082 | X8: 3.074074074 | Y8: 1.4395811 | Z8: 0.6447711011 | AA8: 0.602516392 | AB8: 0.5419873363 | AC8: 0.4444874247 | AD8: 0.4810206377 | AE8: 2.198081648 | AF8: 2.574090668 | AG8: 2.197819957 | AH8: 2.327815246 | AI8: 3.186373711 | AJ8: 3.537767735 | AK8: 2.307687568 | AL8: 1.999303075 | AM8: 1.040054382 | AN8: 0.6478138789 | AO8: 1.158243502 | AP8: 0.9882885168 | AQ8: 2.760730692 | AR8: 3.20312989 | AS8: 1.577166558 | AT8: 2.923544306 | AU8: 3.328970963 | AV8: 2.218011538 | AW8: 2.821976598 | AX8: 2.922858181 | AY8: 1.888888889 | AZ8: 1.109616343 | BA8: 0.6375713073 | BB8: 0.8873723887 | BC8: 2.798353909 | BD8: 1.666900126 | BE8: 2.461067071 | BF8: 2.883002112 | BG8: 4.229696989 | BH8: 5.576391866 | BI8: 2.744291431 | BJ8: 2.794214333 | BK8: 4.242323972 | BL8: 3.282890758 | BM8: 2.966314731 | BN8: 3.400806971 | BO8: 2.952948545 | BP8: 3.589859616 | BQ8: 4.538104826 | BR8: 5.033115856 | BS8: 4.382787526 | BT8: 5.994948395 | BU8: 5.778550954 | BV8: 2.305429136 | BW8: 1.954768755 | BX8: 1.592696159
A9: Oostvoorne Zuid 3 | B9: 6 | C9: NH3 | D9: NH3 | E9: 0.48511005 | F9: 1.820668957 | G9: 3.330095392 | H9: 3.182067442 | I9: 1.6798763 | J9: 1.366920218 | K9: 0.9761229694 | L9: 0.8473153482 | M9: 0.792974017 | N9: 1.077024664 | O9: 1.187337533 | P9: 0.5383089006 | Q9: 0.355818682 | R9: 0.4941501344 | S9: 1.888472314 | T9: 1.303622859 | U9: 2.865834134 | V9: 1.698886936 | W9: 2.793453115 | X9: 3.351660558 | Y9: 5.425140632 | Z9: 0.7939473193 | AA9: 2.882879398 | AB9: 0.7276591541 | AC9: 1.099981883 | AD9: 0.5468639384 | AE9: 2.503493132 | AF9: 2.385557705 | AG9: 2.992605434 | AH9: 2.267779162 | AI9: 3.079122974 | AJ9: 3.853606815 | AK9: 4.166897406 | AL9: 2.133599713 | AM9: 1.16894198 | AN9: 1.338824767 | AO9: 1.065863433 | AP9: 1.268790077 | AQ9: 3.2633243 | AR9: 3.273538056 | AS9: 2.812576313 | AT9: 3.505490817 | AU9: 4.336656786 | AV9: 2.659830541 | AW9: 7.821155616 | AX9: 1.998637387 | AY9: 3.463001313 | AZ9: 2.887751925 | BA9: 0.8394053434 | BB9: 1.143491795 | BC9: 2.468174301 | BD9: 2.335042412 | BE9: 2.086987022 | BF9: 2.222715611 | BG9: 0 | BH9: 0 | BI9: 0 | BJ9: 0 | BK9: 0 | BL9: 0 | BM9: 0 | BN9: 0 | BO9: 0 | BP9: 0 | BQ9: 0 | BR9: 0 | BS9: 0 | BT9: 0 | BU9: 0 | BV9: 0 | BW9: 0 | BX9: 0
A10: Oostvoorne Noord 1 | B10: 7 | C10: NH3 | D10: NH3 | E10: 1.021671166 | F10: 2.522323467 | G10: 3.804271279 | H10: 2.981695782 | I10: 1.999314129 | J10: 1.083148831 | K10: 0.840323547 | L10: 0.5167487385 | M10: 0.4526091587 | N10: 0.7134613367 | O10: 0.777291713 | P10: 0.3424114657 | Q10: 0.1511469385 | R10: 0.3545487235 | S10: 1.281732299 | T10: 0.7717869512 | U10: 3.30280322 | V10: 0.9307717287 | W10: 2.362269086 | X10: 1.513371079 | Y10: 2.253477891 | Z10: 1.109035376 | AA10: 0.7331681124 | AB10: 0.5125749353 | AC10: 0.5689986283 | AD10: 0.5130315501 | AE10: 1.389849108 | AF10: 0.9688723974 | AG10: 1.688563818 | AH10: 1.828091779 | AI10: 2.879829776 | AJ10: 2.663414247 | AK10: 2.010653068 | AL10: 1.548269581 | AM10: 0.847762981 | AN10: 0.5749573463 | AO10: 0.9784649169 | AP10: 1.091981508 | AQ10: 2.446106015 | AR10: 2.418193977 | AS10: 1.783085892 | AT10: 2.477547069 | AU10: 3.276449235 | AV10: 2.462238775 | AW10: 2.547555169 | AX10: 0.9620290742 | AY10: 1.103775736 | AZ10: 0.6487842111 | BA10: 0.2656793956 | BB10: 0.2908966461 | BC10: 1.570909239 | BD10: 1.429772918 | BE10: 1.945292066 | BF10: 1.759834369 | BG10: 2.666500661 | BH10: 3.573166954 | BI10: 1.389457852 | BJ10: 1.976611222 | BK10: 2.087400695 | BL10: 1.383411581 | BM10: 1.317103172 | BN10: 1.776958803 | BO10: 0.8660720251 | BP10: 1.400482285 | BQ10: 1.705697028 | BR10: 0.8995428917 | BS10: 0.7825343592 | BT10: 1.369878561 | BU10: 1.866873173 | BV10: 1.473427999 | BW10: 0.9143302642 | BX10: 0.741229863
A11: Oostvoorne Noord 2 | B11: 8 | C11: NH3 | D11: NH3 | E11: 2.513752077 | F11: 2.278867373 | G11: 2.903418595 | H11: 2.606272137 | I11: 1.426087352 | J11: 1.426516607 | K11: 0.840323547 | L11: 1.077456608 | M11: 2.139946669 | N11: 1.073539224 | O11: 1.768807309 | P11: 0.6481344389 | Q11: 0.7250026864 | R11: 0.432512555 | S11: 1.598931411 | T11: 0.9613165305 | U11: 3.049263755 | V11: 2.635373855 | W11: 3.514966441 | X11: 4.471377921 | Y11: 2.257938501 | Z11: 1.027500756 | AA11: 0.6548949768 | AB11: 0.516034569 | AC11: 0.4420988221 | AD11: 0.4854418439 | AE11: 1.21360461 | AF11: 0.9487569762 | AG11: 1.20463066 | AH11: 1.859011912 | AI11: 3.379794232 | AJ11: 3.644407955 | AK11: 2.171339564 | AL11: 2.011454564 | AM11: 0.709068882 | AN11: 0.5968753354 | AO11: 0.5715136814 | AP11: 0.6379304109 | AQ11: 0.3300543619 | AR11: 2.393719049 | AS11: 2.337557772 | AT11: 3.113926072 | AU11: 3.422912558 | AV11: 2.462238775 | AW11: 2.547555169 | AX11: 0.9620290742 | AY11: 2.150002289 | AZ11: 1.274435746 | BA11: 0.5191001433 | BB11: 0.6037544394 | BC11: 1.732806058 | BD11: 1.720828732 | BE11: 1.945292066 | BF11: 2.297847586 | BG11: 0 | BH11: 0 | BI11: 0 | BJ11: 0 | BK11: 0 | BL11: 0 | BM11: 0 | BN11: 0 | BO11: 0 | BP11: 0 | BQ11: 0 | BR11: 0 | BS11: 0 | BT11: 0 | BU11: 0 | BV11: 0 | BW11: 0 | BX11: 0
A12: Maasvlakte 2 Zuid | B12: 20 | C12: NH3 | D12: NH3 | E12: 0 | F12: 0 | G12: 0 | H12: 0 | I12: 0 | J12: 0 | K12: 0 | L12: 0 | M12: 0 | N12: 0 | O12: 0 | P12: 0 | Q12: 0 | R12: 0 | S12: 0 | T12: 0 | U12: 0 | V12: 0 | W12: 0 | X12: 0 | Y12: 0 | Z12: 0 | AA12: 0 | AB12: 6.455 | AC12: 2.08 | AD12: 7.125 | AE12: 5.262559995 | AF12: 1.889295189 | AG12: 1.309210682 | AH12: 1.063577738 | AI12: 1.213282248 | AJ12: 1.936092672 | AK12: 1.547572435 | AL12: 1.791144967 | AM12: 0.7815875129 | AN12: 1.099945167 | AO12: 0.8797733835 | AP12: 1.10072631 | AQ12: 3.602299429 | AR12: 3.023002352 | AS12: 1.675699176 | AT12: 1.932856054 | AU12: 3.382930405 | AV12: 1.928610604 | AW12: 2.726004545 | AX12: 2.580149319 | AY12: 3.056052007 | AZ12: 1.252625968 | BA12: 0.6525873168 | BB12: 1.377946374 | BC12: 4.724561114 | BD12: 3.366986649 | BE12: 2.056822387 | BF12: 2.007590089 | BG12: 2.742230267 | BH12: 3.476870445 | BI12: 2.847277008 | BJ12: 6.998822061 | BK12: 5.143347866 | BL12: 2.904226907 | BM12: 1.911795994 | BN12: 2.305802999 | BO12: 3.037392403 | BP12: 2.630447349 | BQ12: 3.96846046 | BR12: 0.32991073 | BS12: 1.10320444 | BT12: 3.691868894 | BU12: 4.819073268 | BV12: 9.54466036 | BW12: 3.791447623 | BX12: 5.498395975
A13: Maasvlakte 2 Noord | B13: 21 | C13: NH3 | D13: NH3 | E13: 0 | F13: 0 | G13: 0 | H13: 0 | I13: 0 | J13: 0 | K13: 0 | L13: 0 | M13: 0 | N13: 0 | O13: 0 | P13: 0 | Q13: 0 | R13: 0 | S13: 0 | T13: 0 | U13: 0 | V13: 0 | W13: 0 | X13: 0 | Y13: 0 | Z13: 0 | AA13: 0 | AB13: 4.14 | AC13: 2.98 | AD13: 2.575 | AE13: 3.704694907 | AF13: 2.853822314 | AG13: 1.810382579 | AH13: 0.9127576543 | AI13: 1.411122969 | AJ13: 0.06208911614 | AK13: 1.116832631 | AL13: 2.647302202 | AM13: 0.8656640602 | AN13: 1.031122601 | AO13: 0.1609407033 | AP13: 1.201654371 | AQ13: 3.859092372 | AR13: 3.142634754 | AS13: 1.743634083 | AT13: 1.795648194 | AU13: 2.317516141 | AV13: 1.647739091 | AW13: 1.58112441 | AX13: 1.366295891 | AY13: 1.705040991 | AZ13: 1.027260721 | BA13: 0.5407731747 | BB13: 1.885528541 | BC13: 2.346019756 | BD13: 0.7362494586 | BE13: 1.947839371 | BF13: 1.646250447 | BG13: 2.274490083 | BH13: 2.902729719 | BI13: 1.851706037 | BJ13: 6.998822061 | BK13: 5.143347866 | BL13: 1.930479363 | BM13: 1.74452541 | BN13: 1.58112441 | BO13: 2.117335246 | BP13: 0.2046130952 | BQ13: 3.038785835 | BR13: 2.048440811 | BS13: 1.10320444 | BT13: 2.468243377 | BU13: 3.017374837 | BV13: 3.517768781 | BW13: 1.147762346 | BX13: 2.076827905
A14: Hoek 1 | B14: 9 | C14: NH3 | D14: NH3 | E14: 2.256496748 | F14: 3.349629208 | G14: 4.938195384 | H14: 4.25227667 | I14: 1.482676225 | J14: 1.261344126 | K14: 1.228192157 | L14: 0.951643837 | M14: 0.7999362626 | N14: 2.345584006 | O14: 5.905367851 | P14: 0.5284786144 | Q14: 0.9118235898 | R14: 1.375533437 | S14: 1.578278906 | T14: 1.435550627 | U14: 1.980271637 | V14: 1.344616634 | W14: 2.127665811 | X14: 2.707513584 | Y14: 2.009709281 | Z14: 5.194920786 | AA14: 3.76272687 | AB14: 1.666617402 | AC14: 1.986815311 | AD14: 0.6465568471 | AE14: 0.6667617486 | AF14: 1.982393702 | AG14: 1.95158059 | AH14: 2.363542739 | AI14: 4.843646041 | AJ14: 3.900143465 | AK14: 3.131650454 | AL14: 4.678807387 | AM14: 1.3879212 | AN14: 3.303794592 | AO14: 0.5632454719 | AP14: 0.5777509252 | AQ14: 2.246351833 | AR14: 3.413277336 | AS14: 3.483337199 | AT14: 4.803914811 | AU14: 6.22698271 | AV14: 3.818936661 | AW14: 5.049055107 | AX14: 3.545443335 | AY14: 4.66653111 | AZ14: 2.630924947 | BA14: 1.243818751 | BB14: 1.763032786 | BC14: 3.43845642 | BD14: 3.474218782 | BE14: 2.292792658 | BF14: 2.562534258 | BG14: 4.48985482 | BH14: 6.417175381 | BI14: 2.498986212 | BJ14: 3.212863582 | BK14: 3.001560319 | BL14: 1.997219762 | BM14: 1.892720307 | BN14: 2.275436771 | BO14: 3.123298857 | BP14: 2.591655196 | BQ14: 3.417579636 | BR14: 4.920574932 | BS14: 2.215240189 | BT14: 2.911109958 | BU14: 3.807969128 | BV14: 2.793625202 | BW14: 2.601156069 | BX14: 1.433750008
A15: Hoek 2 | B15: 10 | C15: NH3 | D15: NH3 | E15: 1.06577208 | F15: 3.959717413 | G15: 4.297867897 | H15: 4.25227667 | I15: 1.482676225 | J15: 1.673063675 | K15: 2.043263513 | L15: 3.57324056 | M15: 1.693563939 | N15: 1.242080996 | O15: 1.832032702 | P15: 0.3235281009 | Q15: 0.7803790412 | R15: 0.8106819266 | S15: 2.38152912 | T15: 1.33859426 | U15: 3.014910042 | V15: 4.0618322 | W15: 5.100084438 | X15: 10.19440706 | Y15: 2.009709281 | Z15: 5.194920786 | AA15: 1.944444444 | AB15: 0.720114961 | AC15: 1.986815311 | AD15: 0.452368281 | AE15: 2.261841405 | AF15: 2.401909088 | AG15: 3.666191411 | AH15: 4.08512516 | AI15: 5.744574618 | AJ15: 4.762024216 | AK15: 4.272116803 | AL15: 2.592756148 | AM15: 1.132449802 | AN15: 0.7725818824 | AO15: 0.4382055853 | AP15: 0.6336453243 | AQ15: 3.339670469 | AR15: 3.936412246 | AS15: 2.795233912 | AT15: 4.897822446 | AU15: 5.3161918 | AV15: 1.836528295 | AW15: 1.487049972 | AX15: 1.860798671 | AY15: 1.997881286 | AZ15: 1.707109831 | BA15: 0.4886084823 | BB15: 0.7829493497 | BC15: 2.275609412 | BD15: 2.252382467 | BE15: 2.181584857 | BF15: 2.807407407 | BG15: 3.357726692 | BH15: 3.908045977 | BI15: 2.68043891 | BJ15: 1.776384535 | BK15: 2.091366457 | BL15: 1.535349156 | BM15: 1.688100947 | BN15: 1.785256903 | BO15: 2.612372386 | BP15: 3.183456953 | BQ15: 2.878478216 | BR15: 5.618263169 | BS15: 3.225340555 | BT15: 4.745859725 | BU15: 4.084113094 | BV15: 1.86338987 | BW15: 1.049969291 | BX15: 1.433750008
A16: s-Gravezande | B16: 11 | C16: NH3 | D16: NH3 | E16: 1.822837764 | F16: 5.810485976 | G16: 4.928586977 | H16: 3.16201337 | I16: 1.912334048 | J16: 1.432764658 | K16: 1.191959315 | L16: 1.468584222 | M16: 3.160777658 | N16: 3.435913061 | O16: 5.091668179 | P16: 0.3731249013 | Q16: 0.8678355161 | R16: 0.1830182273 | S16: 3.548207141 | T16: 1.648059543 | U16: 3.00404546 | V16: 2.463768116 | W16: 3.544443308 | X16: 3.806945419 | Y16: 3.614153097 | Z16: 7.755673786 | AA16: 0.4723423092 | AB16: 4.310607794 | AC16: 13.36187691 | AD16: 6.237120579 | AE16: 9.124895572 | AF16: 7.145910516 | AG16: 7.405581942 | AH16: 1.71849728 | AI16: 11.96311955 | AJ16: 7.58217499 | AK16: 0.1495838681 | AL16: 10.88192236 | AM16: 2.498689418 | AN16: 2.071664151 | AO16: 1.86359127 | AP16: 1.714544733 | AQ16: 5.244194972 | AR16: 4.418991917 | AS16: 3.181078568 | AT16: 3.673636257 | AU16: 6.641257742 | AV16: 3.425053986 | AW16: 6.943124835 | AX16: 9.296969328 | AY16: 15.99444044 | AZ16: 4.702910753 | BA16: 2.193023112 | BB16: 2.543327893 | BC16: 5.523376516 | BD16: 1.805492338 | BE16: 3.607718767 | BF16: 3.12338474 | BG16: 6.397858375 | BH16: 9.672332011 | BI16: 4.97383398 | BJ16: 2.852654098 | BK16: 17.05610561 | BL16: 7.33023496 | BM16: 4.885430177 | BN16: 10.51968676 | BO16: 4.871160585 | BP16: 2.197078544 | BQ16: 3.402908051 | BR16: 1.755053782 | BS16: 1.298783982 | BT16: 2.484885662 | BU16: 4.382204715 | BV16: 4.571155872 | BW16: 3.221161134 | BX16: 4.119890829
A17: Solleveld 1 | B17: 12 | C17: NH3 | D17: NH3 | E17: 1.727285784 | F17: 3.615519149 | G17: 6.061492963 | H17: 2.687203157 | I17: 1.434495098 | J17: 0.9137149659 | K17: 0.9465295897 | L17: 2.583427763 | M17: 2.396208168 | N17: 3.335458554 | O17: 5.130131921 | P17: 0.8579087404 | Q17: 0.7458862563 | R17: 1.453378633 | S17: 4.22299249 | T17: 1.323064172 | U17: 2.444810845 | V17: 1.245649386 | W17: 2.186998585 | X17: 3.183133945 | Y17: 2.04194078 | Z17: 1.229592891 | AA17: 0.8472396386 | AB17: 0.3867151956 | AC17: 0.6939928614 | AD17: 0.6325775639 | AE17: 3.84429112 | AF17: 2.933702934 | AG17: 1.967944514 | AH17: 1.428842011 | AI17: 1.905082087 | AJ17: 2.74404934 | AK17: 1.895370575 | AL17: 1.521136425 | AM17: 0.6165222306 | AN17: 0.5305418333 | AO17: 0.7308880828 | AP17: 1.047239244 | AQ17: 2.744831749 | AR17: 3.068974104 | AS17: 2.175715625 | AT17: 2.109818134 | AU17: 2.291546312 | AV17: 1.942058125 | AW17: 2.243222604 | AX17: 1.733266821 | AY17: 1.817385209 | AZ17: 1.300969739 | BA17: 0.4809246686 | BB17: 0.8353295252 | BC17: 2.219647652 | BD17: 1.470414424 | BE17: 1.382619658 | BF17: 1.373101889 | BG17: 2.098620176 | BH17: 2.824138464 | BI17: 1.696181372 | BJ17: 1.510788809 | BK17: 1.718090482 | BL17: 1.061282932 | BM17: 1.409023379 | BN17: 2.101849908 | BO17: 1.486430751 | BP17: 1.729986431 | BQ17: 2.157741125 | BR17: 1.394982289 | BS17: 1.049000566 | BT17: 1.697409947 | BU17: 2.521902656 | BV17: 1.907968575 | BW17: 1.340946261 | BX17: 1.199593218
A18: Solleveld 2 | B18: 13 | C18: NH3 | D18: NH3 | E18: 1.051071775 | F18: 2.444479151 | G18: 4.120097383 | H18: 2.614405353 | I18: 2.140959933 | J18: 0.8663806083 | K18: 0.7015946713 | L18: 0.6835361881 | M18: 0.4707712151 | N18: 1.352410667 | O18: 2.260689251 | P18: 0.5324138357 | Q18: 0.1157536366 | R18: 0.7852987455 | S18: 1.600855685 | T18: 1.040065463 | U18: 2.174971831 | V18: 2.073760448 | W18: 2.550838535 | X18: 4.223908884 | Y18: 1.584804521 | Z18: 1.447830332 | AA18: 1.429855854 | AB18: 1.202562448 | AC18: 0.6071512781 | AD18: 0.5010471713 | AE18: 1.420616097 | AF18: 2.292088006 | AG18: 2.669836118 | AH18: 2.156954887 | AI18: 2.437477597 | AJ18: 2.166915117 | AK18: 2.220421864 | AL18: 1.794686178 | AM18: 0.9655691915 | AN18: 0.459933007 | AO18: 0.8830022075 | AP18: 1.015531661 | AQ18: 2.356119333 | AR18: 3.836871983 | AS18: 3.191161989 | AT18: 2.869905581 | AU18: 2.880912032 | AV18: 2.116273806 | AW18: 2.067989916 | AX18: 1.536570112 | AY18: 1.680704399 | AZ18: 1.216421416 | BA18: 1.468633705 | BB18: 1.597939403 | BC18: 2.509660892 | BD18: 2.463435489 | BE18: 1.749482738 | BF18: 1.762996908 | BG18: 0 | BH18: 0 | BI18: 0 | BJ18: 0 | BK18: 0 | BL18: 0 | BM18: 0 | BN18: 0 | BO18: 0 | BP18: 0 | BQ18: 0 | BR18: 0 | BS18: 0 | BT18: 0 | BU18: 0 | BV18: 0 | BW18: 0 | BX18: 0
A19: Solleveld 3 | B19: 14 | C19: NH3 | D19: NH3 | E19: 1.021671166 | F19: 2.726336716 | G19: 3.298071525 | H19: 2.605904391 | I19: 1.196496815 | J19: 0.9171060997 | K19: 0.8756832393 | L19: 0.7750316449 | M19: 0.9681121256 | N19: 1.677785273 | O19: 2.51652241 | P19: 0.3449226692 | Q19: 0.4858483128 | R19: 1.009763522 | S19: 2.09090221 | T19: 1.105599647 | U19: 2.188723413 | V19: 1.188443455 | W19: 1.575971076 | X19: 2.177393532 | Y19: 1.358024691 | Z19: 1.356324085 | AA19: 1.355373658 | AB19: 0.5929076099 | AC19: 0.6035045866 | AD19: 0.6035045866 | AE19: 2.977289294 | AF19: 2.199391172 | AG19: 1.578898486 | AH19: 1.231119388 | AI19: 1.777044567 | AJ19: 2.077801661 | AK19: 1.434184385 | AL19: 1.751819681 | AM19: 1.008239672 | AN19: 1.738192392 | AO19: 0.9657607861 | AP19: 1.154431565 | AQ19: 3.186406429 | AR19: 3.341134816 | AS19: 2.174135461 | AT19: 2.495205648 | AU19: 2.773941421 | AV19: 0.8456531846 | AW19: 1.881605256 | AX19: 1.232741617 | AY19: 2.670992491 | AZ19: 1.630346066 | BA19: 0.8674575839 | BB19: 0.9267046693 | BC19: 3.185695946 | BD19: 1.381892807 | BE19: 0.9881925522 | BF19: 1.081481481 | BG19: 2.655250917 | BH19: 3.424832381 | BI19: 2.63733006 | BJ19: 3.247454361 | BK19: 3.130163437 | BL19: 0.8433347598 | BM19: 2.049351292 | BN19: 3.080692133 | BO19: 1.992814505 | BP19: 1.892551893 | BQ19: 3.048490662 | BR19: 1.944621335 | BS19: 1.477673471 | BT19: 1.971833877 | BU19: 3.118612542 | BV19: 1.947060321 | BW19: 0.9903253399 | BX19: 0.607971608
A20: Solleveld 4 | B20: 15 | C20: NH3 | D20: NH3 | E20: 1.073122232 | F20: 3.992145453 | G20: 4.026001988 | H20: 4.318411631 | I20: 1.539058912 | J20: 1.064184572 | K20: 0.8412691668 | L20: 0.6923313355 | M20: 1.067130463 | N20: 1.838453441 | O20: 3.489670575 | P20: 0.394469741 | Q20: 3.522974625 | R20: 3.207397283 | S20: 7.146667594 | T20: 4.187576978 | U20: 5.852247763 | V20: 5.648936428 | W20: 6.268589822 | X20: 3.19481212 | Y20: 4.583740632 | Z20: 5.640832889 | AA20: 5.150597042 | AB20: 3.8168414 | AC20: 4.787939032 | AD20: 2.592564272 | AE20: 7.13496797 | AF20: 3.85472429 | AG20: 5.075225495 | AH20: 7.219135339 | AI20: 6.561640659 | AJ20: 8.231606829 | AK20: 3.535716686 | AL20: 9.206384613 | AM20: 3.668025824 | AN20: 3.93350556 | AO20: 2.996299486 | AP20: 2.759451251 | AQ20: 6.31140868 | AR20: 5.988665952 | AS20: 5.394844183 | AT20: 5.996663415 | AU20: 6.191930425 | AV20: 5.573629456 | AW20: 8.07568438 | AX20: 5.818347281 | AY20: 5.942400144 | AZ20: 2.925371793 | BA20: 1.682489252 | BB20: 2.761383012 | BC20: 4.840812406 | BD20: 1.77191424 | BE20: 3.803442748 | BF20: 4.337039742 | BG20: 6.107077109 | BH20: 7.877114475 | BI20: 6.065859137 | BJ20: 7.469145031 | BK20: 7.199375905 | BL20: 1.939669948 | BM20: 0 | BN20: 0 | BO20: 0 | BP20: 0 | BQ20: 0 | BR20: 0 | BS20: 0 | BT20: 0 | BU20: 0 | BV20: 0 | BW20: 0 | BX20: 0
A21: Goeree 1 | B21: 1 | C21: NO2 | D21: NO2 | E21: 31.18359217 | F21: 31.46209982 | G21: 32.24424012 | H21: 34.80070331 | I21: 20.22667249 | J21: 12.24387202 | K21: 15.56270371 | L21: 15.11587072 | M21: 14.81090243 | N21: 22.25120178 | O21: 36.59769218 | P21: 14.59597655 | Q21: 19.76702832 | R21: 29.07442178 | S21: 32.85750329 | T21: 15.30863681 | U21: 16.91150788 | V21: 12.14506086 | W21: 15.02337214 | X21: 13.71278073 | Y21: 11.44705624 | Z21: 18.91654429 | AA21: 23.82298906 | AB21: 20.16381218 | AC21: 25.65045896 | AD21: 20.59087624 | AE21: 20.95562066 | AF21: 21.08536747 | AG21: 19.78508359 | AH21: 18.43676623 | AI21: 17.12205825 | AJ21: 17.12205825 | AK21: 12.1697938 | AL21: 20.29882213 | AM21: 19.53040978 | AN21: 28.9628201 | AO21: 16.52554764 | AP21: 19.84162458 | AQ21: 25.2914319 | AR21: 21.98949529 | AS21: 15.24731164 | AT21: 14.76954616 | AU21: 13.30209427 | AV21: 9.959350627 | AW21: 13.41543162 | AX21: 16.92648058 | AY21: 24.63780625 | AZ21: 22.2763247 | BA21: 18.46961879 | BB21: 23.4406378 | BC21: 22.57613107 | BD21: 18.71639012 | BE21: 12.56376684 | BF21: 11.61128029 | BG21: 12.26985057 | BH21: 12.92842085 | BI21: 13.58699113 | BJ21: 24.78110992 | BK21: 17.31772649 | BL21: 17.43290619 | BM21: 14.67706429 | BN21: 15.23021222 | BO21: 16.80138483 | BP21: 13.23979245 | BQ21: 13.50529763 | BR21: 18.31927835 | BS21: 9.854377339 | BT21: 9.443773047 | BU21: 12.27292919 | BV21: 18.38 | BW21: 18.21072224 | BX21: 34.72509524
A22: Goeree 2 | B22: 2 | C22: NO2 | D22: NO2 | E22: 26.59725884 | F22: 32.01057598 | G22: 34.79535385 | H22: 35.73202958 | I22: 22.148434 | J22: 12.56122991 | K22: 15.83718229 | L22: 17.93842556 | M22: 14.76731531 | N22: 23.88136482 | O22: 36.31142865 | P22: 15.46629785 | Q22: 22.18382562 | R22: 32.31317573 | S22: 34.8268724 | T22: 15.32267792 | U22: 16.82973076 | V22: 12.98579485 | W22: 14.85112337 | X22: 14.67966474 | Y22: 10.59311383 | Z22: 19.47373779 | AA22: 24.36284836 | AB22: 21.94215483 | AC22: 28.07443973 | AD22: 23.39483845 | AE22: 21.8556094 | AF22: 25.65732969 | AG22: 19.78508359 | AH22: 21.94198421 | AI22: 17.13116113 | AJ22: 17.13116113 | AK22: 11.44212562 | AL22: 18.71109444 | AM22: 19.95077157 | AN22: 27.68187891 | AO22: 16.57582895 | AP22: 19.22272676 | AQ22: 26.12393675 | AR22: 23.21869631 | AS22: 15.01194422 | AT22: 14.77516116 | AU22: 14.29178069 | AV22: 10.90297188 | AW22: 12.63886817 | AX22: 16.87151261 | AY22: 25.36041902 | AZ22: 22.68432048 | BA22: 18.23385015 | BB22: 24.50975413 | BC22: 25.35587143 | BD22: 18.88356033 | BE22: 14.85664918 | BF22: 12.28933517 | BG22: 0 | BH22: 0 | BL22: 0 | BM22: 0 | BN22: 0 | BO22: 0 | BP22: 0 | BQ22: 0 | BR22: 0 | BS22: 0 | BT22: 0 | BU22: 0 | BV22: 0 | BW22: 0 | BX22: 0
A23: Oostvoorne Panduin | B23: 3 | C23: NO2 | D23: NO2 | E23: 30.73190783 | F23: 27.88110113 | G23: 31.02548682 | H23: 31.15925385 | I23: 18.68094094 | J23: 10.99491518 | K23: 13.92958021 | L23: 18.77586447 | M23: 15.87777586 | N23: 21.92457864 | O23: 39.79063164 | P23: 13.82928047 | Q23: 18.18597498 | R23: 27.64825245 | S23: 31.58637614 | T23: 13.9297072 | U23: 17.10777296 | V23: 10.91581181 | W23: 12.59491158 | X23: 11.86170129 | Y23: 10.76733939 | Z23: 19.50418024 | AA23: 23.85237579 | AB23: 20.82420714 | AC23: 27.68216989 | AD23: 23.36368289 | AE23: 24.96639935 | AF23: 22.80249574 | AG23: 18.34462547 | AH23: 18.72518338 | AI23: 16.90495461 | AJ23: 16.90495461 | AK23: 10.34637225 | AL23: 22.66533119 | AM23: 21.46739444 | AN23: 25.21550134 | AO23: 15.31077102 | AP23: 16.96128814 | AQ23: 25.90057983 | AR23: 23.08645897 | AS23: 15.52684494 | AT23: 15.78177797 | AU23: 14.5383781 | AV23: 10.81803553 | AW23: 14.29228748 | AX23: 14.37476447 | AY23: 23.57154888 | AZ23: 22.44937835 | BA23: 18.43868244 | BB23: 24.9064471 | BC23: 21.71273938 | BD23: 19.05034559 | BE23: 12.41124923 | BF23: 10.87672084 | BG23: 0 | BH23: 0 | BL23: 0 | BM23: 0 | BN23: 0 | BO23: 0 | BP23: 0 | BQ23: 0 | BR23: 0 | BS23: 0 | BT23: 0 | BU23: 0 | BV23: 0 | BW23: 0 | BX23: 0
A24: Oostvoorne Zuid 1 | B24: 4 | C24: NO2 | D24: NO2 | E24: 27.55274495 | F24: 23.75162628 | G24: 31.62482338 | H24: 38.62245078 | I24: 22.26396659 | J24: 12.42814435 | K24: 19.93000273 | L24: 18.12099803 | M24: 14.35684068 | N24: 24.14671331 | O24: 41.45835282 | P24: 16.93292388 | Q24: 22.99221082 | R24: 33.92177834 | S24: 38.04173704 | T24: 15.60196745 | U24: 20.22348113 | V24: 14.14279832 | W24: 16.5108 | X24: 15.8989348 | Y24: 12.91897327 | Z24: 21.26591738 | AA24: 23.34190322 | AB24: 20.14313896 | AC24: 28.79182597 | AD24: 25.16219506 | AE24: 26.47931361 | AF24: 21.04459019 | AG24: 23.34976443 | AH24: 20.54479803 | AI24: 18.34391749 | AJ24: 18.34391749 | AK24: 15.78385792 | AL24: 22.17248677 | AM24: 20.9627024 | AN24: 26.19604347 | AO24: 15.56347243 | AP24: 18.77264336 | AQ24: 29.45464415 | AR24: 20.35090176 | AS24: 21.89146248 | AT24: 18.53558697 | AU24: 16.036711 | AV24: 11.20242328 | AW24: 13.16565451 | AX24: 17.76653943 | AY24: 28.18826491 | AZ24: 23.54731035 | BA24: 18.72189791 | BB24: 27.20802253 | BC24: 28.54566578 | BD24: 20.84214115 | BE24: 16.38795179 | BF24: 14.06366357 | BG24: 0 | BH24: 0 | BL24: 0 | BM24: 0 | BN24: 0 | BO24: 0 | BP24: 0 | BQ24: 0 | BR24: 0 | BS24: 0 | BT24: 0 | BU24: 0 | BV24: 0 | BW24: 0 | BX24: 0
A25: Oostvoorne Zuid 2 | B25: 5 | C25: NO2 | D25: NO2 | E25: 31.33125821 | F25: 32.24717048 | G25: 37.15231191 | H25: 34.69156653 | I25: 20.09246449 | J25: 12.06983705 | K25: 16.20792464 | L25: 16.62868054 | M25: 15.89742785 | N25: 19.22756039 | O25: 36.46070783 | P25: 16.8346539 | Q25: 21.62206632 | R25: 29.49846212 | S25: 32.89193902 | T25: 15.74800596 | U25: 20.732553 | V25: 14.09185164 | W25: 13.80262397 | X25: 13.77493214 | Y25: 10.59663551 | Z25: 17.12825438 | AA25: 21.07043889 | AB25: 18.92093977 | AC25: 25.8228912 | AD25: 23.55176113 | AE25: 23.52014062 | AF25: 21.35521391 | AG25: 23.34976443 | AH25: 21.1679554 | AI25: 18.42422494 | AJ25: 18.42422494 | AK25: 12.4674849 | AL25: 20.55748448 | AM25: 20.50914188 | AN25: 26.13581735 | AO25: 16.71240687 | AP25: 17.68206917 | AQ25: 27.22535996 | AR25: 28.86728949 | AS25: 18.59516837 | AT25: 16.67749092 | AU25: 15.17971146 | AV25: 9.632460867 | AW25: 12.09097357 | AX25: 15.12888573 | AY25: 22.3189764 | AZ25: 20.69046478 | BA25: 18.18366317 | BB25: 24.12240828 | BC25: 24.02141342 | BD25: 18.88901265 | BE25: 13.13861652 | BF25: 11.7229956 | BG25: 12.26898237 | BH25: 12.81496915 | BI25: 13.36095592 | BJ25: 22.53303284 | BK25: 16.4637432 | BL25: 19.40172999 | BM25: 16.65110035 | BN25: 14.75426669 | BO25: 18.12841216 | BP25: 16.16246672 | BQ25: 17.30458846 | BR25: 20.91219555 | BS25: 10.88250041 | BT25: 11.72821035 | BU25: 17.41422859 | BV25: 18.745 | BW25: 17.00372312 | BX25: 32.41562396
A26: Oostvoorne Zuid 3 | B26: 6 | C26: NO2 | D26: NO2 | E26: 28.54297601 | F26: 28.78670719 | G26: 27.27800159 | H26: 34.43861583 | I26: 25.52818639 | J26: 14.68036161 | K26: 17.27422239 | L26: 16.56346203 | M26: 13.74455637 | N26: 21.90895402 | O26: 36.0155584 | P26: 15.38963714 | Q26: 19.56714164 | R26: 27.66852977 | S26: 34.169481 | T26: 14.85130973 | U26: 19.73050416 | V26: 12.95763672 | W26: 13.99752812 | X26: 14.34059062 | Y26: 10.58515103 | Z26: 18.76171775 | AA26: 20.3093471 | AB26: 19.35844921 | AC26: 25.7272012 | AD26: 22.29695089 | AE26: 23.86934237 | AF26: 20.05715619 | AG26: 23.34976443 | AH26: 25.71918776 | AI26: 21.8112765 | AJ26: 21.8112765 | AK26: 12.43638709 | AL26: 20.48304648 | AM26: 19.35060688 | AN26: 30.60160766 | AO26: 14.72651713 | AP26: 16.99159371 | AQ26: 25.39732172 | AR26: 22.1140312 | AS26: 16.72340366 | AT26: 15.54820192 | AU26: 14.75981347 | AV26: 10.04997212 | AW26: 12.52344276 | AX26: 14.54948627 | AY26: 22.41979437 | AZ26: 22.32541772 | BA26: 17.05989043 | BB26: 24.29271619 | BC26: 24.88750272 | BD26: 19.1168493 | BE26: 13.75661188 | BF26: 10.93484169 | BG26: 0 | BH26: 0 | BL26: 0 | BM26: 0 | BN26: 0 | BO26: 0 | BP26: 0 | BQ26: 0 | BR26: 0 | BS26: 0 | BT26: 0 | BU26: 0 | BV26: 0 | BW26: 0 | BX26: 0
A27: Oostvoorne Noord 1 | B27: 7 | C27: NO2 | D27: NO2 | E27: 32.57339015 | F27: 32.62560977 | G27: 28.53439527 | H27: 39.10668155 | I27: 22.95720203 | J27: 12.9400119 | K27: 18.73202976 | L27: 16.62363007 | M27: 11.79590488 | N27: 23.8432677 | O27: 33.16234204 | P27: 15.11619658 | Q27: 22.45141042 | R27: 33.27178996 | S27: 32.46837851 | T27: 16.56817897 | U27: 21.21531437 | V27: 13.33297201 | W27: 15.2748835 | X27: 15.07324974 | Y27: 10.41701803 | Z27: 19.04437775 | AA27: 23.25065345 | AB27: 22.44787668 | AC27: 27.23213255 | AD27: 25.20112562 | AE27: 25.05766365 | AF27: 22.88476634 | AG27: 18.22133532 | AH27: 20.31168655 | AI27: 16.39885312 | AJ27: 16.39885312 | AK27: 15.76068122 | AL27: 21.54376199 | AM27: 21.93713328 | AN27: 29.06777122 | AO27: 15.22234053 | AP27: 18.36090801 | AQ27: 27.70267356 | AR27: 22.70260603 | AS27: 18.32845402 | AT27: 16.3507271 | AU27: 14.37300018 | AV27: 10.34896485 | AW27: 11.27301441 | AX27: 14.99691341 | AY27: 23.57427223 | AZ27: 22.21473155 | BA27: 20.99961427 | BB27: 27.87486282 | BC27: 23.97477322 | BD27: 18.089382 | BE27: 13.34619588 | BF27: 13.23206538 | BG27: 14.94332056 | BH27: 16.65457574 | BI27: 18.36583091 | BJ27: 24.53573019 | BK27: 15.96255388 | BL27: 18.07202964 | BM27: 15.16732415 | BN27: 16.56290066 | BO27: 23.61954832 | BP27: 14.53972948 | BQ27: 17.12329742 | BR27: 19.18866013 | BS27: 10.42321584 | BT27: 11.48339204 | BU27: 17.11473312 | BV27: 20.19 | BW27: 19.07806045 | BX27: 34.42172239
A28: Oostvoorne Noord 2 | B28: 8 | C28: NO2 | D28: NO2 | E28: 25.20746086 | F28: 27.57715506 | G28: 27.08332928 | H28: 31.35557903 | I28: 18.65552894 | J28: 12.17221057 | K28: 18.36353081 | L28: 15.36996264 | M28: 12.37659969 | N28: 16.4434756 | O28: 31.83440533 | P28: 12.95961585 | Q28: 19.25577171 | R28: 27.43113763 | S28: 29.99449284 | T28: 13.6189506 | U28: 18.96908921 | V28: 12.22719307 | W28: 12.31526169 | X28: 10.94411601 | Y28: 9.518710902 | Z28: 16.34656099 | AA28: 19.71404646 | AB28: 18.71236664 | AC28: 23.32424289 | AD28: 21.89147321 | AE28: 23.61019739 | AF28: 20.83783409 | AG28: 13.26359852 | AH28: 21.5067665 | AI28: 15.29719886 | AJ28: 15.29719886 | AK28: 11.43110475 | AL28: 18.34324182 | AM28: 17.78183643 | AN28: 24.52443862 | AO28: 11.73658883 | AP28: 16.2520511 | AQ28: 27.70267356 | AR28: 20.7485106 | AS28: 16.1072159 | AT28: 14.33981272 | AU28: 14.37300018 | AV28: 8.43329953 | AW28: 22.58635227 | AX28: 12.19706397 | AY28: 20.28882083 | AZ28: 20.7916919 | BA28: 16.20226592 | BB28: 23.74492577 | BC28: 20.98673422 | BD28: 26.55354708 | BE28: 12.20399078 | BF28: 10.3573405 | BG28: 0 | BH28: 0 | BL28: 0 | BM28: 0 | BN28: 0 | BO28: 0 | BP28: 0 | BQ28: 0 | BR28: 0 | BS28: 0 | BT28: 0 | BU28: 0 | BV28: 0 | BW28: 0 | BX28: 0
A29: Maasvlakte 2 Zuid | B29: 20 | C29: NO2 | D29: NO2 | E29: 0 | F29: 0 | G29: 0 | H29: 0 | I29: 0 | J29: 0 | K29: 0 | L29: 0 | M29: 0 | N29: 0 | O29: 0 | P29: 0 | Q29: 0 | R29: 0 | S29: 0 | T29: 0 | U29: 0 | V29: 0 | W29: 0 | X29: 0 | Y29: 0 | Z29: 0 | AA29: 0 | AB29: 33.18284953 | AC29: 40.64150112 | AD29: 32.71625376 | AE29: 28.42899495 | AF29: 30.16367582 | AG29: 29.54607835 | AH29: 15.76424002 | AI29: 18.08280215 | AJ29: 18.08280215 | AK29: 18.06853851 | AL29: 30.98700851 | AM29: 26.7888906 | AN29: 33.75224415 | AO29: 23.89316327 | AP29: 23.57128556 | AQ29: 35.26994195 | AR29: 31.07523817 | AS29: 25.29201895 | AT29: 27.13154833 | AU29: 21.42950556 | AV29: 14.32306157 | AW29: 28.61752715 | AX29: 22.54517073 | AY29: 30.14064904 | AZ29: 27.78418691 | BA29: 25.17923409 | BB29: 34.74132499 | BC29: 31.99871052 | BD29: 29.79724273 | BE29: 17.63546649 | BF29: 18.94319464 | BG29: 21.25180851 | BH29: 23.56042238 | BI29: 25.86903624 | BJ29: 25.69290235 | BK29: 25.87427994 | BL29: 23.40392628 | BM29: 31.18121912 | BN29: 21.06342532 | BO29: 23.89729681 | BP29: 18.27254485 | BQ29: 25.10825478 | BR29: 23.57071595 | BS29: 11.28574409 | BT29: 27.02379918 | BU29: 33.84101904 | BV29: 34.6 | BW29: 34.48231818 | BX29: 54.09666889
A30: Maasvlakte 2 Noord | B30: 21 | C30: NO2 | D30: NO2 | E30: 0 | F30: 0 | G30: 0 | H30: 0 | I30: 0 | J30: 0 | K30: 0 | L30: 0 | M30: 0 | N30: 0 | O30: 0 | P30: 0 | Q30: 0 | R30: 0 | S30: 0 | T30: 0 | U30: 0 | V30: 0 | W30: 0 | X30: 0 | Y30: 0 | Z30: 0 | AA30: 0 | AB30: 58.28559861 | AC30: 59.16094617 | AD30: 43.11471671 | AE30: 33.77153133 | AF30: 38.92620185 | AG30: 31.89195392 | AH30: 10.25929905 | AI30: 12.82080364 | AJ30: 12.82080364 | AK30: 30.75123705 | AL30: 44.25768472 | AM30: 29.7654942 | AN30: 29.67980315 | AO30: 39.41925278 | AP30: 46.83087117 | AQ30: 44.20427235 | AR30: 37.41601607 | AS30: 39.21724188 | AT30: 19.63436988 | AU30: 28.97107772 | AV30: 28.09978023 | AW30: 13.37126367 | AX30: 42.91199272 | AY30: 55.65706597 | AZ30: 32.84875091 | BA30: 42.83143038 | BB30: 37.34585714 | BC30: 44.00197756 | BD30: 21.76660931 | BE30: 27.59577493 | BF30: 23.65565214 | BG30: 28.13101259 | BH30: 32.60637304 | BI30: 37.08173348 | BJ30: 32.49699157 | BK30: 25.70675331 | BL30: 45.17275903 | BM30: 42.28132596 | BN30: 34.60135596 | BO30: 28.90988454 | BP30: 28.01440443 | BQ30: 37.93838147 | BR30: 26.32712543 | BS30: 21.75138039 | BT30: 18.84987778 | BU30: 25.26945771 | BV30: 36.47 | BW30: 28.55959569 | BX30: 53.8509556
A31: Hoek 1 | B31: 9 | C31: NO2 | D31: NO2 | E31: 44.10871338 | F31: 46.71045515 | G31: 43.48902446 | H31: 34.03113609 | I31: 25.75967008 | J31: 32.87213467 | K31: 22.56216782 | L31: 24.11886467 | M31: 11.31340576 | N31: 22.01779309 | O31: 56.67689764 | P31: 32.63561828 | Q31: 37.8399778 | R31: 48.7466692 | S31: 38.95870926 | T31: 27.65825833 | U31: 28.82902857 | V31: 25.359995 | W31: 29.53806742 | X31: 35.03911965 | Y31: 30.28416435 | Z31: 37.79890666 | AA31: 41.65695982 | AB31: 41.33809272 | AC31: 51.00723923 | AD31: 34.9303902 | AE31: 27.60595405 | AF31: 32.52489443 | AG31: 32.47079387 | AH31: 22.77981038 | AI31: 23.08708932 | AJ31: 23.08708932 | AK31: 32.38791012 | AL31: 40.95872938 | AM31: 30.24831755 | AN31: 39.19730994 | AO31: 41.42010145 | AP31: 42.71113199 | AQ31: 45.00719327 | AR31: 29.65430622 | AS31: 30.84640744 | AT31: 24.31941184 | AU31: 12.57240954 | AV31: 28.50222643 | AW31: 29.2819547 | AX31: 36.73940501 | AY31: 42.07803162 | AZ31: 37.45566476 | BA31: 39.93709334 | BB31: 34.32424606 | BC31: 43.89050488 | BD31: 35.72812775 | BE31: 32.12035993 | BF31: 25.6517897 | BG31: 26.01329571 | BH31: 26.37480172 | BI31: 26.73630773 | BJ31: 38.30488406 | BK31: 25.03012729 | BL31: 39.36700209 | BM31: 29.65021034 | BN31: 24.94391324 | BO31: 22.05502297 | BP31: 26.27271815 | BQ31: 18.3925 | BR31: 18.3925 | BS31: 25.30584225 | BT31: 28.97143132 | BU31: 28.29637608 | BV31: 32.505 | BW31: 27.21657359 | BX31: 53.55573079
A32: Hoek 2 | B32: 10 | C32: NO2 | D32: NO2 | E32: 42.68417045 | F32: 45.92403752 | G32: 40.25082682 | H32: 50.86226617 | I32: 34.54241793 | J32: 26.2383311 | K32: 16.06268187 | L32: 37.61891107 | M32: 35.82286471 | N32: 46.5772784 | O32: 57.34381949 | P32: 24.47431333 | Q32: 35.82810775 | R32: 45.77165492 | S32: 38.18158162 | T32: 25.8610316 | U32: 21.15262633 | V32: 20.55851581 | W32: 24.90480063 | X32: 28.09739334 | Y32: 23.19169004 | Z32: 29.91265884 | AA32: 37.60649301 | AB32: 32.67232169 | AC32: 44.84202269 | AD32: 30.34309497 | AE32: 30.2217995 | AF32: 34.28685836 | AG32: 32.47079387 | AH32: 29.12621256 | AI32: 29.74273695 | AJ32: 29.74273695 | AK32: 22.89817481 | AL32: 33.90014732 | AM32: 24.48484729 | AN32: 38.75624633 | AO32: 30.44974992 | AP32: 36.4601885 | AQ32: 36.51512065 | AR32: 29.66538008 | AS32: 24.87291055 | AT32: 19.89498716 | AU32: 17.79241624 | AV32: 24.22983394 | AW32: 28.44393768 | AX32: 30.06168297 | AY32: 39.6138125 | AZ32: 34.31022092 | BA32: 39.01261397 | BB32: 29.77950629 | BC32: 37.76096248 | BD32: 31.84725502 | BE32: 27.56575062 | BF32: 21.24993527 | BG32: 21.98498881 | BH32: 22.72004234 | BI32: 23.45509588 | BJ32: 39.16540105 | BK32: 35.58376182 | BL32: 37.83627594 | BM32: 30.99366707 | BN32: 30.13665951 | BO32: 21.25414457 | BP32: 22.77734455 | BQ32: 21.86324719 | BR32: 17.71532872 | BS32: 21.08996719 | BT32: 23.20193023 | BU32: 42.89014685 | BV32: 29.36 | BW32: 44.01321509 | BX32: 43.31067227
A33: s-Gravezande | B33: 11 | C33: NO2 | D33: NO2 | E33: 48.2259899 | F33: 61.17457797 | G33: 56.7709315 | H33: 41.98707554 | I33: 31.24041306 | J33: 24.30347173 | K33: 19.4130331 | L33: 37.4074766 | M33: 35.30589487 | N33: 47.34564715 | O33: 58.30767807 | P33: 26.38165758 | Q33: 36.11276041 | R33: 43.60326093 | S33: 38.54045599 | T33: 22.98959212 | U33: 21.59457375 | V33: 19.71561929 | W33: 20.7726005 | X33: 27.77847282 | Y33: 21.66784905 | Z33: 30.19527148 | AA33: 40.66088081 | AB33: 36.08007055 | AC33: 44.04992548 | AD33: 32.44487954 | AE33: 32.20709523 | AF33: 32.52489443 | AG33: 22.90967592 | AH33: 21.53288455 | AI33: 24.20559482 | AJ33: 24.20559482 | AK33: 23.31047679 | AL33: 35.51459912 | AM33: 26.37089239 | AN33: 38.92783581 | AO33: 30.20121498 | AP33: 34.66967135 | AQ33: 40.46922306 | AR33: 28.37353991 | AS33: 23.50939911 | AT33: 18.95874758 | AU33: 14.91706378 | AV33: 21.59263016 | AW33: 27.33208678 | AX33: 32.65804142 | AY33: 42.07162607 | AZ33: 33.14702885 | BA33: 35.09601472 | BB33: 31.70812366 | BC33: 34.46400379 | BD33: 27.59809359 | BE33: 25.93354756 | BF33: 19.95266551 | BG33: 21.04595972 | BH33: 22.13925392 | BI33: 23.23254813 | BJ33: 31.69049771 | BK33: 35.61016629 | BL33: 37.01217064 | BM33: 35.13063803 | BN33: 26.98474821 | BO33: 25.45787084 | BP33: 28.57561591 | BQ33: 26.63032258 | BR33: 21.63891648 | BS33: 20.80434509 | BT33: 24.05837761 | BU33: 40.86324251 | BV33: 38.405 | BW33: 39.98276632 | BX33: 61.59381455
A34: Solleveld 1 | B34: 12 | C34: NO2 | D34: NO2 | E34: 36.23029609 | F34: 48.47181207 | G34: 37.20797411 | H34: 32.03526721 | I34: 26.18982696 | J34: 20.93538318 | K34: 17.53286788 | L34: 30.00599727 | M34: 36.95100725 | N34: 36.42820052 | O34: 64.53962029 | P34: 28.01623677 | Q34: 34.0332671 | R34: 44.65436736 | S34: 39.64500763 | T34: 20.3675462 | U34: 21.2955424 | V34: 17.18929778 | W34: 19.19328971 | X34: 27.12692964 | Y34: 20.22954145 | Z34: 30.95667092 | AA34: 40.16678043 | AB34: 36.45293985 | AC34: 43.15023965 | AD34: 27.86978776 | AE34: 27.56040008 | AF34: 34.28685836 | AG34: 17.41769678 | AH34: 18.45609451 | AI34: 20.60394336 | AJ34: 20.60394336 | AK34: 20.63184655 | AL34: 31.87736012 | AM34: 23.049008 | AN34: 36.39605212 | AO34: 32.27856814 | AP34: 32.20501234 | AQ34: 34.26597129 | AR34: 24.42699453 | AS34: 19.95298165 | AT34: 16.62205093 | AU34: 14.40809605 | AV34: 20.5815069 | AW34: 24.51607236 | AX34: 33.07154341 | AY34: 40.86162728 | AZ34: 28.90916758 | BA34: 32.9967156 | BB34: 29.58686251 | BC34: 31.63855833 | BD34: 25.46270088 | BE34: 20.73218338 | BF34: 16.53045571 | BG34: 17.65599216 | BH34: 18.7815286 | BI34: 19.90706505 | BJ34: 29.55578213 | BK34: 34.69763129 | BL34: 35.01369627 | BM34: 38.49008602 | BN34: 25.86352403 | BO34: 20.58157444 | BP34: 20.10455592 | BQ34: 20.34446925 | BR34: 15.78867393 | BS34: 14.1 | BT34: 14.1 | BU34: 33.26254708 | BV34: 27.21 | BW34: 33.41942497 | BX34: 45.88901816
A35: Solleveld 2 | B35: 13 | C35: NO2 | D35: NO2 | E35: 35.70043561 | F35: 41.12424827 | G35: 33.08079218 | H35: 28.43299057 | I35: 24.71455764 | J35: 19.43049256 | K35: 15.1335357 | L35: 23.51545755 | M35: 32.96258326 | N35: 34.46747259 | O35: 49.77423595 | P35: 21.05088638 | Q35: 32.34533347 | R35: 33.77814521 | S35: 34.48434024 | T35: 20.15532441 | U35: 17.96147124 | V35: 13.05601049 | W35: 17.18523853 | X35: 19.79309049 | Y35: 16.43046049 | Z35: 25.23231418 | AA35: 35.58712115 | AB35: 31.17339047 | AC35: 33.17482678 | AD35: 23.30562923 | AE35: 23.48125308 | AF35: 29.24007416 | AG35: 15.96095942 | AH35: 20.36305767 | AI35: 19.43689128 | AJ35: 19.43689128 | AK35: 17.76652213 | AL35: 28.33898051 | AM35: 21.83953098 | AN35: 37.698622 | AO35: 31.01792413 | AP35: 31.19962822 | AQ35: 30.93132453 | AR35: 24.31819291 | AS35: 17.83169802 | AT35: 15.53566018 | AU35: 13.29112021 | AV35: 16.17559683 | AW35: 22.99174377 | AX35: 28.45063782 | AY35: 40.04862538 | AZ35: 26.44716284 | BA35: 29.21562786 | BB35: 25.22831345 | BC35: 26.3654279 | BD35: 23.06051514 | BE35: 19.28684343 | BF35: 14.69464475 | BG35: 0 | BH35: 0 | BL35: 0 | BM35: 0 | BN35: 0 | BO35: 0 | BP35: 0 | BQ35: 0 | BR35: 0 | BS35: 0 | BT35: 0 | BU35: 0 | BV35: 0 | BW35: 0 | BX35: 0
A36: Solleveld 3 | B36: 14 | C36: NO2 | D36: NO2 | E36: 34.50173485 | F36: 40.00089774 | G36: 27.95124159 | H36: 29.8410145 | I36: 22.13903456 | J36: 21.35511458 | K36: 15.75528348 | L36: 21.9719301 | M36: 25.82850126 | N36: 36.99566352 | O36: 56.67000719 | P36: 20.71525872 | Q36: 26.85272967 | R36: 34.50176846 | S36: 33.16696849 | T36: 17.5886139 | U36: 17.94972457 | V36: 15.74961994 | W36: 17.33979414 | X36: 15.49798472 | Y36: 15.1379896 | Z36: 26.17490063 | AA36: 36.91089725 | AB36: 28.03528456 | AC36: 34.0573147 | AD36: 24.52937735 | AE36: 26.49781549 | AF36: 23.61849552 | AG36: 15.96095942 | AH36: 15.80062279 | AI36: 18.41323894 | AJ36: 18.41323894 | AK36: 16.57019873 | AL36: 27.59854182 | AM36: 22.58082074 | AN36: 31.52287616 | AO36: 32.56706161 | AP36: 33.64806374 | AQ36: 31.59610694 | AR36: 23.49645303 | AS36: 17.38639529 | AT36: 14.99741368 | AU36: 13.23962234 | AV36: 18.29215845 | AW36: 22.75987415 | AX36: 29.80789071 | AY36: 43.09677869 | AZ36: 27.39202063 | BA36: 29.11664896 | BB36: 29.0284431 | BC36: 26.55936997 | BD36: 22.17803689 | BE36: 19.75560238 | BF36: 14.32944852 | BG36: 14.76031265 | BH36: 15.7457931 | BI36: 16.73127356 | BJ36: 33.55193435 | BK36: 29.7100368 | BL36: 31.41216351 | BM36: 28.01865573 | BN36: 23.08664944 | BO36: 19.505 | BP36: 19.505 | BQ36: 15.39833389 | BR36: 13.60178236 | BS36: 13.53301184 | BT36: 15.88509744 | BU36: 39.03468288 | BV36: 22.36 | BW36: 40.18465535 | BX36: 39.64637948
A37: Solleveld 4 | B37: 15 | C37: NO2 | D37: NO2 | E37: 35.43116225 | F37: 41.09097843 | G37: 32.57286777 | H37: 26.40909113 | I37: 23.66531606 | J37: 17.22946205 | K37: 15.23506784 | L37: 22.89837205 | M37: 26.40131077 | N37: 37.82146546 | O37: 58.54628549 | P37: 22.62200256 | Q37: 28.43618302 | R37: 35.59969244 | S37: 35.94168242 | T37: 19.79251319 | U37: 18.29530887 | V37: 16.48398001 | W37: 12.36582929 | X37: 24.49299421 | Y37: 17.89751763 | Z37: 25.91743391 | AA37: 38.63494379 | AB37: 31.13715248 | AC37: 32.51372661 | AD37: 21.1119118 | AE37: 24.3156448 | AF37: 23.07387489 | AG37: 15.96095942 | AH37: 14.14942072 | AI37: 15.48188983 | AJ37: 15.48188983 | AK37: 17.02452391 | AL37: 28.46667056 | AM37: 21.94425528 | AN37: 30.9256666 | AO37: 31.56616158 | AP37: 34.99185275 | AQ37: 32.07674431 | AR37: 21.84777912 | AS37: 17.30199124 | AT37: 15.38925298 | AU37: 12.60843207 | AV37: 17.4249529 | AW37: 24.0058213 | AX37: 27.22758984 | AY37: 41.75717511 | AZ37: 26.43814747 | BA37: 28.57906488 | BB37: 27.38652169 | BC37: 26.34795047 | BD37: 22.67628461 | BE37: 17.79670381 | BF37: 13.7748322 | BG37: 14.76031265 | BH37: 15.7457931 | BI37: 16.73127356 | BJ37: 33.55193435 | BK37: 29.7100368 | BL37: 31.41216351

Sheet Annual2
D1: ="Total Deposition: " &TEXT(VLOOKUP($B11,$D$71:$F$90,2),"") -> Total Deposition: Goeree 1 | E1: ="Wet Deposition: " &TEXT(VLOOKUP($B11,$D$71:$F$90,2),"") -> Wet Deposition: Goeree 1 | L1: ="Dry Deposition: " &TEXT(VLOOKUP($B11,$D$71:$F$90,2),"") -> Dry Deposition: Goeree 1
D2: =" Depo 2011: "&TEXT(P44/1000,"0.0")&" *1000 mol/ha" -> Depo 2011: 0.0 *1000 mol/ha | E2: =" Wet depo 2011: "&TEXT(#REF!/1000,"0.0")&" *1000 mol/ha" -> 
D3: =" Depo 2012: "&TEXT(AB44/1000,"0.0") -> Depo 2012: 0.0 | E3: =" Wet depo 2012: "&TEXT(#REF!/1000,"0.0") ->  | CA3: val | CB3: sqr | CD3: jaar | CE3: maand | CF3: stathit/maand
B4: 1 | D4: =" Depo 2013: "&TEXT(AN44/1000,"0.0") -> Depo 2013: 0.0 | E4: =" Wet depo 2013: "&TEXT(#REF!/1000,"0.0") ->  | BZ4: onzeker | CA4: 3 | CB4: =CA4*CA4 -> 9 | CD4: 5 | CE4: 6 | CF4: 5 | CG4: =CF4*CE4*CD4 -> 150 | CH4: meetpunten
D5: =" Depo 2014: "&TEXT(AZ44/1000,"0.0") -> Depo 2014: 0.0 | E5: =" Wet depo 2014: "&TEXT(#REF!/1000,"0.0") ->  | K5: =E30*1 -> 1902-05-26T17:01:44.400 | BZ5: 0.5 | CA5: =CA4*BZ5 -> 1.5 | CB5: =CA5*CA5 -> 2.25 | CC5: =CB5/CB4 -> 0.25 | CG5: =50/SQRT(CG4) -> 4.082482905 | CH5: % | CJ5: =50/6 -> 8.333333333
D6: =" Depo 2015: "&TEXT(BL44/1000,"0.0") -> Depo 2015: 0.0 | E6: =" Wet depo 2015: "&TEXT(#REF!/1000,"0.0") ->  | CA6: ratio | CB6: =CB4/CB5 -> 4 | CJ6: =CJ5*CJ5 -> 69.44444444 | CK6: =CJ6/12/5 -> 1.157407407
D7: =" Depo 2016: "&TEXT(BX44/1000,"0.0") -> Depo 2016: 0.0 | E7: =" Wet depo 2016: "&TEXT(#REF!/1000,"0.0") -> 
B8: 9,10,1,5 | CF8: =50/SQRT(48) -> 7.216878365 | CT8: =D1 -> Total Deposition: Goeree 1 | CU8: 2011 | DG8: 2012 | DS8: 2013 | EE8: 2014 | EQ8: 2015 | FC8: 2016
E9: 2011-01-01 | F9: 2011-02-01 | G9: 2011-03-01 | H9: 2011-04-01 | I9: 2011-05-01 | J9: 2011-06-01 | K9: 2011-07-01 | L9: 2011-08-01 | M9: 2011-09-01 | N9: 2011-10-01 | O9: 2011-11-01 | P9: 2011-12-01 | Q9: 2012-01-01 | R9: 2012-02-01 | S9: 2012-03-01 | T9: 2012-04-01 | U9: 2012-05-01 | V9: 2012-06-01 | W9: 2012-07-01 | X9: 2012-08-01 | Y9: 2012-09-01 | Z9: 2012-10-01 | AA9: 2012-11-01 | AB9: 2012-12-01 | AC9: 2013-01-01 | AD9: 2013-02-01 | AE9: 2013-03-01 | AF9: 2013-04-01 | AG9: 2013-05-01 | AH9: 2013-06-01 | AI9: 2013-07-01 | AJ9: 2013-08-01 | AK9: 2013-09-01 | AL9: 2013-10-01 | AM9: 2013-11-01 | AN9: 2013-12-01 | AO9: 2014-01-01 | AP9: 2014-02-01 | AQ9: 2014-03-01 | AR9: 2014-04-01 | AS9: 2014-05-01 | AT9: 2014-06-01 | AU9: 2014-07-01 | AV9: 2014-08-01 | AW9: 2014-09-01 | AX9: 2014-10-01 | AY9: 2014-11-01 | AZ9: 2014-12-01 | BA9: 2015-01-01 | BB9: 2015-02-01 | BC9: 2015-03-01 | BD9: 2015-04-01 | BE9: 2015-05-01 | BF9: 2015-06-01 | BG9: 2015-07-01 | BH9: 2015-08-01 | BI9: 2015-09-01 | BJ9: 2015-10-01 | BK9: 2015-11-01 | BL9: 2015-12-01 | BM9: 2016-01-01 | BN9: 2016-02-01 | BO9: 2016-03-01 | BP9: 2016-04-01 | BQ9: 2016-05-01 | BR9: 2016-06-01 | BS9: 2016-07-01 | BT9: 2016-08-01 | BU9: 2016-09-01 | BV9: 2016-10-01 | BW9: 2016-11-01 | BX9: 2016-12-01 | CB9: AVG mol/ha | CC9: error in value at 50 % error per datapoint | CE9: stdev | CU9: =E9 -> 2011-01-01 | CV9: =F9 -> 2011-02-01 | CW9: 2011-03-01 | CX9: 2011-04-01 | CY9: 2011-05-01 | CZ9: 2011-06-01 | DA9: 2011-07-01 | DB9: 2011-08-01 | DC9: 2011-09-01 | DD9: 2011-10-01 | DE9: 2011-11-01 | DF9: 2011-12-01 | DG9: 2012-01-01 | DH9: 2012-02-01 | DI9: 2012-03-01 | DJ9: 2012-04-01 | DK9: 2012-05-01 | DL9: 2012-06-01 | DM9: 2012-07-01 | DN9: 2012-08-01 | DO9: 2012-09-01 | DP9: 2012-10-01 | DQ9: 2012-11-01 | DR9: 2012-12-01 | DS9: 2013-01-01 | DT9: 2013-02-01 | DU9: 2013-03-01 | DV9: 2013-04-01 | DW9: 2013-05-01 | DX9: 2013-06-01 | DY9: 2013-07-01 | DZ9: 2013-08-01 | EA9: 2013-09-01 | EB9: 2013-10-01 | EC9: =AM9 -> 2013-11-01 | ED9: =AN9 -> 2013-12-01 | EE9: 2014-01-01 | EF9: 2014-02-01 | EG9: 2014-03-01 | EH9: 2014-04-01 | EI9: 2014-05-01 | EJ9: 2014-06-01 | EK9: 2014-07-01 | EL9: 2014-08-01 | EM9: 2014-09-01 | EN9: 2014-10-01 | EO9: 2014-11-01 | EP9: 2014-12-01 | EQ9: 2015-01-01 | ER9: 2015-02-01 | ES9: 2015-03-01 | ET9: 2015-04-01 | EU9: 2015-05-01 | EV9: 2015-06-01 | EW9: 2015-07-01 | EX9: 2015-08-01 | EY9: 2015-09-01 | EZ9: 2015-10-01 | FA9: 2015-11-01 | FB9: 2015-12-01 | FC9: 2016-01-01 | FD9: 2016-02-01 | FE9: 2016-03-01 | FF9: 2016-04-01 | FG9: 2016-05-01 | FH9: 2016-06-01 | FI9: 2016-07-01 | FJ9: 2016-08-01 | FK9: 2016-09-01 | FL9: 2016-10-01 | FM9: 2016-11-01 | FN9: 2016-12-01
B10: stat nr | C10: comp | D10: Station list | E10: =+'NO2'!D7 -> 33 | F10: =+'NO2'!E7 -> 36 | G10: =+'NO2'!F7 -> 35 | H10: =+'NO2'!G7 -> 29 | I10: =+'NO2'!H7 -> 35 | J10: =+'NO2'!I7 -> 28 | K10: =+'NO2'!J7 -> 28 | L10: =+'NO2'!K7 -> 23 | M10: =+'NO2'!L7 -> 33 | N10: =+'NO2'!M7 -> 28 | O10: =+'NO2'!N7 -> 28 | P10: =+'NO2'!O7 -> 28 | Q10: =+'NO2'!P7 -> 35 | R10: =+'NO2'!Q7 -> 33 | S10: =+'NO2'!R7 -> 30 | T10: =+'NO2'!S7 -> 28 | U10: =+'NO2'!T7 -> 35 | V10: =+'NO2'!U7 -> 28 | W10: =+'NO2'!V7 -> 33 | X10: =+'NO2'!W7 -> 30 | Y10: =+'NO2'!X7 -> 28 | Z10: =+'NO2'!Y7 -> 33 | AA10: =+'NO2'!Z7 -> 28 | AB10: =+'NO2'!AA7 -> 30 | AC10: =+'NO2'!AB7 -> 34 | AD10: =+'NO2'!AC7 -> 28 | AE10: =+'NO2'!AD7 -> 28 | AF10: =+'NO2'!AE7 -> 27 | AG10: =+'NO2'!AF7 -> 36 | AH10: =+'NO2'!AG7 -> 28 | AI10: =+'NO2'!AH7 -> 34 | AJ10: =+'NO2'!AI7 -> 29 | AK10: =+'NO2'!AJ7 -> 28 | AL10: =+'NO2'!AK7 -> 35 | AM10: =+'NO2'!AL7 -> 28 | AN10: =+'NO2'!AM7 -> 21 | AO10: =+'NO2'!AN7 -> 35 | AP10: =+'NO2'!AO7 -> 35 | AQ10: =+'NO2'!AP7 -> 35 | AR10: =+'NO2'!AQ7 -> 28 | AS10: =+'NO2'!AR7 -> 27 | AT10: =+'NO2'!AS7 -> 29 | AU10: =+'NO2'!AT7 -> 35 | AV10: =+'NO2'!AU7 -> 28 | AW10: =+'NO2'!AV7 -> 28 | AX10: =+'NO2'!AW7 -> 35 | AY10: =+'NO2'!AX7 -> 27 | AZ10: =+'NO2'!AY7 -> 27 | BA10: =+'NO2'!AZ7 -> 24 | BB10: =+'NO2'!BA7 -> 27 | BC10: =+'NO2'!BB7 -> 21 | BD10: =+'NO2'!BC7 -> 35 | BE10: =+'NO2'!BD7 -> 28 | BF10: =+'NO2'!BE7 -> 35 | BG10: =+'NO2'!BF7 -> 42 | BH10: =+'NO2'!BG7 -> 27 | BI10: =+'NO2'!BH7 -> 28 | BJ10: =+'NO2'!BI7 -> 28 | BK10: =+'NO2'!BJ7 -> 28 | BL10: =+'NO2'!BK7 -> 27 | BM10: =+'NO2'!BL7 -> 36 | BN10: =+'NO2'!BM7 -> 28 | BO10: =+'NO2'!BN7 -> 35 | BP10: =+'NO2'!BO7 -> 29 | BQ10: =+'NO2'!BP7 -> 28 | BR10: =+'NO2'!BQ7 -> 34 | BS10: =+'NO2'!BR7 -> 28 | BT10: =+'NO2'!BS7 -> 34 | BU10: =+'NO2'!BT7 -> 29 | BV10: =+'NO2'!BU7 -> 29 | BW10: =+'NO2'!BV7 -> 27 | BX10: =+'NO2'!BW7 -> 28 | BY10: lijstje arnoud | CT10: Dry depostion
A11: =VLOOKUP(B11,$D$71:$F$89,2) -> Goeree 1 | B11: =B4 -> 1 | C11: NO2 | D11: =C11 -> NO2 | E11: =INDIRECT(TEXT($C11," ")&"!"&TEXT(VLOOKUP(E$9,$B$59:$C$130,2)&VLOOKUP($B11,$D$71:$F$89,3)," ")) -> 31.18359217 | F11: 31.46209982 | G11: 32.24424012 | H11: 34.80070331 | I11: 20.22667249 | J11: 12.24387202 | K11: 15.56270371 | L11: 15.11587072 | M11: 14.81090243 | N11: 22.25120178 | O11: =INDIRECT(TEXT($C11," ")&"!"&TEXT(VLOOKUP(O$9,$B$59:$C$130,2)&VLOOKUP($B11,$D$71:$F$89,3)," ")) -> 36.59769218 | P11: 14.59597655 | Q11: 19.76702832 | R11: 29.07442178 | S11: 32.85750329 | T11: 15.30863681 | U11: 16.91150788 | V11: 12.14506086 | W11: 15.02337214 | X11: 13.71278073 | Y11: =INDIRECT(TEXT($C11," ")&"!"&TEXT(VLOOKUP(Y$9,$B$59:$C$130,2)&VLOOKUP($B11,$D$71:$F$89,3)," ")) -> 11.44705624 | Z11: 18.91654429 | AA11: 23.82298906 | AB11: 20.16381218 | AC11: 25.65045896 | AD11: 20.59087624 | AE11: 20.95562066 | AF11: 21.08536747 | AG11: 19.78508359 | AH11: 18.43676623 | AI11: =INDIRECT(TEXT($C11," ")&"!"&TEXT(VLOOKUP(AI$9,$B$59:$C$130,2)&VLOOKUP($B11,$D$71:$F$89,3)," ")) -> 17.12205825 | AJ11: 17.12205825 | AK11: 12.1697938 | AL11: 20.29882213 | AM11: 19.53040978 | AN11: 28.9628201 | AO11: 16.52554764 | AP11: 19.84162458 | AQ11: 25.2914319 | AR11: 21.98949529 | AS11: =INDIRECT(TEXT($C11," ")&"!"&TEXT(VLOOKUP(AS$9,$B$59:$C$130,2)&VLOOKUP($B11,$D$71:$F$89,3)," ")) -> 15.24731164 | AT11: 14.76954616 | AU11: 13.30209427 | AV11: 9.959350627 | AW11: 13.41543162 | AX11: 16.92648058 | AY11: 24.63780625 | AZ11: 22.2763247 | BA11: 18.46961879 | BB11: 23.4406378 | BC11: =INDIRECT(TEXT($C11," ")&"!"&TEXT(VLOOKUP(BC$9,$B$59:$C$130,2)&VLOOKUP($B11,$D$71:$F$89,3)," ")) -> 22.57613107 | BD11: 18.71639012 | BE11: 12.56376684 | BF11: 11.61128029 | BG11: 12.26985057 | BH11: 12.92842085 | BI11: 13.58699113 | BJ11: 24.78110992 | BK11: 17.31772649 | BL11: 17.43290619 | BM11: =INDIRECT(TEXT($C11," ")&"!"&TEXT(VLOOKUP(BM$9,$B$59:$C$130,2)&VLOOKUP($B11,$D$71:$F$89,3)," ")) -> 14.67706429 | BN11: 15.23021222 | BO11: 16.80138483 | BP11: 13.23979245 | BQ11: 13.50529763 | BR11: 18.31927835 | BS11: 9.854377339 | BT11: 9.443773047 | BU11: 12.27292919 | BV11: 18.38 | BW11: 18.21072224 | BX11: 34.72509524 | BY11: no2 | CA11: =D11 -> NO2 | CB11: =AVERAGEIF(E11:BA11,">0",E11:BA11) -> 20.0940498 | CC11: =SQRT(SUMSQ(E11:AN11)/$CB$6)/COUNT(E11:AN11) -> 1.833845093 | CD11: =CC11/CB11 -> 0.09126309087 | CT11: NH3 | CU11: =E11 -> 31.18359217 | CV11: 31.46209982 | CW11: 32.24424012 | CX11: 34.80070331 | CY11: 20.22667249 | CZ11: 12.24387202 | DA11: 15.56270371 | DB11: 15.11587072 | DC11: 14.81090243 | DD11: 22.25120178 | DE11: 36.59769218 | DF11: 14.59597655 | DG11: 19.76702832 | DH11: 29.07442178 | DI11: 32.85750329 | DJ11: 15.30863681 | DK11: =U11 -> 16.91150788 | DL11: 12.14506086 | DM11: 15.02337214 | DN11: 13.71278073 | DO11: 11.44705624 | DP11: 18.91654429 | DQ11: 23.82298906 | DR11: 20.16381218 | DS11: 25.65045896 | DT11: 20.59087624 | DU11: 20.95562066 | DV11: 21.08536747 | DW11: 19.78508359 | DX11: 18.43676623 | DY11: 17.12205825 | DZ11: 17.12205825 | EA11: =AK11 -> 12.1697938 | EB11: 20.29882213 | EC11: 19.53040978 | ED11: 28.9628201 | EE11: 16.52554764 | EF11: 19.84162458 | EG11: 25.2914319 | EH11: 21.98949529 | EI11: 15.24731164 | EJ11: 14.76954616 | EK11: 13.30209427 | EL11: 9.959350627 | EM11: 13.41543162 | EN11: 16.92648058 | EO11: 24.63780625 | EP11: 22.2763247 | EQ11: =BA11 -> 18.46961879 | ER11: 23.4406378 | ES11: 22.57613107 | ET11: 18.71639012 | EU11: 12.56376684 | EV11: 11.61128029 | EW11: 12.26985057 | EX11: 12.92842085 | EY11: 13.58699113 | EZ11: 24.78110992 | FA11: 17.31772649 | FB11: 17.43290619 | FC11: 14.67706429 | FD11: 15.23021222 | FE11: 16.80138483 | FF11: 13.23979245 | FG11: =BQ11 -> 13.50529763 | FH11: 18.31927835 | FI11: 9.854377339 | FJ11: 9.443773047 | FK11: 12.27292919 | FL11: 18.38 | FM11: 18.21072224 | FN11: 34.72509524
A12: =VLOOKUP(B12,$D$71:$F$89,2) -> Goeree 2 | B12: 2 | C12: =C11 -> NO2 | D12: =C12 -> NO2 | E12: 26.59725884 | F12: 32.01057598 | G12: 34.79535385 | H12: 35.73202958 | I12: 22.148434 | J12: 12.56122991 | K12: 15.83718229 | L12: 17.93842556 | M12: 14.76731531 | N12: 23.88136482 | O12: 36.31142865 | P12: 15.46629785 | Q12: 22.18382562 | R12: 32.31317573 | S12: 34.8268724 | T12: 15.32267792 | U12: 16.82973076 | V12: 12.98579485 | W12: 14.85112337 | X12: 14.67966474 | Y12: 10.59311383 | Z12: 19.47373779 | AA12: 24.36284836 | AB12: 21.94215483 | AC12: 28.07443973 | AD12: 23.39483845 | AE12: 21.8556094 | AF12: 25.65732969 | AG12: 19.78508359 | AH12: 21.94198421 | AI12: 17.13116113 | AJ12: 17.13116113 | AK12: 11.44212562 | AL12: 18.71109444 | AM12: 19.95077157 | AN12: 27.68187891 | AO12: 16.57582895 | AP12: 19.22272676 | AQ12: 26.12393675 | AR12: 23.21869631 | AS12: 15.01194422 | AT12: 14.77516116 | AU12: 14.29178069 | AV12: 10.90297188 | AW12: 12.63886817 | AX12: 16.87151261 | AY12: 25.36041902 | AZ12: 22.68432048 | BA12: 18.23385015 | BB12: 24.50975413 | BC12: 25.35587143 | BD12: 18.88356033 | BE12: 14.85664918 | BF12: 12.28933517 | BG12: 0 | BH12: 0 | BL12: 0 | BM12: 0 | BN12: 0 | BO12: 0 | BP12: 0 | BQ12: 0 | BR12: 0 | BS12: 0 | BT12: 0 | BU12: 0 | BV12: 0 | BW12: 0 | BX12: 0 | BY12: nh3 | CA12: NO2 | CB12: 20.75675738 | CC12: 1.904431094 | CD12: =CC12/CB12 -> 0.09174993274 | CE12: =STDEV(E12:AN12) -> 7.272123001 | CT12: NO2 | CU12: 26.59725884 | CV12: 32.01057598 | CW12: 34.79535385 | CX12: 35.73202958 | CY12: 22.148434 | CZ12: 12.56122991 | DA12: 15.83718229 | DB12: 17.93842556 | DC12: 14.76731531 | DD12: 23.88136482 | DE12: 36.31142865 | DF12: 15.46629785 | DG12: 22.18382562 | DH12: 32.31317573 | DI12: 34.8268724 | DJ12: 15.32267792 | DK12: 16.82973076 | DL12: 12.98579485 | DM12: 14.85112337 | DN12: 14.67966474 | DO12: 10.59311383 | DP12: 19.47373779 | DQ12: 24.36284836 | DR12: 21.94215483 | DS12: 28.07443973 | DT12: 23.39483845 | DU12: 21.8556094 | DV12: 25.65732969 | DW12: 19.78508359 | DX12: 21.94198421 | DY12: 17.13116113 | DZ12: 17.13116113 | EA12: 11.44212562 | EB12: 18.71109444 | EC12: 19.95077157 | ED12: 27.68187891 | EE12: 16.57582895 | EF12: 19.22272676 | EG12: 26.12393675 | EH12: 23.21869631 | EI12: 15.01194422 | EJ12: 14.77516116 | EK12: 14.29178069 | EL12: 10.90297188 | EM12: 12.63886817 | EN12: 16.87151261 | EO12: 25.36041902 | EP12: 22.68432048 | EQ12: 18.23385015 | ER12: 24.50975413 | ES12: 25.35587143 | ET12: 18.88356033 | EU12: 14.85664918 | EV12: 12.28933517 | EW12: 0 | EX12: 0 | FB12: 0 | FC12: 0 | FD12: 0 | FE12: 0 | FF12: 0 | FG12: 0 | FH12: 0 | FI12: 0 | FJ12: 0 | FK12: 0 | FL12: 0 | FM12: 0 | FN12: 0
A13: Oostvoorne Panduin | B13: 3 | C13: =C12 -> NO2 | D13: NO2 | E13: =INDIRECT(TEXT($C13," ")&"!"&TEXT(VLOOKUP(E$9,$B$59:$C$130,2)&VLOOKUP($B13,$D$71:$F$89,3)," ")) -> 30.73190783 | F13: =INDIRECT(TEXT($C13," ")&"!"&TEXT(VLOOKUP(F$9,$B$59:$C$130,2)&VLOOKUP($B13,$D$71:$F$89,3)," ")) -> 27.88110113 | G13: 31.02548682 | H13: 31.15925385 | I13: 18.68094094 | J13: 10.99491518 | K13: 13.92958021 | L13: 18.77586447 | M13: 15.87777586 | N13: 21.92457864 | O13: 39.79063164 | P13: 13.82928047 | Q13: 18.18597498 | R13: 27.64825245 | S13: 31.58637614 | T13: 13.9297072 | U13: 17.10777296 | V13: 10.91581181 | W13: 12.59491158 | X13: 11.86170129 | Y13: 10.76733939 | Z13: 19.50418024 | AA13: 23.85237579 | AB13: 20.82420714 | AC13: 27.68216989 | AD13: 23.36368289 | AE13: 24.96639935 | AF13: 22.80249574 | AG13: 18.34462547 | AH13: 18.72518338 | AI13: 16.90495461 | AJ13: 16.90495461 | AK13: 10.34637225 | AL13: 22.66533119 | AM13: 21.46739444 | AN13: 25.21550134 | AO13: 15.31077102 | AP13: 16.96128814 | AQ13: 25.90057983 | AR13: 23.08645897 | AS13: 15.52684494 | AT13: 15.78177797 | AU13: 14.5383781 | AV13: 10.81803553 | AW13: 14.29228748 | AX13: 14.37476447 | AY13: 23.57154888 | AZ13: 22.44937835 | BA13: 18.43868244 | BB13: 24.9064471 | BC13: 21.71273938 | BD13: 19.05034559 | BE13: 12.41124923 | BF13: 10.87672084 | BG13: 0 | BH13: 0 | BL13: 0 | BM13: 0 | BN13: 0 | BO13: 0 | BP13: 0 | BQ13: 0 | BR13: =INDIRECT(TEXT($C13," ")&"!"&TEXT(VLOOKUP(BR$9,$B$59:$C$130,2)&VLOOKUP($B13,$D$71:$F$89,3)," ")) -> 0 | BS13: 0 | BT13: 0 | BU13: 0 | BV13: 0 | BW13: 0 | BX13: 0 | BY13: hno3 | CA13: NO2 | CB13: 19.87387325 | CC13: 1.816612797 | CD13: =CC13/CB13 -> 0.09140708376 | CT13: HNO2& HNO3 | CU13: =E13+E14 -> 58.28465278 | CV13: 51.63272741 | CW13: 62.6503102 | CX13: 69.78170463 | CY13: 40.94490753 | CZ13: 23.42305952 | DA13: 33.85958294 | DB13: 36.8968625 | DC13: 30.23461654 | DD13: 46.07129195 | DE13: 81.24898445 | DF13: 30.76220436 | DG13: 41.1781858 | DH13: 61.57003078 | DI13: 69.62811318 | DJ13: 29.53167464 | DK13: 37.33125409 | DL13: 25.05861013 | DM13: 29.10571158 | DN13: 27.76063609 | DO13: 23.68631266 | DP13: 40.77009762 | DQ13: 47.19427901 | DR13: 40.9673461 | DS13: 56.47399586 | DT13: 48.52587795 | DU13: 51.44571296 | DV13: 43.84708593 | DW13: 41.6943899 | DX13: 39.2699814 | DY13: 35.2488721 | DZ13: 35.2488721 | EA13: 26.13023017 | EB13: 44.83781795 | EC13: 42.43009684 | ED13: 51.41154481 | EE13: 30.87424345 | EF13: 35.73393151 | EG13: 55.35522398 | EH13: 43.43736073 | EI13: 37.41830741 | EJ13: 34.31736494 | EK13: 30.57508909 | EL13: 22.0204588 | EM13: 27.45794199 | EN13: 32.1413039 | EO13: 51.75981379 | EP13: 45.9966887 | EQ13: 37.16058035 | ER13: 52.11446963 | ES13: 50.25840516 | ET13: 39.89248673 | EU13: 28.79920101 | EV13: 24.94038441 | EW13: 0 | EX13: 0 | FB13: 0 | FC13: 0 | FD13: 0 | FE13: 0 | FF13: 0 | FG13: =BQ13+BQ14 -> 0 | FH13: 0 | FI13: 0 | FJ13: 0 | FK13: 0 | FL13: 0 | FM13: 0 | FN13: 0
A14: Oostvoorne Zuid 1 | B14: 4 | C14: NO2 | D14: NO2 | E14: 27.55274495 | F14: =INDIRECT(TEXT($C14," ")&"!"&TEXT(VLOOKUP(F$9,$B$59:$C$130,2)&VLOOKUP($B14,$D$71:$F$89,3)," ")) -> 23.75162628 | G14: 31.62482338 | H14: 38.62245078 | I14: 22.26396659 | J14: 12.42814435 | K14: 19.93000273 | L14: 18.12099803 | M14: 14.35684068 | N14: 24.14671331 | O14: 41.45835282 | P14: =INDIRECT(TEXT($C14," ")&"!"&TEXT(VLOOKUP(P$9,$B$59:$C$130,2)&VLOOKUP($B14,$D$71:$F$89,3)," ")) -> 16.93292388 | Q14: 22.99221082 | R14: 33.92177834 | S14: 38.04173704 | T14: 15.60196745 | U14: 20.22348113 | V14: 14.14279832 | W14: 16.5108 | X14: 15.8989348 | Y14: 12.91897327 | Z14: =INDIRECT(TEXT($C14," ")&"!"&TEXT(VLOOKUP(Z$9,$B$59:$C$130,2)&VLOOKUP($B14,$D$71:$F$89,3)," ")) -> 21.26591738 | AA14: 23.34190322 | AB14: 20.14313896 | AC14: 28.79182597 | AD14: 25.16219506 | AE14: 26.47931361 | AF14: 21.04459019 | AG14: 23.34976443 | AH14: 20.54479803 | AI14: 18.34391749 | AJ14: =INDIRECT(TEXT($C14," ")&"!"&TEXT(VLOOKUP(AJ$9,$B$59:$C$130,2)&VLOOKUP($B14,$D$71:$F$89,3)," ")) -> 18.34391749 | AK14: 15.78385792 | AL14: 22.17248677 | AM14: 20.9627024 | AN14: 26.19604347 | AO14: 15.56347243 | AP14: 18.77264336 | AQ14: 29.45464415 | AR14: 20.35090176 | AS14: 21.89146248 | AT14: =INDIRECT(TEXT($C14," ")&"!"&TEXT(VLOOKUP(AT$9,$B$59:$C$130,2)&VLOOKUP($B14,$D$71:$F$89,3)," ")) -> 18.53558697 | AU14: 16.036711 | AV14: 11.20242328 | AW14: 13.16565451 | AX14: 17.76653943 | AY14: 28.18826491 | AZ14: 23.54731035 | BA14: 18.72189791 | BB14: 27.20802253 | BC14: 28.54566578 | BD14: =INDIRECT(TEXT($C14," ")&"!"&TEXT(VLOOKUP(BD$9,$B$59:$C$130,2)&VLOOKUP($B14,$D$71:$F$89,3)," ")) -> 20.84214115 | BE14: 16.38795179 | BF14: 14.06366357 | BG14: 0 | BH14: 0 | BL14: 0 | BM14: 0 | BN14: =INDIRECT(TEXT($C14," ")&"!"&TEXT(VLOOKUP(BN$9,$B$59:$C$130,2)&VLOOKUP($B14,$D$71:$F$89,3)," ")) -> 0 | BO14: 0 | BP14: 0 | BQ14: 0 | BR14: 0 | BS14: 0 | BT14: 0 | BU14: 0 | BV14: 0 | BW14: 0 | BX14: 0 | BY14: hno2 | CA14: NO2 | CB14: 21.7666562 | CC14: 1.972634484 | CD14: 0.09062643643 | CT14: PM | CU14: =E15+E16 -> 59.87423422 | CV14: 61.03387767 | CW14: 64.4303135 | CX14: 69.13018235 | CY14: 45.62065089 | CZ14: 26.75019866 | DA14: 33.48214703 | DB14: 33.19214257 | DC14: 29.64198422 | DD14: 41.13651441 | DE14: 72.47626623 | DF14: 32.22429104 | DG14: 41.18920796 | DH14: 57.16699189 | DI14: 67.06142003 | DJ14: 30.59931569 | DK14: 40.46305716 | DL14: 27.04948836 | DM14: 27.80015209 | DN14: 28.11552276 | DO14: 21.18178654 | DP14: 35.88997213 | DQ14: 41.37978599 | DR14: 38.27938898 | DS14: 51.5500924 | DT14: 45.84871203 | DU14: 47.38948299 | DV14: 41.4123701 | DW14: 46.69952885 | DX14: 46.88714316 | DY14: 40.23550145 | DZ14: 40.23550145 | EA14: 24.90387199 | EB14: 41.04053096 | EC14: 39.85974876 | ED14: 56.73742501 | EE14: 31.438924 | EF14: 34.67366288 | EG14: 52.62268169 | EH14: 50.98132068 | EI14: 35.31857202 | EJ14: 32.22569283 | EK14: 29.93952493 | EL14: 19.68243299 | EM14: 24.61441633 | EN14: 29.678372 | EO14: 44.73877077 | EP14: 43.0158825 | EQ14: 35.2435536 | ER14: 48.41512447 | ES14: 48.90891614 | ET14: 38.00586195 | EU14: 26.89522839 | EV14: 22.65783729 | EW14: 12.26898237 | EX14: 12.81496915 | FB14: 19.40172999 | FC14: 16.65110035 | FD14: 14.75426669 | FE14: 18.12841216 | FF14: 16.16246672 | FG14: =BQ15+BQ16 -> 17.30458846 | FH14: 20.91219555 | FI14: 10.88250041 | FJ14: 11.72821035 | FK14: 17.41422859 | FL14: 18.745 | FM14: 17.00372312 | FN14: 32.41562396
A15: Oostvoorne Zuid 2 | B15: 5 | C15: NO2 | D15: NO2 | E15: 31.33125821 | F15: 32.24717048 | G15: 37.15231191 | H15: 34.69156653 | I15: 20.09246449 | J15: 12.06983705 | K15: 16.20792464 | L15: 16.62868054 | M15: 15.89742785 | N15: 19.22756039 | O15: 36.46070783 | P15: 16.8346539 | Q15: 21.62206632 | R15: 29.49846212 | S15: 32.89193902 | T15: 15.74800596 | U15: 20.732553 | V15: 14.09185164 | W15: 13.80262397 | X15: 13.77493214 | Y15: 10.59663551 | Z15: 17.12825438 | AA15: 21.07043889 | AB15: 18.92093977 | AC15: 25.8228912 | AD15: 23.55176113 | AE15: 23.52014062 | AF15: 21.35521391 | AG15: 23.34976443 | AH15: 21.1679554 | AI15: 18.42422494 | AJ15: 18.42422494 | AK15: 12.4674849 | AL15: 20.55748448 | AM15: 20.50914188 | AN15: 26.13581735 | AO15: 16.71240687 | AP15: 17.68206917 | AQ15: 27.22535996 | AR15: 28.86728949 | AS15: 18.59516837 | AT15: 16.67749092 | AU15: 15.17971146 | AV15: 9.632460867 | AW15: 12.09097357 | AX15: 15.12888573 | AY15: 22.3189764 | AZ15: 20.69046478 | BA15: 18.18366317 | BB15: 24.12240828 | BC15: 24.02141342 | BD15: 18.88901265 | BE15: 13.13861652 | BF15: 11.7229956 | BG15: 12.26898237 | BH15: 12.81496915 | BI15: 13.36095592 | BJ15: 22.53303284 | BK15: 16.4637432 | BL15: 19.40172999 | BM15: 16.65110035 | BN15: 14.75426669 | BO15: 18.12841216 | BP15: 16.16246672 | BQ15: 17.30458846 | BR15: 20.91219555 | BS15: 10.88250041 | BT15: 11.72821035 | BU15: 17.41422859 | BV15: 18.745 | BW15: 17.00372312 | BX15: 32.41562396 | BY15: no3 | CA15: NO2 | CB15: 20.67329168 | CC15: 1.883863108 | CD15: 0.09112545486 | CT15: Wet deposition | CU15: =E17+E29 -> 1061.631932 | CV15: 2194.319745 | CW15: 3318.776935 | CX15: 4338.569617 | CY15: 5030.353675 | CZ15: 5363.164901 | DA15: 5804.712623 | DB15: 6150.26925 | DC15: 6634.201305 | DD15: 7269.282317 | DE15: 8303.336773 | DF15: 38.95922344 | DG15: 714.2974015 | DH15: 1684.5737 | DI15: 2669.495387 | DJ15: 3082.237018 | DK15: 3678.78693 | DL15: 4010.966291 | DM15: 4508.679483 | DN15: 4919.861271 | DO15: 5235.722614 | DP15: 5868.595936 | DQ15: 6539.845905 | DR15: 41.64332039 | DS15: 899.3477374 | DT15: 1473.861265 | DU15: 2060.475182 | DV15: 2627.607206 | DW15: 3335.206784 | DX15: 3853.52659 | DY15: 4431.763737 | DZ15: 4928.303426 | EA15: =AK17+AK29 -> 5268.419481 | EB15: 5984.661336 | EC15: 6531.906181 | ED15: 49.06268209 | EE15: 593.6165079 | EF15: 1291.211936 | EG15: 2185.753818 | EH15: 2796.459618 | EI15: 3203.762881 | EJ15: 3630.101992 | EK15: 4093.697565 | EL15: 4368.535347 | EM15: 4745.091482 | EN15: 5341.242201 | EO15: 6015.040329 | EP15: 40.08174191 | EQ15: 464.2704653 | ER15: 1104.042935 | ES15: 1574.241598 | ET15: 2223.429861 | EU15: 2570.472146 | EV15: 2976.752826 | EW15: 3493.797805 | EX15: 3844.576423 | EY15: 4226.72343 | EZ15: 4926.764407 | FA15: 5403.087572 | FB15: 34.8086396 | FC15: 543.5416386 | FD15: 971.3831573 | FE15: 1566.488274 | FF15: 1941.362436 | FG15: =BQ17+BQ29 -> 2322.094338 | FH15: 2947.015164 | FI15: 3214.172286 | FJ15: 3536.320745 | FK15: 3897.867033 | FL15: 4433.9623 | FM15: 4924.539861 | FN15: 50.52518668
A16: Oostvoorne Zuid 3 | B16: 6 | C16: NO2 | D16: NO2 | E16: 28.54297601 | F16: 28.78670719 | G16: 27.27800159 | H16: 34.43861583 | I16: 25.52818639 | J16: 14.68036161 | K16: 17.27422239 | L16: 16.56346203 | M16: 13.74455637 | N16: 21.90895402 | O16: 36.0155584 | P16: 15.38963714 | Q16: 19.56714164 | R16: 27.66852977 | S16: 34.169481 | T16: 14.85130973 | U16: 19.73050416 | V16: 12.95763672 | W16: 13.99752812 | X16: 14.34059062 | Y16: 10.58515103 | Z16: 18.76171775 | AA16: 20.3093471 | AB16: 19.35844921 | AC16: 25.7272012 | AD16: 22.29695089 | AE16: 23.86934237 | AF16: 20.05715619 | AG16: 23.34976443 | AH16: 25.71918776 | AI16: 21.8112765 | AJ16: 21.8112765 | AK16: 12.43638709 | AL16: 20.48304648 | AM16: 19.35060688 | AN16: 30.60160766 | AO16: 14.72651713 | AP16: 16.99159371 | AQ16: 25.39732172 | AR16: 22.1140312 | AS16: 16.72340366 | AT16: 15.54820192 | AU16: 14.75981347 | AV16: 10.04997212 | AW16: 12.52344276 | AX16: 14.54948627 | AY16: 22.41979437 | AZ16: 22.32541772 | BA16: 17.05989043 | BB16: 24.29271619 | BC16: 24.88750272 | BD16: 19.1168493 | BE16: 13.75661188 | BF16: 10.93484169 | BG16: 0 | BH16: 0 | BL16: 0 | BM16: 0 | BN16: 0 | BO16: 0 | BP16: 0 | BQ16: 0 | BR16: 0 | BS16: 0 | BT16: 0 | BU16: 0 | BV16: 0 | BW16: 0 | BX16: 0 | BY16: nh4 | CA16: NO2 | CB16: 20.39084319 | CC16: 1.870480141 | CD16: 0.09173137781
A17: Oostvoorne Noord 1 | B17: 7 | C17: NO2 | D17: NO2 | E17: 32.57339015 | F17: =INDIRECT(TEXT($C17," ")&"!"&TEXT(VLOOKUP(F$9,$B$59:$C$130,2)&VLOOKUP($B17,$D$71:$F$89,3)," ")) -> 32.62560977 | G17: 28.53439527 | H17: 39.10668155 | I17: 22.95720203 | J17: 12.9400119 | K17: 18.73202976 | L17: 16.62363007 | M17: 11.79590488 | N17: 23.8432677 | O17: 33.16234204 | P17: 15.11619658 | Q17: 22.45141042 | R17: 33.27178996 | S17: 32.46837851 | T17: 16.56817897 | U17: 21.21531437 | V17: 13.33297201 | W17: 15.2748835 | X17: 15.07324974 | Y17: 10.41701803 | Z17: 19.04437775 | AA17: 23.25065345 | AB17: 22.44787668 | AC17: 27.23213255 | AD17: 25.20112562 | AE17: 25.05766365 | AF17: 22.88476634 | AG17: 18.22133532 | AH17: 20.31168655 | AI17: 16.39885312 | AJ17: 16.39885312 | AK17: 15.76068122 | AL17: 21.54376199 | AM17: 21.93713328 | AN17: 29.06777122 | AO17: 15.22234053 | AP17: 18.36090801 | AQ17: 27.70267356 | AR17: 22.70260603 | AS17: 18.32845402 | AT17: 16.3507271 | AU17: 14.37300018 | AV17: 10.34896485 | AW17: 11.27301441 | AX17: 14.99691341 | AY17: 23.57427223 | AZ17: 22.21473155 | BA17: 20.99961427 | BB17: 27.87486282 | BC17: 23.97477322 | BD17: 18.089382 | BE17: 13.34619588 | BF17: 13.23206538 | BG17: 14.94332056 | BH17: 16.65457574 | BI17: 18.36583091 | BJ17: 24.53573019 | BK17: 15.96255388 | BL17: 18.07202964 | BM17: 15.16732415 | BN17: 16.56290066 | BO17: 23.61954832 | BP17: 14.53972948 | BQ17: 17.12329742 | BR17: =INDIRECT(TEXT($C17," ")&"!"&TEXT(VLOOKUP(BR$9,$B$59:$C$130,2)&VLOOKUP($B17,$D$71:$F$89,3)," ")) -> 19.18866013 | BS17: 10.42321584 | BT17: 11.48339204 | BU17: 17.11473312 | BV17: 20.19 | BW17: 19.07806045 | BX17: 34.42172239 | BY17: so2 | CA17: NO2 | CB17: 21.00593366 | CC17: 1.925496819 | CD17: 0.09166442446 | CT17: Total deposition mol N/ha | CU17: =SUM(CU11:CU15) -> 1237.57167 | CV17: 2370.459026 | CW17: 3512.897152 | CX17: 4548.014237 | CY17: 5159.29434 | CZ17: 5438.143261 | DA17: 5903.454239 | DB17: 6253.412551 | DC17: 6723.656123 | DD17: 7402.62269 | DE17: 8529.971144 | DF17: 132.0079932 | DG17: 838.6156492 | DH17: 1864.69832 | DI17: 2873.869296 | DJ17: 3172.999324 | DK17: 3790.322479 | DL17: 4088.205245 | DM17: 4595.459843 | DN17: 5004.129876 | DO17: 5302.630884 | DP17: 5983.646287 | DQ17: 6676.605807 | DR17: 162.9960225 | DS17: 1061.096724 | DT17: 1612.22157 | DU17: 2202.121608 | DV17: 2759.609359 | DW17: 3463.17087 | DX17: 3980.062465 | DY17: 4541.50133 | DZ17: 5038.041019 | EA17: 5343.065503 | EB17: 6109.549602 | EC17: 6653.677208 | ED17: 213.8563509 | EE17: 689.0310519 | EF17: 1400.683881 | EG17: 2345.147092 | EH17: 2936.086491 | EI17: 3306.759016 | EJ17: 3726.189757 | EK17: 4181.806054 | EL17: 4431.100561 | EM17: 4823.21814 | EN17: 5436.859871 | EO17: 6161.537139 | EP17: 174.0549583 | EQ17: 573.3780682 | ER17: 1252.522921 | ES17: 1721.340921 | ET17: 2338.92816 | EU17: 2653.586992 | EV17: 3048.251663 | EW17: 3518.336638 | EX17: 3870.319813 | FB17: 71.64327578 | FC17: 574.8698032 | FD17: 1001.367636 | FE17: 1601.418071 | FF17: 1970.764695 | FG17: =SUM(FG11:FG15) -> 2352.904224 | FH17: 2986.246638 | FI17: 3234.909163 | FJ17: 3557.492729 | FK17: 3927.554191 | FL17: 4471.0873 | FM17: 4959.754306 | FN17: 117.6659059
A18: Oostvoorne Noord 2 | B18: 8 | C18: NO2 | D18: NO2 | E18: 25.20746086 | F18: =INDIRECT(TEXT($C18," ")&"!"&TEXT(VLOOKUP(F$9,$B$59:$C$130,2)&VLOOKUP($B18,$D$71:$F$89,3)," ")) -> 27.57715506 | G18: 27.08332928 | H18: 31.35557903 | I18: 18.65552894 | J18: 12.17221057 | K18: 18.36353081 | L18: 15.36996264 | M18: 12.37659969 | N18: 16.4434756 | O18: 31.83440533 | P18: =INDIRECT(TEXT($C18," ")&"!"&TEXT(VLOOKUP(P$9,$B$59:$C$130,2)&VLOOKUP($B18,$D$71:$F$89,3)," ")) -> 12.95961585 | Q18: 19.25577171 | R18: 27.43113763 | S18: 29.99449284 | T18: 13.6189506 | U18: 18.96908921 | V18: 12.22719307 | W18: 12.31526169 | X18: 10.94411601 | Y18: 9.518710902 | Z18: =INDIRECT(TEXT($C18," ")&"!"&TEXT(VLOOKUP(Z$9,$B$59:$C$130,2)&VLOOKUP($B18,$D$71:$F$89,3)," ")) -> 16.34656099 | AA18: 19.71404646 | AB18: 18.71236664 | AC18: 23.32424289 | AD18: 21.89147321 | AE18: 23.61019739 | AF18: 20.83783409 | AG18: 13.26359852 | AH18: 21.5067665 | AI18: 15.29719886 | AJ18: =INDIRECT(TEXT($C18," ")&"!"&TEXT(VLOOKUP(AJ$9,$B$59:$C$130,2)&VLOOKUP($B18,$D$71:$F$89,3)," ")) -> 15.29719886 | AK18: 11.43110475 | AL18: 18.34324182 | AM18: 17.78183643 | AN18: 24.52443862 | AO18: 11.73658883 | AP18: 16.2520511 | AQ18: 27.70267356 | AR18: 20.7485106 | AS18: 16.1072159 | AT18: =INDIRECT(TEXT($C18," ")&"!"&TEXT(VLOOKUP(AT$9,$B$59:$C$130,2)&VLOOKUP($B18,$D$71:$F$89,3)," ")) -> 14.33981272 | AU18: 14.37300018 | AV18: 8.43329953 | AW18: 22.58635227 | AX18: 12.19706397 | AY18: 20.28882083 | AZ18: 20.7916919 | BA18: 16.20226592 | BB18: 23.74492577 | BC18: 20.98673422 | BD18: =INDIRECT(TEXT($C18," ")&"!"&TEXT(VLOOKUP(BD$9,$B$59:$C$130,2)&VLOOKUP($B18,$D$71:$F$89,3)," ")) -> 26.55354708 | BE18: 12.20399078 | BF18: 10.3573405 | BG18: 0 | BH18: 0 | BL18: 0 | BM18: 0 | BN18: =INDIRECT(TEXT($C18," ")&"!"&TEXT(VLOOKUP(BN$9,$B$59:$C$130,2)&VLOOKUP($B18,$D$71:$F$89,3)," ")) -> 0 | BO18: 0 | BP18: 0 | BQ18: 0 | BR18: 0 | BS18: 0 | BT18: 0 | BU18: 0 | BV18: 0 | BW18: 0 | BX18: 0 | BY18: so4 | CA18: NO2 | CB18: 18.51663328 | CC18: 1.665459204 | CD18: 0.0899439536 | CT18: Cumulative mol N/ha | CU18: =CU17 -> 1237.57167 | CV18: =CU18+CV17 -> 3608.030696 | CW18: =CV18+CW17 -> 7120.927848 | CX18: 11668.94208 | CY18: 16828.23642 | CZ18: 22266.37969 | DA18: 28169.83392 | DB18: 34423.24648 | DC18: 41146.9026 | DD18: 48549.52529 | DE18: 57079.49643 | DF18: 57211.50443 | DG18: =DG17 -> 838.6156492 | DH18: =DG18+DH17 -> 2703.313969 | DI18: =DH18+DI17 -> 5577.183265 | DJ18: 8750.182589 | DK18: 12540.50507 | DL18: 16628.71031 | DM18: 21224.17016 | DN18: 26228.30003 | DO18: 31530.93092 | DP18: 37514.5772 | DQ18: 44191.18301 | DR18: 44354.17903 | DS18: =DS17 -> 1061.096724 | DT18: =DS18+DT17 -> 2673.318294 | DU18: =DT18+DU17 -> 4875.439902 | DV18: 7635.049261 | DW18: 11098.22013 | DX18: 15078.2826 | DY18: 19619.78393 | DZ18: 24657.82495 | EA18: 30000.89045 | EB18: 36110.44005 | EC18: 42764.11726 | ED18: 42977.97361 | EE18: =EE17 -> 689.0310519 | EF18: =EE18+EF17 -> 2089.714933 | EG18: =EF18+EG17 -> 4434.862026 | EH18: 7370.948517 | EI18: 10677.70753 | EJ18: 14403.89729 | EK18: 18585.70334 | EL18: 23016.80391 | EM18: 27840.02205 | EN18: 33276.88192 | EO18: 39438.41906 | EP18: 39612.47401 | EQ18: =EQ17 -> 573.3780682 | ER18: =EQ18+ER17 -> 1825.900989 | ES18: =ER18+ES17 -> 3547.24191 | ET18: 5886.17007 | EU18: 8539.757062 | EV18: 11588.00872 | EW18: 15106.34536 | EX18: 18976.66518 | FC18: =FC17 -> 574.8698032 | FD18: =FC18+FD17 -> 1576.237439 | FE18: =FD18+FE17 -> 3177.65551 | FF18: 5148.420206 | FG18: 7501.32443 | FH18: 10487.57107 | FI18: 13722.48023 | FJ18: 17279.97296 | FK18: 21207.52715 | FL18: 25678.61445 | FM18: 30638.36876 | FN18: 30756.03466
A19: Maasvlakte 2 Zuid | B19: 20 | C19: NO2 | D19: NO2 | E19: 0 | F19: 0 | G19: 0 | H19: 0 | I19: 0 | J19: 0 | K19: 0 | L19: 0 | M19: 0 | N19: 0 | O19: 0 | P19: 0 | Q19: 0 | R19: 0 | S19: 0 | T19: 0 | U19: 0 | V19: 0 | W19: 0 | X19: 0 | Y19: 0 | Z19: 0 | AA19: 0 | AB19: 33.18284953 | AC19: 40.64150112 | AD19: 32.71625376 | AE19: 28.42899495 | AF19: 30.16367582 | AG19: 29.54607835 | AH19: 15.76424002 | AI19: 18.08280215 | AJ19: 18.08280215 | AK19: 18.06853851 | AL19: 30.98700851 | AM19: 26.7888906 | AN19: 33.75224415 | AO19: 23.89316327 | AP19: 23.57128556 | AQ19: 35.26994195 | AR19: 31.07523817 | AS19: 25.29201895 | AT19: 27.13154833 | AU19: 21.42950556 | AV19: 14.32306157 | AW19: 28.61752715 | AX19: 22.54517073 | AY19: 30.14064904 | AZ19: 27.78418691 | BA19: 25.17923409 | BB19: 34.74132499 | BC19: 31.99871052 | BD19: 29.79724273 | BE19: 17.63546649 | BF19: 18.94319464 | BG19: 21.25180851 | BH19: 23.56042238 | BI19: 25.86903624 | BJ19: 25.69290235 | BK19: 25.87427994 | BL19: 23.40392628 | BM19: 31.18121912 | BN19: 21.06342532 | BO19: 23.89729681 | BP19: 18.27254485 | BQ19: 25.10825478 | BR19: 23.57071595 | BS19: 11.28574409 | BT19: 27.02379918 | BU19: 33.84101904 | BV19: 34.6 | BW19: 34.48231818 | BX19: 54.09666889 | BY19: Cl | CA19: NO2 | CB19: 26.6330158 | CC19: 1.420489421 | CD19: 0.05333565794 | CT19: To report kmol/ha | DF19: =DF18/1000 -> 57.21150443 | DR19: =DR18/1000 -> 44.35417903 | ED19: =ED18/1000 -> 42.97797361 | EP19: =EP18/1000 -> 39.61247401 | FB19: =FB18/1000 ->  | FN19: =FN18/1000 -> 30.75603466
A20: Maasvlakte 2 Noord | B20: 21 | C20: NO2 | D20: NO2 | E20: 0 | F20: 0 | G20: 0 | H20: 0 | I20: 0 | J20: 0 | K20: 0 | L20: 0 | M20: 0 | N20: 0 | O20: 0 | P20: 0 | Q20: 0 | R20: 0 | S20: 0 | T20: 0 | U20: 0 | V20: 0 | W20: 0 | X20: 0 | Y20: 0 | Z20: 0 | AA20: 0 | AB20: 58.28559861 | AC20: 59.16094617 | AD20: 43.11471671 | AE20: 33.77153133 | AF20: 38.92620185 | AG20: 31.89195392 | AH20: 10.25929905 | AI20: 12.82080364 | AJ20: 12.82080364 | AK20: 30.75123705 | AL20: 44.25768472 | AM20: 29.7654942 | AN20: 29.67980315 | AO20: 39.41925278 | AP20: 46.83087117 | AQ20: 44.20427235 | AR20: 37.41601607 | AS20: 39.21724188 | AT20: 19.63436988 | AU20: 28.97107772 | AV20: 28.09978023 | AW20: 13.37126367 | AX20: 42.91199272 | AY20: 55.65706597 | AZ20: 32.84875091 | BA20: 42.83143038 | BB20: 37.34585714 | BC20: 44.00197756 | BD20: 21.76660931 | BE20: 27.59577493 | BF20: 23.65565214 | BG20: 28.13101259 | BH20: 32.60637304 | BI20: 37.08173348 | BJ20: 32.49699157 | BK20: 25.70675331 | BL20: 45.17275903 | BM20: 42.28132596 | BN20: 34.60135596 | BO20: 28.90988454 | BP20: 28.01440443 | BQ20: 37.93838147 | BR20: 26.32712543 | BS20: 21.75138039 | BT20: 18.84987778 | BU20: 25.26945771 | BV20: 36.47 | BW20: 28.55959569 | BX20: 53.8509556 | BY20: Na
A21: Hoek 1 | B21: 9 | C21: NO2 | D21: NO2 | E21: 44.10871338 | F21: 46.71045515 | G21: 43.48902446 | H21: 34.03113609 | I21: 25.75967008 | J21: 32.87213467 | K21: 22.56216782 | L21: 24.11886467 | M21: 11.31340576 | N21: 22.01779309 | O21: 56.67689764 | P21: 32.63561828 | Q21: 37.8399778 | R21: 48.7466692 | S21: 38.95870926 | T21: 27.65825833 | U21: 28.82902857 | V21: 25.359995 | W21: 29.53806742 | X21: 35.03911965 | Y21: 30.28416435 | Z21: 37.79890666 | AA21: 41.65695982 | AB21: 41.33809272 | AC21: 51.00723923 | AD21: 34.9303902 | AE21: 27.60595405 | AF21: 32.52489443 | AG21: 32.47079387 | AH21: 22.77981038 | AI21: 23.08708932 | AJ21: 23.08708932 | AK21: 32.38791012 | AL21: 40.95872938 | AM21: 30.24831755 | AN21: 39.19730994 | AO21: 41.42010145 | AP21: 42.71113199 | AQ21: 45.00719327 | AR21: 29.65430622 | AS21: 30.84640744 | AT21: 24.31941184 | AU21: 12.57240954 | AV21: 28.50222643 | AW21: 29.2819547 | AX21: 36.73940501 | AY21: 42.07803162 | AZ21: 37.45566476 | BA21: 39.93709334 | BB21: 34.32424606 | BC21: 43.89050488 | BD21: 35.72812775 | BE21: 32.12035993 | BF21: 25.6517897 | BG21: 26.01329571 | BH21: 26.37480172 | BI21: 26.73630773 | BJ21: 38.30488406 | BK21: 25.03012729 | BL21: 39.36700209 | BM21: 29.65021034 | BN21: 24.94391324 | BO21: 22.05502297 | BP21: 26.27271815 | BQ21: 18.3925 | BR21: 18.3925 | BS21: 25.30584225 | BT21: 28.97143132 | BU21: 28.29637608 | BV21: 32.505 | BW21: 27.21657359 | BX21: 53.55573079 | BY21: Mg | CA21: NO2 | CB21: =AVERAGEIF(E21:BA21,">0",E21:BA21) -> 33.67662643 | CC21: =SQRT(SUMSQ(E21:AN21)/$CB$6)/COUNT(E21:AN21) -> 2.907272559 | CD21: 0.08632909133
A22: Hoek 2 | B22: 10 | C22: NO2 | D22: NO2 | E22: 42.68417045 | F22: 45.92403752 | G22: 40.25082682 | H22: 50.86226617 | I22: 34.54241793 | J22: 26.2383311 | K22: 16.06268187 | L22: 37.61891107 | M22: 35.82286471 | N22: 46.5772784 | O22: 57.34381949 | P22: 24.47431333 | Q22: 35.82810775 | R22: 45.77165492 | S22: 38.18158162 | T22: 25.8610316 | U22: 21.15262633 | V22: 20.55851581 | W22: 24.90480063 | X22: 28.09739334 | Y22: 23.19169004 | Z22: 29.91265884 | AA22: 37.60649301 | AB22: 32.67232169 | AC22: 44.84202269 | AD22: 30.34309497 | AE22: 30.2217995 | AF22: 34.28685836 | AG22: 32.47079387 | AH22: 29.12621256 | AI22: 29.74273695 | AJ22: 29.74273695 | AK22: 22.89817481 | AL22: 33.90014732 | AM22: 24.48484729 | AN22: 38.75624633 | AO22: 30.44974992 | AP22: 36.4601885 | AQ22: 36.51512065 | AR22: 29.66538008 | AS22: 24.87291055 | AT22: 19.89498716 | AU22: 17.79241624 | AV22: 24.22983394 | AW22: 28.44393768 | AX22: 30.06168297 | AY22: 39.6138125 | AZ22: 34.31022092 | BA22: 39.01261397 | BB22: 29.77950629 | BC22: 37.76096248 | BD22: 31.84725502 | BE22: 27.56575062 | BF22: 21.24993527 | BG22: 21.98498881 | BH22: 22.72004234 | BI22: 23.45509588 | BJ22: 39.16540105 | BK22: 35.58376182 | BL22: 37.83627594 | BM22: 30.99366707 | BN22: 30.13665951 | BO22: 21.25414457 | BP22: 22.77734455 | BQ22: 21.86324719 | BR22: 17.71532872 | BS22: 21.08996719 | BT22: 23.20193023 | BU22: 42.89014685 | BV22: 29.36 | BW22: 44.01321509 | BX22: 43.31067227 | BY22: Ca
A23: s-Gravezande | B23: 11 | C23: NO2 | D23: NO2 | E23: 48.2259899 | F23: 61.17457797 | G23: 56.7709315 | H23: 41.98707554 | I23: 31.24041306 | J23: 24.30347173 | K23: 19.4130331 | L23: 37.4074766 | M23: 35.30589487 | N23: 47.34564715 | O23: 58.30767807 | P23: 26.38165758 | Q23: 36.11276041 | R23: 43.60326093 | S23: 38.54045599 | T23: 22.98959212 | U23: 21.59457375 | V23: 19.71561929 | W23: 20.7726005 | X23: 27.77847282 | Y23: 21.66784905 | Z23: 30.19527148 | AA23: 40.66088081 | AB23: 36.08007055 | AC23: 44.04992548 | AD23: 32.44487954 | AE23: 32.20709523 | AF23: 32.52489443 | AG23: 22.90967592 | AH23: 21.53288455 | AI23: 24.20559482 | AJ23: 24.20559482 | AK23: 23.31047679 | AL23: 35.51459912 | AM23: 26.37089239 | AN23: 38.92783581 | AO23: 30.20121498 | AP23: 34.66967135 | AQ23: 40.46922306 | AR23: 28.37353991 | AS23: 23.50939911 | AT23: 18.95874758 | AU23: 14.91706378 | AV23: 21.59263016 | AW23: 27.33208678 | AX23: 32.65804142 | AY23: 42.07162607 | AZ23: 33.14702885 | BA23: 35.09601472 | BB23: 31.70812366 | BC23: 34.46400379 | BD23: 27.59809359 | BE23: 25.93354756 | BF23: 19.95266551 | BG23: 21.04595972 | BH23: 22.13925392 | BI23: 23.23254813 | BJ23: 31.69049771 | BK23: 35.61016629 | BL23: 37.01217064 | BM23: 35.13063803 | BN23: 26.98474821 | BO23: 25.45787084 | BP23: 28.57561591 | BQ23: 26.63032258 | BR23: 21.63891648 | BS23: 20.80434509 | BT23: 24.05837761 | BU23: 40.86324251 | BV23: 38.405 | BW23: 39.98276632 | BX23: 61.59381455 | CA23: NO2 | CB23: =AVERAGEIF(E28:BA28,">0",E28:BA28) -> 199.6326531 | CC23: =SQRT(SUMSQ(E28:AN28)/$CB$6)/COUNT(E28:AN28) -> 18.95617102 | CD23: 0.09495526273
A24: Solleveld 1 | B24: 12 | C24: NO2 | D24: NO2 | E24: 36.23029609 | F24: 48.47181207 | G24: 37.20797411 | H24: 32.03526721 | I24: 26.18982696 | J24: 20.93538318 | K24: 17.53286788 | L24: 30.00599727 | M24: 36.95100725 | N24: 36.42820052 | O24: 64.53962029 | P24: 28.01623677 | Q24: 34.0332671 | R24: 44.65436736 | S24: 39.64500763 | T24: 20.3675462 | U24: 21.2955424 | V24: 17.18929778 | W24: 19.19328971 | X24: 27.12692964 | Y24: 20.22954145 | Z24: 30.95667092 | AA24: 40.16678043 | AB24: 36.45293985 | AC24: 43.15023965 | AD24: 27.86978776 | AE24: 27.56040008 | AF24: 34.28685836 | AG24: 17.41769678 | AH24: 18.45609451 | AI24: 20.60394336 | AJ24: 20.60394336 | AK24: 20.63184655 | AL24: 31.87736012 | AM24: 23.049008 | AN24: 36.39605212 | AO24: 32.27856814 | AP24: 32.20501234 | AQ24: 34.26597129 | AR24: 24.42699453 | AS24: 19.95298165 | AT24: 16.62205093 | AU24: 14.40809605 | AV24: 20.5815069 | AW24: 24.51607236 | AX24: 33.07154341 | AY24: 40.86162728 | AZ24: 28.90916758 | BA24: 32.9967156 | BB24: 29.58686251 | BC24: 31.63855833 | BD24: 25.46270088 | BE24: 20.73218338 | BF24: 16.53045571 | BG24: 17.65599216 | BH24: 18.7815286 | BI24: 19.90706505 | BJ24: 29.55578213 | BK24: 34.69763129 | BL24: 35.01369627 | BM24: 38.49008602 | BN24: 25.86352403 | BO24: 20.58157444 | BP24: 20.10455592 | BQ24: 20.34446925 | BR24: 15.78867393 | BS24: 14.1 | BT24: 14.1 | BU24: 33.26254708 | BV24: 27.21 | BW24: 33.41942497 | BX24: 45.88901816 | CA24: NO2 | CB24: =AVERAGEIF(E29:BA29,">0",E29:BA29) -> 3625.428577 | CC24: =SQRT(SUMSQ(E29:AN29)/$CB$6)/COUNT(E29:AN29) -> 370.1788631 | CD24: 0.1021062352
A25: Solleveld 2 | B25: 13 | C25: NO2 | D25: NO2 | E25: 35.70043561 | F25: 41.12424827 | G25: 33.08079218 | H25: 28.43299057 | I25: 24.71455764 | J25: 19.43049256 | K25: 15.1335357 | L25: 23.51545755 | M25: 32.96258326 | N25: 34.46747259 | O25: 49.77423595 | P25: 21.05088638 | Q25: 32.34533347 | R25: 33.77814521 | S25: 34.48434024 | T25: 20.15532441 | U25: 17.96147124 | V25: 13.05601049 | W25: 17.18523853 | X25: 19.79309049 | Y25: 16.43046049 | Z25: 25.23231418 | AA25: 35.58712115 | AB25: 31.17339047 | AC25: 33.17482678 | AD25: 23.30562923 | AE25: 23.48125308 | AF25: 29.24007416 | AG25: 15.96095942 | AH25: 20.36305767 | AI25: 19.43689128 | AJ25: 19.43689128 | AK25: 17.76652213 | AL25: 28.33898051 | AM25: 21.83953098 | AN25: 37.698622 | AO25: 31.01792413 | AP25: 31.19962822 | AQ25: 30.93132453 | AR25: 24.31819291 | AS25: 17.83169802 | AT25: 15.53566018 | AU25: 13.29112021 | AV25: 16.17559683 | AW25: 22.99174377 | AX25: 28.45063782 | AY25: 40.04862538 | AZ25: 26.44716284 | BA25: 29.21562786 | BB25: 25.22831345 | BC25: 26.3654279 | BD25: 23.06051514 | BE25: 19.28684343 | BF25: 14.69464475 | BG25: 0 | BH25: 0 | BL25: 0 | BM25: 0 | BN25: 0 | BO25: 0 | BP25: 0 | BQ25: 0 | BR25: 0 | BS25: 0 | BT25: 0 | BU25: 0 | BV25: 0 | BW25: 0 | BX25: 0 | CA25: NO2 | CB25: =AVERAGEIF(E30:BA30,">0",E30:BA30) -> 3769.035548 | CC25: =SQRT(SUMSQ(E30:AN30)/$CB$6)/COUNT(E30:AN30) -> 386.1945343 | CD25: 0.1024650814
A26: Solleveld 3 | B26: 14 | C26: NO2 | D26: NO2 | E26: 34.50173485 | F26: 40.00089774 | G26: 27.95124159 | H26: 29.8410145 | I26: 22.13903456 | J26: 21.35511458 | K26: 15.75528348 | L26: 21.9719301 | M26: 25.82850126 | N26: 36.99566352 | O26: 56.67000719 | P26: 20.71525872 | Q26: 26.85272967 | R26: 34.50176846 | S26: 33.16696849 | T26: 17.5886139 | U26: 17.94972457 | V26: 15.74961994 | W26: 17.33979414 | X26: 15.49798472 | Y26: 15.1379896 | Z26: 26.17490063 | AA26: 36.91089725 | AB26: 28.03528456 | AC26: 34.0573147 | AD26: 24.52937735 | AE26: 26.49781549 | AF26: 23.61849552 | AG26: 15.96095942 | AH26: 15.80062279 | AI26: 18.41323894 | AJ26: 18.41323894 | AK26: 16.57019873 | AL26: 27.59854182 | AM26: 22.58082074 | AN26: 31.52287616 | AO26: 32.56706161 | AP26: 33.64806374 | AQ26: 31.59610694 | AR26: 23.49645303 | AS26: 17.38639529 | AT26: 14.99741368 | AU26: 13.23962234 | AV26: 18.29215845 | AW26: 22.75987415 | AX26: 29.80789071 | AY26: 43.09677869 | AZ26: 27.39202063 | BA26: 29.11664896 | BB26: 29.0284431 | BC26: 26.55936997 | BD26: 22.17803689 | BE26: 19.75560238 | BF26: 14.32944852 | BG26: 14.76031265 | BH26: 15.7457931 | BI26: 16.73127356 | BJ26: 33.55193435 | BK26: 29.7100368 | BL26: 31.41216351 | BM26: 28.01865573 | BN26: 23.08664944 | BO26: 19.505 | BP26: 19.505 | BQ26: 15.39833389 | BR26: 13.60178236 | BS26: 13.53301184 | BT26: 15.88509744 | BU26: 39.03468288 | BV26: 22.36 | BW26: 40.18465535 | BX26: 39.64637948 | CA26: NO2 | CB26: =AVERAGEIF(E31:BA31,">0",E31:BA31) -> 3553.182993 | CC26: =SQRT(SUMSQ(E31:AN31)/$CB$6)/COUNT(E31:AN31) -> 361.4276668 | CD26: 0.1017194069
A27: Solleveld 4 | B27: 15 | C27: NO2 | D27: =+D14 -> NO2 | E27: 35.43116225 | F27: 41.09097843 | G27: 32.57286777 | H27: 26.40909113 | I27: 23.66531606 | J27: 17.22946205 | K27: 15.23506784 | L27: 22.89837205 | M27: 26.40131077 | N27: 37.82146546 | O27: 58.54628549 | P27: 22.62200256 | Q27: 28.43618302 | R27: 35.59969244 | S27: 35.94168242 | T27: 19.79251319 | U27: 18.29530887 | V27: 16.48398001 | W27: 12.36582929 | X27: 24.49299421 | Y27: 17.89751763 | Z27: 25.91743391 | AA27: 38.63494379 | AB27: 31.13715248 | AC27: 32.51372661 | AD27: 21.1119118 | AE27: 24.3156448 | AF27: 23.07387489 | AG27: 15.96095942 | AH27: 14.14942072 | AI27: 15.48188983 | AJ27: 15.48188983 | AK27: 17.02452391 | AL27: 28.46667056 | AM27: 21.94425528 | AN27: 30.9256666 | AO27: 31.56616158 | AP27: 34.99185275 | AQ27: 32.07674431 | AR27: 21.84777912 | AS27: 17.30199124 | AT27: 15.38925298 | AU27: 12.60843207 | AV27: 17.4249529 | AW27: 24.0058213 | AX27: 27.22758984 | AY27: 41.75717511 | AZ27: 26.43814747 | BA27: 28.57906488 | BB27: 27.38652169 | BC27: 26.34795047 | BD27: 22.67628461 | BE27: 17.79670381 | BF27: 13.7748322 | BG27: 14.76031265 | BH27: 15.7457931 | BI27: 16.73127356 | BJ27: 33.55193435 | BK27: 29.7100368 | BL27: 31.41216351
D28: NO2 | E28: =SUM($E10:E10) -> 33 | F28: =SUM($E10:F10) -> 69 | G28: =SUM($E10:G10) -> 104 | H28: =SUM($E10:H10) -> 133 | I28: =SUM($E10:I10) -> 168 | J28: =SUM($E10:J10) -> 196 | K28: =SUM($E10:K10) -> 224 | L28: =SUM($E10:L10) -> 247 | M28: =SUM($E10:M10) -> 280 | N28: =SUM($E10:N10) -> 308 | O28: =SUM($E10:O10) -> 336 | P28: =SUM($E10:P10) -> 364 | Q28: =SUM($Q10:Q10) -> 35 | R28: =SUM($Q10:R10) -> 68 | S28: =SUM($Q10:S10) -> 98 | T28: =SUM($Q10:T10) -> 126 | U28: =SUM($Q10:U10) -> 161 | V28: =SUM($Q10:V10) -> 189 | W28: =SUM($Q10:W10) -> 222 | X28: =SUM($Q10:X10) -> 252 | Y28: =SUM($Q10:Y10) -> 280 | Z28: =SUM($Q10:Z10) -> 313 | AA28: =SUM($Q10:AA10) -> 341 | AB28: =SUM($Q10:AB10) -> 371 | AC28: =SUM($AC10:AC10) -> 34 | AD28: =SUM($AC10:AD10) -> 62 | AE28: =SUM($AC10:AE10) -> 90 | AF28: =SUM($AC10:AF10) -> 117 | AG28: =SUM($AC10:AG10) -> 153 | AH28: =SUM($AC10:AH10) -> 181 | AI28: =SUM($AC10:AI10) -> 215 | AJ28: =SUM($AC10:AJ10) -> 244 | AK28: =SUM($AC10:AK10) -> 272 | AL28: =SUM($AC10:AL10) -> 307 | AM28: =SUM($AC10:AM10) -> 335 | AN28: =SUM($AC10:AN10) -> 356 | AO28: =SUM($AO10:AO10) -> 35 | AP28: =SUM($AO10:AP10) -> 70 | AQ28: =SUM($AO10:AQ10) -> 105 | AR28: =SUM($AO10:AR10) -> 133 | AS28: =SUM($AO10:AS10) -> 160 | AT28: =SUM($AO10:AT10) -> 189 | AU28: =SUM($AO10:AU10) -> 224 | AV28: =SUM($AO10:AV10) -> 252 | AW28: =SUM($AO10:AW10) -> 280 | AX28: =SUM($AO10:AX10) -> 315 | AY28: =SUM($AO10:AY10) -> 342 | AZ28: =SUM($AO10:AZ10) -> 369 | BA28: =SUM($BA10:BA10) -> 24 | BB28: =SUM($BA10:BB10) -> 51 | BC28: =SUM($BA10:BC10) -> 72 | BD28: =SUM($BA10:BD10) -> 107 | BE28: =SUM($BA10:BE10) -> 135 | BF28: =SUM($BA10:BF10) -> 170 | BG28: =SUM($BA10:BG10) -> 212 | BH28: =SUM($BA10:BH10) -> 239 | BI28: =SUM($BA10:BI10) -> 267 | BJ28: =SUM($BA10:BJ10) -> 295 | BK28: =SUM($BA10:BK10) -> 323 | BL28: =SUM($BA10:BL10) -> 350 | BM28: =SUM($BM10:BM10) -> 36 | BN28: =SUM($BM10:BN10) -> 64 | BO28: =SUM($BM10:BO10) -> 99 | BP28: =SUM($BM10:BP10) -> 128 | BQ28: =SUM($BM10:BQ10) -> 156 | BR28: =SUM($BM10:BR10) -> 190 | BS28: =SUM($BM10:BS10) -> 218 | BT28: =SUM($BM10:BT10) -> 252 | BU28: =SUM($BM10:BU10) -> 281 | BV28: =SUM($BM10:BV10) -> 310 | BW28: =SUM($BM10:BW10) -> 337 | BX28: =SUM($BM10:BX10) -> 365 | CA28: NO2 | CB28: =AVERAGEIF(E33:BA33,">0",E33:BA33) -> 3820.124152 | CC28: =SQRT(SUMSQ(E33:AN33)/$CB$6)/COUNT(E33:AN33) -> 388.3179819 | CD28: 0.1016506183
D29: NO2 | E29: =+E11*E$10 -> 1029.058542 | F29: =+F11*F$10+E29 -> 2161.694135 | G29: 3290.242539 | H29: 4299.462935 | I29: 5007.396473 | J29: 5350.224889 | K29: 5785.980593 | L29: 6133.64562 | M29: 6622.4054 | N29: 7245.43905 | O29: 8270.174431 | P29: =+(P11*P$10+O29)/P$28 -> 23.84302685 | Q29: =+Q11*Q$10 -> 691.8459911 | R29: =+R11*R$10+Q29 -> 1651.30191 | S29: 2637.027009 | T29: 3065.66884 | U29: 3657.571615 | V29: 3997.633319 | W29: 4493.4046 | X29: 4904.788022 | Y29: 5225.305596 | Z29: 5849.551558 | AA29: 6516.595251 | AB29: =IFERROR(+(AB11*AB$10+AA29)/AB$28,"") -> 19.19544371 | AC29: =+AC11*AC$10 -> 872.1156048 | AD29: =+AD11*AD$10+AC29 -> 1448.660139 | AE29: 2035.417518 | AF29: 2604.72244 | AG29: 3316.985449 | AH29: 3833.214903 | AI29: 4415.364884 | AJ29: 4911.904573 | AK29: 5252.6588 | AL29: 5963.117574 | AM29: 6509.969048 | AN29: =IFERROR(+(AN11*AN$10+AM29)/AN$28,"") -> 19.99491087 | AO29: =+AO11*AO$10 -> 578.3941673 | AP29: =+AP11*AP$10+AO29 -> 1272.851028 | AQ29: 2158.051144 | AR29: 2773.757012 | AS29: 3185.434427 | AT29: 3613.751265 | AU29: 4079.324565 | AV29: 4358.186382 | AW29: 4733.818468 | AX29: 5326.245288 | AY29: 5991.466057 | AZ29: =IFERROR(+(AZ11*AZ$10+AY29)/AZ$28,"") -> 17.86701036 | BA29: =+BA11*BA$10 -> 443.270851 | BB29: =+BB11*BB$10+BA29 -> 1076.168072 | BC29: 1550.266824 | BD29: 2205.340479 | BE29: 2557.12595 | BF29: 2963.52076 | BG29: 3478.854484 | BH29: 3827.921847 | BI29: 4208.357599 | BJ29: 4902.228677 | BK29: 5387.125018 | BL29: =IFERROR(+(BL11*BL$10+BK29)/BL$28,"") -> 16.73660996 | BM29: =+BM11*BM$10 -> 528.3743144 | BN29: =+BN11*BN$10+BM29 -> 954.8202566 | BO29: 1542.868726 | BP29: 1926.822707 | BQ29: 2304.97104 | BR29: 2927.826504 | BS29: 3203.74907 | BT29: 3524.837353 | BU29: 3880.7523 | BV29: 4413.7723 | BW29: 4905.4618 | BX29: =IFERROR(+(BX11*BX$10+BW29)/BX$28,"") -> 16.10346429
D30: NO2 | E30: 877.7095417 | F30: =+F12*F$10+E30 -> 2030.090277 | G30: 3247.927662 | H30: 4284.15652 | I30: 5059.351709 | J30: 5411.066147 | K30: 5854.507251 | L30: 6267.091039 | M30: 6754.412444 | N30: 7423.090659 | O30: 8439.810661 | P30: 24.37600825 | Q30: 776.4338967 | R30: =+R12*R$10+Q30 -> 1842.768696 | S30: 2887.574868 | T30: 3316.609849 | U30: 3905.650426 | V30: 4269.252682 | W30: 4759.339753 | X30: 5199.729695 | Y30: 5496.336882 | Z30: 6138.970229 | AA30: 6821.129983 | AB30: 20.16009334 | AC30: 954.5309507 | AD30: =+AD12*AD$10+AC30 -> 1609.586427 | AE30: 2221.54349 | AF30: 2914.291392 | AG30: 3626.554401 | AH30: 4240.929959 | AI30: 4823.389438 | AJ30: 5320.19311 | AK30: 5640.572628 | AL30: 6295.460933 | AM30: 6854.082537 | AN30: 20.88596066 | AO30: 580.1540131 | AP30: =+AP12*AP$10+AO30 -> 1252.94945 | AQ30: 2167.287236 | AR30: 2817.410733 | AS30: 3222.733226 | AT30: 3651.2129 | AU30: 4151.425224 | AV30: 4456.708437 | AW30: 4810.596746 | AX30: 5401.099687 | AY30: 6085.831001 | AZ30: 18.15259527 | BA30: 437.6124037 | BB30: =+BB12*BB$10+BA30 -> 1099.375765 | BC30: 1631.849065 | BD30: 2292.773677 | BE30: 2708.759854 | BF30: 3138.886584 | BG30: 3138.886584 | BH30: 3138.886584 | BM30: 0 | BN30: =+BN12*BN$10+BM30 -> 0 | BO30: 0 | BP30: 0 | BQ30: 0 | BR30: 0 | BS30: 0 | BT30: 0 | BU30: 0 | BV30: 0 | BW30: 0 | BX30: 0 | CA30: NO2 | CB30: =AVERAGEIF(E35:BA35,">0",E35:BA35) -> 3828.696915 | CC30: =SQRT(SUMSQ(E35:AN35)/$CB$6)/COUNT(E35:AN35) -> 392.92048 | CD30: 0.1026251199
D31: NO2 | E31: 1014.152958 | F31: =+F13*F$10+E31 -> 2017.872599 | G31: 3103.764638 | H31: 4007.382999 | I31: 4661.215932 | J31: 4969.073557 | K31: 5359.101803 | L31: 5790.946686 | M31: 6314.91329 | N31: 6928.801491 | O31: 8042.939177 | P31: 23.15977756 | Q31: 636.5091244 | R31: =+R13*R$10+Q31 -> 1548.901455 | S31: 2496.492739 | T31: 2886.524541 | U31: 3485.296594 | V31: 3790.939325 | W31: 4206.571407 | X31: 4562.422446 | Y31: 4863.907948 | Z31: 5507.545896 | AA31: 6175.412419 | AB31: 18.32921464 | AC31: 941.1937761 | AD31: =+AD13*AD$10+AC31 -> 1595.376897 | AE31: 2294.436079 | AF31: 2910.103464 | AG31: 3570.509981 | AH31: 4094.815115 | AI31: 4669.583572 | AJ31: 5159.827256 | AK31: 5449.525679 | AL31: 6242.812271 | AM31: 6843.899315 | AN31: 20.71186754 | AO31: 535.8769858 | AP31: =+AP13*AP$10+AO31 -> 1129.522071 | AQ31: 2036.042365 | AR31: 2682.463216 | AS31: 3101.688029 | AT31: 3559.35959 | AU31: 4068.202824 | AV31: 4371.107818 | AW31: 4771.291868 | AX31: 5274.408624 | AY31: 5910.840444 | AZ31: 17.66117523 | BA31: 442.5283786 | BB31: =+BB13*BB$10+BA31 -> 1115.00245 | BC31: 1570.969977 | BD31: 2237.732073 | BE31: 2585.247051 | BF31: 2965.932281 | BG31: 2965.932281 | BH31: 2965.932281 | BM31: 0 | BN31: =+BN13*BN$10+BM31 -> 0 | BO31: 0 | BP31: 0 | BQ31: 0 | BR31: 0 | BS31: 0 | BT31: 0 | BU31: 0 | BV31: 0 | BW31: 0 | BX31: 0
D32: NO2 | E32: 909.2405833 | F32: =+F14*F$10+E32 -> 1764.299129 | G32: 2871.167948 | H32: 3991.21902 | I32: 4770.457851 | J32: 5118.445892 | K32: 5676.485969 | L32: 6093.268923 | M32: 6567.044666 | N32: 7243.152638 | O32: 8403.986517 | P32: 24.39040765 | Q32: 804.7273787 | R32: =+R14*R$10+Q32 -> 1924.146064 | S32: 3065.398175 | T32: 3502.253264 | U32: 4210.075103 | V32: 4606.073456 | W32: 5150.929856 | X32: 5627.8979 | Y32: 5989.629152 | Z32: 6691.404425 | AA32: 7344.977715 | AB32: 21.42660885 | AC32: 978.922083 | AD32: =+AD14*AD$10+AC32 -> 1683.463545 | AE32: 2424.884326 | AF32: 2993.088261 | AG32: 3833.67978 | AH32: 4408.934125 | AI32: 5032.62732 | AJ32: 5564.600927 | AK32: 6006.548948 | AL32: 6782.585985 | AM32: 7369.541653 | AN32: 22.24623193 | AO32: 544.7215351 | AP32: =+AP14*AP$10+AO32 -> 1201.764053 | AQ32: 2232.676598 | AR32: 2802.501847 | AS32: 3393.571334 | AT32: 3931.103356 | AU32: 4492.388241 | AV32: 4806.056093 | AW32: 5174.694419 | AX32: 5796.523299 | AY32: 6557.606452 | AZ32: 19.49426513 | BA32: 449.3255499 | BB32: =+BB14*BB$10+BA32 -> 1183.942158 | BC32: 1783.401139 | BD32: 2512.87608 | BE32: 2971.73873 | BF32: 3463.966955 | BG32: 3463.966955 | BH32: 3463.966955 | BM32: 0 | BN32: =+BN14*BN$10+BM32 -> 0 | BO32: 0 | BP32: 0 | BQ32: 0 | BR32: 0 | BS32: 0 | BT32: 0 | BU32: 0 | BV32: 0 | BW32: 0 | BX32: 0
D33: NO2 | E33: 1033.931521 | F33: =+F15*F$10+E33 -> 2194.829658 | G33: 3495.160575 | H33: 4501.216004 | I33: 5204.452262 | J33: 5542.407699 | K33: 5996.229589 | L33: 6378.689241 | M33: 6903.304361 | N33: 7441.676051 | O33: 8462.575871 | P33: 24.54380819 | Q33: 756.7723213 | R33: =+R15*R$10+Q33 -> 1730.221571 | S33: 2716.979742 | T33: 3157.923909 | U33: 3883.563264 | V33: 4278.13511 | W33: 4733.621701 | X33: 5146.869665 | Y33: 5443.57546 | Z33: 6008.807854 | AA33: 6598.780143 | AB33: 19.31646452 | AC33: 877.9783008 | AD33: =+AD15*AD$10+AC33 -> 1537.427613 | AE33: 2195.99155 | AF33: 2772.582325 | AG33: 3613.173845 | AH33: 4205.876596 | AI33: 4832.300244 | AJ33: 5366.602767 | AK33: 5715.692345 | AL33: 6435.204301 | AM33: 7009.460274 | AN33: 21.23121471 | AO33: 584.9342404 | AP33: =+AP15*AP$10+AO33 -> 1203.806661 | AQ33: 2156.69426 | AR33: 2964.978366 | AS33: 3467.047912 | AT33: 3950.695148 | AU33: 4481.985049 | AV33: 4751.693954 | AW33: 5090.241214 | AX33: 5619.752214 | AY33: 6222.364577 | AZ33: 18.37671308 | BA33: 436.4079162 | BB33: =+BB15*BB$10+BA33 -> 1087.71294 | BC33: 1592.162621 | BD33: 2253.278064 | BE33: 2621.159327 | BF33: 3031.464172 | BG33: 3546.761432 | BH33: 3892.765599 | BI33: 4266.872365 | BJ33: 4897.797284 | BK33: 5358.782094 | BL33: 16.80751087 | BM33: 599.4396125 | BN33: =+BN15*BN$10+BM33 -> 1012.55908 | BO33: 1647.053506 | BP33: 2115.765041 | BQ33: 2600.293517 | BR33: 3311.308166 | BS33: 3616.018178 | BT33: 4014.777329 | BU33: 4519.789959 | BV33: 5063.394959 | BW33: 5522.495483 | BX33: 17.61680261
D34: NO2 | E34: 941.9182083 | F34: =+F16*F$10+E34 -> 1978.239667 | G34: 2932.969723 | H34: 3931.689582 | I34: 4825.176105 | J34: 5236.22623 | K34: 5719.904457 | L34: 6100.864084 | M34: 6554.434444 | N34: 7167.885157 | O34: 8176.320792 | P34: 23.646238 | Q34: 684.8499573 | R34: =+R16*R$10+Q34 -> 1597.91144 | S34: 2622.99587 | T34: 3038.832542 | U34: 3729.400188 | V34: 4092.214016 | W34: 4554.132444 | X34: 4984.350163 | Y34: 5280.734391 | Z34: 5899.871077 | AA34: 6468.532796 | AB34: 19.00077162 | AC34: 874.7248408 | AD34: =+AD16*AD$10+AC34 -> 1499.039466 | AE34: 2167.381052 | AF34: 2708.92427 | AG34: 3549.515789 | AH34: 4269.653046 | AI34: 5011.236447 | AJ34: 5643.763466 | AK34: 5991.982305 | AL34: 6708.888931 | AM34: 7250.705924 | AN34: 22.17230249 | AO34: 515.4280997 | AP34: =+AP16*AP$10+AO34 -> 1110.13388 | AQ34: 1999.04014 | AR34: 2618.233013 | AS34: 3069.764912 | AT34: 3520.662768 | AU34: 4037.256239 | AV34: 4318.655458 | AW34: 4669.311856 | AX34: 5178.543875 | AY34: 5783.878323 | AZ34: 17.30803415 | BA34: 409.4373702 | BB34: =+BB16*BB$10+BA34 -> 1065.340707 | BC34: 1587.978265 | BD34: 2257.06799 | BE34: 2642.253123 | BF34: 3024.972582 | BG34: 3024.972582 | BH34: 3024.972582 | BM34: 0 | BN34: =+BN16*BN$10+BM34 -> 0 | BO34: 0 | BP34: 0 | BQ34: 0 | BR34: 0 | BS34: 0 | BT34: 0 | BU34: 0 | BV34: 0 | BW34: 0 | BX34: 0
D35: NO2 | E35: 1074.921875 | F35: =+F17*F$10+E35 -> 2249.443827 | G35: 3248.147661 | H35: 4382.241426 | I35: 5185.743497 | J35: 5548.06383 | K35: 6072.560664 | L35: 6454.904155 | M35: 6844.169016 | N35: 7511.780512 | O35: 8440.326089 | P35: 24.35049339 | Q35: 785.7993648 | R35: =+R17*R$10+Q35 -> 1883.768433 | S35: 2857.819789 | T35: 3321.7288 | U35: 4064.264803 | V35: 4437.588019 | W35: 4941.659175 | X35: 5393.856667 | Y35: 5685.533172 | Z35: 6313.997637 | AA35: 6965.015934 | AB35: 20.58882004 | AC35: 925.8925069 | AD35: =+AD17*AD$10+AC35 -> 1631.524024 | AE35: 2333.138606 | AF35: 2951.027298 | AG35: 3606.995369 | AH35: 4175.722593 | AI35: 4733.283599 | AJ35: 5208.850339 | AK35: 5650.149413 | AL35: 6404.181083 | AM35: 7018.420815 | AN35: 21.42933711 | AO35: 532.7819184 | AP35: =+AP17*AP$10+AO35 -> 1175.413699 | AQ35: 2145.007274 | AR35: 2780.680242 | AS35: 3275.548501 | AT35: 3749.719587 | AU35: 4252.774593 | AV35: 4542.545609 | AW35: 4858.190012 | AX35: 5383.081982 | AY35: 6019.587332 | AZ35: 17.93871296 | BA35: 503.9907425 | BB35: =+BB17*BB$10+BA35 -> 1256.612039 | BC35: 1760.082276 | BD35: 2393.210646 | BE35: 2766.904131 | BF35: 3230.02642 | BG35: 3857.645883 | BH35: 4307.319428 | BI35: 4821.562693 | BJ35: 5508.563139 | BK35: 5955.514648 | BL35: 18.40988414 | BM35: 546.0236692 | BN35: =+BN17*BN$10+BM35 -> 1009.784888 | BO35: 1836.469079 | BP35: 2258.121234 | BQ35: 2737.573561 | BR35: 3389.988006 | BS35: 3681.83805 | BT35: 4072.273379 | BU35: 4568.600639 | BV35: 5154.110639 | BW35: 5669.218271 | BX35: 18.17267534
D36: =VLOOKUP(B36,$D$71:$F$85,2)&" "&C36 ->  | E36: 831.8462083 | F36: =+F18*F$10+E36 -> 1824.623791 | G36: 2772.540315 | H36: 3681.852107 | I36: 4334.79562 | J36: 4675.617516 | K36: 5189.796379 | L36: 5543.30552 | M36: 5951.733309 | N36: 6412.150626 | O36: 7303.513975 | P36: 21.06149236 | Q36: 673.9520099 | R36: =+R18*R$10+Q36 -> 1579.179552 | S36: 2479.014337 | T36: 2860.344953 | U36: 3524.263076 | V36: 3866.624482 | W36: 4273.028118 | X36: 4601.351598 | Y36: 4867.875503 | Z36: 5407.312016 | AA36: 5959.305317 | AB36: 17.57594694 | AC36: 793.0242584 | AD36: =+AD18*AD$10+AC36 -> 1405.985508 | AE36: 2067.071035 | AF36: 2629.692556 | AG36: 3107.182102 | AH36: 3709.371564 | AI36: 4229.476326 | AJ36: 4673.095093 | AK36: 4993.166026 | AL36: 5635.179489 | AM36: 6133.070909 | AN36: 18.6743936 | AO36: 410.7806089 | AP36: =+AP18*AP$10+AO36 -> 979.6023974 | AQ36: 1949.195972 | AR36: 2530.154269 | AS36: 2965.049098 | AT36: 3380.903667 | AU36: 3883.958673 | AV36: 4120.09106 | AW36: 4752.508924 | AX36: 5179.406163 | AY36: 5727.204325 | AZ36: 17.04222224 | BA36: 388.854382 | BB36: =+BB18*BB$10+BA36 -> 1029.967378 | BC36: 1470.688797 | BD36: 2400.062944 | BE36: 2741.774686 | BF36: 3104.281604 | BG36: 3104.281604 | BH36: 3104.281604 | BM36: 0 | BN36: =+BN18*BN$10+BM36 -> 0 | BO36: 0 | BP36: 0 | BQ36: 0 | BR36: 0 | BS36: 0 | BT36: 0 | BU36: 0 | BV36: 0 | BW36: 0 | BX36: 0 | CB36: =AVERAGEIF(#REF!,">0",#REF!) ->  | CC36: =SQRT(SUMSQ(#REF!)/$CB$6)/COUNT(#REF!) -> 
D37: cum.wet mol/ha | E37: 0 | F37: =+F19*F$10+E37 -> 0 | G37: 0 | H37: 0 | I37: 0 | J37: 0 | K37: 0 | L37: 0 | M37: 0 | N37: 0 | O37: 0 | P37: 0 | Q37: 0 | R37: =+R19*R$10+Q37 -> 0 | S37: 0 | T37: 0 | U37: 0 | V37: 0 | W37: 0 | X37: 0 | Y37: 0 | Z37: 0 | AA37: 0 | AB37: 2.683249288 | AC37: 1381.811038 | AD37: =+AD19*AD$10+AC37 -> 2297.866143 | AE37: 3093.878002 | AF37: 3908.297249 | AG37: 4971.95607 | AH37: 5413.35479 | AI37: 6028.170063 | AJ37: 6552.571326 | AK37: 7058.490404 | AL37: 8143.035702 | AM37: 8893.124638 | AN37: 26.97169035 | AO37: 836.2607144 | AP37: =+AP19*AP$10+AO37 -> 1661.255709 | AQ37: 2895.703677 | AR37: 3765.810346 | AS37: 4448.694858 | AT37: 5235.509759 | AU37: 5985.542454 | AV37: 6386.588178 | AW37: 7187.878938 | AX37: 7976.959913 | AY37: 8790.757438 | AZ37: 25.85618017 | BA37: 604.3016181 | BB37: =+BB19*BB$10+BA37 -> 1542.317393 | BC37: 2214.290314 | BD37: 3257.193809 | BE37: 3750.986871 | BF37: 4413.998684 | BG37: 5306.574641 | BH37: 5942.706045 | BI37: 6667.03906 | BJ37: 7386.440326 | BK37: 8110.920164 | BL37: 24.97950335 | BM37: 1122.523888 | BN37: =+BN19*BN$10+BM37 -> 1712.299797 | BO37: 2548.705186 | BP37: 3078.608986 | BQ37: 3781.64012 | BR37: 4583.044463 | BS37: 4899.045297 | BT37: 5817.854469 | BU37: 6799.244022 | BV37: 7802.644022 | BW37: 8733.666613 | BX37: 28.07773518
D38: jaarlijks | E38: 0 | F38: =+F20*F$10+E38 -> 0 | G38: 0 | H38: 0 | I38: 0 | J38: 0 | K38: 0 | L38: 0 | M38: 0 | N38: 0 | O38: 0 | P38: 0 | Q38: 0 | R38: =+R20*R$10+Q38 -> 0 | S38: 0 | T38: 0 | U38: 0 | V38: 0 | W38: 0 | X38: 0 | Y38: 0 | Z38: 0 | AA38: 0 | AB38: 4.713121181 | AC38: 2011.47217 | AD38: =+AD20*AD$10+AC38 -> 3218.684238 | AE38: 4164.287115 | AF38: 5215.294565 | AG38: 6363.404906 | AH38: 6650.665279 | AI38: 7086.572603 | AJ38: 7458.375909 | AK38: 8319.410546 | AL38: 9868.429511 | AM38: 10701.86335 | AN38: 31.81218881 | AO38: 1379.673847 | AP38: =+AP20*AP$10+AO38 -> 3018.754338 | AQ38: 4565.90387 | AR38: 5613.55232 | AS38: 6672.417851 | AT38: 7241.814578 | AU38: 8255.802298 | AV38: 9042.596144 | AW38: 9416.991527 | AX38: 10918.91127 | AY38: 12421.65205 | AZ38: 36.06658084 | BA38: 1027.954329 | BB38: =+BB20*BB$10+BA38 -> 2036.292472 | BC38: 2960.334001 | BD38: 3722.165327 | BE38: 4494.847025 | BF38: 5322.79485 | BG38: 6504.297379 | BH38: 7384.669451 | BI38: 8422.957988 | BJ38: 9332.873752 | BK38: 10052.66284 | BL38: 32.20664954 | BM38: 1522.127735 | BN38: =+BN20*BN$10+BM38 -> 2490.965702 | BO38: 3502.81166 | BP38: 4315.229389 | BQ38: 5377.50407 | BR38: 6272.626334 | BS38: 6881.664985 | BT38: 7522.56083 | BU38: 8255.375103 | BV38: 9313.005103 | BW38: 10084.11419 | BX38: 31.75874231
D39: cum. wet NO3 mol/ha | E39: 1455.587542 | F39: =+F21*F$10+E39 -> 3137.163927 | G39: 4659.279783 | H39: 5646.18273 | I39: 6547.771183 | J39: 7468.190953 | K39: 8099.931652 | L39: 8654.66554 | M39: 9028.00793 | N39: 9644.506137 | O39: 11231.45927 | P39: 33.36608951 | Q39: 1324.399223 | R39: =+R21*R$10+Q39 -> 2933.039306 | S39: 4101.800584 | T39: 4876.231817 | U39: 5885.247817 | V39: 6595.327677 | W39: 7570.083902 | X39: 8621.257492 | Y39: 9469.214094 | Z39: 10716.57801 | AA39: 11882.97289 | AB39: 35.37227943 | AC39: 1734.246134 | AD39: =+AD21*AD$10+AC39 -> 2712.29706 | AE39: 3485.263773 | AF39: 4363.435923 | AG39: 5532.384502 | AH39: 6170.219193 | AI39: 6955.18023 | AJ39: 7624.70582 | AK39: 8531.567303 | AL39: 9965.122831 | AM39: 10812.07572 | AN39: 32.68320009 | AO39: 1449.703551 | AP39: =+AP21*AP$10+AO39 -> 2944.59317 | AQ39: 4519.844935 | AR39: 5350.165509 | AS39: 6183.018509 | AT39: 6888.281453 | AU39: 7328.315787 | AV39: 8126.378127 | AW39: 8946.272858 | AX39: 10232.15203 | AY39: 11368.25889 | AZ39: 33.54894806 | BA39: 958.4902401 | BB39: =+BB21*BB$10+BA39 -> 1885.244884 | BC39: 2806.945486 | BD39: 4057.429957 | BE39: 4956.800035 | BF39: 5854.612675 | BG39: 6947.171095 | BH39: 7659.290741 | BI39: 8407.907358 | BJ39: 9480.444111 | BK39: 10181.28768 | BL39: 32.12627638 | BM39: 1067.407572 | BN39: =+BN21*BN$10+BM39 -> 1765.837143 | BO39: 2537.762947 | BP39: 3299.671773 | BQ39: 3814.661773 | BR39: 4440.006773 | BS39: 5148.570356 | BT39: 6133.599021 | BU39: 6954.193927 | BV39: 7896.838927 | BW39: 8631.686414 | BX39: 27.75684076
D40: cum. dry NH3 mol/ha | E40: 1408.577625 | F40: =+F22*F$10+E40 -> 3061.842976 | G40: 4470.621915 | H40: 5945.627634 | I40: 7154.612261 | J40: 7889.285532 | K40: 8339.040624 | L40: 9204.275579 | M40: 10386.43011 | N40: 11690.59391 | O40: 13296.22086 | P40: 38.41071876 | Q40: 1253.983771 | R40: =+R22*R$10+Q40 -> 2764.448384 | S40: 3909.895832 | T40: 4634.004717 | U40: 5374.346639 | V40: 5949.985081 | W40: 6771.843502 | X40: 7614.765302 | Y40: 8264.132623 | Z40: 9251.250365 | AA40: 10304.23217 | AB40: 30.41617741 | AC40: 1524.628771 | AD40: =+AD22*AD$10+AC40 -> 2374.23543 | AE40: 3220.445817 | AF40: 4146.190992 | AG40: 5315.139572 | AH40: 6130.673523 | AI40: 7141.926579 | AJ40: 8004.465951 | AK40: 8645.614846 | AL40: 9832.120002 | AM40: 10517.69573 | AN40: 31.83027219 | AO40: 1065.741247 | AP40: =+AP22*AP$10+AO40 -> 2341.847845 | AQ40: 3619.877067 | AR40: 4450.507709 | AS40: 5122.076294 | AT40: 5699.030922 | AU40: 6321.76549 | AV40: 7000.200841 | AW40: 7796.631096 | AX40: 8848.79 | AY40: 9918.362938 | AZ40: 29.38953632 | BA40: 936.3027352 | BB40: =+BB22*BB$10+BA40 -> 1740.349405 | BC40: 2533.329617 | BD40: 3647.983542 | BE40: 4419.82456 | BF40: 5163.572294 | BG40: 6086.941824 | BH40: 6700.382968 | BI40: 7357.125652 | BJ40: 8453.756881 | BK40: 9450.102213 | BL40: 29.91909047 | BM40: 1115.772014 | BN40: =+BN22*BN$10+BM40 -> 1959.598481 | BO40: 2703.493541 | BP40: 3364.036533 | BQ40: 3976.207454 | BR40: 4578.52863 | BS40: 5169.047712 | BT40: 5957.913339 | BU40: 7201.727598 | BV40: 8053.167598 | BW40: 9241.524405 | BX40: 28.64170748
D41: cum. dry mol/ha | E41: 1591.457667 | F41: =+F23*F$10+E41 -> 3793.742474 | G41: 5780.725076 | H41: 6998.350267 | I41: 8091.764724 | J41: 8772.261932 | K41: 9315.826859 | L41: 10176.19882 | M41: 11341.29335 | N41: 12666.97147 | O41: 14299.58646 | P41: 41.31393646 | Q41: 1263.946614 | R41: =+R23*R$10+Q41 -> 2702.854225 | S41: 3859.067905 | T41: 4502.776484 | U41: 5258.586566 | V41: 5810.623906 | W41: 6496.119722 | X41: 7329.473907 | Y41: 7936.17368 | Z41: 8932.617639 | AA41: 10071.1223 | AB41: 30.06340814 | AC41: 1497.697466 | AD41: =+AD23*AD$10+AC41 -> 2406.154094 | AE41: 3307.95276 | AF41: 4186.12491 | AG41: 5010.873243 | AH41: 5613.79401 | AI41: 6436.784234 | AJ41: 7138.746484 | AK41: 7791.439834 | AL41: 9034.450803 | AM41: 9772.83579 | AN41: 29.74809085 | AO41: 1057.042524 | AP41: =+AP23*AP$10+AO41 -> 2270.481022 | AQ41: 3686.903829 | AR41: 4481.362946 | AS41: 5116.116722 | AT41: 5665.920402 | AU41: 6188.017634 | AV41: 6792.611278 | AW41: 7557.909708 | AX41: 8700.941158 | AY41: 9836.875062 | AZ41: 29.08359036 | BA41: 842.3043534 | BB41: =+BB23*BB$10+BA41 -> 1698.423692 | BC41: 2422.167772 | BD41: 3388.101047 | BE41: 4114.240379 | BF41: 4812.583672 | BG41: 5696.51398 | BH41: 6294.273836 | BI41: 6944.785183 | BJ41: 7832.119119 | BK41: 8829.203775 | BL41: 28.08152109 | BM41: 1264.702969 | BN41: =+BN23*BN$10+BM41 -> 2020.275919 | BO41: 2911.301399 | BP41: 3739.99426 | BQ41: 4485.643292 | BR41: 5221.366452 | BS41: 5803.888115 | BT41: 6621.872953 | BU41: 7806.906986 | BV41: 8920.651986 | BW41: 10000.18668 | BX41: 32.12277667
D42: jaarlijks | E42: 1195.599771 | F42: =+F24*F$10+E42 -> 2940.585005 | G42: 4242.864099 | H42: 5171.886848 | I42: 6088.530792 | J42: 6674.721521 | K42: 7165.641821 | L42: 7855.779759 | M42: 9075.162998 | N42: 10095.15261 | O42: 11902.26198 | P42: 34.85361706 | Q42: 1191.164349 | R42: =+R24*R$10+Q42 -> 2664.758471 | S42: 3854.1087 | T42: 4424.399994 | U42: 5169.743978 | V42: 5651.044315 | W42: 6284.422876 | X42: 7098.230765 | Y42: 7664.657926 | Z42: 8686.228066 | AA42: 9810.897918 | AB42: 29.39214586 | AC42: 1467.108148 | AD42: =+AD24*AD$10+AC42 -> 2247.462205 | AE42: 3019.153408 | AF42: 3944.898583 | AG42: 4571.935667 | AH42: 5088.706314 | AI42: 5789.240388 | AJ42: 6386.754745 | AK42: 6964.446449 | AL42: 8080.154053 | AM42: 8725.526277 | AN42: 26.6568634 | AO42: 1129.749885 | AP42: =+AP24*AP$10+AO42 -> 2256.925317 | AQ42: 3456.234312 | AR42: 4140.190159 | AS42: 4678.920664 | AT42: 5160.960141 | AU42: 5665.243502 | AV42: 6241.525696 | AW42: 6927.975722 | AX42: 8085.479741 | AY42: 9188.743678 | AZ42: 27.01704933 | BA42: 791.9211744 | BB42: =+BB24*BB$10+BA42 -> 1590.766462 | BC42: 2255.176187 | BD42: 3146.370718 | BE42: 3726.871852 | BF42: 4305.437802 | BG42: 5046.989473 | BH42: 5554.090745 | BI42: 6111.488567 | BJ42: 6939.050467 | BK42: 7910.584143 | BL42: 25.30272555 | BM42: 1385.643097 | BN42: =+BN24*BN$10+BM42 -> 2109.821769 | BO42: 2830.176875 | BP42: 3413.208997 | BQ42: 3982.854136 | BR42: 4519.669049 | BS42: 4914.469049 | BT42: 5393.869049 | BU42: 6358.482915 | BV42: 7147.572915 | BW42: 8049.897389 | BX42: 25.57476684
D43: cum. mol/ha | E43: 1178.114375 | F43: =+F25*F$10+E43 -> 2658.587313 | G43: 3816.415039 | H43: 4640.971766 | I43: 5505.981283 | J43: 6050.035075 | K43: 6473.774074 | L43: 7014.629598 | M43: 8102.394845 | N43: 9067.484078 | O43: 10461.16268 | P43: 30.35875688 | Q43: 1132.086671 | R43: =+R25*R$10+Q43 -> 2246.765463 | S43: 3281.29567 | T43: 3845.644754 | U43: 4474.296248 | V43: 4839.864541 | W43: 5406.977413 | X43: 6000.770128 | Y43: 6460.823021 | Z43: 7293.489389 | AA43: 8289.928781 | AB43: 24.86558085 | AC43: 1127.94411 | AD43: =+AD25*AD$10+AC43 -> 1780.501729 | AE43: 2437.976815 | AF43: 3227.458818 | AG43: 3802.053357 | AH43: 4372.218972 | AI43: 5033.073275 | AJ43: 5596.743123 | AK43: 6094.205742 | AL43: 7086.07006 | AM43: 7697.576928 | AN43: 23.84620222 | AO43: 1085.627345 | AP43: =+AP25*AP$10+AO43 -> 2177.614332 | AQ43: 3260.210691 | AR43: 3941.120092 | AS43: 4422.575939 | AT43: 4873.110084 | AU43: 5338.299292 | AV43: 5791.216003 | AW43: 6434.984829 | AX43: 7430.757152 | AY43: 8512.070038 | AZ43: 25.00309874 | BA43: 701.1750687 | BB43: =+BB25*BB$10+BA43 -> 1382.339532 | BC43: 1936.013518 | BD43: 2743.131548 | BE43: 3283.163164 | BF43: 3797.47573 | BG43: 3797.47573 | BH43: 3797.47573 | BM43: 0 | BN43: =+BN25*BN$10+BM43 -> 0 | BO43: 0 | BP43: 0 | BQ43: 0 | BR43: 0 | BS43: 0 | BT43: 0 | BU43: 0 | BV43: 0 | BW43: 0 | BX43: 0 | CA43: =D43 -> cum. mol/ha | CB43: =AVERAGE(E44:AN44) -> 4441.178917 | CC43: =SQRT(SUMSQ(E44:AN44)/$CB$6)/COUNT(E44:AN44) -> 425.9916729 | CD43: 0.095918602
D44: jaarlijks | E44: 1138.55725 | F44: =+F26*F$10+E44 -> 2578.589569 | G44: 3556.883024 | H44: 4422.272445 | I44: 5197.138655 | J44: 5795.081863 | K44: 6236.229801 | L44: 6741.584193 | M44: 7593.924734 | N44: 8629.803313 | O44: 10216.56351 | P44: 29.66096362 | Q44: 939.8455385 | R44: =+R26*R$10+Q44 -> 2078.403898 | S44: 3073.412952 | T44: 3565.894142 | U44: 4194.134501 | V44: 4635.12386 | W44: 5207.337066 | X44: 5672.276608 | Y44: 6096.140317 | Z44: 6959.912038 | AA44: 7993.417161 | AB44: 23.81260296 | AC44: 1157.9487 | AD44: =+AD26*AD$10+AC44 -> 1844.771266 | AE44: 2586.710099 | AF44: 3224.409478 | AG44: 3799.004017 | AH44: 4241.421456 | AI44: 4867.471579 | AJ44: 5401.455509 | AK44: 5865.421073 | AL44: 6831.370037 | AM44: 7463.633018 | AN44: 22.82475679 | AO44: 1139.847156 | AP44: =+AP26*AP$10+AO44 -> 2317.529387 | AQ44: 3423.39313 | AR44: 4081.293815 | AS44: 4550.726488 | AT44: 4985.651485 | AU44: 5449.038266 | AV44: 5961.218703 | AW44: 6598.495179 | AX44: 7641.771354 | AY44: 8805.384379 | AZ44: 25.86712449 | BA44: 698.799575 | BB44: =+BB26*BB$10+BA44 -> 1482.567539 | BC44: 2040.314308 | BD44: 2816.545599 | BE44: 3369.702466 | BF44: 3871.233164 | BG44: 4491.166295 | BH44: 4916.302709 | BI44: 5384.778369 | BJ44: 6324.232531 | BK44: 7156.113561 | BL44: 22.86926279 | BM44: 1008.671606 | BN44: =+BN26*BN$10+BM44 -> 1655.09779 | BO44: 2337.77279 | BP44: 2903.41779 | BQ44: 3334.571139 | BR44: 3797.03174 | BS44: 4175.956071 | BT44: 4716.049384 | BU44: 5848.055188 | BV44: 6496.495188 | BW44: 7581.480882 | BX44: 23.8125466
E45: 1169.228354 | F45: =+F27*F$10+E45 -> 2648.503577 | G45: 3788.553949 | H45: 4554.417592 | I45: 5382.703654 | J45: 5865.128592 | K45: 6291.710491 | L45: 6818.373049 | M45: 7689.616304 | N45: 8748.617337 | O45: 10387.91333 | P45: 30.27837748 | Q45: 995.2664056 | R45: =+R27*R$10+Q45 -> 2170.056256 | S45: 3248.306729 | T45: 3802.497098 | U45: 4442.832909 | V45: 4904.384349 | W45: 5312.456715 | X45: 6047.246542 | Y45: 6548.377035 | Z45: 7403.652355 | AA45: 8485.430781 | AB45: 25.38961012 | AC45: 1105.466705 | AD45: =+AD27*AD$10+AC45 -> 1696.600235 | AE45: 2377.43829 | AF45: 3000.432912 | AG45: 3575.027451 | AH45: 3971.211231 | AI45: 4497.595485 | AJ45: 4946.57029 | AK45: 5423.25696 | AL45: 6419.590429 | AM45: 7034.029577 | AN45: 21.5827769 | AO45: 1104.815655 | AP45: =+AP27*AP$10+AO45 -> 2329.530502 | AQ45: 3452.216553 | AR45: 4063.954368 | AS45: 4531.108132 | AT45: 4977.396468 | AU45: 5418.691591 | AV45: 5906.590272 | AW45: 6578.753268 | AX45: 7531.718913 | AY45: 8659.162641 | AZ45: 25.40106402 | BA45: 685.8975571 | BB45: =+BB27*BB$10+BA45 -> 1425.333643 | BC45: 1978.640603 | BD45: 2772.310564 | BE45: 3270.618271 | BF45: 3752.737398 | BG45: 4372.670529 | BH45: 4797.806943 | BI45: 5266.282602 | BJ45: 6205.736764 | BK45: 7037.617795 | BL45: 22.53070345 | BN45: =+BN27*BN$10+BM45 -> 
CA46: =D46 -> 0 | CB46: =AVERAGE(E46:AN46) ->  | CC46: =SQRT(SUMSQ(E46:AN46)/$CB$6)/COUNT(E46:AN46) -> 
CA47: =D47 -> 0 | CB47: =AVERAGE(E47:AN47) ->  | CC47: =SQRT(SUMSQ(E47:AN47)/$CB$6)/COUNT(E47:AN47) -> 
D48: dry of total | E48: =E47/(SUM(E46:E47)) ->  | F48: =F47/(SUM(F46:F47)) ->  | G48: =G47/(SUM(G46:G47)) ->  | H48: =H47/(SUM(H46:H47)) ->  | I48: =I47/(SUM(I46:I47)) ->  | Q48: =Q47/(SUM(Q46:Q47)) ->  | R48: =R47/(SUM(R46:R47)) ->  | S48: =S47/(SUM(S46:S47)) ->  | AG48: =AG47/(SUM(AG46:AG47)) ->  | AH48: =AH47/(SUM(AH46:AH47)) ->  | AI48: =AI47/(SUM(AI46:AI47)) ->  | AJ48: =AJ47/(SUM(AJ46:AJ47)) -> 
D49: nh3+nox of total | E49: =SUM(E11:E12)/SUM(E11:E16) -> 0.3284127376 | F49: =SUM(F11:F12)/SUM(F11:F16) -> 0.3603550297 | G49: =SUM(G11:G12)/SUM(G11:G16) -> 0.3453509108 | H49: =SUM(H11:H12)/SUM(H11:H16) -> 0.3367607768 | I49: =SUM(I11:I12)/SUM(I11:I16) -> 0.3286403597 | J49: 0.3308301475 | K49: 0.3180005279 | L49: 0.3204696364 | M49: 0.3306497988 | N49: 0.3459759829 | O49: 0.3217037219 | P49: 0.3230808367 | Q49: =SUM(Q11:Q12)/SUM(Q11:Q16) -> 0.3374472751 | R49: =SUM(R11:R12)/SUM(R11:R16) -> 0.3408062565 | S49: =SUM(S11:S12)/SUM(S11:S16) -> 0.3311791415 | T49: 0.3374893874 | U49: 0.3025155537 | V49: 0.3253650437 | W49: 0.3442541123 | X49: 0.3369279187 | Y49: 0.3294087609 | Z49: 0.3336824396 | AA49: 0.3523389281 | AB49: 0.3469718126 | AC49: 0.3321498311 | AD49: 0.3179070384 | AE49: 0.3022401007 | AF49: 0.3541055659 | AG49: =SUM(AG11:AG12)/SUM(AG11:AG16) -> 0.3092286941 | AH49: =SUM(AH11:AH12)/SUM(AH11:AH16) -> 0.3191091099 | AI49: =SUM(AI11:AI12)/SUM(AI11:AI16) -> 0.3121375134 | AJ49: =SUM(AJ11:AJ12)/SUM(AJ11:AJ16) -> 0.3121375134 | AK49: 0.3163185247 | AL49: 0.3123585424 | AM49: 0.3242247547 | AN49: 0.343731039 | AO49: 0.346921708 | AP49: 0.3568434915 | AQ49: 0.3225692481 | AR49: 0.3237785866 | AS49: =SUM(AS11:AS12)/SUM(AS11:AS16) -> 0.2937902065 | AT49: 0.3074762671 | AU49: 0.3131806626 | AV49: 0.3334492296 | AW49: 0.3334879595 | AX49: 0.3534701642 | AY49: 0.3412922461 | AZ49: 0.3355942807 | BA49: =SUM(BA11:BA12)/SUM(BA11:BA16) -> 0.3363969877 | BB49: 0.3229417864 | BC49: 0.3258478779 | BD49: 0.3255454906 | BE49: 0.3299099683 | BF49: 0.3342797786 | BG49: 0.5000176903 | BH49: 0.5022035113 | BI49: 0.5041939225 | BJ49: 0.5237569251 | BK49: 0.5126398185 | BL49: 0.4732748304 | BM49: 0.4684942275 | BN49: 0.5079365316 | BO49: 0.4810043652 | BP49: 0.4502984745 | BQ49: 0.4383429913 | BR49: 0.4669536097 | BS49: 0.4752102731 | BT49: 0.4460504655 | BU49: 0.4134086962 | BV49: 0.4950841751 | BW49: 0.5171378408 | BX49: 0.517198738 | CA49: 2013
D50: depo/jaar | E50: =E44/COUNT($E$44:E44)*12 -> 13662.687 | F50: =F44/COUNT($E$44:F44)*12 -> 15471.53741 | G50: =G44/COUNT($E$44:G44)*12 -> 14227.5321 | H50: =H44/COUNT($E$44:H44)*12 -> 13266.81734 | I50: =I44/COUNT($E$44:I44)*12 -> 12473.13277 | J50: =J44/COUNT($E$44:J44)*12 -> 11590.16373 | K50: =K44/COUNT($E$44:K44)*12 -> 10690.67966 | L50: =L44/COUNT($E$44:L44)*12 -> 10112.37629 | M50: =M44/COUNT($E$44:M44)*12 -> 10125.23298 | N50: =N44/COUNT($E$44:N44)*12 -> 10355.76398 | O50: =O44/COUNT($E$44:O44)*12 -> 11145.34202 | P50: =P44/COUNT($E$44:P44)*12 -> 29.66096362 | Q50: =Q44/COUNT($E$44:Q44)*12 -> 867.5497278 | R50: =R44/COUNT($E$44:R44)*12 -> 1781.489055 | S50: =S44/COUNT($E$44:S44)*12 -> 2458.730362 | T50: =T44/COUNT($E$44:T44)*12 -> 2674.420606 | U50: =U44/COUNT($E$44:U44)*12 -> 2960.56553 | V50: =V44/COUNT($E$44:V44)*12 -> 3090.082573 | W50: =W44/COUNT($E$44:W44)*12 -> 3288.844463 | X50: =X44/COUNT($E$44:X44)*12 -> 3403.365965 | Y50: =Y44/COUNT($E$44:Y44)*12 -> 3483.508752 | Z50: =Z44/COUNT($E$44:Z44)*12 -> 3796.315657 | AA50: =AA44/COUNT($E$44:AA44)*12 -> 4170.478519 | AB50: =AB44/COUNT($E$44:AB44)*12 -> 11.90630148 | AC50: =AC44/COUNT($E$44:AC44)*12 -> 555.8153759 | AD50: =AD44/COUNT($E$44:AD44)*12 -> 851.4328918 | AE50: =AE44/COUNT($E$44:AE44)*12 -> 1149.648933 | AF50: =AF44/COUNT($E$44:AF44)*12 -> 1381.889776 | AG50: =AG44/COUNT($E$44:AG44)*12 -> 1572.001662 | AH50: =AH44/COUNT($E$44:AH44)*12 -> 1696.568582 | AI50: =AI44/COUNT($E$44:AI44)*12 -> 1884.182547 | AJ50: =AJ44/COUNT($E$44:AJ44)*12 -> 2025.545816 | AK50: =AK44/COUNT($E$44:AK44)*12 -> 2132.88039 | AL50: =AL44/COUNT($E$44:AL44)*12 -> 2411.071778 | AM50: =AM44/COUNT($E$44:AM44)*12 -> 2558.959892 | AN50: =AN44/COUNT($E$44:AN44)*12 -> 7.608252263 | AO50: =AO44/COUNT($E$44:AO44)*12 -> 369.6801588 | AP50: =AP44/COUNT($E$44:AP44)*12 -> 731.8513855 | AQ50: =AQ44/COUNT($E$44:AQ44)*12 -> 1053.351732 | AR50: =AR44/COUNT($E$44:AR44)*12 -> 1224.388144 | AS50: =AS44/COUNT($E$44:AS44)*12 -> 1331.919948 | AT50: =AT44/COUNT($E$44:AT44)*12 -> 1424.471853 | AU50: =AU44/COUNT($E$44:AU44)*12 -> 1520.661842 | AV50: =AV44/COUNT($E$44:AV44)*12 -> 1625.786919 | AW50: =AW44/COUNT($E$44:AW44)*12 -> 1759.598714 | AX50: =AX44/COUNT($E$44:AX44)*12 -> 1993.505571 | AY50: =AY44/COUNT($E$44:AY44)*12 -> 2248.183246 | AZ50: =AZ44/COUNT($E$44:AZ44)*12 -> 6.466781122 | BA50: =BA44/COUNT($E$44:BA44)*12 -> 171.1345898 | BB50: =BB44/COUNT($E$44:BB44)*12 -> 355.8162093 | BC50: =BC44/COUNT($E$44:BC44)*12 -> 480.0739548 | BD50: =BD44/COUNT($E$44:BD44)*12 -> 649.9720613 | BE50: =BE44/COUNT($E$44:BE44)*12 -> 762.9515017 | BF50: =BF44/COUNT($E$44:BF44)*12 -> 860.2740365 | BG50: =BG44/COUNT($E$44:BG44)*12 -> 979.8908281 | BH50: =BH44/COUNT($E$44:BH44)*12 -> 1053.493438 | BI50: =BI44/COUNT($E$44:BI44)*12 -> 1133.637551 | BJ50: =BJ44/COUNT($E$44:BJ44)*12 -> 1308.461903 | BK50: =BK44/COUNT($E$44:BK44)*12 -> 1455.480724 | BL50: =BL44/COUNT($E$44:BL44)*12 -> 4.573852558 | BM50: =BM44/COUNT($E$44:BM44)*12 -> 198.4272012 | BN50: =BN44/COUNT($E$44:BN44)*12 -> 320.3415078 | BO50: =BO44/COUNT($E$44:BO44)*12 -> 445.2900553 | BP50: =BP44/COUNT($E$44:BP44)*12 -> 544.3908357 | BQ50: =BQ44/COUNT($E$44:BQ44)*12 -> 615.6131334 | BR50: =BR44/COUNT($E$44:BR44)*12 -> 690.3694072 | BS50: =BS44/COUNT($E$44:BS44)*12 -> 747.9324306 | BT50: =BT44/COUNT($E$44:BT44)*12 -> 832.2440089 | BU50: =BU44/COUNT($E$44:BU44)*12 -> 1017.053076 | BV50: =BV44/COUNT($E$44:BV44)*12 -> 1113.684889 | BW50: =BW44/COUNT($E$44:BW44)*12 -> 1281.377051 | BX50: =BX44/COUNT($E$44:BX44)*12 -> 3.968757766 | CA50: =SUM(AC55:AN55) -> 0
E51: =+P22 -> 24.47431333 | F51: =+AB22 -> 32.67232169 | G51: =+AN22 -> 38.75624633 | H51: =+AZ22 -> 34.31022092 | I51: =+BL22 -> 37.83627594 | J51: =+BX22 -> 43.31067227 | CA51: =SUM(AC56:AN56) -> 24162
E52: 2011 | F52: 2012 | G52: 2013 | H52: 2014 | I52: 2015 | J52: 2016
D53: =+A11 -> Goeree 1 | E53: =+P29 -> 23.84302685 | F53: =+AB29 -> 19.19544371 | G53: =+AN29 -> 19.99491087 | H53: =+AZ29 -> 17.86701036 | I53: =+BL29 -> 16.73660996 | J53: =+BX29 -> 16.10346429 | L53: =+E53 -> 23.84302685 | M53: 19.19544371 | N53: 19.99491087 | O53: 17.86701036 | P53: 16.73660996 | Q53: 16.10346429 | R53: =+E57 -> 24.54380819 | S53: 19.31646452 | T53: 21.23121471 | U53: 18.37671308 | V53: 16.80751087 | W53: 17.61680261 | X53: =+E59 -> 24.35049339 | Y53: 20.58882004 | Z53: 21.42933711 | AA53: 17.93871296 | AB53: 18.40988414 | AC53: 18.17267534 | AD53: =+E63 -> 33.36608951 | AE53: 35.37227943 | AF53: 32.68320009 | AG53: 33.54894806 | AH53: 32.12627638 | AI53: 27.75684076 | AJ53: =+E64 -> 38.41071876 | AK53: 30.41617741 | AL53: 31.83027219 | AM53: 29.38953632 | AN53: 29.91909047 | AO53: 28.64170748 | AP53: =+E65 -> 41.31393646 | AQ53: 30.06340814 | AR53: 29.74809085 | AS53: 29.08359036 | AT53: 28.08152109 | AU53: 32.12277667 | AV53: =+E66 -> 34.85361706 | AW53: 29.39214586 | AX53: 26.6568634 | AY53: 27.01704933 | AZ53: 25.30272555 | BA53: 25.57476684 | BB53: =+E68 -> 29.66096362 | BC53: 23.81260296 | BD53: 22.82475679 | BE53: 25.86712449 | BF53: 22.86926279 | BG53: 23.8125466 | BH53: =+E61 -> 0 | BI53: 2.683249288 | BJ53: 26.97169035 | BK53: 25.85618017 | BL53: 24.97950335 | BM53: 28.07773518 | BN53: =+E62 -> 0 | BO53: 4.713121181 | BP53: 31.81218881 | BQ53: 36.06658084 | BR53: 32.20664954 | BS53: 31.75874231 | BT53: =+#REF! ->  | BU53: =+#REF! ->  | BV53: =+#REF! ->  | BW53: =+#REF! ->  | BX53: =+#REF! ->  | BY53: =+#REF! ->  | BZ53: =+#REF! ->  | CA53: =+#REF! ->  | CB53: =+#REF! ->  | CC53: =+#REF! ->  | CD53: =+I70 -> 0 | CE53: =+J70 -> 0
D54: =+A12 -> Goeree 2 | E54: =+P30 -> 24.37600825 | F54: =+AB30 -> 20.16009334 | G54: =+AN30 -> 20.88596066 | H54: =+AZ30 -> 18.15259527 | I54: =+BL30 ->  | J54: =+BX30 -> 0
D55: Oostvoorne Panduin | E55: 23.15977756 | F55: 18.32921464 | G55: 20.71186754 | H55: 17.66117523 | J55: 0
D56: Oostvoorne Zuid 1 | E56: 24.39040765 | F56: 21.42660885 | G56: 22.24623193 | H56: 19.49426513 | J56: 0 | R56: 2011 | S56: 2012 | T56: 2013 | U56: 2014 | V56: 2015 | W56: 2016 | X56: 2011 | Y56: 2012 | Z56: 2013 | AA56: 2014 | AB56: 2015 | AC56: 2016 | AD56: 2011 | AE56: 2012 | AF56: 2013 | AG56: 2014 | AH56: 2015 | AI56: 2016 | AJ56: 2011 | AK56: 2012 | AL56: 2013 | AM56: 2014 | AN56: 2015 | AO56: 2016 | AP56: 2011 | AQ56: 2012 | AR56: 2013 | AS56: 2014 | AT56: 2015 | AU56: 2016 | AV56: 2011 | AW56: 2012 | AX56: 2013 | AY56: 2014 | AZ56: 2015 | BA56: 2016 | BB56: 2011 | BC56: 2012 | BD56: 2013 | BE56: 2014 | BF56: 2015 | BG56: 2016 | BH56: 2011 | BI56: 2012 | BJ56: 2013 | BK56: 2014 | BL56: 2015 | BM56: 2016 | BN56: 2011 | BO56: 2012 | BP56: 2013 | BQ56: 2014 | BR56: 2015 | BS56: 2016 | BT56: 2011 | BU56: 2012 | BV56: 2013 | BW56: 2014 | BX56: 2015 | BY56: 2016 | BZ56: 2011 | CA56: 2012 | CB56: 2013 | CC56: 2014 | CD56: 2015 | CE56: 2016 | CF56: 2011 | CG56: 2012 | CH56: 2013 | CI56: 2014 | CJ56: 2015 | CK56: 2016
D57: Oostvoorne Zuid 2 | E57: 24.54380819 | F57: 19.31646452 | G57: 21.23121471 | H57: 18.37671308 | I57: 16.80751087 | J57: 17.61680261 | R57: no2 | S57: no2 | T57: no2 | U57: no2 | V57: no2 | W57: no2 | X57: nh3 | Y57: nh3 | Z57: nh3 | AA57: nh3 | AB57: nh3 | AC57: nh3 | AD57: hno3 | AE57: hno3 | AF57: hno3 | AG57: hno3 | AH57: hno3 | AI57: hno3 | AJ57: hno2 | AK57: hno2 | AL57: hno2 | AM57: hno2 | AN57: hno2 | AO57: hno2 | AP57: no3 | AQ57: no3 | AR57: no3 | AS57: no3 | AT57: no3 | AU57: no3 | AV57: nh4 | AW57: nh4 | AX57: nh4 | AY57: nh4 | AZ57: nh4 | BA57: nh4 | BB57: so2 | BC57: so2 | BD57: so2 | BE57: so2 | BF57: so2 | BG57: so2 | BH57: so4 | BI57: so4 | BJ57: so4 | BK57: so4 | BL57: so4 | BM57: so4 | BN57: Cl | BO57: Cl | BP57: Cl | BQ57: Cl | BR57: Cl | BS57: Cl | BT57: Na | BU57: Na | BV57: Na | BW57: Na | BX57: Na | BY57: Na | BZ57: Mg | CA57: Mg | CB57: Mg | CC57: Mg | CD57: Mg | CE57: Mg | CF57: Ca | CG57: Ca | CH57: Ca | CI57: Ca | CJ57: Ca | CK57: Ca
B58: month list | D58: Oostvoorne Zuid 3 | E58: 23.646238 | F58: 19.00077162 | G58: 22.17230249 | H58: 17.30803415 | J58: 0 | O58: 1 | P58: Goeree 1 | R58: 23.84302685 | S58: 19.19544371 | T58: 19.99491087 | U58: 17.86701036 | V58: 16.73660996 | W58: 16.10346429 | X58: 2.118172089 | Y58: 1.729797291 | Z58: 2.012154515 | AA58: 3.155053744 | AB58: 2.324466921 | AC58: 5.217103829 | AD58: 1.40526357 | AE58: 0.9970939587 | AF58: 0.7588003679 | AG58: 0.8651443482 | AH58: 0.5264701697 | AI58: 1.336124748 | AJ58: 0.380665499 | AK58: 0.2827761614 | AL58: 0.04278746774 | AM58: 0.2315512614 | AN58: 0.04899322994 | AO58: 0.3811363425 | AP58: 3.659232412 | AQ58: 3.648985019 | AR58: 2.926302571 | AS58: 2.967765819 | AT58: 2.43880359 | AU58: 4.556616974 | AV58: 1.327390249 | AW58: 1.260855146 | AX58: 1.108937854 | AY58: 1.035488158 | AZ58: 0.726255789 | BA58: 1.562535795 | BB58: 0.8402124942 | BC58: 0.7527871557 | BD58: 0.5410759749 | BE58: 0.7831129064 | BF58: 0.4970353234 | BG58: 0.7725373282 | BH58: 1.480659062 | BI58: 1.476061814 | BJ58: 1.090161507 | BK58: 1.308139477 | BL58: 0.8400525413 | BM58: 1.440600946 | BN58: 2.658634183 | BO58: 2.600105916 | BP58: 1.731208408 | BQ58: 1.985740883 | BR58: 2.341829194 | BS58: 2.996128901 | BT58: 2.08222671 | BU58: 2.217937715 | BV58: 0.9975311634 | BW58: 1.066445928 | BX58: 1.168046417 | BY58: 1.505022544 | BZ58: 0.2279491249 | CA58: 0.190001336 | CB58: 0.1302930172 | CC58: 0.1456270847 | CD58: 0.1597377735 | CE58: 0.1938269272 | CF58: 0.3039674658 | CG58: 0.2527109202 | CH58: 0.2216654483 | CI58: 0.2022446435 | CJ58: 0.2167764432 | CK58: 0.2880297574
A59: NO2 | B59: 2011-01-01 | C59: D | D59: Oostvoorne Noord 1 | E59: 24.35049339 | F59: 20.58882004 | G59: 21.42933711 | H59: 17.93871296 | I59: 18.40988414 | J59: 18.17267534 | O59: 2 | P59: Goeree 2 | R59: 24.37600825 | S59: 20.16009334 | T59: 20.88596066 | U59: 18.15259527 | X59: 1.702511579 | Y59: 1.803915052 | Z59: 2.013356339 | AA59: 3.657071332 | AD59: 1.104791751 | AE59: 1.007425832 | AF59: 0.6748198095 | AG59: 0.8997338943 | AJ59: 0.359528016 | AK59: 0.2153234649 | AL59: 0.007832303724 | AM59: 0.3939098256 | AP59: 2.927747384 | AQ59: 2.868540791 | AR59: 3.359086546 | AS59: 2.51899691 | AV59: 1.027366105 | AW59: 1.124486733 | AX59: 1.157311737 | AY59: 0.8968302625 | BB59: 0.723429901 | BC59: 0.4642927424 | BD59: 0.4879048297 | BE59: 0.7171468975 | BH59: 1.033367419 | BI59: 1.10959137 | BJ59: 1.280690474 | BK59: 1.061557522 | BN59: 2.190962844 | BO59: 2.044669944 | BP59: 1.89878008 | BQ59: 1.736281582 | BT59: 1.533663528 | BU59: 1.762245428 | BV59: 1.023000133 | BW59: 0.9140452392 | BZ59: 0.1560227562 | CA59: 0.1478855989 | CB59: 0.1418281018 | CC59: 0.1227818007 | CF59: 0.2902272886 | CG59: 0.2080672615 | CH59: 0.246378835 | CI59: 0.202466977
A60: NH3 | B60: 2011-02-01 | C60: E | D60: Oostvoorne Noord 2 | E60: 21.06149236 | F60: 17.57594694 | G60: 18.6743936 | H60: 17.04222224 | J60: 0 | O60: 3 | P60: Oostvoorne Panduin | R60: 23.15977756 | S60: 18.32921464 | T60: 20.71186754 | U60: 17.66117523 | X60: 1.786586818 | Y60: 1.442101505 | Z60: 2.286584149 | AA60: 2.895751721 | AD60: 1.101665598 | AE60: 0.9441274161 | AF60: 1.529281378 | AG60: 1.260963808 | AJ60: 0.5463451918 | AK60: 0.3362876944 | AL60: 0.189879383 | AM60: 0.569619272 | AP60: 2.371207486 | AQ60: 3.06782141 | AR60: 2.983335555 | AS60: 2.405972729 | AV60: 0.9397085202 | AW60: 1.075056307 | AX60: 1.209783588 | AY60: 0.857283556 | BB60: 0.4915242032 | BC60: 0.3893112957 | BD60: 0.5659618442 | BE60: 0.8243036057 | BH60: 0.871882348 | BI60: 1.151955538 | BJ60: 1.06648534 | BK60: 1.039770995 | BN60: 1.666907992 | BO60: 1.719398261 | BP60: 1.442747827 | BQ60: 1.538527392 | BT60: 0.8737331643 | BU60: 0.5074661138 | BV60: 0.8587311124 | BW60: 0.7937302036 | BZ60: 0.07536995917 | CA60: 0.04084400347 | CB60: 0.1165413168 | CC60: 0.1105177449 | CF60: 0.2080143643 | CG60: 0.09048737255 | CH60: 0.2598999896 | CI60: 0.2477974854
A61: CL | B61: 2011-03-01 | C61: F | D61: Maasvlakte 2 Zuid | E61: 0 | F61: 2.683249288 | G61: 26.97169035 | H61: 25.85618017 | I61: 24.97950335 | J61: 28.07773518 | O61: 4 | P61: Oostvoorne Zuid 1 | R61: 24.39040765 | S61: 21.42660885 | T61: 22.24623193 | U61: 19.49426513 | X61: 1.55582442 | Y61: 1.560157717 | Z61: 1.819562305 | AA61: 2.717210021 | AD61: 1.402690556 | AE61: 0.9670885249 | AF61: 0.8830569695 | AG61: 0.9432208211 | AJ61: 0.5973461807 | AK61: 0.3564978925 | AL61: 0.06609575926 | AM61: 0.3102768605 | AP61: 3.000242171 | AQ61: 3.172133298 | AR61: 3.124430053 | AS61: 2.909357846 | AV61: 1.065647945 | AW61: 1.175012643 | AX61: 1.141727247 | AY61: 1.015364284 | BB61: 0.4675516477 | BC61: 0.3609505948 | BD61: 0.3631818268 | BE61: 0.61115167 | BH61: 1.190228547 | BI61: 1.132630832 | BJ61: 1.140302127 | BK61: 1.217601373 | BN61: 2.035772612 | BO61: 1.910921236 | BP61: 1.523615511 | BQ61: 1.718718575 | BT61: 1.736129485 | BU61: 1.617294839 | BV61: 0.8988628931 | BW61: 0.9482048472 | BZ61: 0.1856676242 | CA61: 0.1771191005 | CB61: 0.1341411836 | CC61: 0.1337802776 | CF61: 1.357345085 | CG61: 1.138630129 | CH61: 0.8883807225 | CI61: 0.5968840317
A62: Na | B62: 2011-04-01 | C62: G | D62: Maasvlakte 2 Noord | E62: 0 | F62: 4.713121181 | G62: 31.81218881 | H62: 36.06658084 | I62: 32.20664954 | J62: 31.75874231 | O62: 5 | P62: Oostvoorne Zuid 2 | R62: 24.54380819 | S62: 19.31646452 | T62: 21.23121471 | U62: 18.37671308 | V62: 16.80751087 | W62: 17.61680261 | X62: 2.032620087 | Y62: 1.321948812 | Z62: 1.9443165 | AA62: 2.248513395 | AB62: 2.905410832 | AC62: 3.742514782 | AD62: 1.692226963 | AE62: 1.154714628 | AF62: 1.176898787 | AG62: 0.9474729639 | AH62: 0.5642684457 | AI62: 0.5427282468 | AJ62: 0.7096067499 | AK62: 0.2150951403 | AL62: 0.1181486063 | AN62: 0.03967154831 | AO62: 0.1219288951 | AP62: 3.316089503 | AQ62: 3.344325196 | AR62: 2.959059761 | AS62: 2.751887785 | AT62: 2.450457205 | AU62: 2.6373695 | AV62: 1.490216595 | AW62: 1.151579876 | AX62: 1.238367783 | AY62: 1.022919688 | AZ62: 0.8675269284 | BA62: 1.012273364 | BB62: 0.6031770677 | BC62: 0.4290859002 | BD62: 0.585071489 | BE62: 0.5752185558 | BF62: 0.3920561421 | BG62: 0.2815923852 | BH62: 1.369812902 | BI62: 1.19635321 | BJ62: 1.115018096 | BK62: 1.190294208 | BL62: 0.8581016614 | BM62: 0.8663364443 | BN62: 2.560884881 | BO62: 2.108814262 | BP62: 1.565053074 | BQ62: 1.614911767 | BR62: 2.633118602 | BS62: 1.596216864 | BT62: 2.120254228 | BU62: 1.880264114 | BV62: 0.9384092422 | BW62: 0.9274128608 | BX62: 1.192204815 | BY62: 0.8892034328 | BZ62: 0.2054249788 | CA62: 0.1762074237 | CB62: 0.1311389485 | CC62: 0.1212405256 | CD62: 0.1560443042 | CE62: 0.1157110149 | CF62: 0.933904412 | CG62: 0.5890664441 | CH62: 0.4753397183 | CI62: 0.2696700963 | CJ62: 0.3997273008 | CK62: 0.2460071635
B63: 2011-05-01 | C63: H | D63: Hoek 1 | E63: 33.36608951 | F63: 35.37227943 | G63: 32.68320009 | H63: 33.54894806 | I63: 32.12627638 | J63: 27.75684076 | O63: 6 | P63: Oostvoorne Zuid 3 | R63: 23.646238 | S63: 19.00077162 | T63: 22.17230249 | U63: 17.30803415 | X63: 1.480544161 | Y63: 2.003174159 | Z63: 2.323288325 | AA63: 3.121572707 | AD63: 1.693633584 | AE63: 1.40699854 | AF63: 1.244922537 | AG63: 0.8833774094 | AJ63: 0.728332437 | AK63: 0.5744776137 | AL63: 0.1483022369 | AM63: 0.2337971306 | AP63: 3.490382276 | AQ63: 3.460328534 | AR63: 3.074203892 | AS63: 2.650893264 | AV63: 1.194538161 | AW63: 1.119039332 | AX63: 1.179883726 | AY63: 0.8219382615 | BB63: 0.5655260389 | BC63: 0.4177429856 | BD63: 0.4713569019 | BE63: 0.5384265588 | BH63: 1.392650349 | BI63: 1.254656925 | BJ63: 1.147377692 | BK63: 1.301406247 | BN63: 2.546210295 | BO63: 2.223194478 | BP63: 1.61736216 | BQ63: 1.807882401 | BT63: 2.098309736 | BU63: 1.827444039 | BV63: 0.7407672991 | BW63: 0.9226413579 | BZ63: 0.1978858514 | CA63: 0.1554127066 | CB63: 0.11775419 | CC63: 0.1302404311 | CF63: 0.6981403791 | CG63: 0.4784772285 | CH63: 0.3656940037 | CI63: 0.2746432442
B64: 2011-06-01 | C64: I | D64: Hoek 2 | E64: 38.41071876 | F64: 30.41617741 | G64: 31.83027219 | H64: 29.38953632 | I64: 29.91909047 | J64: 28.64170748 | O64: 7 | P64: Oostvoorne Noord 1 | R64: 24.35049339 | S64: 20.58882004 | T64: 21.42933711 | U64: 17.93871296 | V64: 18.40988414 | W64: 18.17267534 | X64: 1.500331364 | Y64: 1.287518844 | Z64: 1.494981596 | AA64: 1.847482495 | AB64: 1.748119553 | AC64: 1.252706749 | AD64: 1.915138302 | AE64: 1.664056657 | AF64: 1.350349574 | AG64: 0.9924028794 | AH64: 1.194476165 | AI64: 1.394353554 | AJ64: 0.8983863719 | AK64: 0.7985048147 | AL64: 0.129652901 | AN64: 0.3647018879 | AO64: 0.3543483264 | AP64: 3.316579709 | AQ64: 3.667336308 | AR64: 3.125503606 | AS64: 2.616352415 | AT64: 2.754883716 | AU64: 3.07776059 | AV64: 1.224335791 | AW64: 1.269150108 | AX64: 1.228683684 | AY64: 0.9257201241 | AZ64: 0.7896020165 | BA64: 0.9757293618 | BB64: 0.6634104965 | BC64: 0.7157459033 | BD64: 0.610894719 | BE64: 0.6755307378 | BF64: 0.5030084642 | BG64: 0.2599497173 | BH64: 1.330326541 | BI64: 1.344376703 | BJ64: 1.167477434 | BK64: 1.130883025 | BL64: 0.9486884131 | BM64: 0.9577578327 | BN64: 2.171402149 | BO64: 2.129448734 | BP64: 1.6483123 | BQ64: 1.540118213 | BR64: 2.404704058 | BS64: 1.881026699 | BT64: 1.834572875 | BU64: 2.017982594 | BV64: 0.9895200132 | BW64: 0.8865904864 | BX64: 1.132192964 | BY64: 0.9794528546 | BZ64: 0.161295801 | CA64: 0.1646402515 | CB64: 0.1271223751 | CC64: 0.1121927122 | CD64: 0.1380688106 | CE64: 0.1194808404 | CF64: 0.2460049087 | CG64: 0.219601388 | CH64: 0.2216218686 | CI64: 0.2050895127 | CJ64: 0.1094364835 | CK64: 0.147902119
B65: 2011-07-01 | C65: J | D65: s-Gravezande | E65: 41.31393646 | F65: 30.06340814 | G65: 29.74809085 | H65: 29.08359036 | I65: 28.08152109 | J65: 32.12277667 | O65: 8 | P65: Oostvoorne Noord 2 | R65: 21.06149236 | S65: 17.57594694 | T65: 18.6743936 | U65: 17.04222224 | X65: 1.782176862 | Y65: 1.822454562 | Z65: 1.595021627 | AA65: 1.790058292 | AD65: 1.752676664 | AE65: 1.34861117 | AF65: 1.425107262 | AG65: 0.8280902232 | AJ65: 0.7207746431 | AK65: 0.87995888 | AL65: 0.2629948067 | AM65: 0.2530978418 | AP65: 2.964844162 | AQ65: 3.015431152 | AR65: 2.748115659 | AS65: 1.852833779 | AV65: 1.09366529 | AW65: 1.328295531 | AX65: 1.180091484 | AY65: 0.6792632883 | BB65: 0.5727581719 | BC65: 0.2795548514 | BD65: 5.556153815 | BE65: 0.4546709806 | BH65: 1.380661695 | BI65: 1.187639778 | BJ65: 1.096129324 | BK65: 0.9625409201 | BN65: 2.496896891 | BO65: 1.834909744 | BP65: 1.416929104 | BQ65: 1.327552768 | BT65: 2.289584474 | BU65: 1.550055601 | BV65: 0.8362291916 | BW65: 0.7621330599 | BZ65: 0.1774281778 | CA65: 0.1286358451 | CB65: 0.1136030562 | CC65: 0.0976396243 | CF65: 0.3381597959 | CG65: 0.2317691353 | CH65: 0.1969082271 | CI65: 0.1276658884
B66: 2011-08-01 | C66: K | D66: Solleveld 1 | E66: 34.85361706 | F66: 29.39214586 | G66: 26.6568634 | H66: 27.01704933 | I66: 25.30272555 | J66: 25.57476684 | O66: 20 | P66: Maasvlakte 2 Zuid | T66: 26.97169035 | U66: 25.85618017 | V66: 24.97950335 | W66: 28.07773518 | Z66: 2.230050831 | AA66: 2.267506933 | AB66: 3.157004165 | AC66: 3.472872383 | AF66: 0.8354404397 | AG66: 0.5397236263 | AH66: 0.7349410155 | AI66: 0.5904001263 | AL66: 0.01628209905 | AM66: 0.02164399946 | AN66: 0.09652757309 | AO66: 0.1343962666 | AR66: 3.587981955 | AS66: 2.925362551 | AT66: 2.837691423 | AU66: 2.89989839 | AX66: 1.235857398 | AY66: 0.9916237344 | AZ66: 0.8000264951 | BA66: 0.9330247846 | BD66: 1.685883261 | BE66: 1.478921453 | BF66: 0.4667801722 | BG66: 0.3791571863 | BJ66: 1.55675505 | BK66: 1.502816914 | BL66: 1.131656783 | BM66: 1.16869138 | BP66: 3.008150509 | BQ66: 3.691920506 | BR66: 4.343915185 | BS66: 3.81696974 | BV66: 1.718279663 | BW66: 1.91371639 | BX66: 2.583670104 | BY66: 1.947749626 | CB66: 0.221208666 | CC66: 0.2501761749 | CD66: 0.3474100313 | CE66: 0.2428840609 | CH66: 0.4828184833 | CI66: 0.359634022 | CJ66: 0.8628402409 | CK66: 0.3911248427
B67: 2011-09-01 | C67: L | D67: Solleveld 2 | E67: 30.35875688 | F67: 24.86558085 | G67: 23.84620222 | H67: 25.00309874 | J67: 0 | O67: 21 | P67: Maasvlakte 2 Noord | T67: 31.81218881 | U67: 36.06658084 | V67: 32.20664954 | W67: 31.75874231 | Z67: 1.866667055 | AA67: 1.796798095 | AB67: 2.482671419 | AC67: 2.014569401 | AF67: 0.607300456 | AG67: 0.6354351963 | AH67: 0.7307802859 | AI67: 0.7026683338 | AL67: 0.01211229123 | AM67: 0.063749491 | AN67: 0.06492115984 | AO67: 0.08541742458 | AR67: 2.864321997 | AS67: 3.190828021 | AT67: 2.635198024 | AU67: 3.490620538 | AX67: 0.958162427 | AY67: 0.9788605195 | AZ67: 0.6979118796 | BA67: 1.061676636 | BD67: 1.778482515 | BE67: 4.095900795 | BF67: 1.993908772 | BG67: 2.170961407 | BJ67: 1.126996351 | BK67: 1.420636429 | BL67: 0.829715144 | BM67: 1.267812554 | BP67: 2.034805058 | BQ67: 2.139665739 | BR67: 2.688297916 | BS67: 2.09300437 | BV67: 1.216528594 | BW67: 1.133416154 | BX67: 1.678871718 | BY67: 1.192789391 | CB67: 0.165108302 | CC67: 0.1556601455 | CD67: 0.2216974081 | CE67: 0.1526307719 | CH67: 0.4987524479 | CI67: 0.2779344032 | CJ67: 0.2575502409 | CK67: 0.2058133313
B68: 2011-10-01 | C68: M | D68: Solleveld 3 | E68: 29.66096362 | F68: 23.81260296 | G68: 22.82475679 | H68: 25.86712449 | I68: 22.86926279 | J68: 23.8125466 | O68: 9 | P68: Hoek 1 | R68: 33.36608951 | S68: 35.37227943 | T68: 32.68320009 | U68: 33.54894806 | V68: 32.12627638 | W68: 27.75684076 | X68: 2.491522934 | Y68: 2.173332847 | Z68: 2.617301816 | AA68: 3.346511062 | AB68: 3.099667787 | AC68: 2.855184417 | AD68: 2.786412273 | AE68: 2.478670224 | AF68: 1.971470804 | AG68: 2.172392819 | AH68: 1.516408198 | AI68: 1.198328697 | AJ68: 1.580766283 | AK68: 2.322099757 | AL68: 1.506894218 | AM68: 0.9952719099 | AN68: 0.2726219386 | AO68: 1.056357794 | AP68: 4.218122681 | AQ68: 4.091266467 | AR68: 3.010274028 | AS68: 3.320520033 | AT68: 2.857649768 | AU68: 3.491552737 | AV68: 1.372061565 | AW68: 1.257500052 | AX68: 1.064980985 | AY68: 1.206846174 | AZ68: 0.7859175231 | BA68: 1.100355986 | BB68: 1.851063433 | BC68: 1.34609688 | BD68: 1.069678504 | BE68: 1.389233509 | BF68: 0.6622554936 | BG68: 0.5838851671 | BH68: 2.181032001 | BI68: 2.169026053 | BJ68: 1.582109371 | BK68: 1.812447667 | BL68: 1.347526747 | BM68: 1.541939502 | BN68: 6.526232361 | BO68: 6.615452896 | BP68: 4.760622178 | BQ68: 4.557464725 | BR68: 5.48012028 | BS68: 4.72944634 | BT68: 4.77450532 | BU68: 4.620839129 | BV68: 2.388687007 | BW68: 2.355654052 | BX68: 2.855011022 | BY68: 2.470856408 | BZ68: 0.4832767308 | CA68: 0.5060974089 | CB68: 0.3319551188 | CC68: 0.3303092043 | CD68: 0.3856408585 | CE68: 0.3232096311 | CF68: 1.293774606 | CG68: 1.817674615 | CH68: 0.9745505747 | CI68: 1.119507612 | CJ68: 1.219379731 | CK68: 1.052176788
B69: 2011-11-01 | C69: N | D69: Solleveld 4 | E69: 30.27837748 | F69: 25.38961012 | G69: 21.5827769 | H69: 25.40106402 | I69: 22.53070345 | O69: 10 | P69: Hoek 2 | R69: 38.41071876 | S69: 30.41617741 | T69: 31.83027219 | U69: 29.38953632 | V69: 29.91909047 | W69: 28.64170748 | X69: 2.309391889 | Y69: 3.127041977 | Z69: 2.939551464 | AA69: 2.510624867 | AB69: 2.257647321 | AC69: 2.900742393 | AD69: 2.752968449 | AE69: 2.545256474 | AF69: 1.670814561 | AG69: 1.558809031 | AH69: 1.156736423 | AI69: 1.00597342 | AJ69: 1.062996647 | AK69: 1.748711283 | AL69: 0.9282784121 | AM69: 0.4540359126 | AN69: 0.1528640084 | AO69: 0.5914238781 | AP69: 4.527901149 | AQ69: 2.808650863 | AR69: 2.717668282 | AS69: 3.135591979 | AT69: 2.694614256 | AU69: 3.076671895 | AV69: 1.402250492 | AW69: 1.084132078 | AX69: 0.9944977337 | AY69: 1.023983024 | AZ69: 0.7562447855 | BA69: 1.075318652 | BB69: 2.441978432 | BC69: 1.298153427 | BD69: 0.8930489718 | BE69: 2.044463901 | BF69: 0.7194594609 | BG69: 0.5860165776 | BH69: 1.834828133 | BI69: 1.432574422 | BJ69: 1.172771412 | BK69: 1.454746863 | BL69: 0.8946250615 | BM69: 1.091960339 | BN69: 3.762313647 | BO69: 3.461481652 | BP69: 2.361358567 | BQ69: 2.152142237 | BR69: 2.565271812 | BS69: 2.031239259 | BT69: 2.37674181 | BU69: 1.60544679 | BV69: 0.616005678 | BW69: 1.12046652 | BX69: 1.268190145 | BY69: 1.181455205 | BZ69: 0.2154353414 | CA69: 0.1734679787 | CB69: 0.11170491 | CC69: 0.1526347284 | CD69: 0.1674930646 | CE69: 0.1434480535 | CF69: 0.8675123982 | CG69: 0.4709304709 | CH69: 0.286333075 | CI69: 0.3223483992 | CJ69: 0.3151600399 | CK69: 0.2339386325
B70: 2011-12-01 | C70: O | D70: nr | E70: naam | F70: cell | O70: 11 | P70: s-Gravezande | R70: 41.31393646 | S70: 30.06340814 | T70: 29.74809085 | U70: 29.08359036 | V70: 28.08152109 | W70: 32.12277667 | X70: 2.915540956 | Y70: 2.948747052 | Z70: 7.070931871 | AA70: 5.50654029 | AB70: 5.529463203 | AC70: 3.951818309 | AD70: 2.522311096 | AE70: 1.413348085 | AF70: 1.973540524 | AG70: 1.844963855 | AH70: 1.321503417 | AI70: 1.697947911 | AJ70: 1.28384749 | AK70: 0.1681370911 | AL70: 0.3569578454 | AM70: 0.7016152522 | AN70: 0.1327963193 | AO70: 0.6390155767 | AP70: 4.148459213 | AQ70: 3.552063679 | AR70: 3.311951921 | AS70: 3.375563068 | AT70: 2.617839321 | AU70: 4.006070371 | AV70: 1.295512969 | AW70: 1.061428509 | AX70: 1.91803687 | AY70: 1.054633872 | AZ70: 0.8611630025 | BA70: 1.254934469 | BB70: 1.651486286 | BC70: 0.9140706859 | BD70: 1.027740024 | BE70: 1.683222402 | BF70: 1.09353935 | BG70: 1.109273034 | BH70: 1.77571183 | BI70: 1.365036671 | BJ70: 1.340293198 | BK70: 1.492390341 | BL70: 1.071432883 | BM70: 1.562299761 | BN70: 4.654830494 | BO70: 3.113251829 | BP70: 3.133007694 | BQ70: 3.194731932 | BR70: 3.847247186 | BS70: 4.091414214 | BT70: 3.519207933 | BU70: 2.550152213 | BV70: 1.647326504 | BW70: 1.600376815 | BX70: 2.087732223 | BY70: 2.062500773 | BZ70: 0.3365807215 | CA70: 0.2469345585 | CB70: 0.2179113325 | CC70: 0.2124817287 | CD70: 0.2678214229 | CE70: 0.2610676165 | CF70: 1.118579766 | CG70: 0.8207681162 | CH70: 0.6157191622 | CI70: 0.4233006966 | CJ70: 0.5017791953 | CK70: 0.440556111
B71: 2012-01-01 | C71: P | D71: 1 | E71: Goeree 1 | F71: 10 | O71: 12 | P71: Solleveld 1 | R71: 34.85361706 | S71: 29.39214586 | T71: 26.6568634 | U71: 27.01704933 | V71: 25.30272555 | W71: 25.57476684 | X71: 2.689797054 | Y71: 1.77625254 | Z71: 1.736168574 | AA71: 1.914405946 | AB71: 1.571129243 | AC71: 1.657429726 | AD71: 2.260963658 | AE71: 1.783630667 | AF71: 1.0793381 | AG71: 1.321521909 | AH71: 1.165465928 | AI71: 1.034344936 | AJ71: 1.205238071 | AK71: 0.5459887558 | AL71: 0.06263482884 | AM71: 0.5035541384 | AN71: 0.08709639406 | AO71: 0.1780843485 | AP71: 3.940618593 | AQ71: 3.844088786 | AR71: 3.066521554 | AS71: 3.099758423 | AT71: 3.317037204 | AU71: 3.627285045 | AV71: 1.620925726 | AW71: 1.16637498 | AX71: 1.037921663 | AY71: 0.9758292368 | AZ71: 0.8339674232 | BA71: 1.061699328 | BB71: 1.025465981 | BC71: 0.5288257218 | BD71: 0.6747105711 | BE71: 1.068384369 | BF71: 0.8777385283 | BG71: 0.6068848637 | BH71: 1.73261077 | BI71: 1.588688307 | BJ71: 1.188024871 | BK71: 1.376232105 | BL71: 1.232794244 | BM71: 1.373503645 | BN71: 4.358182454 | BO71: 3.310993745 | BP71: 3.024782554 | BQ71: 2.934974618 | BR71: 4.171761404 | BS71: 3.344025903 | BT71: 3.21267745 | BU71: 2.624751561 | BV71: 1.591844066 | BW71: 1.582019643 | BX71: 2.046437657 | BY71: 1.774824137 | BZ71: 0.3136059289 | CA71: 0.2536589645 | CB71: 0.2118373806 | CC71: 0.2213510089 | CD71: 0.2764784893 | CE71: 0.2298462593 | CF71: 0.6916303107 | CG71: 0.7873618236 | CH71: 0.4754755605 | CI71: 0.5464983487 | CJ71: 0.4864015632 | CK71: 0.4134341751
B72: 2012-02-01 | C72: Q | D72: 2 | E72: Goeree 2 | F72: 11 | O72: 13 | P72: Solleveld 2 | R72: 30.35875688 | S72: 24.86558085 | T72: 23.84620222 | U72: 25.00309874 | X72: 1.672735864 | Y72: 1.672409027 | Z72: 1.686067595 | AA72: 2.102242735 | AD72: 2.062984281 | AE72: 1.654705152 | AF72: 1.561374687 | AG72: 1.670426815 | AJ72: 1.369197102 | AK72: 0.8457795709 | AL72: 0.3143786702 | AM72: 0.6440535629 | AP72: 3.247915882 | AQ72: 3.366335883 | AR72: 2.807398951 | AS72: 2.914576251 | AV72: 1.108976686 | AW72: 1.081601525 | AX72: 1.08121841 | AY72: 1.045775526 | BB72: 1.248074598 | BC72: 0.971900876 | BD72: 0.9397836806 | BE72: 1.193373656 | BH72: 1.338820988 | BI72: 1.357816359 | BJ72: 1.137789451 | BK72: 1.371860146 | BN72: 2.770465846 | BO72: 2.5902253 | BP72: 2.305432873 | BQ72: 2.357174543 | BT72: 2.088980799 | BU72: 2.164874682 | BV72: 1.293766233 | BW72: 1.226256475 | BZ72: 0.2622521284 | CA72: 0.2271776709 | CB72: 0.1768578521 | CC72: 0.1725160159 | CF72: 1.568963186 | CG72: 0.8602405261 | CH72: 0.5991893662 | CI72: 0.6271767084
B73: 2012-03-01 | C73: R | D73: 3 | E73: Oostvoorne Panduin | F73: 12 | O73: 14 | P73: Solleveld 3 | R73: 29.66096362 | S73: 23.81260296 | T73: 22.82475679 | U73: 25.86712449 | V73: 22.86926279 | W73: 23.8125466 | X73: 1.625863651 | Y73: 1.373968755 | Z73: 1.568415732 | AA73: 2.013763244 | AB73: 2.016590588 | AC73: 2.01432086 | AD73: 1.737011272 | AE73: 1.120849031 | AF73: 1.057952104 | AG73: 1.038539218 | AH73: 0.8111228129 | AI73: 0.762917402 | AJ73: 1.036027589 | AK73: 0.2360051236 | AL73: 0.06735215911 | AM73: 0.213058842 | AN73: 0.06854539998 | AO73: 0.1590732636 | AP73: 3.655132895 | AQ73: 3.603193156 | AR73: 3.414209708 | AS73: 2.774983533 | AT73: 2.813720439 | AU73: 3.203401311 | AV73: 1.29949952 | AW73: 1.066525679 | AX73: 1.03968669 | AY73: 0.9718081449 | AZ73: 0.9911606858 | BA73: 1.039840544 | BB73: 1.207882456 | BC73: 1.158322678 | BD73: 0.865161657 | BE73: 1.198794304 | BF73: 0.7342525088 | BG73: 0.623442777 | BH73: 1.452431233 | BI73: 1.307059535 | BJ73: 1.425455914 | BK73: 1.150723753 | BL73: 0.5021970886 | BM73: 1.102438147 | BN73: 2.770943265 | BO73: 2.98655901 | BP73: 2.272692191 | BQ73: 1.97043056 | BR73: 2.606908067 | BS73: 2.439345666 | BT73: 2.390786807 | BU73: 2.509210605 | BV73: 1.148914372 | BW73: 1.07828309 | BX73: 1.609965546 | BY73: 1.236218663 | BZ73: 0.2480376475 | CA73: 0.2282740882 | CB73: 0.1730497907 | CC73: 0.143132745 | CD73: 0.1973667306 | CE73: 0.1619833645 | CF73: 1.171392862 | CG73: 0.6272683813 | CH73: 0.414548981 | CI73: 0.3532641291 | CJ73: 0.3677010742 | CK73: 0.3116290625
B74: 2012-04-01 | C74: S | D74: 4 | E74: Oostvoorne Zuid 1 | F74: 13 | O74: 15 | P74: Solleveld 4 | R74: 30.27837748 | S74: 25.38961012 | T74: 21.5827769 | U74: 25.40106402 | X74: 2.098531853 | Y74: 4.851000828 | Z74: 5.59670377 | AA74: 5.288801105 | AD74: 1.988980875 | AE74: 1.680936862 | AF74: 1.146356387 | AG74: 1.092339108 | AJ74: 0.8701483102 | AK74: 0.4219633903 | AL74: 0.09415837127 | AM74: 0.3571824782 | AP74: 3.95764991 | AQ74: 3.835736105 | AR74: 3.500445391 | AS74: 2.948201565 | AV74: 1.392156324 | AW74: 1.531855217 | AX74: 2.909356568 | AY74: 1.090577711 | BB74: 1.142152404 | BC74: 0.7415884876 | BD74: 0.7284864944 | BE74: 1.212940276 | BH74: 1.592470176 | BI74: 1.573645083 | BJ74: 1.357096836 | BK74: 1.325837483 | BN74: 2.80630426 | BO74: 2.893724877 | BP74: 2.282293006 | BQ74: 2.125003166 | BT74: 1.981325514 | BU74: 1.949958965 | BV74: 1.297690383 | BW74: 1.175781843 | BZ74: 0.2085805535 | CA74: 0.1952104218 | CB74: 0.1731444417 | CC74: 0.156850714 | CF74: 0.9144212196 | CG74: 0.477468992 | CH74: 0.3312953273 | CI74: 0.3294364739
B75: 2012-05-01 | C75: T | D75: 5 | E75: Oostvoorne Zuid 2 | F75: 14 | O75: 16 | P75: Westduinpark
B76: 2012-06-01 | C76: U | D76: 6 | E76: Oostvoorne Zuid 3 | F76: 15 | O76: 17 | P76: Meijendell
B77: 2012-07-01 | C77: V | D77: 7 | E77: Oostvoorne Noord 1 | F77: 16 | R77: NO2 | X77: NH3 | AD77: =AD57 -> hno3 | AP77: =AP57 -> no3 | AV77: nh4
B78: 2012-08-01 | C78: W | D78: 8 | E78: Oostvoorne Noord 2 | F78: 17 | R78: 2011 | S78: 2012 | T78: 2013 | U78: 2014 | V78: 2015 | W78: 2016 | X78: 2011 | Y78: 2012 | Z78: 2013 | AA78: 2014 | AB78: 2015 | AC78: 2016 | AD78: 2011 | AE78: 2012 | AF78: 2013 | AG78: 2014 | AH78: 2015 | AI78: 2016 | AJ78: 2011 | AK78: 2012 | AL78: 2013 | AM78: 2014 | AN78: 2015 | AO78: 2016 | AP78: 2011 | AQ78: 2012 | AR78: 2013 | AS78: 2014 | AT78: 2015 | AU78: 2016 | AV78: 2011 | AW78: 2012 | AX78: 2013 | AY78: 2014 | AZ78: 2015 | BA78: 2016 | BB78: 2011 | BC78: 2012 | BD78: 2013 | BE78: 2014 | BF78: 2015 | BG78: 2016 | BH78: 2011 | BI78: 2012 | BJ78: 2013 | BK78: 2014 | BL78: 2015 | BM78: 2016
B79: 2012-09-01 | C79: X | D79: 9 | E79: Hoek 1 | F79: 18 | Q79: Goeree 1 | R79: =+R58 -> 23.84302685 | S79: 19.19544371 | T79: 19.99491087 | U79: 17.86701036 | V79: 16.73660996 | W79: 16.10346429 | X79: 2.118172089 | Y79: 1.729797291 | Z79: 2.012154515 | AA79: 3.155053744 | AB79: 2.324466921 | AC79: 5.217103829 | AD79: 1.40526357 | AE79: 0.9970939587 | AF79: 0.7588003679 | AG79: 0.8651443482 | AH79: 0.5264701697 | AI79: 1.336124748 | AJ79: 0.380665499 | AK79: 0.2827761614 | AL79: 0.04278746774 | AM79: 0.2315512614 | AN79: 0.04899322994 | AO79: 0.3811363425 | AP79: 3.659232412 | AQ79: 3.648985019 | AR79: 2.926302571 | AS79: 2.967765819 | AT79: 2.43880359 | AU79: 4.556616974 | AV79: 1.327390249 | AW79: 1.260855146 | AX79: =+AX58 -> 1.108937854 | AY79: 1.035488158 | AZ79: 0.726255789 | BA79: 1.562535795 | BB79: 0.8402124942 | BC79: 0.7527871557 | BD79: 0.5410759749 | BE79: 0.7831129064 | BF79: 0.4970353234 | BG79: 0.7725373282 | BH79: 1.480659062 | BI79: 1.476061814 | BJ79: 1.090161507 | BK79: 1.308139477 | BL79: 0.8400525413 | BM79: 1.440600946 | BN79: 2.658634183 | BO79: 2.600105916 | BP79: 1.731208408 | BQ79: 1.985740883 | BR79: 2.341829194 | BS79: 2.996128901 | BT79: 2.08222671 | BU79: 2.217937715 | BV79: 0.9975311634 | BW79: 1.066445928 | BX79: 1.168046417 | BY79: 1.505022544 | BZ79: 0.2279491249 | CA79: 0.190001336 | CB79: 0.1302930172 | CC79: 0.1456270847 | CD79: =+CD58 -> 0.1597377735 | CE79: 0.1938269272 | CF79: 0.3039674658 | CG79: 0.2527109202 | CH79: 0.2216654483 | CI79: 0.2022446435 | CJ79: 0.2167764432 | CK79: 0.2880297574
B80: 2012-10-01 | C80: Y | D80: 10 | E80: Hoek 2 | F80: 19 | Q80: Schapenwei | R80: =+R62 -> 24.54380819 | S80: 19.31646452 | T80: 21.23121471 | U80: 18.37671308 | V80: 16.80751087 | W80: 17.61680261 | X80: 2.032620087 | Y80: 1.321948812 | Z80: 1.9443165 | AA80: 2.248513395 | AB80: 2.905410832 | AC80: 3.742514782 | AD80: 1.692226963 | AE80: 1.154714628 | AF80: 1.176898787 | AG80: 0.9474729639 | AH80: 0.5642684457 | AI80: 0.5427282468 | AJ80: 0.7096067499 | AK80: 0.2150951403 | AL80: 0.1181486063 | AN80: 0.03967154831 | AO80: 0.1219288951 | AP80: 3.316089503 | AQ80: 3.344325196 | AR80: 2.959059761 | AS80: 2.751887785 | AT80: 2.450457205 | AU80: 2.6373695 | AV80: 1.490216595 | AW80: 1.151579876 | AX80: =+AX62 -> 1.238367783 | AY80: 1.022919688 | AZ80: 0.8675269284 | BA80: 1.012273364 | BB80: 0.6031770677 | BC80: 0.4290859002 | BD80: 0.585071489 | BE80: 0.5752185558 | BF80: 0.3920561421 | BG80: 0.2815923852 | BH80: 1.369812902 | BI80: 1.19635321 | BJ80: 1.115018096 | BK80: 1.190294208 | BL80: 0.8581016614 | BM80: 0.8663364443 | BN80: 2.560884881 | BO80: 2.108814262 | BP80: 1.565053074 | BQ80: 1.614911767 | BR80: 2.633118602 | BS80: 1.596216864 | BT80: 2.120254228 | BU80: 1.880264114 | BV80: 0.9384092422 | BW80: 0.9274128608 | BX80: 1.192204815 | BY80: 0.8892034328 | BZ80: 0.2054249788 | CA80: 0.1762074237 | CB80: 0.1311389485 | CC80: 0.1212405256 | CD80: =+CD62 -> 0.1560443042 | CE80: 0.1157110149 | CF80: 0.933904412 | CG80: 0.5890664441 | CH80: 0.4753397183 | CI80: 0.2696700963 | CJ80: 0.3997273008 | CK80: 0.2460071635
B81: 2012-11-01 | C81: Z | D81: 11 | E81: s-Gravezande | F81: 20 | Q81: Oostvoorne Noord 1 | R81: =+R64 -> 24.35049339 | S81: 20.58882004 | T81: 21.42933711 | U81: 17.93871296 | V81: 18.40988414 | W81: 18.17267534 | X81: 1.500331364 | Y81: 1.287518844 | Z81: 1.494981596 | AA81: 1.847482495 | AB81: 1.748119553 | AC81: 1.252706749 | AD81: 1.915138302 | AE81: 1.664056657 | AF81: 1.350349574 | AG81: 0.9924028794 | AH81: 1.194476165 | AI81: 1.394353554 | AJ81: 0.8983863719 | AK81: 0.7985048147 | AL81: 0.129652901 | AN81: 0.3647018879 | AO81: 0.3543483264 | AP81: 3.316579709 | AQ81: 3.667336308 | AR81: 3.125503606 | AS81: 2.616352415 | AT81: 2.754883716 | AU81: 3.07776059 | AV81: 1.224335791 | AW81: 1.269150108 | AX81: =+AX64 -> 1.228683684 | AY81: 0.9257201241 | AZ81: 0.7896020165 | BA81: 0.9757293618 | BB81: 0.6634104965 | BC81: 0.7157459033 | BD81: 0.610894719 | BE81: 0.6755307378 | BF81: 0.5030084642 | BG81: 0.2599497173 | BH81: 1.330326541 | BI81: 1.344376703 | BJ81: 1.167477434 | BK81: 1.130883025 | BL81: 0.9486884131 | BM81: 0.9577578327 | BN81: 2.171402149 | BO81: 2.129448734 | BP81: 1.6483123 | BQ81: 1.540118213 | BR81: 2.404704058 | BS81: 1.881026699 | BT81: 1.834572875 | BU81: 2.017982594 | BV81: 0.9895200132 | BW81: 0.8865904864 | BX81: 1.132192964 | BY81: 0.9794528546 | BZ81: 0.161295801 | CA81: 0.1646402515 | CB81: 0.1271223751 | CC81: 0.1121927122 | CD81: =+CD64 -> 0.1380688106 | CE81: 0.1194808404 | CF81: 0.2460049087 | CG81: 0.219601388 | CH81: 0.2216218686 | CI81: 0.2050895127 | CJ81: 0.1094364835 | CK81: 0.147902119
B82: 2012-12-01 | C82: AA | D82: 12 | E82: Solleveld 1 | F82: 21 | Q82: Maasvlakte 2 Zuid | T82: =+T66 -> 26.97169035 | U82: 25.85618017 | V82: 24.97950335 | W82: 28.07773518 | Z82: =+Z66 -> 2.230050831 | AA82: 2.267506933 | AB82: 3.157004165 | AC82: 3.472872383 | AF82: =+AF66 -> 0.8354404397 | AG82: 0.5397236263 | AH82: 0.7349410155 | AI82: 0.5904001263 | AL82: =+AL66 -> 0.01628209905 | AM82: 0.02164399946 | AN82: 0.09652757309 | AO82: 0.1343962666 | AR82: =+AR66 -> 3.587981955 | AS82: 2.925362551 | AT82: 2.837691423 | AU82: 2.89989839 | AX82: =+AX66 -> 1.235857398 | AY82: 0.9916237344 | AZ82: 0.8000264951 | BA82: 0.9330247846 | BD82: =+BD66 -> 1.685883261 | BE82: 1.478921453 | BF82: 0.4667801722 | BG82: 0.3791571863 | BJ82: =+BJ66 -> 1.55675505 | BK82: 1.502816914 | BL82: 1.131656783 | BM82: 1.16869138 | BP82: =+BP66 -> 3.008150509 | BQ82: 3.691920506 | BR82: 4.343915185 | BS82: 3.81696974 | BV82: =+BV66 -> 1.718279663 | BW82: 1.91371639 | BX82: 2.583670104 | BY82: 1.947749626 | CB82: =+CB66 -> 0.221208666 | CC82: 0.2501761749 | CD82: 0.3474100313 | CE82: 0.2428840609 | CH82: =+CH66 -> 0.4828184833 | CI82: 0.359634022 | CJ82: 0.8628402409 | CK82: 0.3911248427
B83: 2013-01-01 | C83: AB | D83: 13 | E83: Solleveld 2 | F83: 22 | Q83: Maasvlakte 2 Noord | T83: 31.81218881 | U83: 36.06658084 | V83: 32.20664954 | W83: 31.75874231 | Z83: 1.866667055 | AA83: 1.796798095 | AB83: 2.482671419 | AC83: 2.014569401 | AF83: 0.607300456 | AG83: 0.6354351963 | AH83: 0.7307802859 | AI83: 0.7026683338 | AL83: 0.01211229123 | AM83: 0.063749491 | AN83: 0.06492115984 | AO83: 0.08541742458 | AR83: 2.864321997 | AS83: 3.190828021 | AT83: 2.635198024 | AU83: 3.490620538 | AX83: 0.958162427 | AY83: 0.9788605195 | AZ83: 0.6979118796 | BA83: 1.061676636 | BD83: 1.778482515 | BE83: 4.095900795 | BF83: 1.993908772 | BG83: 2.170961407 | BJ83: 1.126996351 | BK83: 1.420636429 | BL83: 0.829715144 | BM83: 1.267812554 | BP83: 2.034805058 | BQ83: 2.139665739 | BR83: 2.688297916 | BS83: 2.09300437 | BV83: 1.216528594 | BW83: 1.133416154 | BX83: 1.678871718 | BY83: 1.192789391 | CB83: 0.165108302 | CC83: 0.1556601455 | CD83: 0.2216974081 | CE83: 0.1526307719 | CH83: 0.4987524479 | CI83: 0.2779344032 | CJ83: 0.2575502409 | CK83: 0.2058133313
B84: 2013-02-01 | C84: AC | D84: 14 | E84: Solleveld 3 | F84: 23 | Q84: Hoek 1 | R84: =+R68 -> 33.36608951 | S84: 35.37227943 | T84: 32.68320009 | U84: 33.54894806 | V84: 32.12627638 | W84: 27.75684076 | X84: =+X68 -> 2.491522934 | Y84: 2.173332847 | Z84: 2.617301816 | AA84: 3.346511062 | AB84: 3.099667787 | AC84: 2.855184417 | AD84: =+AD68 -> 2.786412273 | AE84: 2.478670224 | AF84: 1.971470804 | AG84: 2.172392819 | AH84: 1.516408198 | AI84: 1.198328697 | AJ84: =+AJ68 -> 1.580766283 | AK84: 2.322099757 | AL84: 1.506894218 | AM84: 0.9952719099 | AN84: 0.2726219386 | AO84: 1.056357794 | AP84: =+AP68 -> 4.218122681 | AQ84: 4.091266467 | AR84: 3.010274028 | AS84: 3.320520033 | AT84: 2.857649768 | AU84: 3.491552737 | AV84: =+AV68 -> 1.372061565 | AW84: 1.257500052 | AX84: 1.064980985 | AY84: 1.206846174 | AZ84: 0.7859175231 | BA84: 1.100355986 | BB84: =+BB68 -> 1.851063433 | BC84: 1.34609688 | BD84: 1.069678504 | BE84: 1.389233509 | BF84: 0.6622554936 | BG84: 0.5838851671 | BH84: =+BH68 -> 2.181032001 | BI84: 2.169026053 | BJ84: 1.582109371 | BK84: 1.812447667 | BL84: 1.347526747 | BM84: 1.541939502 | BN84: =+BN68 -> 6.526232361 | BO84: 6.615452896 | BP84: 4.760622178 | BQ84: 4.557464725 | BR84: 5.48012028 | BS84: 4.72944634 | BT84: =+BT68 -> 4.77450532 | BU84: 4.620839129 | BV84: 2.388687007 | BW84: 2.355654052 | BX84: 2.855011022 | BY84: 2.470856408 | BZ84: =+BZ68 -> 0.4832767308 | CA84: 0.5060974089 | CB84: 0.3319551188 | CC84: 0.3303092043 | CD84: 0.3856408585 | CE84: 0.3232096311 | CF84: =+CF68 -> 1.293774606 | CG84: 1.817674615 | CH84: 0.9745505747 | CI84: 1.119507612 | CJ84: 1.219379731 | CK84: 1.052176788
B85: 2013-03-01 | C85: AD | D85: 15 | E85: Solleveld 4 | F85: 24 | Q85: Hoek 2 | R85: 38.41071876 | S85: 30.41617741 | T85: 31.83027219 | U85: 29.38953632 | V85: 29.91909047 | W85: 28.64170748 | X85: 2.309391889 | Y85: 3.127041977 | Z85: 2.939551464 | AA85: 2.510624867 | AB85: 2.257647321 | AC85: 2.900742393 | AD85: 2.752968449 | AE85: 2.545256474 | AF85: 1.670814561 | AG85: 1.558809031 | AH85: 1.156736423 | AI85: 1.00597342 | AJ85: 1.062996647 | AK85: 1.748711283 | AL85: 0.9282784121 | AM85: 0.4540359126 | AN85: 0.1528640084 | AO85: 0.5914238781 | AP85: 4.527901149 | AQ85: 2.808650863 | AR85: 2.717668282 | AS85: 3.135591979 | AT85: 2.694614256 | AU85: 3.076671895 | AV85: 1.402250492 | AW85: 1.084132078 | AX85: 0.9944977337 | AY85: 1.023983024 | AZ85: 0.7562447855 | BA85: 1.075318652 | BB85: 2.441978432 | BC85: 1.298153427 | BD85: 0.8930489718 | BE85: 2.044463901 | BF85: 0.7194594609 | BG85: 0.5860165776 | BH85: 1.834828133 | BI85: 1.432574422 | BJ85: 1.172771412 | BK85: 1.454746863 | BL85: 0.8946250615 | BM85: 1.091960339 | BN85: 3.762313647 | BO85: 3.461481652 | BP85: 2.361358567 | BQ85: 2.152142237 | BR85: 2.565271812 | BS85: 2.031239259 | BT85: 2.37674181 | BU85: 1.60544679 | BV85: 0.616005678 | BW85: 1.12046652 | BX85: 1.268190145 | BY85: 1.181455205 | BZ85: 0.2154353414 | CA85: 0.1734679787 | CB85: 0.11170491 | CC85: 0.1526347284 | CD85: 0.1674930646 | CE85: 0.1434480535 | CF85: 0.8675123982 | CG85: 0.4709304709 | CH85: 0.286333075 | CI85: 0.3223483992 | CJ85: 0.3151600399 | CK85: 0.2339386325
B86: 2013-04-01 | C86: AE | D86: 16 | E86: Westduinpark | F86: 25 | Q86: s-Gravezande | R86: 41.31393646 | S86: 30.06340814 | T86: 29.74809085 | U86: 29.08359036 | V86: 28.08152109 | W86: 32.12277667 | X86: 2.915540956 | Y86: 2.948747052 | Z86: 7.070931871 | AA86: 5.50654029 | AB86: 5.529463203 | AC86: 3.951818309 | AD86: 2.522311096 | AE86: 1.413348085 | AF86: 1.973540524 | AG86: 1.844963855 | AH86: 1.321503417 | AI86: 1.697947911 | AJ86: 1.28384749 | AK86: 0.1681370911 | AL86: 0.3569578454 | AM86: 0.7016152522 | AN86: 0.1327963193 | AO86: 0.6390155767 | AP86: 4.148459213 | AQ86: 3.552063679 | AR86: 3.311951921 | AS86: 3.375563068 | AT86: 2.617839321 | AU86: 4.006070371 | AV86: 1.295512969 | AW86: 1.061428509 | AX86: 1.91803687 | AY86: 1.054633872 | AZ86: 0.8611630025 | BA86: 1.254934469 | BB86: 1.651486286 | BC86: 0.9140706859 | BD86: 1.027740024 | BE86: 1.683222402 | BF86: 1.09353935 | BG86: 1.109273034 | BH86: 1.77571183 | BI86: 1.365036671 | BJ86: 1.340293198 | BK86: 1.492390341 | BL86: 1.071432883 | BM86: 1.562299761 | BN86: 4.654830494 | BO86: 3.113251829 | BP86: 3.133007694 | BQ86: 3.194731932 | BR86: 3.847247186 | BS86: 4.091414214 | BT86: 3.519207933 | BU86: 2.550152213 | BV86: 1.647326504 | BW86: 1.600376815 | BX86: 2.087732223 | BY86: 2.062500773 | BZ86: 0.3365807215 | CA86: 0.2469345585 | CB86: 0.2179113325 | CC86: 0.2124817287 | CD86: 0.2678214229 | CE86: 0.2610676165 | CF86: 1.118579766 | CG86: 0.8207681162 | CH86: 0.6157191622 | CI86: 0.4233006966 | CJ86: 0.5017791953 | CK86: 0.440556111
B87: 2013-05-01 | C87: AF | D87: 17 | E87: Meijendell | F87: 26 | Q87: Solleveld 1 | R87: 34.85361706 | S87: 29.39214586 | T87: 26.6568634 | U87: 27.01704933 | V87: 25.30272555 | W87: 25.57476684 | X87: 2.689797054 | Y87: 1.77625254 | Z87: 1.736168574 | AA87: 1.914405946 | AB87: 1.571129243 | AC87: 1.657429726 | AD87: 2.260963658 | AE87: 1.783630667 | AF87: 1.0793381 | AG87: 1.321521909 | AH87: 1.165465928 | AI87: 1.034344936 | AJ87: 1.205238071 | AK87: 0.5459887558 | AL87: 0.06263482884 | AM87: 0.5035541384 | AN87: 0.08709639406 | AO87: 0.1780843485 | AP87: 3.940618593 | AQ87: 3.844088786 | AR87: 3.066521554 | AS87: 3.099758423 | AT87: 3.317037204 | AU87: 3.627285045 | AV87: 1.620925726 | AW87: 1.16637498 | AX87: 1.037921663 | AY87: 0.9758292368 | AZ87: 0.8339674232 | BA87: 1.061699328 | BB87: 1.025465981 | BC87: 0.5288257218 | BD87: 0.6747105711 | BE87: 1.068384369 | BF87: 0.8777385283 | BG87: 0.6068848637 | BH87: 1.73261077 | BI87: 1.588688307 | BJ87: 1.188024871 | BK87: 1.376232105 | BL87: 1.232794244 | BM87: 1.373503645 | BN87: 4.358182454 | BO87: 3.310993745 | BP87: 3.024782554 | BQ87: 2.934974618 | BR87: 4.171761404 | BS87: 3.344025903 | BT87: 3.21267745 | BU87: 2.624751561 | BV87: 1.591844066 | BW87: 1.582019643 | BX87: 2.046437657 | BY87: 1.774824137 | BZ87: 0.3136059289 | CA87: 0.2536589645 | CB87: 0.2118373806 | CC87: 0.2213510089 | CD87: 0.2764784893 | CE87: 0.2298462593 | CF87: 0.6916303107 | CG87: 0.7873618236 | CH87: 0.4754755605 | CI87: 0.5464983487 | CJ87: 0.4864015632 | CK87: 0.4134341751
B88: 2013-06-01 | C88: AG | D88: 20 | E88: Maasvlakte 2 Zuid | F88: 27 | Q88: Solleveld 3 | R88: =+R73 -> 29.66096362 | S88: 23.81260296 | T88: 22.82475679 | U88: 25.86712449 | V88: 22.86926279 | W88: 23.8125466 | X88: 1.625863651 | Y88: 1.373968755 | Z88: 1.568415732 | AA88: 2.013763244 | AB88: 2.016590588 | AC88: 2.01432086 | AD88: 1.737011272 | AE88: 1.120849031 | AF88: 1.057952104 | AG88: 1.038539218 | AH88: 0.8111228129 | AI88: 0.762917402 | AJ88: 1.036027589 | AK88: 0.2360051236 | AL88: 0.06735215911 | AM88: 0.213058842 | AN88: 0.06854539998 | AO88: 0.1590732636 | AP88: 3.655132895 | AQ88: 3.603193156 | AR88: 3.414209708 | AS88: 2.774983533 | AT88: 2.813720439 | AU88: 3.203401311 | AV88: 1.29949952 | AW88: 1.066525679 | AX88: =+AX73 -> 1.03968669 | AY88: 0.9718081449 | AZ88: 0.9911606858 | BA88: 1.039840544 | BB88: 1.207882456 | BC88: 1.158322678 | BD88: 0.865161657 | BE88: 1.198794304 | BF88: 0.7342525088 | BG88: 0.623442777 | BH88: 1.452431233 | BI88: 1.307059535 | BJ88: 1.425455914 | BK88: 1.150723753 | BL88: 0.5021970886 | BM88: 1.102438147 | BN88: 2.770943265 | BO88: 2.98655901 | BP88: 2.272692191 | BQ88: 1.97043056 | BR88: 2.606908067 | BS88: 2.439345666 | BT88: 2.390786807 | BU88: 2.509210605 | BV88: 1.148914372 | BW88: 1.07828309 | BX88: 1.609965546 | BY88: 1.236218663 | BZ88: 0.2480376475 | CA88: 0.2282740882 | CB88: 0.1730497907 | CC88: 0.143132745 | CD88: =+CD73 -> 0.1973667306 | CE88: 0.1619833645 | CF88: 1.171392862 | CG88: 0.6272683813 | CH88: 0.414548981 | CI88: 0.3532641291 | CJ88: 0.3677010742 | CK88: 0.3116290625
B89: 2013-07-01 | C89: AH | D89: 21 | E89: Maasvlakte 2 Noord | F89: 28
B90: 2013-08-01 | C90: AI | R90: =R85/R88 -> 1.294992275 | S90: =S85/S88 -> 1.277314264 | T90: 1.394550333 | U90: 1.136173305 | V90: 1.308266504 | W90: 1.20279901 | X90: 1.420409324 | Y90: 2.275919278 | Z90: 1.874217023 | AA90: 1.246732889 | AB90: 1.119536774 | AC90: 1.440059749 | AD90: 1.584888074 | AE90: 2.270828992 | AF90: 1.579291306 | AG90: 1.500963087 | AH90: 1.426092824 | AI90: 1.318587592 | AJ90: 1.026031215 | AK90: 7.409632705 | AL90: 13.7824596 | AM90: 2.131035297 | AN90: 2.230113304 | AO90: 3.717933893 | AP90: 1.238778802 | AQ90: 0.7794893978 | AR90: 0.7959875096 | AS90: 1.129949761 | AT90: 0.9576695035 | AU90: 0.9604391071 | AV90: 1.07906965 | AW90: 1.016508181 | AX90: 0.9565359864 | AY90: 1.053688456 | AZ90: 0.7629890857 | BA90: 1.034118797 | BB90: 2.021702046 | BC90: 1.120718304 | BD90: 1.032233646 | BE90: 1.705433447 | BF90: 0.9798529147 | BG90: 0.9399685091 | BH90: 1.263280554 | BI90: 1.096028439 | BJ90: 0.822734257 | BK90: 1.264201646 | BL90: 1.781422238 | BM90: 0.9904957862 | BN90: 1.357773612 | BO90: 1.159020009 | BP90: 1.039013808 | BQ90: 1.092219275 | BR90: 0.9840284912 | BS90: 0.8326984108 | BT90: 0.9941253661 | BU90: 0.639821459 | BV90: 0.5361632624 | BW90: 1.039120923 | BX90: 0.7877125994 | BY90: 0.9557008325 | BZ90: 0.8685590417 | CA90: 0.7599109481 | CB90: 0.64550734 | CC90: 1.066385811 | CD90: 0.8486387959 | CE90: =CE85/CE88 -> 0.88557275 | CF90: 0.7405819402 | CG90: 0.7507639234 | CH90: 0.6907098755 | CI90: 0.9124855105 | CJ90: 0.8571093806 | CK90: 0.7506958134
B91: 2013-09-01 | C91: AJ | R91: =AVERAGE(R90:W90) -> 1.269015948 | X91: =AVERAGE(X90:AC90) -> 1.562812506 | AP91: =AVERAGE(AP90:AU90) -> 0.9770523468 | AV91: =AVERAGE(AV90:BA90) -> 0.9838183594 | BB91: =AVERAGE(BB90:BG90) -> 1.299984811 | BH91: =AVERAGE(BH90:BM90) -> 1.203027153 | BN91: =AVERAGE(BN90:BS90) -> 1.077458934 | BT91: =AVERAGE(BT90:BY90) -> 0.8254407404 | BZ91: =AVERAGE(BZ90:CE90) -> 0.8457624478 | CF91: =AVERAGE(CF90:CK90) -> 0.7837244072
B92: 2013-10-01 | C92: AK
B93: 2013-11-01 | C93: AL
B94: 2013-12-01 | C94: AM
B95: 2014-01-01 | C95: AN
B96: 2014-02-01 | C96: AO | AN96: 2013-12-01 | AO96: 2014-01-01 | AP96: 2014-02-01 | AQ96: 2014-03-01 | AR96: 2014-04-01 | AS96: 2014-05-01 | AT96: 2014-06-01 | AU96: 2014-07-01 | AV96: 2014-08-01 | AW96: 2014-09-01 | AX96: 2014-10-01 | AY96: 2014-11-01 | AZ96: 2014-12-01 | BA96: 2015-01-01 | BB96: 2015-02-01 | BC96: 2015-03-01 | BD96: 2015-04-01 | BE96: 2015-05-01 | BF96: 2015-06-01 | BG96: 2015-07-01 | BH96: 2015-08-01 | BI96: 2015-09-01 | BJ96: 2015-10-01 | BK96: 2015-11-01 | BL96: 2015-12-01 | BM96: 2016-01-01
B97: 2014-03-01 | C97: AP
B98: 2014-04-01 | C98: AQ
B99: 2014-05-01 | C99: AR
B100: 2014-06-01 | C100: AS
B101: 2014-07-01 | C101: AT
B102: 2014-08-01 | C102: AU
B103: 2014-09-01 | C103: AV
B104: 2014-10-01 | C104: AW
B105: 2014-11-01 | C105: AX
B106: 2014-12-01 | C106: AY
B107: 2015-01-01 | C107: AZ
B108: 2015-02-01 | C108: BA
B109: 2015-03-01 | C109: BB
B110: 2015-04-01 | C110: BC
B111: 2015-05-01 | C111: BD
B112: 2015-06-01 | C112: BE
B113: 2015-07-01 | C113: BF
B114: 2015-08-01 | C114: BG
B115: 2015-09-01 | C115: BH
B116: 2015-10-01 | C116: BI
B117: 2015-11-01 | C117: BJ
B118: 2015-12-01 | C118: BK
B119: 2016-01-01 | C119: BL
B120: 2016-02-01 | C120: BM
B121: 2016-03-01 | C121: BN
B122: 2016-04-01 | C122: BO
B123: 2016-05-01 | C123: BP
B124: 2016-06-01 | C124: BQ
B125: 2016-07-01 | C125: BR
B126: 2016-08-01 | C126: BS
B127: 2016-09-01 | C127: BT
B128: 2016-10-01 | C128: BU
B129: 2016-11-01 | C129: BV
B130: 2016-12-01 | C130: BW

Sheet Goeree
D1: ="Totale Depositie: " &TEXT(VLOOKUP($B11,$F$56:$H$75,2),"") -> Totale Depositie: Goeree 1 | E1: ="Natte Depositie: " &TEXT(VLOOKUP($B11,$F$56:$H$75,2),"") -> Natte Depositie: Goeree 1 | L1: ="Droge Depositie: " &TEXT(VLOOKUP($B11,$F$56:$H$75,2),"") -> Droge Depositie: Goeree 1
D2: =" Depo 2011: "&TEXT(P40/1000,"0.0")&" *1000 mol/ha" -> Depo 2011: 2.0 *1000 mol/ha | E2: =" Wet depo 2011: "&TEXT(P34/1000,"0.0")&" *1000 mol/ha" -> Wet depo 2011: 0.5 *1000 mol/ha
D3: =" Depo 2012: "&TEXT(AB40/1000,"0.0") -> Depo 2012: 1.8 | E3: =" Wet depo 2012: "&TEXT(AB34/1000,"0.0") -> Wet depo 2012: 0.6 | CA3: val | CB3: sqr | CD3: jaar | CE3: maand | CF3: stathit/maand
B4: 1 | D4: =" Depo 2013: "&TEXT(AN40/1000,"0.0") -> Depo 2013: 1.8 | E4: =" Wet depo 2013: "&TEXT(AN34/1000,"0.0") -> Wet depo 2013: 0.5 | BZ4: onzeker | CA4: 3 | CB4: =CA4*CA4 -> 9 | CD4: 5 | CE4: 6 | CF4: 5 | CG4: =CF4*CE4*CD4 -> 150 | CH4: meetpunten
D5: =" Depo 2014: "&TEXT(AZ40/1000,"0.0") -> Depo 2014: 2.2 | E5: =" Wet depo 2014: "&TEXT(AZ34/1000,"0.0") -> Wet depo 2014: 0.5 | K5: =E25*1 ->  | BZ5: 0.5 | CA5: =CA4*BZ5 -> 1.5 | CB5: =CA5*CA5 -> 2.25 | CC5: =CB5/CB4 -> 0.25 | CG5: =50/SQRT(CG4) -> 4.082482905 | CH5: % | CJ5: =50/6 -> 8.333333333
D6: =" Depo 2015: "&TEXT(BL40/1000,"0.0") -> Depo 2015: 1.8 | E6: =" Wet depo 2015: "&TEXT(BL34/1000,"0.0") -> Wet depo 2015: 0.5 | CA6: ratio | CB6: =CB4/CB5 -> 4 | CJ6: =CJ5*CJ5 -> 69.44444444 | CK6: =CJ6/12/5 -> 1.157407407
D7: =" Depo 2016: "&TEXT(BX40/1000,"0.0") -> Depo 2016: 3.2 | E7: =" Wet depo 2016: "&TEXT(BX34/1000,"0.0") -> Wet depo 2016: 0.5
B8: 9,10,1,5 | E8: no3 correctie | F8: 0.4 | G8: nh4 correctie | H8: 0.1 | CF8: =50/SQRT(48) -> 7.216878365 | CT8: =D1 -> Totale Depositie: Goeree 1 | CU8: 2011 | DG8: 2012 | DS8: 2013 | EE8: 2014 | EQ8: 2015 | FC8: 2016
E9: 2011-01-01 | F9: 2011-02-01 | G9: 2011-03-01 | H9: 2011-04-01 | I9: 2011-05-01 | J9: 2011-06-01 | K9: 2011-07-01 | L9: 2011-08-01 | M9: 2011-09-01 | N9: 2011-10-01 | O9: 2011-11-01 | P9: 2011-12-01 | Q9: 2012-01-01 | R9: 2012-02-01 | S9: 2012-03-01 | T9: 2012-04-01 | U9: 2012-05-01 | V9: 2012-06-01 | W9: 2012-07-01 | X9: 2012-08-01 | Y9: 2012-09-01 | Z9: 2012-10-01 | AA9: 2012-11-01 | AB9: 2012-12-01 | AC9: 2013-01-01 | AD9: 2013-02-01 | AE9: 2013-03-01 | AF9: 2013-04-01 | AG9: 2013-05-01 | AH9: 2013-06-01 | AI9: 2013-07-01 | AJ9: 2013-08-01 | AK9: 2013-09-01 | AL9: 2013-10-01 | AM9: 2013-11-01 | AN9: 2013-12-01 | AO9: 2014-01-01 | AP9: 2014-02-01 | AQ9: 2014-03-01 | AR9: 2014-04-01 | AS9: 2014-05-01 | AT9: 2014-06-01 | AU9: 2014-07-01 | AV9: 2014-08-01 | AW9: 2014-09-01 | AX9: 2014-10-01 | AY9: 2014-11-01 | AZ9: 2014-12-01 | BA9: 2015-01-01 | BB9: 2015-02-01 | BC9: 2015-03-01 | BD9: 2015-04-01 | BE9: 2015-05-01 | BF9: 2015-06-01 | BG9: 2015-07-01 | BH9: 2015-08-01 | BI9: 2015-09-01 | BJ9: 2015-10-01 | BK9: 2015-11-01 | BL9: 2015-12-01 | BM9: 2016-01-01 | BN9: 2016-02-01 | BO9: 2016-03-01 | BP9: 2016-04-01 | BQ9: 2016-05-01 | BR9: 2016-06-01 | BS9: 2016-07-01 | BT9: 2016-08-01 | BU9: 2016-09-01 | BV9: 2016-10-01 | BW9: 2016-11-01 | BX9: 2016-12-01 | CB9: AVG mol/ha | CC9: error in value at 50 % error per datapoint | CE9: stdev | CU9: =E9 -> 2011-01-01 | CV9: =F9 -> 2011-02-01 | CW9: 2011-03-01 | CX9: 2011-04-01 | CY9: 2011-05-01 | CZ9: 2011-06-01 | DA9: 2011-07-01 | DB9: 2011-08-01 | DC9: 2011-09-01 | DD9: 2011-10-01 | DE9: 2011-11-01 | DF9: 2011-12-01 | DG9: 2012-01-01 | DH9: 2012-02-01 | DI9: 2012-03-01 | DJ9: 2012-04-01 | DK9: 2012-05-01 | DL9: 2012-06-01 | DM9: 2012-07-01 | DN9: 2012-08-01 | DO9: 2012-09-01 | DP9: 2012-10-01 | DQ9: 2012-11-01 | DR9: 2012-12-01 | DS9: 2013-01-01 | DT9: 2013-02-01 | DU9: 2013-03-01 | DV9: 2013-04-01 | DW9: 2013-05-01 | DX9: 2013-06-01 | DY9: 2013-07-01 | DZ9: 2013-08-01 | EA9: 2013-09-01 | EB9: 2013-10-01 | EC9: =AM9 -> 2013-11-01 | ED9: =AN9 -> 2013-12-01 | EE9: 2014-01-01 | EF9: 2014-02-01 | EG9: 2014-03-01 | EH9: 2014-04-01 | EI9: 2014-05-01 | EJ9: 2014-06-01 | EK9: 2014-07-01 | EL9: 2014-08-01 | EM9: 2014-09-01 | EN9: 2014-10-01 | EO9: 2014-11-01 | EP9: 2014-12-01 | EQ9: 2015-01-01 | ER9: 2015-02-01 | ES9: 2015-03-01 | ET9: 2015-04-01 | EU9: 2015-05-01 | EV9: 2015-06-01 | EW9: 2015-07-01 | EX9: 2015-08-01 | EY9: 2015-09-01 | EZ9: 2015-10-01 | FA9: 2015-11-01 | FB9: 2015-12-01 | FC9: 2016-01-01 | FD9: 2016-02-01 | FE9: 2016-03-01 | FF9: 2016-04-01 | FG9: 2016-05-01 | FH9: 2016-06-01 | FI9: 2016-07-01 | FJ9: 2016-08-01 | FK9: 2016-09-01 | FL9: 2016-10-01 | FM9: 2016-11-01 | FN9: 2016-12-01
B10: stat nr | C10: comp | D10: Station list | CT10: Dry depostion
B11: =$B$4 -> 1 | C11: ddnh3 | D11: Ammoniak | E11: =INDIRECT(TEXT($C11," ")&"!"&TEXT(VLOOKUP(E$9,$B$56:$C$127,2)&VLOOKUP($B11,$F$56:$H$74,3)," ")) -> 48.71995388 | F11: 107.2430701 | G11: 130.5382265 | H11: 78.95013887 | I11: 88.50898611 | J11: 64.86172362 | K11: 52.07208117 | L11: 21.57943257 | M11: 48.09716185 | N11: 71.39202397 | O11: =INDIRECT(TEXT($C11," ")&"!"&TEXT(VLOOKUP(O$9,$B$56:$C$127,2)&VLOOKUP($B11,$F$56:$H$74,3)," ")) -> 96.8166769 | P11: 32.05458636 | Q11: 16.74121265 | R11: 24.93362767 | S11: 70.45154231 | T11: 35.8339499 | U11: 188.6282428 | V11: 61.47541552 | W11: 95.48690444 | X11: 70.79267751 | Y11: =INDIRECT(TEXT($C11," ")&"!"&TEXT(VLOOKUP(Y$9,$B$56:$C$127,2)&VLOOKUP($B11,$F$56:$H$74,3)," ")) -> 58.02661441 | Z11: 65.34910404 | AA11: 40.70408334 | AB11: 21.55987133 | AC11: 1.590710968 | AD11: 11.54568578 | AE11: 31.56728444 | AF11: 27.22937068 | AG11: 116.995416 | AH11: 135.1049631 | AI11: =INDIRECT(TEXT($C11," ")&"!"&TEXT(VLOOKUP(AI$9,$B$56:$C$127,2)&VLOOKUP($B11,$F$56:$H$74,3)," ")) -> 173.6965627 | AJ11: 100.3342178 | AK11: 94.75123241 | AL11: 108.4370102 | AM11: 44.82566021 | AN11: 22.01470464 | AO11: 55.28154757 | AP11: 57.11883678 | AQ11: 131.298779 | AR11: 126.0807792 | AS11: =INDIRECT(TEXT($C11," ")&"!"&TEXT(VLOOKUP(AS$9,$B$56:$C$127,2)&VLOOKUP($B11,$F$56:$H$74,3)," ")) -> 91.20290575 | AT11: 89.53030229 | AU11: 220.6255279 | AV11: 70.43921475 | AW11: 110.41361 | AX11: 124.170795 | AY11: 113.2849291 | AZ11: 99.44108149 | BA11: 21.72063476 | BB11: 36.5000436 | BC11: =INDIRECT(TEXT($C11," ")&"!"&TEXT(VLOOKUP(BC$9,$B$56:$C$127,2)&VLOOKUP($B11,$F$56:$H$74,3)," ")) -> 76.76613265 | BD11: 9.104392678 | BE11: 78.08823889 | BF11: 95.55610178 | BG11: 158.2242317 | BH11: 169.4943978 | BI11: 77.63055129 | BJ11: 54.49746813 | BK11: 120.0949942 | BL11: 68.1082378 | BM11: =INDIRECT(TEXT($C11," ")&"!"&TEXT(VLOOKUP(BM$9,$B$56:$C$127,2)&VLOOKUP($B11,$F$56:$H$74,3)," ")) -> 74.0745931 | BN11: 76.44513124 | BO11: 83.40008324 | BP11: 130.8929284 | BQ11: 345.8653058 | BR11: 481.0360396 | BS11: 112.2275985 | BT11: 176.1575307 | BU11: 181.8165103 | BV11: 312.8202494 | BW11: 109.4651504 | BX11: 86.09619129 | CA11: =D11 -> Ammoniak | CB11: =AVERAGEIF(E11:BA11,">0",E11:BA11) -> 76.92896062 | CC11: =SQRT(SUMSQ(E11:AN11)/$CB$6)/COUNT(E11:AN11) -> 6.773706505 | CD11: =CC11/CB11 -> 0.08805144967 | CT11: NH3 | CU11: =E11 -> 48.71995388 | CV11: 107.2430701 | CW11: 130.5382265 | CX11: 78.95013887 | CY11: 88.50898611 | CZ11: 64.86172362 | DA11: 52.07208117 | DB11: 21.57943257 | DC11: 48.09716185 | DD11: 71.39202397 | DE11: 96.8166769 | DF11: 32.05458636 | DG11: 16.74121265 | DH11: 24.93362767 | DI11: 70.45154231 | DJ11: 35.8339499 | DK11: =U11 -> 188.6282428 | DL11: 61.47541552 | DM11: 95.48690444 | DN11: 70.79267751 | DO11: 58.02661441 | DP11: 65.34910404 | DQ11: 40.70408334 | DR11: 21.55987133 | DS11: 1.590710968 | DT11: 11.54568578 | DU11: 31.56728444 | DV11: 27.22937068 | DW11: 116.995416 | DX11: 135.1049631 | DY11: 173.6965627 | DZ11: 100.3342178 | EA11: =AK11 -> 94.75123241 | EB11: 108.4370102 | EC11: 44.82566021 | ED11: 22.01470464 | EE11: 55.28154757 | EF11: 57.11883678 | EG11: 131.298779 | EH11: 126.0807792 | EI11: 91.20290575 | EJ11: 89.53030229 | EK11: 220.6255279 | EL11: 70.43921475 | EM11: 110.41361 | EN11: 124.170795 | EO11: 113.2849291 | EP11: 99.44108149 | EQ11: =BA11 -> 21.72063476 | ER11: 36.5000436 | ES11: 76.76613265 | ET11: 9.104392678 | EU11: 78.08823889 | EV11: 95.55610178 | EW11: 158.2242317 | EX11: 169.4943978 | EY11: 77.63055129 | EZ11: 54.49746813 | FA11: 120.0949942 | FB11: 68.1082378 | FC11: 74.0745931 | FD11: 76.44513124 | FE11: 83.40008324 | FF11: 130.8929284 | FG11: =BQ11 -> 345.8653058 | FH11: 481.0360396 | FI11: 112.2275985 | FJ11: 176.1575307 | FK11: 181.8165103 | FL11: 312.8202494 | FM11: 109.4651504 | FN11: 86.09619129
B12: =$B$4 -> 1 | C12: ddno2 | D12: NO2 | E12: 9.827140402 | F12: 11.07389048 | G12: 16.48391165 | H12: 46.75256486 | I12: 48.89912399 | J12: 29.03698259 | K12: 34.17982863 | L12: 30.82513005 | M12: 34.10071036 | N12: 21.98842863 | O12: 17.1298188 | P12: 3.987025785 | Q12: 6.658730097 | R12: 9.439083945 | S12: 13.36986781 | T12: 4.824649319 | U12: 29.20672703 | V12: 23.97963736 | W12: 47.87422702 | X12: 40.01428527 | Y12: 21.14700263 | Z12: 16.24963263 | AA12: 6.571742312 | AB12: 5.771943488 | AC12: 8.383430418 | AD12: 5.679599369 | AE12: 7.255786639 | AF12: 9.86571172 | AG12: 18.84179687 | AH12: 32.09517924 | AI12: 60.75094462 | AJ12: 49.37348878 | AK12: 21.64117647 | AL12: 26.25084628 | AM12: 5.478504525 | AN12: 5.835464656 | AO12: 5.667727699 | AP12: 6.896862437 | AQ12: 18.80774681 | AR12: 22.68388913 | AS12: 22.49348114 | AT12: 37.300214 | AU12: 46.28647155 | AV12: 25.63356024 | AW12: 29.95842918 | AX12: 26.37731478 | AY12: 10.25655197 | AZ12: 5.752546506 | BA12: 4.27071036 | BB12: 6.210960541 | BC12: 5.109491706 | BD12: 10.30619292 | BE12: 13.3265636 | BF12: 26.53131909 | BG12: 54.97945829 | BH12: 32.33089841 | BI12: 20.44706531 | BJ12: 18.23927616 | BK12: 9.194140616 | BL12: 4.857200466 | BM12: 5.323962078 | BN12: 4.19006945 | BO12: 6.224788602 | BP12: 7.254927329 | BQ12: 19.18273497 | BR12: 50.75897234 | BS12: 29.50215896 | BT12: 32.10958781 | BU12: 29.48223626 | BV12: 14.40855956 | BW12: 6.491430154 | BX12: 9.319475404 | CA12: NO2 | CB12: 21.29039838 | CC12: 2.214267122 | CD12: =CC12/CB12 -> 0.1040030855 | CE12: =STDEV(E12:AN12) -> 15.56594158 | CT12: NO2 | CU12: 9.827140402 | CV12: 11.07389048 | CW12: 16.48391165 | CX12: 46.75256486 | CY12: 48.89912399 | CZ12: 29.03698259 | DA12: 34.17982863 | DB12: 30.82513005 | DC12: 34.10071036 | DD12: 21.98842863 | DE12: 17.1298188 | DF12: 3.987025785 | DG12: 6.658730097 | DH12: 9.439083945 | DI12: 13.36986781 | DJ12: 4.824649319 | DK12: 29.20672703 | DL12: 23.97963736 | DM12: 47.87422702 | DN12: 40.01428527 | DO12: 21.14700263 | DP12: 16.24963263 | DQ12: 6.571742312 | DR12: 5.771943488 | DS12: 8.383430418 | DT12: 5.679599369 | DU12: 7.255786639 | DV12: 9.86571172 | DW12: 18.84179687 | DX12: 32.09517924 | DY12: 60.75094462 | DZ12: 49.37348878 | EA12: 21.64117647 | EB12: 26.25084628 | EC12: 5.478504525 | ED12: 5.835464656 | EE12: 5.667727699 | EF12: 6.896862437 | EG12: 18.80774681 | EH12: 22.68388913 | EI12: 22.49348114 | EJ12: 37.300214 | EK12: 46.28647155 | EL12: 25.63356024 | EM12: 29.95842918 | EN12: 26.37731478 | EO12: 10.25655197 | EP12: 5.752546506 | EQ12: 4.27071036 | ER12: 6.210960541 | ES12: 5.109491706 | ET12: 10.30619292 | EU12: 13.3265636 | EV12: 26.53131909 | EW12: 54.97945829 | EX12: 32.33089841 | EY12: 20.44706531 | EZ12: 18.23927616 | FA12: 9.194140616 | FB12: 4.857200466 | FC12: 5.323962078 | FD12: 4.19006945 | FE12: 6.224788602 | FF12: 7.254927329 | FG12: 19.18273497 | FH12: 50.75897234 | FI12: 29.50215896 | FJ12: 32.10958781 | FK12: 29.48223626 | FL12: 14.40855956 | FM12: 6.491430154 | FN12: 9.319475404
B13: 1 | C13: ddhno3 | D13: HNO3 | E13: =INDIRECT(TEXT($C13," ")&"!"&TEXT(VLOOKUP(E$9,$B$56:$C$127,2)&VLOOKUP($B13,$F$56:$H$74,3)," ")) -> 2.829957367 | F13: 4.983880996 | G13: 10.9683444 | H13: 39.11504205 | I13: 27.60104489 | J13: 14.35240617 | K13: 18.08519805 | L13: 15.23383401 | M13: 20.02426519 | N13: 27.75512473 | O13: 12.60921954 | P13: 5.76675741 | Q13: 12.48418886 | R13: 10.81188222 | S13: 17.6191507 | T13: 6.084328116 | U13: 20.26188844 | V13: 5.971807298 | W13: 13.5294197 | X13: 11.00187516 | Y13: 11.99539165 | Z13: 15.27962057 | AA13: 12.38236803 | AB13: 7.286020347 | AC13: 0.8908309341 | AD13: 3.588684342 | AE13: 8.548878387 | AF13: 5.240027016 | AG13: 8.212731746 | AH13: 9.872373364 | AI13: 24.66076854 | AJ13: 9.666231758 | AK13: 10.41325381 | AL13: 12.68634966 | AM13: 7.218213557 | AN13: 8.68443928 | AO13: 5.800451086 | AP13: 6.805700684 | AQ13: 13.82922042 | AR13: 11.50596846 | AS13: 6.555041861 | AT13: 8.072353723 | AU13: 11.31388153 | AV13: 3.017049501 | AW13: 13.76141169 | AX13: 9.546710212 | AY13: 10.07277655 | AZ13: 23.23270314 | BA13: 10.75549484 | BB13: 5.233280148 | BC13: 6.27941005 | BD13: 1.286599571 | BE13: 5.332152077 | BF13: 6.536822665 | BG13: =INDIRECT(TEXT($C13," ")&"!"&TEXT(VLOOKUP(BG$9,$B$56:$C$127,2)&VLOOKUP($B13,$F$56:$H$74,3)," ")) -> 4.36312942 | BH13: 7.477105157 | BI13: 3.977140459 | BJ13: 8.250129325 | BK13: 11.71647254 | BL13: 4.20815069 | BM13: 8.052142968 | BN13: 8.489582133 | BO13: 5.222436843 | BP13: 6.471661414 | BQ13: 39.42801546 | BR13: 22.7254219 | BS13: 7.223935853 | BT13: 8.953719273 | BU13: 16.52123909 | BV13: 29.68159433 | BW13: 17.99196712 | BX13: 21.04654144 | CA13: HNO3 | CB13: 11.99968494 | CC13: 1.234904141 | CD13: =CC13/CB13 -> 0.1029113804 | CT13: HNO2& HNO3 | CU13: =E13+E14 -> 4.607927074 | CV13: 4.983880996 | CW13: 17.31621509 | CX13: 39.11504205 | CY13: 27.60104489 | CZ13: 14.35240617 | DA13: 18.08519805 | DB13: 15.23383401 | DC13: 20.02426519 | DD13: 30.45431769 | DE13: 45.07690904 | DF13: 5.76675741 | DG13: 12.48418886 | DH13: 10.86775126 | DI13: 35.76705379 | DJ13: 6.084328116 | DK13: 24.99746512 | DL13: 6.304165179 | DM13: 14.56866597 | DN13: 13.00370467 | DO13: 11.99539165 | DP13: 18.64299625 | DQ13: 12.77300685 | DR13: 7.286020347 | DS13: 0.8908309341 | DT13: 3.588684342 | DU13: 8.548878387 | DV13: 5.240027016 | DW13: 8.212731746 | DX13: 9.872373364 | DY13: 25.28782273 | DZ13: 11.76040051 | EA13: 10.79391361 | EB13: 12.68634966 | EC13: 7.218213557 | ED13: 9.710220086 | EE13: 7.584981773 | EF13: 6.805700684 | EG13: 19.38457571 | EH13: 11.64417672 | EI13: 6.828419094 | EJ13: 8.671829369 | EK13: 11.31388153 | EL13: 3.017049501 | EM13: 17.04276071 | EN13: 9.626387158 | EO13: 21.04272773 | EP13: 23.23270314 | EQ13: 10.75549484 | ER13: 5.408596034 | ES13: 7.52466188 | ET13: 1.401970631 | EU13: 5.332152077 | EV13: 6.536822665 | EW13: 4.36312942 | EX13: 7.477105157 | EY13: 5.115583972 | EZ13: 9.67728475 | FA13: 11.92916694 | FB13: 4.20815069 | FC13: 8.052142968 | FD13: 8.489582133 | FE13: 5.222436843 | FF13: 6.471661414 | FG13: =BQ13+BQ14 -> 39.42801546 | FH13: 23.83295076 | FI13: 7.49579978 | FJ13: 9.090896967 | FK13: 22.91695068 | FL13: 43.5265451 | FM13: 18.15369553 | FN13: 34.42372564
B14: 1 | C14: ddhno2 | D14: HNO2 | E14: 1.777969708 | F14: 0 | G14: 6.347870696 | H14: 0 | I14: 0 | J14: 0 | K14: 0 | L14: 0 | M14: 0 | N14: 2.699192965 | O14: =INDIRECT(TEXT($C14," ")&"!"&TEXT(VLOOKUP(O$9,$B$56:$C$127,2)&VLOOKUP($B14,$F$56:$H$74,3)," ")) -> 32.4676895 | P14: 0 | Q14: 0 | R14: 0.05586903798 | S14: 18.14790309 | T14: 0 | U14: 4.735576686 | V14: 0.3323578809 | W14: 1.039246272 | X14: 2.001829511 | Y14: =INDIRECT(TEXT($C14," ")&"!"&TEXT(VLOOKUP(Y$9,$B$56:$C$127,2)&VLOOKUP($B14,$F$56:$H$74,3)," ")) -> 0 | Z14: 3.363375684 | AA14: 0.3906388223 | AB14: 0 | AC14: 0 | AD14: 0 | AE14: 0 | AF14: 0 | AG14: 0 | AH14: 0 | AI14: =INDIRECT(TEXT($C14," ")&"!"&TEXT(VLOOKUP(AI$9,$B$56:$C$127,2)&VLOOKUP($B14,$F$56:$H$74,3)," ")) -> 0.627054189 | AJ14: 2.094168748 | AK14: 0.3806597982 | AL14: 0 | AM14: 0 | AN14: 1.025780806 | AO14: 1.784530687 | AP14: 0 | AQ14: 5.555355286 | AR14: 0.1382082536 | AS14: =INDIRECT(TEXT($C14," ")&"!"&TEXT(VLOOKUP(AS$9,$B$56:$C$127,2)&VLOOKUP($B14,$F$56:$H$74,3)," ")) -> 0.273377233 | AT14: 0.5994756463 | AU14: 0 | AV14: 0 | AW14: 3.281349021 | AX14: 0.07967694622 | AY14: 10.96995117 | AZ14: 0 | BA14: 0 | BB14: 0.175315886 | BC14: 1.24525183 | BD14: 0.1153710597 | BE14: 0 | BF14: 0 | BG14: 0 | BH14: 0 | BI14: 1.138443513 | BJ14: 1.427155424 | BK14: 0.2126944001 | BL14: 0 | BM14: =INDIRECT(TEXT($C14," ")&"!"&TEXT(VLOOKUP(BM$9,$B$56:$C$127,2)&VLOOKUP($B14,$F$56:$H$74,3)," ")) -> 0 | BN14: 0 | BO14: 0 | BP14: 0 | BQ14: 0 | BR14: 1.107528859 | BS14: 0.2718639274 | BT14: 0.1371776945 | BU14: 6.395711585 | BV14: 13.84495077 | BW14: 0.1617284083 | BX14: 13.3771842 | CA14: HNO2 | CB14: 4.173712819 | CC14: 0.5341910991 | CD14: 0.1279894239 | CT14: PM | CU14: =E15+E16 -> 3.167747987 | CV14: 4.560810755 | CW14: 14.36603764 | CX14: 21.36044815 | CY14: 11.35148457 | CZ14: 5.25947015 | DA14: 4.718443432 | DB14: 5.132251595 | DC14: 7.687587072 | DD14: 8.034127215 | DE14: 13.70923049 | DF14: 2.696749837 | DG14: 4.139542466 | DH14: 16.20743017 | DI14: 24.30788586 | DJ14: 11.122156 | DK14: 15.51342713 | DL14: 5.763933073 | DM14: 5.782219989 | DN14: 5.102350153 | DO14: 4.654839535 | DP14: 3.929162004 | DQ14: 4.595649615 | DR14: 3.373731108 | DS14: 9.883318432 | DT14: 4.935469647 | DU14: 6.207969167 | DV14: 6.328842642 | DW14: 10.98677678 | DX14: 6.108889001 | DY14: 7.599547009 | DZ14: 7.90114178 | EA14: 6.899354769 | EB14: 6.049834044 | EC14: 2.435393151 | ED14: 2.764591041 | EE14: 3.069699417 | EF14: 4.383513631 | EG14: 15.30573533 | EH14: 11.51633064 | EI14: 7.234778392 | EJ14: 6.546748161 | EK14: 7.088324047 | EL14: 1.888748261 | EM14: 9.528533137 | EN14: 4.467484669 | EO14: 4.169317928 | EP14: 4.307541617 | EQ14: 3.014298925 | ER14: 4.495798919 | ES14: 6.257789424 | ET14: 9.200848349 | EU14: 5.434254967 | EV14: 7.348946508 | EW14: 8.655522109 | EX14: 3.805163243 | EY14: 1.813554611 | EZ14: 1.863736805 | FA14: 2.39397159 | FB14: 3.081749227 | FC14: 5.945490923 | FD14: 6.617399145 | FE14: 10.96316261 | FF14: 11.44435974 | FG14: =BQ15+BQ16 -> 17.53434992 | FH14: 13.86807272 | FI14: 5.006567338 | FJ14: 7.277526422 | FK14: 12.47591649 | FL14: 13.81151683 | FM14: 5.528619382 | FN14: 9.016432807
B15: 1 | C15: ddno3 | D15: PM NO3 | E15: 1.484848518 | F15: 2.338185207 | G15: 6.577376596 | H15: 9.115190922 | I15: 5.743227263 | J15: 2.631205851 | K15: 2.129118892 | L15: 2.783928369 | M15: 2.906842765 | N15: 3.68798527 | O15: 4.797805521 | P15: 1.28641791 | Q15: 2.181688412 | R15: 7.318146435 | S15: 10.88063031 | T15: 4.177352975 | U15: 6.977758368 | V15: 2.787984982 | W15: 3.29874001 | X15: 2.368426145 | Y15: 2.483262365 | Z15: 1.27818355 | AA15: 2.202840317 | AB15: 1.700360478 | AC15: 3.324610064 | AD15: 1.71448928 | AE15: 2.694420472 | AF15: 2.12545077 | AG15: 5.141532508 | AH15: 3.648808381 | AI15: 3.367288561 | AJ15: 3.302451264 | AK15: 3.316717775 | AL15: 2.910923616 | AM15: 1.239712059 | AN15: 1.437641182 | AO15: 1.438889283 | AP15: 2.247290509 | AQ15: 7.007609747 | AR15: 5.555277904 | AS15: 3.584335407 | AT15: 3.054000357 | AU15: 3.319583366 | AV15: 1.021700932 | AW15: 3.34396629 | AX15: 2.187529688 | AY15: 1.60821355 | AZ15: 1.9200458 | BA15: 1.551638249 | BB15: 2.241735316 | BC15: 2.707358385 | BD15: 4.820618942 | BE15: 2.893646206 | BF15: 4.293580379 | BG15: 4.85778113 | BH15: 2.015027108 | BI15: 1.036727807 | BJ15: 0.5964979743 | BK15: 0.3394619162 | BL15: 1.449029772 | BM15: 2.674167352 | BN15: 2.976378734 | BO15: 5.074148812 | BP15: 5.280384757 | BQ15: 9.055177223 | BR15: 6.080747419 | BS15: 2.782661241 | BT15: 3.466267785 | BU15: 5.418388056 | BV15: 5.773797107 | BW15: 2.681695653 | BX15: 3.734838876 | CA15: PM NO3 | CB15: 3.371461927 | CC15: 0.3476189061 | CD15: 0.1031062826 | CT15: Wet deposition | CU15: =E17+E24 -> 38.30221716 | CV15: 61.33785874 | CW15: 33.56064662 | CX15: 20.32156336 | CY15: 34.83026695 | CZ15: 76.28018687 | DA15: 56.86482131 | DB15: 53.28882693 | DC15: 44.90352578 | DD15: 27.80792392 | DE15: 16.46229558 | DF15: 34.77258142 | DG15: 30.7640813 | DH15: 19.48417323 | DI15: 41.90403275 | DJ15: 41.84426937 | DK15: 74.10348877 | DL15: 65.61647683 | DM15: 68.38534215 | DN15: 49.42011764 | DO15: 35.06684983 | DP15: 65.41763861 | DQ15: 28.44168375 | DR15: 49.06167658 | DS15: 25.49404633 | DT15: 18.51033997 | DU15: 32.67971123 | DV15: 23.85625621 | DW15: 76.90470645 | DX15: 41.43915948 | DY15: 47.15455241 | DZ15: 42.21528188 | EA15: 60.73476799 | EB15: 65.54162801 | EC15: 25.18987068 | ED15: 27.30604213 | EE15: 44.5230407 | EF15: 34.80508957 | EG15: 28.53153496 | EH15: 60.71929021 | EI15: 29.79780065 | EJ15: 37.50459035 | EK15: 56.68548656 | EL15: 56.7549555 | EM15: 18.49742556 | EN15: 56.59089539 | EO15: 21.21740072 | EP15: 28.68286148 | EQ15: 48.15176468 | ER15: 21.62144771 | ES15: 7.772546717 | ET15: 35.14973023 | EU15: 31.14090663 | EV15: 47.84774125 | EW15: 61.06223624 | EX15: 74.27673122 | EY15: 54.42170928 | EZ15: 27.47239129 | FA15: 35.86979166 | FB15: 46.22241416 | FC15: 39.27025291 | FD15: 32.41756178 | FE15: 40.27384256 | FF15: 39.59702558 | FG15: =BQ17+BQ24 -> 28.15912027 | FH15: 77.81860003 | FI15: 14.53621228 | FJ15: 56.21895896 | FK15: 30.57495394 | FL15: 46.06266402 | FM15: 64.44753217 | FN15: 20.59793686
B16: 1 | C16: ddnh4 | D16: PM NH4 | E16: 1.682899469 | F16: 2.222625548 | G16: 7.78866104 | H16: 12.24525723 | I16: 5.608257307 | J16: 2.628264299 | K16: 2.58932454 | L16: 2.348323226 | M16: 4.780744308 | N16: 4.346141945 | O16: 8.911424966 | P16: 1.410331927 | Q16: 1.957854054 | R16: 8.88928374 | S16: 13.42725555 | T16: 6.94480302 | U16: 8.53566876 | V16: 2.97594809 | W16: 2.483479979 | X16: 2.733924007 | Y16: 2.171577171 | Z16: 2.650978454 | AA16: 2.392809298 | AB16: 1.673370629 | AC16: 6.558708368 | AD16: 3.220980367 | AE16: 3.513548694 | AF16: 4.203391872 | AG16: 5.845244273 | AH16: 2.46008062 | AI16: 4.232258448 | AJ16: 4.598690516 | AK16: 3.582636994 | AL16: 3.138910429 | AM16: 1.195681092 | AN16: 1.326949859 | AO16: 1.630810135 | AP16: 2.136223121 | AQ16: 8.298125587 | AR16: 5.961052732 | AS16: 3.650442985 | AT16: 3.492747804 | AU16: 3.768740681 | AV16: 0.867047329 | AW16: 6.184566846 | AX16: 2.279954981 | AY16: 2.561104378 | AZ16: 2.387495818 | BA16: 1.462660677 | BB16: 2.254063603 | BC16: 3.550431039 | BD16: 4.380229407 | BE16: 2.540608761 | BF16: 3.05536613 | BG16: 3.797740979 | BH16: 1.790136136 | BI16: 0.7768268042 | BJ16: 1.267238831 | BK16: 2.054509674 | BL16: 1.632719455 | BM16: 3.271323571 | BN16: 3.641020411 | BO16: 5.8890138 | BP16: 6.163974987 | BQ16: 8.479172702 | BR16: 7.787325298 | BS16: 2.223906097 | BT16: 3.811258637 | BU16: 7.057528432 | BV16: 8.037719718 | BW16: 2.846923729 | BX16: 5.281593931 | CA16: PM NH4 | CB16: 4.121576799 | CC16: 0.440886291 | CD16: 0.1069702962
C17: bdnh4 | D17: Nat NH4 | E17: =AVERAGE((IFERROR(AVERAGE(E19:E20)*(1-$H$8),E18)),E18) -> 21.27900953 | F17: 41.40106282 | G17: 19.18722811 | H17: 6.591652064 | I17: 15.02901149 | J17: 46.21698952 | K17: 34.11304586 | L17: 31.46067882 | M17: 24.63512254 | N17: 14.65630612 | O17: 11.09803844 | P17: 16.29745888 | Q17: 16.23297074 | R17: 11.24932933 | S17: 29.43204733 | T17: 27.47969657 | U17: 44.38229876 | V17: 38.40225701 | W17: 34.10653367 | X17: 27.933932 | Y17: 19.03103618 | Z17: 32.54534543 | AA17: 12.01367135 | AB17: 19.92252928 | AC17: 12.91973693 | AD17: 8.825882412 | AE17: 20.87494614 | AF17: 14.71859377 | AG17: 38.97897359 | AH17: 23.29262337 | AI17: 20.89789234 | AJ17: 19.86591404 | AK17: =AVERAGE((IFERROR(AVERAGE(AK19:AK20)*(1-$H$8),AK18)),AK18) -> 31.06789043 | AL17: 33.46152445 | AM17: 10.33257452 | AN17: 14.47738673 | AO17: 19.22659297 | AP17: 16.98490283 | AQ17: 12.48619396 | AR17: 33.57921937 | AS17: 10.814248 | AT17: 12.60602638 | AU17: 22.50487811 | AV17: 25.87390161 | AW17: 7.488844043 | AX17: 30.01810489 | AY17: 8.424921373 | AZ17: 9.27207664 | BA17: 17.97659243 | BB17: 10.56901928 | BC17: 1.913300337 | BD17: 11.48326181 | BE17: 9.021365473 | BF17: 19.16419873 | BG17: =AVERAGE(BH17,BF17) -> 27.32963692 | BH17: =AVERAGE((IFERROR(AVERAGE(BH19:BH20)*(1-$H$8),BH18)),BH18) -> 35.4950751 | BI17: 22.4943065 | BJ17: 9.58339231 | BK17: 13.46830239 | BL17: 17.04365112 | BM17: 13.32172335 | BN17: 18.44697974 | BO17: 23.49902741 | BP17: 25.54079096 | BQ17: 14.00177251 | BR17: 46.69116002 | BS17: 5.327752011 | BT17: 35.23472358 | BU17: 14.93942583 | BV17: 26.82800377 | BW17: 26.67285948 | BX17: 10.74228786 | CA17: Nat NH4 | CB17: 21.87076925 | CC17: 2.14528923 | CD17: 0.09808933582 | CT17: Total deposition mol N/ha | CU17: =SUM(CU11:CU15) -> 104.6249865 | CV17: 189.1995111 | CW17: 212.2650375 | CX17: 206.4997573 | CY17: 211.1909065 | CZ17: 189.7907694 | DA17: 165.9203726 | DB17: 126.0594752 | DC17: 154.8132502 | DD17: 159.6768214 | DE17: 189.1949308 | DF17: 79.27770081 | DG17: 70.78775537 | DH17: 80.93206628 | DI17: 185.8003825 | DJ17: 99.7093527 | DK17: 332.4493509 | DL17: 163.139628 | DM17: 232.0973596 | DN17: 178.3331352 | DO17: 130.8906981 | DP17: 169.5885335 | DQ17: 93.08616587 | DR17: 87.05324285 | DS17: 46.24233708 | DT17: 44.25977911 | DU17: 86.25962986 | DV17: 72.52020827 | DW17: 231.9414279 | DX17: 224.6205642 | DY17: 314.4894294 | DZ17: 211.5845308 | EA17: 194.8204452 | EB17: 218.9656682 | EC17: 85.14764212 | ED17: 67.63102255 | EE17: 116.1269972 | EF17: 110.0100031 | EG17: 213.3283718 | EH17: 232.6444659 | EI17: 157.557385 | EJ17: 179.5536842 | EK17: 341.9996916 | EL17: 157.7335283 | EM17: 185.4407586 | EN17: 221.232877 | EO17: 169.9709274 | EP17: 161.4167342 | EQ17: 87.91290357 | ER17: 74.23684681 | ES17: 103.4306224 | ET17: 65.16313481 | EU17: 133.3221162 | EV17: 183.8209313 | EW17: 287.2845778 | EX17: 287.3842958 | EY17: 159.4284645 | EZ17: 111.7501571 | FA17: 179.482065 | FB17: 126.4777523 | FC17: 132.666442 | FD17: 128.1597438 | FE17: 146.0843139 | FF17: 195.6609025 | FG17: =SUM(FG11:FG15) -> 450.1695265 | FH17: 647.3146355 | FI17: 168.7683369 | FJ17: 280.8545008 | FK17: 277.2665676 | FL17: 430.6295349 | FM17: 204.0864277 | FN17: 159.453762
B18: 1 | C18: wdnh4 | D18: =VLOOKUP(B18,$F$56:$H$70,2)&" "&C18 -> Goeree 1 wdnh4 | E18: =INDIRECT(TEXT($C18," ")&"!"&TEXT(VLOOKUP(E$9,$B$56:$C$127,2)&VLOOKUP($B18,$F$56:$H$74,3)," ")) ->  | H18: 1.928878488 | I18: 21.99165096 | J18: 44.12980319 | K18: 28.65136813 | L18: 32.15834511 | M18: 23.48300094 | N18: 13.3406688 | O18: =INDIRECT(TEXT($C18," ")&"!"&TEXT(VLOOKUP(O$9,$B$56:$C$127,2)&VLOOKUP($B18,$F$56:$H$74,3)," ")) -> 3.810185215 | P18: 16.4953843 | Q18: 14.88057819 | R18: 10.9257024 | S18: 29.89695812 | T18: 31.70649569 | U18: 44.84502567 | V18: 35.68836722 | X18: 21.08548301 | Y18: =INDIRECT(TEXT($C18," ")&"!"&TEXT(VLOOKUP(Y$9,$B$56:$C$127,2)&VLOOKUP($B18,$F$56:$H$74,3)," ")) -> 18.89965117 | Z18: 35.5184916 | AA18: 14.58560036 | AB18: 18.09916166 | AC18: 8.586620364 | AD18: 7.377737994 | AE18: 21.60416334 | AF18: 14.26165149 | AG18: 46.00008117 | AH18: 23.27724073 | AI18: =INDIRECT(TEXT($C18," ")&"!"&TEXT(VLOOKUP(AI$9,$B$56:$C$127,2)&VLOOKUP($B18,$F$56:$H$74,3)," ")) -> 23.02292112 | AJ18: 24.28826409 | AK18: 32.88130417 | AL18: 40.6911386 | AM18: 13.11301571 | AO18: 20.12910956 | AP18: 15.97225955 | AQ18: 13.05342755 | AR18: 43.69359155 | AS18: =INDIRECT(TEXT($C18," ")&"!"&TEXT(VLOOKUP(AS$9,$B$56:$C$127,2)&VLOOKUP($B18,$F$56:$H$74,3)," ")) -> 8.261683845 | AT18: 12.88931321 | AU18: 17.22163553 | AV18: 28.54799421 | AW18: 1.815957286 | AX18: 35.11635385 | AY18: 6.237003405 | AZ18: 10.29920372 | BA18: 18.11167188 | BB18: 10.24521224 | BC18: =INDIRECT(TEXT($C18," ")&"!"&TEXT(VLOOKUP(BC$9,$B$56:$C$127,2)&VLOOKUP($B18,$F$56:$H$74,3)," ")) -> 1.633571438 | BD18: 6.318813663 | BE18: 5.605895697 | BF18: 21.3737119 | BG18: 0 | BM18: =INDIRECT(TEXT($C18," ")&"!"&TEXT(VLOOKUP(BM$9,$B$56:$C$127,2)&VLOOKUP($B18,$F$56:$H$74,3)," ")) ->  | CA18: Goeree 1 wdnh4 | CB18: 21.55850328 | CC18: 2.332820514 | CD18: 0.1082088346 | CT18: Cumulative mol N/ha | CU18: =CU17 -> 104.6249865 | CV18: =CU18+CV17 -> 293.8244976 | CW18: =CV18+CW17 -> 506.0895351 | CX18: 712.5892924 | CY18: 923.7801989 | CZ18: 1113.570968 | DA18: 1279.491341 | DB18: 1405.550816 | DC18: 1560.364066 | DD18: 1720.040888 | DE18: 1909.235819 | DF18: 1988.513519 | DG18: =DG17 -> 70.78775537 | DH18: =DG18+DH17 -> 151.7198216 | DI18: =DH18+DI17 -> 337.5202042 | DJ18: 437.2295569 | DK18: 769.6789078 | DL18: 932.8185357 | DM18: 1164.915895 | DN18: 1343.249031 | DO18: 1474.139729 | DP18: 1643.728262 | DQ18: 1736.814428 | DR18: 1823.867671 | DS18: =DS17 -> 46.24233708 | DT18: =DS18+DT17 -> 90.50211619 | DU18: =DT18+DU17 -> 176.761746 | DV18: 249.2819543 | DW18: 481.2233822 | DX18: 705.8439464 | DY18: 1020.333376 | DZ18: 1231.917907 | EA18: 1426.738352 | EB18: 1645.70402 | EC18: 1730.851662 | ED18: 1798.482685 | EE18: =EE17 -> 116.1269972 | EF18: =EE18+EF17 -> 226.1370003 | EG18: =EF18+EG17 -> 439.4653721 | EH18: 672.1098379 | EI18: 829.667223 | EJ18: 1009.220907 | EK18: 1351.220599 | EL18: 1508.954127 | EM18: 1694.394886 | EN18: 1915.627763 | EO18: 2085.59869 | EP18: 2247.015424 | EQ18: =EQ17 -> 87.91290357 | ER18: =EQ18+ER17 -> 162.1497504 | ES18: =ER18+ES17 -> 265.5803727 | ET18: 330.7435076 | EU18: 464.0656237 | EV18: 647.886555 | EW18: 935.1711328 | EX18: 1222.555429 | EY18: 1381.983893 | EZ18: 1493.73405 | FA18: 1673.216115 | FB18: 1799.693868 | FC18: =FC17 -> 132.666442 | FD18: =FC18+FD17 -> 260.8261857 | FE18: =FD18+FE17 -> 406.9104996 | FF18: 602.5714021 | FG18: 1052.740929 | FH18: 1700.055564 | FI18: 1868.823901 | FJ18: 2149.678402 | FK18: 2426.944969 | FL18: 2857.574504 | FM18: 3061.660932 | FN18: 3221.114694
B19: 1 | C19: bdnh4 | D19: =VLOOKUP(B19,$F$56:$H$70,2)&" "&C19 -> Goeree 1 bdnh4 | E19: 23.64334393 | F19: 43.84083253 | G19: 21.24255781 | H19: 11.45625687 | I19: 9.163928108 | K19: 46.33391514 | M19: 30.39068418 | N19: 22.29947831 | O19: 27.40236088 | P19: 19.03534293 | Q19: 19.95705087 | R19: 12.589313 | S19: 32.89274505 | T19: 22.68823687 | U19: 48.79952428 | V19: 40.90350573 | W19: 43.7420717 | Y19: 26.10985089 | Z19: 37.63972948 | AA19: 15.76905276 | AB19: 22.43989826 | AC19: 19.79705831 | AD19: 10.42698941 | AE19: 22.24058094 | AF19: 19.26913676 | AG19: 46.27842951 | AH19: 25.89778445 | AI19: 18.77048432 | AJ19: 26.57600203 | AK19: 31.23787258 | AL19: 30.04753517 | AM19: 14.70961835 | AN19: 17.63796689 | AO19: 23.31581709 | AP19: 21.80818805 | AQ19: 15.33019552 | AR19: 26.03712701 | AS19: 11.52592815 | AT19: 18.76671345 | AU19: 38.61800044 | AV19: 28.43719486 | AW19: 11.24149695 | AX19: 23.95004121 | AZ19: 11.44835601 | BA19: 17.03821927 | BB19: 12.84519335 | BC19: 3.192488886 | BD19: 19.75934963 | BE19: 12.35282569 | BG19: 0 | BK19: 12.80335466 | BL19: 25.58390455 | BM19: 15.42105549 | BN19: 23.21095103 | BO19: 26.9013741 | BP19: 35.77404752 | BV19: 37.41275912 | BW19: 34.39031844 | BX19: 12.50850868 | CA19: Goeree 1 bdnh4 | CB19: 24.63880925 | CC19: 2.463887559 | CD19: 0.1000002692 | CT19: To report kmol/ha | DF19: =DF18/1000 -> 1.988513519 | DR19: =DR18/1000 -> 1.823867671 | ED19: =ED18/1000 -> 1.798482685 | EP19: =EP18/1000 -> 2.247015424 | FB19: =FB18/1000 -> 1.799693868 | FN19: =FN18/1000 -> 3.221114694
B20: 7 | C20: bdnh4 | D20: Oostvoorne Noord 1 bdnh4 | F20: 48.16152929 | G20: 21.39572689 | H20: 13.55357788 | I20: 8.761343031 | J20: 53.6713065 | K20: 41.60991505 | L20: 34.18112503 | M20: 26.91430279 | N20: 13.19372931 | O20: 13.45517618 | P20: 16.74139807 | Q20: 19.1215342 | R20: 13.12836759 | S20: 31.47866946 | T20: 28.98486859 | V20: 50.46570935 | W20: 32.05022534 | X20: 38.64709 | Y20: 16.4733073 | Z20: 28.0762689 | AA20: 5.212596878 | AB20: 25.88431706 | AC20: 18.54261614 | AD20: 12.40418133 | AE20: 22.52770562 | AF20: 14.4542767 | AG20: 24.7390505 | AI20: 22.94699026 | AJ20: 7.743029038 | AK20: 33.77207561 | AL20: 28.24559884 | AM20: 2.072900147 | AN20: 14.53400363 | AO20: 17.40435263 | AP20: 18.18635887 | AQ20: 11.15638307 | AR20: 26.10697785 | AS20: 18.17809888 | AT20: 8.617152212 | AU20: 23.13337889 | AV20: 23.11793628 | AW20: 18.00679372 | AX20: 31.42741643 | AY20: 11.79204371 | AZ20: 6.873754124 | BA20: 22.60958733 | BB20: 11.36108734 | BC20: 1.680909414 | BD20: 17.23556138 | BE20: 15.28458597 | BF20: 18.83853952 | BG20: 0 | BH20: 39.43897233 | BI20: 24.99367389 | BJ20: 10.64821368 | BK20: 17.1262062 | BL20: 12.29087571 | BM20: 14.18277418 | BN20: 17.78233728 | BO20: 25.31868682 | BP20: 20.98326572 | BQ20: 15.55752501 | BR20: 51.87906669 | BS20: 5.919724457 | BT20: 39.14969287 | BU20: 16.59936204 | BV20: 22.20502704 | BW20: 24.88270263 | BX20: 11.36324212
B21: 1 | C21: wdpo4 | D21: Goeree 1 wdpo4 | H21: 0 | I21: 0 | J21: 0 | K21: 1.787099344 | L21: 0 | M21: 0 | N21: 0.2681244517 | O21: 0.02181023441 | P21: 0 | Q21: -0.269166579 | R21: 0 | S21: 0.1081579201 | T21: -0.2331387515 | U21: 0 | V21: -1.18087904 | X21: 0.1733653104 | Y21: 0.6574334141 | Z21: 0.7300845704 | AA21: -0.3382447276 | AB21: 0 | AC21: 0 | AD21: 0.2471330316 | AE21: -0.2139338352 | AF21: 0.0537439906 | AG21: -0.5474145525 | AH21: 0.5329736464 | AI21: 0.3785899393 | AJ21: 0.3432320508 | AK21: -1.652143866 | AL21: 1.150061849 | AM21: 0 | AO21: 0.4920329333 | AP21: 1.203805839 | AQ21: 0.2361162579 | AR21: 1.270204232 | AS21: 0 | AT21: 0 | AU21: 0 | AV21: 0.4303241131 | AW21: 0 | AX21: 2.490981858 | AY21: 0.4700738236 | AZ21: 0 | BA21: -1.724273959 | BB21: -0.1447812489 | BC21: -0.1231198898 | BD21: 0 | BE21: 0.4225081588 | BF21: 0.336607099 | BG21: 0 | BO21: 0 | BP21: 0 | BQ21: 0 | BR21: 0 | BS21: 0 | BT21: 0 | BU21: 0 | BV21: 0 | BW21: 0 | BX21: 0 | CA21: Goeree 1 wdpo4 | CB21: 0.6522674405 | CC21: 0.05328830659 | CD21: 0.0816970207
B22: 1 | C22: bdpo4 | D22: Goeree 1 bdpo4 | E22: 0.3054795854 | F22: 0 | G22: 0.05489213177 | H22: 0 | I22: 0 | K22: 0.8552129169 | M22: 0 | N22: 0.4879390826 | O22: 0.07649169842 | P22: -0.3074284185 | Q22: 0.5108378713 | R22: 0.3162793687 | S22: 0 | T22: -0.2031658487 | U22: 0 | V22: -0.8042184513 | W22: -0.4945163942 | Y22: 1.540065342 | Z22: 0.3868433665 | AA22: 0 | AB22: 0 | AC22: 0 | AD22: 0.1309778233 | AE22: 0.07982095493 | AF22: 0.05927700621 | AG22: -0.3219634652 | AH22: 0.1561502506 | AI22: 0 | AJ22: 1.0604088 | AK22: -0.3363361092 | AL22: 2.32934274 | AM22: 0 | AN22: 0.2981714614 | AO22: 0 | AP22: 0.5635375659 | AQ22: 0.111814298 | AR22: 0.283717616 | AS22: 0 | AT22: 0.5304074035 | AU22: 3.813866339 | AV22: 0.3896854148 | AW22: 0.4686943559 | AX22: 0.8841206076 | AZ22: 0.5546866156 | BA22: -0.7004430898 | BB22: 0.2038154597 | BC22: 0 | BD22: -0.2127476113 | BE22: 0.2428733227 | BG22: 0 | BK22: 1.052694669 | BL22: 0.7978847438 | BM22: 1.101090691 | BN22: 0.2142092361 | BO22: 0 | BP22: 0.5304074035 | BV22: 0.7464030699 | BW22: 1.166376599 | BX22: 0.07892773977
B23: 12 | C23: bdpo4 | D23: Solleveld 1 bdpo4 | E23: 0.2358088028 | F23: 0.4522916775 | G23: 0 | H23: 0.01680868532 | I23: 0.1713349083 | J23: 0.7223674619 | K23: 2.833116091 | L23: 0.7800204406 | M23: 1.200481178 | N23: 0.5219624601 | O23: 0 | P23: 0.7071016028 | Q23: 0.345105858 | R23: 0.1219644703 | S23: 0.1883871978 | T23: -0.2998766903 | U23: -0.247014593 | V23: 0.3377165326 | W23: -0.8706411788 | X23: 0.4022716284 | Y23: 16.34421344 | Z23: 0.729025975 | AA23: 0.6655264971 | AB23: 0.3534696 | AC23: 0.4803873544 | AD23: 0 | AE23: 0.248313815 | AF23: 0.833126142 | AG23: 0 | AH23: 0.3403961781 | AI23: 0.3520891766 | AJ23: 0.05659736072 | AK23: -1.086230838 | AL23: 2.121792017 | AM23: -0.3435630319 | AN23: 0 | AO23: 0 | AP23: 0.3760435832 | AQ23: 0 | AR23: 0.3663806192 | AS23: -0.3886297969 | AT23: 0.1422648149 | AU23: 0.1447820576 | AV23: 1.564263353 | AW23: 1.079897131 | AX23: 6.86671336 | AZ23: 3.262346577 | BA23: 4.072817535 | BB23: 0.3407209836 | BC23: 0 | BD23: -0.1408031901 | BE23: 0.6528590821 | BF23: 0 | BG23: 0 | BI23: 1.793332441 | BJ23: 0 | BK23: -0.2396252676 | BL23: 0 | BM23: 1.198775949 | BN23: 0 | BO23: 0 | BP23: -0.4703183835 | BQ23: 0 | BR23: 0.4014596146 | BS23: 0.9200928183 | BT23: 1.44863259 | BV23: 0.3654062026 | BW23: 0 | BX23: 0.02842048243 | CA23: Solleveld 1 bdpo4 | CB23: 1.412491017 | CC23: 0.2358154427 | CD23: 0.1669500478
C24: bdno3 | D24: Nat NO3 | E24: =AVERAGE((IFERROR(AVERAGE(E26:E27)*(1-$F$8),E25)),E25) -> 17.02320763 | F24: 19.93679592 | G24: 14.37341851 | H24: 13.72991129 | I24: 19.80125547 | J24: 30.06319735 | K24: 22.75177545 | L24: 21.82814811 | M24: 20.26840324 | N24: 13.1516178 | O24: 5.36425714 | P24: 18.47512254 | Q24: 14.53111056 | R24: 8.234843898 | S24: 12.47198542 | T24: 14.36457279 | U24: 29.72119001 | V24: 27.21421983 | W24: 34.27880848 | X24: 21.48618564 | Y24: 16.03581365 | Z24: 32.87229318 | AA24: 16.4280124 | AB24: 29.13914731 | AC24: 12.57430939 | AD24: 9.684457553 | AE24: 11.80476508 | AF24: 9.137662441 | AG24: 37.92573286 | AH24: 18.14653611 | AI24: 26.25666007 | AJ24: 22.34936784 | AK24: =AVERAGE((IFERROR(AVERAGE(AK26:AK27)*(1-$F$8),AK25)),AK25) -> 29.66687756 | AL24: 32.08010355 | AM24: 14.85729616 | AN24: 12.8286554 | AO24: 25.29644773 | AP24: 17.82018674 | AQ24: 16.045341 | AR24: 27.14007085 | AS24: 18.98355265 | AT24: 24.89856397 | AU24: 34.18060844 | AV24: 30.88105389 | AW24: 11.00858152 | AX24: 26.57279049 | AY24: 12.79247935 | AZ24: 19.41078484 | BA24: 30.17517225 | BB24: 11.05242844 | BC24: 5.85924638 | BD24: 23.66646842 | BE24: 22.11954115 | BF24: 28.68354252 | BG24: =AVERAGE(BH24,BF24) -> 33.73259932 | BH24: =AVERAGE((IFERROR(AVERAGE(BH26:BH27)*(1-$F$8),BH25)),BH25) -> 38.78165613 | BI24: 31.92740278 | BJ24: 17.88899898 | BK24: 22.40148927 | BL24: 29.17876304 | BM24: 25.94852956 | BN24: 13.97058204 | BO24: 16.77481515 | BP24: 14.05623462 | BQ24: 14.15734776 | BR24: 31.12744001 | BS24: 9.208460266 | BT24: 20.98423538 | BU24: 15.63552811 | BV24: 19.23466025 | BW24: 37.77467269 | BX24: 9.855648997 | CA24: Nat NO3 | CB24: 20.53190513 | CC24: 1.779206788 | CD24: 0.08665570859
B25: 1 | C25: wdno3 | D25: =VLOOKUP(B25,$F$56:$H$70,2)&" "&C25 -> Goeree 1 wdno3 | E25: =INDIRECT(TEXT($C25," ")&"!"&TEXT(VLOOKUP(E$9,$B$56:$C$127,2)&VLOOKUP($B25,$F$56:$H$74,3)," ")) ->  | H25: 17.91101453 | I25: 26.38998115 | J25: 32.05217284 | K25: 24.69945529 | L25: 25.01204619 | M25: 23.48300094 | N25: 14.23004672 | O25: =INDIRECT(TEXT($C25," ")&"!"&TEXT(VLOOKUP(O$9,$B$56:$C$127,2)&VLOOKUP($B25,$F$56:$H$74,3)," ")) -> 4.340717334 | P25: 22.49370587 | Q25: 14.88057819 | R25: 9.932456728 | S25: 15.06806689 | T25: 17.78657075 | U25: 31.97645308 | V25: 31.33612732 | X25: 11.11780013 | Y25: =INDIRECT(TEXT($C25," ")&"!"&TEXT(VLOOKUP(Y$9,$B$56:$C$127,2)&VLOOKUP($B25,$F$56:$H$74,3)," ")) -> 11.14594813 | Z25: 35.5184916 | AA25: 16.45554912 | AB25: 34.29314841 | AC25: 10.42661044 | AD25: 9.017235326 | AE25: 10.72323436 | AF25: 6.774284458 | AG25: 38.73691046 | AH25: 18.26821425 | AI25: =INDIRECT(TEXT($C25," ")&"!"&TEXT(VLOOKUP(AI$9,$B$56:$C$127,2)&VLOOKUP($B25,$F$56:$H$74,3)," ")) -> 20.92992829 | AJ25: 21.25223108 | AK25: 26.30504334 | AL25: 39.41954052 | AM25: 16.09324655 | AO25: 27.20149941 | AP25: 17.96879199 | AQ25: 15.14197596 | AR25: 28.40083451 | AS25: =INDIRECT(TEXT($C25," ")&"!"&TEXT(VLOOKUP(AS$9,$B$56:$C$127,2)&VLOOKUP($B25,$F$56:$H$74,3)," ")) -> 12.0384536 | AT25: 26.67788083 | AU25: 26.38207996 | AV25: 31.40279363 | AW25: 7.782674082 | AX25: 26.1651264 | AY25: 11.43450624 | AZ25: 18.45274 | BA25: 30.50386843 | BB25: 11.20570089 | BC25: =INDIRECT(TEXT($C25," ")&"!"&TEXT(VLOOKUP(BC$9,$B$56:$C$127,2)&VLOOKUP($B25,$F$56:$H$74,3)," ")) -> 4.628452408 | BD25: 14.01128247 | BE25: 23.59147772 | BF25: 28.17927191 | BG25: 0 | CA25: Goeree 1 wdno3 | CB25: 20.85506898 | CC25: 2.037811801 | CD25: 0.09771302136
B26: 1 | C26: bdno3 | D26: Goeree 1 bdno3 | E26: 28.37201271 | F26: 30.919324 | G26: 22.5778043 | H26: 18.38208489 | I26: 31.59143637 | K26: 30.25888336 | M26: 26.66937592 | N26: 23.01881632 | O26: 14.46235713 | P26: 21.75467763 | Q26: 22.21633964 | R26: 9.372044122 | S26: 16.63760941 | T26: 16.84770065 | U26: 45.7765449 | V26: 39.12509244 | W26: 57.958245 | Y26: 40.29998725 | Z26: 48.76055865 | AA26: 27.80332987 | AB26: 36.46483467 | AC26: 20.92831879 | AD26: 15.06120692 | AE26: 18.00427981 | AF26: 16.51640293 | AG26: 59.80597044 | AH26: 30.04142996 | AI26: 46.27142647 | AJ26: 41.68784633 | AK26: 49.08808549 | AL26: 42.92505025 | AM26: 27.78483466 | AN26: 20.76994232 | AO26: 36.2008739 | AP26: 26.16982565 | AQ26: 25.9624279 | AR26: 38.89884035 | AS26: 37.4592665 | AT26: 45.15740425 | AU26: 91.88420795 | AV26: 56.01265655 | AW26: 26.30988648 | AX26: 44.96742432 | AZ26: 33.52732831 | BA26: 51.88912234 | BB26: 16.00015311 | BC26: 12.63115168 | BD26: 59.7485096 | BE26: 29.8974187 | BG26: 0 | BK26: 38.99203466 | BL26: 67.04747401 | BM26: =INDIRECT(TEXT($C26," ")&"!"&TEXT(VLOOKUP(BM$9,$B$56:$C$127,2)&VLOOKUP($B26,$F$56:$H$74,3)," ")) -> 47.88643547 | BN26: 19.89510089 | BO26: 27.36519089 | BP26: 20.81932274 | BV26: 37.96294676 | BW26: 61.04281523 | BX26: 16.0574344 | CA26: Goeree 1 bdno3 | CB26: 33.6131804 | CC26: 2.864926775 | CD26: 0.08523224346
B27: 7 | C27: bdno3 | D27: Oostvoorne Noord 1 bdno3 | F27: 35.53666239 | G27: 25.33359073 | H27: 13.44727531 | I27: 12.45032957 | J27: 46.79036977 | K27: 39.08810202 | L27: 31.07375003 | M27: 30.17664252 | N27: 17.2251466 | O27: 6.830299357 | P27: 26.43378643 | Q27: 25.05580343 | R27: 12.4187261 | S27: 16.28207041 | T27: 19.62754881 | V27: 37.84928202 | W27: 56.30444993 | X27: 53.09095192 | Y27: 29.45227668 | Z27: 51.99309056 | AA27: 26.86492237 | AB27: 43.48565266 | AC27: 28.14504236 | AD27: 19.44439235 | AE27: 24.95003956 | AF27: 21.82039848 | AG27: 63.9092138 | AI27: 59.00654638 | AJ27: 36.46716902 | AK27: 61.00762046 | AL27: 39.54383838 | AM27: 17.61965125 | AN27: 21.99224233 | AO27: 41.7704463 | AP27: 32.73544597 | AQ27: 30.53325892 | AR27: 47.36551696 | AS27: 48.96957249 | AT27: 31.90675278 | AU27: 48.04624846 | AV27: 45.18505728 | AW27: 21.13841002 | AY27: 23.58408743 | AZ27: 34.36877062 | BA27: 47.59913122 | BB27: 20.33036682 | BC27: 11.00231616 | BD27: 51.32367166 | BE27: 38.9279299 | BF27: 48.64635521 | BG27: 0 | BH27: 64.63609354 | BI27: 53.21233796 | BJ27: 29.8149983 | BK27: 35.67959625 | BL27: 30.21506946 | BM27: 38.60866306 | BN27: 26.67350591 | BO27: 28.55085961 | BP27: 26.03479266 | BQ27: 23.5955796 | BR27: 51.87906669 | BS27: 15.34743378 | BT27: 34.97372563 | BU27: 26.05921352 | BV27: 26.1525874 | BW27: 64.87276042 | BX27: 16.79472892
B28: 1 | C28: wdpo4 | D28: Goeree 1 wdpo4 | H28: 0 | I28: 0 | J28: 0 | K28: 1.787099344 | L28: 0 | M28: 0 | N28: 0.2681244517 | O28: 0.02181023441 | P28: 0 | Q28: -0.269166579 | R28: 0 | S28: 0.1081579201 | T28: -0.2331387515 | U28: 0 | V28: -1.18087904 | X28: 0.1733653104 | Y28: 0.6574334141 | Z28: 0.7300845704 | AA28: -0.3382447276 | AB28: 0 | AC28: 0 | AD28: 0.2471330316 | AE28: -0.2139338352 | AF28: 0.0537439906 | AG28: -0.5474145525 | AH28: 0.5329736464 | AI28: 0.3785899393 | AJ28: 0.3432320508 | AK28: -1.652143866 | AL28: 1.150061849 | AM28: 0 | AO28: 0.4920329333 | AP28: 1.203805839 | AQ28: 0.2361162579 | AR28: 1.270204232 | AS28: 0 | AT28: 0 | AU28: 0 | AV28: 0.4303241131 | AW28: 0 | AX28: 2.490981858 | AY28: 0.4700738236 | AZ28: 0 | BA28: -1.724273959 | BB28: -0.1447812489 | BC28: -0.1231198898 | BD28: 0 | BE28: 0.4225081588 | BF28: 0.336607099 | BG28: 0 | BO28: 0 | BP28: 0 | BQ28: 0 | BR28: 0 | BS28: 0 | BT28: 0 | BU28: 0 | BV28: 0 | BW28: 0 | BX28: 0 | CA28: Goeree 1 wdpo4 | CB28: 0.6522674405 | CC28: 0.05328830659 | CD28: 0.0816970207
B29: 1 | C29: bdpo4 | D29: Goeree 1 bdpo4 | E29: 0.3054795854 | F29: 0 | G29: 0.05489213177 | H29: 0 | I29: 0 | K29: 0.8552129169 | M29: 0 | N29: 0.4879390826 | O29: 0.07649169842 | P29: -0.3074284185 | Q29: 0.5108378713 | R29: 0.3162793687 | S29: 0 | T29: -0.2031658487 | U29: 0 | V29: -0.8042184513 | W29: -0.4945163942 | Y29: 1.540065342 | Z29: 0.3868433665 | AA29: 0 | AB29: 0 | AC29: 0 | AD29: 0.1309778233 | AE29: 0.07982095493 | AF29: 0.05927700621 | AG29: -0.3219634652 | AH29: 0.1561502506 | AI29: 0 | AJ29: 1.0604088 | AK29: -0.3363361092 | AL29: 2.32934274 | AM29: 0 | AN29: 0.2981714614 | AO29: 0 | AP29: 0.5635375659 | AQ29: 0.111814298 | AR29: 0.283717616 | AS29: 0 | AT29: 0.5304074035 | AU29: 3.813866339 | AV29: 0.3896854148 | AW29: 0.4686943559 | AX29: 0.8841206076 | AZ29: 0.5546866156 | BA29: -0.7004430898 | BB29: 0.2038154597 | BC29: 0 | BD29: -0.2127476113 | BE29: 0.2428733227 | BG29: 0 | BK29: 1.052694669 | BL29: 0.7978847438 | BM29: 1.101090691 | BN29: 0.2142092361 | BO29: 0 | BP29: 0.5304074035 | BV29: 0.7464030699 | BW29: 1.166376599 | BX29: 0.07892773977
B30: 7 | C30: bdpo4 | D30: Oostvoorne Noord 1 bdpo4 | F30: 0.6343451678 | G30: 0 | H30: 0 | I30: 0 | J30: 0 | K30: 0.5701960789 | L30: 0.2810379705 | M30: 0.3688166605 | N30: 0.3314640265 | O30: 0 | P30: 0 | Q30: 0.5963429227 | R30: 0.08022696182 | S30: 0.1963449329 | T30: -0.2064139038 | V30: 0 | W30: -0.3917154492 | X30: 1.235722576 | Y30: 0.4514796637 | Z30: -0.4702371821 | AA30: 0.1813226779 | AB30: -0.9364142953 | AC30: 0.1497353417 | AD30: 0.3032059468 | AE30: 0.3286219782 | AF30: -0.06284986685 | AG30: -0.310757675 | AI30: 1.694185558 | AJ30: 0.9036089384 | AK30: -1.97059505 | AL30: 4.087352581 | AM30: 0.234347178 | AN30: 0.08647946796 | AO30: 0 | AP30: 0.5482717067 | AQ30: 0.1327642536 | AR30: 0.5059657886 | AS30: 0.1677620477 | AT30: 0.2106363755 | AU30: -0.3218822638 | AV30: 0 | AW30: 0.2124228058 | AY30: -0.3231814859 | AZ30: 0.2072259176 | BA30: -1.614364603 | BB30: 0 | BC30: 0.06910237299 | BD30: -0.1732025401 | BE30: 2.051958831 | BF30: 0.6470125828 | BG30: 0 | BH30: 1.486228828 | BI30: -0.3645941889 | BJ30: 0.09630483474 | BK30: -0.3226942776 | BL30: 0 | BM30: -0.3563116483 | BN30: 0.5360915 | BO30: 0 | BP30: -0.7028791311 | BQ30: 0.5862739518 | BR30: 0.4265508405 | BS30: 0.09914688298 | BT30: 1.180262035 | BU30: 0.08071417009 | BV30: 0.892565551 | BW30: 0.8037312431 | BX30: 0.1939088915 | CA30: Oostvoorne Noord 1 bdpo4 | CB30: 0.5653802125 | CC30: 0.08183572397 | CD30: 0.1447445845
B31: 5 | C31: wdno3 | D31: Oostvoorne Zuid 2 wdno3 | H31: 16.69126802 | I31: 20.29816215 | J31: 10.43352399 | K31: 14.57440701 | L31: 27.60281412 | M31: 14.49868725 | S31: 3.333644575 | T31: 11.70693276 | U31: 38.36720052 | V31: 26.62257249 | W31: 74.8308722 | X31: 18.0858284 | Y31: 0.8849334997 | AB31: 45.84699557 | AC31: 13.86906101 | AD31: 7.33411683 | AE31: 11.6937641 | AF31: 6.168855624 | AG31: 30.45909501 | AH31: 7.904813341 | AI31: 16.33324526 | AJ31: 0.6804901577 | AK31: 25.20430853 | AL31: 29.20741452 | AU31: 21.90967609 | AV31: 23.14094517 | AW31: 3.765411794 | AX31: 20.16565258 | AZ31: 12.68865586 | BA31: 23.12859956 | BB31: 8.297239208 | BC31: 2.686405267 | BD31: 17.85043872 | BG31: 0 | BH31: 35.36952121 | BI31: 23.98423281 | BJ31: 9.876983776 | BK31: 14.0601711 | BL31: 13.022152 | BM31: 23.14522499 | BN31: 16.82855123 | BO31: 15.82180769 | BP31: 14.39992235 | BQ31: 11.5041355 | BR31: 33.93627791 | BU31: 11.77771427 | BV31: 9.461677374 | BW31: 36.67733308 | BX31: 4.933800555
B32: 5 | C32: bdno3 | D32: Oostvoorne Zuid 2 bdno3 | E32: 27.21058529 | F32: 31.68157808 | P32: 25.32874247 | AA32: 21.75611415 | BG32: 0 | BT32: 23.63328828
B33: 5 | C33: bdpo4 | D33: Oostvoorne Zuid 2 bdpo4 | E33: 0.2929745731 | F33: -0.2017854252 | P33: 1.579854017 | AA33: -0.3783984232 | BG33: 0 | BT33: 0.2181069023 | CA33: Oostvoorne Zuid 2 bdpo4 | CB33: 0.9364142953 | CC33: 0.2078790041 | CD33: 0.2219946931
D34: cum.nat mol/ha | E34: =+E24+E17 -> 38.30221716 | F34: =+F24+F17+E34 -> 99.6400759 | G34: =+G24+G17+F34 -> 133.2007225 | H34: 153.5222859 | I34: 188.3525528 | J34: 264.6327397 | K34: 321.497561 | L34: 374.7863879 | M34: 419.6899137 | N34: 447.4978376 | O34: 463.9601332 | P34: 498.7327146 | Q34: =+Q24+Q17 -> 30.7640813 | R34: 50.24825453 | S34: 92.15228727 | T34: 133.9965566 | U34: 208.1000454 | V34: 273.7165223 | W34: 342.1018644 | X34: 391.521982 | Y34: 426.5888319 | Z34: 492.0064705 | AA34: 520.4481542 | AB34: 569.5098308 | AC34: =+AC24+AC17 -> 25.49404633 | AD34: 44.00438629 | AE34: 76.68409752 | AF34: 100.5403537 | AG34: 177.4450602 | AH34: 218.8842197 | AI34: 266.0387721 | AJ34: 308.254054 | AK34: 368.9888219 | AL34: 434.5304499 | AM34: 459.7203206 | AN34: =+AN24+AN17+AM34 -> 487.0263628 | AO34: =+AO24+AO17 -> 44.5230407 | AP34: 79.32813027 | AQ34: 107.8596652 | AR34: 168.5789554 | AS34: 198.3767561 | AT34: 235.8813465 | AU34: 292.566833 | AV34: 349.3217885 | AW34: 367.8192141 | AX34: 424.4101095 | AY34: 445.6275102 | AZ34: 474.3103717 | BA34: =+BA24+BA17 -> 48.15176468 | BB34: 69.77321239 | BC34: 77.54575911 | BD34: 112.6954893 | BE34: 143.836396 | BF34: 191.6841372 | BG34: 252.7463735 | BH34: 327.0231047 | BI34: 381.444814 | BJ34: 408.9172052 | BK34: 444.7869969 | BL34: 491.0094111 | BM34: =+BM24+BM17 -> 39.27025291 | BN34: 71.68781469 | BO34: 111.9616573 | BP34: 151.5586828 | BQ34: 179.7178031 | BR34: 257.5364031 | BS34: =+BS24+BS17+BR34 -> 272.0726154 | BT34: 328.2915744 | BU34: 358.8665283 | BV34: 404.9291923 | BW34: 469.3767245 | BX34: 489.9746614
D35: jaarlijks | P35: =ROUND(+P34/1000,1)*1000 -> 500 | AB35: =ROUND(+AB34/1000,1)*1000 -> 600 | AN35: =ROUND(+AN34/1000,1)*1000 -> 500 | AZ35: =ROUND(+AZ34/1000,1)*1000 -> 500 | BL35: =ROUND(+BL34/1000,1)*1000 -> 500 | BX35: =ROUND(+BX34/1000,1)*1000 -> 500
D36: cum. nat NO3 mol/ha | E36: =+E24 -> 17.02320763 | F36: =+F24+E36 -> 36.96000354 | G36: =+G24+F36 -> 51.33342205 | H36: 65.06333335 | I36: 84.86458881 | J36: 114.9277862 | K36: 137.6795616 | L36: 159.5077097 | M36: 179.776113 | N36: 192.9277308 | O36: 198.2919879 | P36: 216.7671104 | Q36: =+Q24 -> 14.53111056 | R36: =+R24+Q36 -> 22.76595446 | S36: =+S24+R36 -> 35.23793988 | T36: 49.60251267 | U36: 79.32370269 | V36: 106.5379225 | W36: 140.816731 | X36: 162.3029166 | Y36: 178.3387303 | Z36: 211.2110235 | AA36: 227.6390359 | AB36: 256.7781832 | AC36: =+AC24 -> 12.57430939 | AD36: =+AD24+AC36 -> 22.25876695 | AE36: =+AE24+AD36 -> 34.06353203 | AF36: 43.20119447 | AG36: 81.12692733 | AH36: 99.27346345 | AI36: 125.5301235 | AJ36: 147.8794914 | AK36: 177.5463689 | AL36: 209.6264725 | AM36: 224.4837686 | AN36: 237.312424 | AO36: =+AO24 -> 25.29644773 | AP36: =+AP24+AO36 -> 43.11663447 | AQ36: =+AQ24+AP36 -> 59.16197548 | AR36: 86.30204633 | AS36: 105.285599 | AT36: 130.1841629 | AU36: 164.3647714 | AV36: 195.2458253 | AW36: 206.2544068 | AX36: 232.8271973 | AY36: 245.6196766 | AZ36: 265.0304615 | BA36: =+BA24 -> 30.17517225 | BB36: =+BB24+BA36 -> 41.22760069 | BC36: =+BC24+BB36 -> 47.08684707 | BD36: 70.75331549 | BE36: 92.87285664 | BF36: 121.5563992 | BG36: 155.2889985 | BH36: 194.0706546 | BI36: 225.9980574 | BJ36: 243.8870564 | BK36: 266.2885456 | BL36: 295.4673087 | BM36: =+BM24 -> 25.94852956 | BN36: =+BN24+BM36 -> 39.9191116 | BO36: =+BO24+BN36 -> 56.69392675 | BP36: 70.75016137 | BQ36: 84.90750912 | BR36: 116.0349491 | BS36: 125.2434094 | BT36: 146.2276448 | BU36: 161.8631729 | BV36: 181.0978331 | BW36: =+BV36 -> 181.0978331 | BX36: =+BW36 -> 181.0978331
D37: cum. droog NH3 mol/ha | E37: =+E11 -> 48.71995388 | F37: =+F11+E37 -> 155.963024 | G37: =+G11+F37 -> 286.5012505 | H37: 365.4513894 | I37: 453.9603755 | J37: 518.8220991 | K37: 570.8941803 | L37: 592.4736128 | M37: 640.5707747 | N37: 711.9627987 | O37: 808.7794756 | P37: 840.8340619 | Q37: =+Q11 -> 16.74121265 | R37: =+R11+Q37 -> 41.67484031 | S37: =+S11+R37 -> 112.1263826 | T37: 147.9603325 | U37: 336.5885754 | V37: 398.0639909 | W37: 493.5508953 | X37: 564.3435728 | Y37: 622.3701873 | Z37: 687.7192913 | AA37: 728.4233746 | AB37: 749.983246 | AC37: =+AC11 -> 1.590710968 | AD37: =+AD11+AC37 -> 13.13639675 | AE37: =+AE11+AD37 -> 44.7036812 | AF37: 71.93305188 | AG37: 188.9284679 | AH37: 324.033431 | AI37: 497.7299936 | AJ37: 598.0642115 | AK37: 692.8154439 | AL37: 801.2524541 | AM37: 846.0781143 | AN37: 868.092819 | AO37: =+AO11 -> 55.28154757 | AP37: =+AP11+AO37 -> 112.4003844 | AQ37: =+AQ11+AP37 -> 243.6991633 | AR37: 369.7799425 | AS37: 460.9828483 | AT37: 550.5131505 | AU37: 771.1386785 | AV37: 841.5778932 | AW37: 951.9915032 | AX37: 1076.162298 | AY37: 1189.447227 | AZ37: 1288.888309 | BA37: =+BA11 -> 21.72063476 | BB37: =+BB11+BA37 -> 58.22067836 | BC37: =+BC11+BB37 -> 134.986811 | BD37: 144.0912037 | BE37: 222.1794426 | BF37: 317.7355444 | BG37: 475.9597761 | BH37: 645.4541739 | BI37: 723.0847252 | BJ37: 777.5821933 | BK37: 897.6771875 | BL37: 965.7854253 | BM37: =+BM11 -> 74.0745931 | BN37: =+BN11+BM37 -> 150.5197243 | BO37: =+BO11+BN37 -> 233.9198076 | BP37: 364.812736 | BQ37: 710.6780419 | BR37: 1191.714081 | BS37: 1303.94168 | BT37: 1480.099211 | BU37: 1661.915721 | BV37: 1974.73597 | BW37: =+BV37 -> 1974.73597 | BX37: =+BW37 -> 1974.73597
D38: cum. droog mol/ha | E38: =SUMIF(E11:E16,">0") -> 66.32276935 | F38: =SUMIF(F11:F16,">0")+E38 -> 194.1844217 | G38: =SUMIF(G11:G16,">0")+F38 -> 372.8888126 | H38: 559.0670065 | I38: 735.4276461 | J38: 848.9382286 | K38: 957.9937799 | L38: 1030.764428 | M38: 1140.674153 | N38: 1272.54305 | O38: 1445.275685 | P38: =SUMIF(P11:P16,">0")+O38 -> 1489.780805 | Q38: =SUMIF(Q11:Q16,">0") -> 40.02367407 | R38: =SUMIF(R11:R16,">0")+Q38 -> 101.4715671 | S38: =SUMIF(S11:S16,">0")+R38 -> 245.3679169 | T38: 303.2330002 | U38: 561.5788623 | V38: 659.1020135 | W38: 822.8140309 | X38: 951.7270485 | Y38: 1047.550897 | Z38: 1151.721792 | AA38: 1216.366274 | AB38: =SUMIF(AB11:AB16,">0")+AA38 -> 1254.35784 | AC38: =SUMIF(AC11:AC16,">0") -> 20.74829075 | AD38: =SUMIF(AD11:AD16,">0")+AC38 -> 46.49772989 | AE38: =SUMIF(AE11:AE16,">0")+AD38 -> 100.0776485 | AF38: 148.7416006 | AG38: 303.778322 | AH38: 486.9597267 | AI38: 754.2946037 | AJ38: 923.6638526 | AK38: 1057.74953 | AL38: 1211.17357 | AM38: 1271.131342 | AN38: =SUMIF(AN11:AN16,">0")+AM38 -> 1311.456322 | AO38: =SUMIF(AO11:AO16,">0") -> 71.60395646 | AP38: =SUMIF(AP11:AP16,">0")+AO38 -> 146.80887 | AQ38: =SUMIF(AQ11:AQ16,">0")+AP38 -> 331.6057068 | AR38: 503.5308825 | AS38: 631.2904669 | AT38: 773.3395607 | AU38: 1058.653766 | AV38: 1159.632339 | AW38: 1326.575672 | AX38: 1491.217653 | AY38: 1639.97118 | AZ38: =SUMIF(AZ11:AZ16,">0")+AY38 -> 1772.705053 | BA38: =SUMIF(BA11:BA16,">0") -> 39.76113889 | BB38: =SUMIF(BB11:BB16,">0")+BA38 -> 92.37653798 | BC38: =SUMIF(BC11:BC16,">0")+BB38 -> 188.0346136 | BD38: 218.0480182 | BE38: 320.2292278 | BF38: 456.2024178 | BG38: 682.4247593 | BH38: 895.5323239 | BI38: 1000.539079 | BJ38: 1084.816845 | BK38: 1228.429118 | BL38: =SUMIF(BL11:BL16,">0")+BK38 -> 1308.684456 | BM38: =SUMIF(BM11:BM16,">0") -> 93.39618907 | BN38: =SUMIF(BN11:BN16,">0")+BM38 -> 189.138371 | BO38: =SUMIF(BO11:BO16,">0")+BN38 -> 294.9488423 | BP38: 451.0127193 | BQ38: 873.0231255 | BR38: 1442.519161 | BS38: 1596.751285 | BT38: 1821.386827 | BU38: 2068.078441 | BV38: 2452.645312 | BW38: 2592.284207 | BX38: =SUMIF(BX11:BX16,">0")+BW38 -> 2731.140033
D39: jaarlijks | P39: =ROUND(+P38/1000,1)*1000 -> 1500 | AB39: =ROUND(+AB38/1000,1)*1000 -> 1300 | AN39: =ROUND(+AN38/1000,1)*1000 -> 1300 | AZ39: =ROUND(+AZ38/1000,1)*1000 -> 1800 | BL39: =ROUND(+BL38/1000,1)*1000 -> 1300 | BX39: =ROUND(+BX38/1000,1)*1000 -> 2700
D40: cum. mol/ha | E40: =SUMIF(E11:E16,">0")+E17+E24 -> 104.6249865 | F40: =SUMIF(F11:F16,">0")+F17+F24+E40 -> 293.8244976 | G40: 506.0895351 | H40: 712.5892924 | I40: 923.7801989 | J40: 1113.570968 | K40: 1279.491341 | L40: 1405.550816 | M40: 1560.364066 | N40: 1720.040888 | O40: 1909.235819 | P40: 1988.513519 | Q40: =SUMIF(Q11:Q16,">0")+Q17+Q24 -> 70.78775537 | R40: =SUMIF(R11:R16,">0")+R17+R24+Q40 -> 151.7198216 | S40: =SUMIF(S11:S16,">0")+S17+S24+R40 -> 337.5202042 | T40: 437.2295569 | U40: 769.6789078 | V40: 932.8185357 | W40: 1164.915895 | X40: 1343.249031 | Y40: 1474.139729 | Z40: 1643.728262 | AA40: 1736.814428 | AB40: 1823.867671 | AC40: =SUMIF(AC11:AC16,">0")+AC17+AC24 -> 46.24233708 | AD40: =SUMIF(AD11:AD16,">0")+AD17+AD24+AC40 -> 90.50211619 | AE40: =SUMIF(AE11:AE16,">0")+AE17+AE24+AD40 -> 176.761746 | AF40: 249.2819543 | AG40: 481.2233822 | AH40: 705.8439464 | AI40: 1020.333376 | AJ40: 1231.917907 | AK40: 1426.738352 | AL40: 1645.70402 | AM40: 1730.851662 | AN40: 1798.482685 | AO40: =SUMIF(AO11:AO16,">0")+AO17+AO24 -> 116.1269972 | AP40: =SUMIF(AP11:AP16,">0")+AP17+AP24+AO40 -> 226.1370003 | AQ40: =SUMIF(AQ11:AQ16,">0")+AQ17+AQ24+AP40 -> 439.4653721 | AR40: 672.1098379 | AS40: 829.667223 | AT40: 1009.220907 | AU40: 1351.220599 | AV40: 1508.954127 | AW40: 1694.394886 | AX40: 1915.627763 | AY40: 2085.59869 | AZ40: 2247.015424 | BA40: =SUMIF(BA11:BA16,">0")+BA17+BA24 -> 87.91290357 | BB40: =SUMIF(BB11:BB16,">0")+BB17+BB24+BA40 -> 162.1497504 | BC40: =SUMIF(BC11:BC16,">0")+BC17+BC24+BB40 -> 265.5803727 | BD40: 330.7435076 | BE40: 464.0656237 | BF40: 647.886555 | BG40: 935.1711328 | BH40: 1222.555429 | BI40: 1381.983893 | BJ40: 1493.73405 | BK40: 1673.216115 | BL40: 1799.693868 | BM40: =SUMIF(BM11:BM16,">0")+BM17+BM24 -> 132.666442 | BN40: =SUMIF(BN11:BN16,">0")+BN17+BN24+BM40 -> 260.8261857 | BO40: 406.9104996 | BP40: 602.5714021 | BQ40: 1052.740929 | BR40: 1700.055564 | BS40: 1868.823901 | BT40: 2149.678402 | BU40: 2426.944969 | BV40: 2857.574504 | BW40: =SUMIF(BW11:BW16,">0")+BW17+BW24+BV40 -> 3061.660932 | BX40: =SUMIF(BX11:BX16,">0")+BX17+BX24+BW40 -> 3221.114694 | CA40: =D40 -> cum. mol/ha | CB40: =AVERAGE(E40:AN40) -> 1000.223034 | CC40: =SQRT(SUMSQ(E40:AN40)/$CB$6)/COUNT(E40:AN40) -> 98.30881445 | CD40: 0.09828689317
D41: jaarlijks | P41: =ROUND(+P40/1000,1)*1000 -> 2000 | AB41: =ROUND(+AB40/1000,1)*1000 -> 1800 | AN41: =ROUND(+AN40/1000,1)*1000 -> 1800 | AZ41: =ROUND(+AZ40/1000,1)*1000 -> 2200 | BL41: =ROUND(+BL40/1000,1)*1000 -> 1800 | BX41: =ROUND(+BX40/1000,1)*1000 -> 3200
E42: =SUMIF(E11,">0")+E17+E24 -> 87.02217105 | F42: =SUMIF(F11,">0")+F17+F24+E42 -> 255.6030999 | G42: =SUMIF(G11,">0")+G17+G24+F42 -> 419.701973 | H42: 518.9736753 | I42: 642.3129283 | J42: 783.4548388 | K42: 892.3917413 | L42: 967.2600008 | M42: 1060.260688 | N42: 1159.460636 | O42: 1272.739609 | P42: 1339.566777 | Q42: =SUMIF(Q11,">0")+Q17+Q24 -> 47.50529394 | R42: 91.92309484 | S42: 204.2786699 | T42: 281.9568892 | U42: 544.6886208 | V42: 671.7805131 | W42: 835.6527597 | X42: 955.8655549 | Y42: 1048.959019 | Z42: 1179.725762 | AA42: 1248.871529 | AB42: 1319.493077 | AC42: =SUMIF(AC11,">0")+AC17+AC24 -> 27.08475729 | AD42: 57.14078304 | AE42: 121.3877787 | AF42: 172.4734056 | AG42: 366.3735281 | AH42: 542.9176507 | AI42: 763.7687657 | AJ42: 906.3182654 | AK42: 1061.804266 | AL42: 1235.782904 | AM42: 1305.798435 | AN42: 1355.119182 | AO42: =SUMIF(AO11,">0")+AO17+AO24 -> 99.80458827 | AP42: 191.7285146 | AQ42: 351.5588286 | AR42: 538.358898 | AS42: 659.3596044 | AT42: 786.394497 | AU42: 1063.705511 | AV42: 1190.899682 | AW42: 1319.810717 | AX42: 1500.572408 | AY42: 1635.074737 | AZ42: 1763.19868 | BA42: =SUMIF(BA11,">0")+BA17+BA24 -> 69.87239944 | BB42: 127.9938908 | BC42: 212.5325701 | BD42: 256.786693 | BE42: 366.0158385 | BF42: 509.4196816 | BG42: 728.7061495 | BH42: 972.4772786 | BI42: 1104.529539 | BJ42: 1186.499399 | BK42: 1342.464184 | BL42: 1456.794836 | BM42: =SUMIF(BM11,">0")+BM17+BM24 -> 113.344846 | BN42: 222.207539 | BO42: 345.8814648 | BP42: 516.3714189 | BQ42: 890.395845 | BR42: 1449.250485 | BS42: =SUMIF(BS11,">0")+BS17+BS24+BR42 -> 1576.014295 | BT42: 1808.390785 | BU42: 2020.782249 | BV42: 2379.665163 | BW42: 2553.577845 | BX42: 2660.271973
D43: wet depo | E43: =AVERAGE(E18:E20) -> 23.64334393 | F43: =AVERAGE(F18:F20) -> 46.00118091 | G43: =AVERAGE(G18:G20) -> 21.31914235 | H43: 8.979571081 | I43: 13.3056407 | J43: 48.90055484 | K43: 38.86506611 | L43: 33.16973507 | M43: 26.9293293 | N43: 16.27795881 | O43: 14.88924076 | P43: 17.42404177 | Q43: 17.98638775 | R43: 12.214461 | S43: 31.42279088 | T43: 27.79320038 | U43: 46.82227498 | V43: 42.35252744 | W43: 37.89614852 | X43: 29.8662865 | Y43: 20.49426979 | Z43: 33.74482999 | AA43: 11.85575 | AB43: 22.14112566 | AC43: 15.64209827 | AD43: 10.06963624 | AE43: 22.12414997 | AF43: 15.99502165 | AG43: 39.00585373 | AH43: 24.58751259 | AI43: 21.5801319 | AJ43: 19.53576505 | AK43: 32.63041746 | AL43: 32.99475754 | AM43: 9.965178068 | AN43: 16.08598526 | AO43: 20.28309309 | AP43: 18.65560216 | AQ43: 13.18000205 | AR43: 31.9458988 | AS43: 12.65523696 | AT43: 13.42439296 | AU43: 26.32433829 | AV43: 26.70104178 | AW43: 10.35474932 | AX43: 30.16460383 | AY43: 9.014523559 | AZ43: 9.540437951 | BA43: 19.2531595 | BB43: 11.48383098 | BC43: 2.168989913 | BD43: 14.43790822 | BE43: 11.08110245 | BF43: 20.10612571 | BG43: 0 | BH43: 39.43897233 | BI43: 24.99367389 | BJ43: 10.64821368 | BK43: 14.96478043 | BL43: 18.93739013 | BM43: 14.80191484 | BN43: 20.49664416 | BO43: 26.11003046 | BP43: 28.37865662 | BQ43: 15.55752501 | BR43: 51.87906669 | BS43: =AVERAGE(BS18:BS20) -> 5.919724457 | BT43: 39.14969287 | BU43: 16.59936204 | BV43: 29.80889308 | BW43: 29.63651053 | BX43: 11.9358754 | CA43: =D43 -> wet depo | CB43: =AVERAGE(E43:AN43) -> 25.12531573 | CC43: =SQRT(SUMSQ(E43:AN43)/$CB$6)/COUNT(E43:AN43) -> 2.291337704 | CD43: 0.09119637454
D44: dry depo | E44: =SUM(E11:E16) -> 66.32276935 | F44: =SUM(F11:F16) -> 127.8616524 | G44: =SUM(G11:G16) -> 178.7043909 | H44: =SUM(H11:H16) -> 186.1781939 | I44: =SUM(I11:I16) -> 176.3606396 | J44: =SUM(J11:J16) -> 113.5105825 | K44: 109.0555513 | L44: 72.77064823 | M44: 109.9097245 | N44: 131.8688975 | O44: 172.7326352 | P44: 44.50511939 | Q44: 40.02367407 | R44: 61.44789305 | S44: 143.8963498 | T44: 57.86508333 | U44: 258.3458621 | V44: 97.52315113 | W44: 163.7120174 | X44: 128.9130176 | Y44: 95.82384823 | Z44: 104.1708949 | AA44: 64.64448212 | AB44: 37.99156627 | AC44: 20.74829075 | AD44: 25.74943914 | AE44: 53.57991864 | AF44: 48.66395206 | AG44: 155.0367214 | AH44: 183.1814047 | AI44: 267.334877 | AJ44: 169.3692489 | AK44: 134.0856773 | AL44: 153.4240402 | AM44: 59.95777144 | AN44: 40.32498043 | AO44: 71.60395646 | AP44: 75.20491353 | AQ44: 184.7968368 | AR44: 171.9251757 | AS44: 127.7595844 | AT44: 142.0490938 | AU44: 285.3142051 | AV44: 100.9785728 | AW44: 166.943333 | AX44: 164.6419816 | AY44: 148.7535267 | AZ44: 132.7338728 | BA44: 39.76113889 | BB44: 52.61539909 | BC44: 95.65807566 | BD44: 30.01340458 | BE44: 102.1812095 | BF44: 135.97319 | BG44: 226.2223415 | BH44: 213.1075646 | BI44: 105.0067552 | BJ44: 84.27776585 | BK44: 143.6122734 | BL44: 80.25533818 | BM44: 93.39618907 | BN44: 95.74218197 | BO44: 105.8104713 | BP44: 156.0638769 | BQ44: 422.0104062 | BR44: 569.4960354 | BS44: 154.2321246 | BT44: 224.6355419 | BU44: 246.6916137 | BV44: =SUM(BV11:BV16) -> 384.5668709 | BW44: =SUM(BW11:BW16) -> 139.6388955 | BX44: =SUM(BX11:BX16) -> 138.8558251 | CA44: =D44 -> dry depo | CB44: =AVERAGE(E44:AN44) -> 112.6554157 | CC44: =SQRT(SUMSQ(E44:AN44)/$CB$6)/COUNT(E44:AN44) -> 10.71685178 | CD44: 0.09512948587
D45: dry of total | E45: =E44/(SUM(E43:E44)) -> 0.7371972283 | F45: =F44/(SUM(F43:F44)) -> 0.7354168223 | G45: =G44/(SUM(G43:G44)) -> 0.8934168295 | H45: =H44/(SUM(H43:H44)) -> 0.9539881435 | I45: =I44/(SUM(I43:I44)) -> 0.9298470942 | J45: 0.6989088579 | K45: 0.7372572749 | L45: 0.6869018778 | M45: 0.803204359 | N45: 0.8901228199 | O45: 0.9206422989 | P45: 0.7186456034 | Q45: =Q44/(SUM(Q43:Q44)) -> 0.6899436548 | R45: =R44/(SUM(R43:R44)) -> 0.8341831298 | S45: =S44/(SUM(S43:S44)) -> 0.8207680533 | T45: 0.6755340035 | U45: 0.8465689262 | V45: 0.697213069 | W45: 0.8120306866 | X45: 0.8119006336 | Y45: 0.8238084476 | Z45: 0.7553228248 | AA45: 0.8450233461 | AB45: 0.631795535 | AC45: 0.5701585311 | AD45: 0.718875037 | AE45: 0.7077548093 | AF45: 0.7526248759 | AG45: =AG44/(SUM(AG43:AG44)) -> 0.7989830134 | AH45: =AH44/(SUM(AH43:AH44)) -> 0.8816593314 | AI45: =AI44/(SUM(AI43:AI44)) -> 0.9253062969 | AJ45: =AJ44/(SUM(AJ43:AJ44)) -> 0.8965841899 | AK45: 0.8042755409 | AL45: 0.8230073473 | AM45: 0.8574834423 | AN45: 0.7148429377 | AO45: 0.7792605901 | AP45: 0.801241214 | AQ45: 0.9334265456 | AR45: 0.8433034265 | AS45: 0.9098724989 | AT45: 0.9136547765 | AU45: 0.9155292603 | AV45: 0.790874668 | AW45: 0.9415969469 | AX45: 0.845156139 | AY45: 0.942862173 | AZ45: 0.932943355 | BA45: 0.673754327 | BB45: 0.8208429186 | BC45: 0.9778283249 | BD45: 0.6751972593 | BE45: 0.9021642569 | BF45: 0.8711800752 | BG45: 1 | BH45: 0.8438348322 | BI45: 0.8077416046 | BJ45: 0.8878261385 | BK45: 0.9056308585 | BL45: 0.8090848951 | BM45: 0.8631961716 | BN45: 0.8236678325 | BO45: 0.8020775383 | BP45: 0.8461382194 | BQ45: 0.9644454634 | BR45: 0.9165092607 | BS45: 0.9630368023 | BT45: 0.8515849725 | BU45: 0.936954307 | BV45: 0.9280631358 | BW45: 0.8249213443 | BX45: 0.9208452762
D46: nh3+nox of total | E46: =SUM(E11:E12)/SUM(E11:E16) -> 0.8827600968 | F46: =SUM(F11:F12)/SUM(F11:F16) -> 0.9253514124 | G46: =SUM(G11:G12)/SUM(G11:G16) -> 0.8227113919 | H46: =SUM(H11:H12)/SUM(H11:H16) -> 0.6751741494 | I46: =SUM(I11:I12)/SUM(I11:I16) -> 0.7791313892 | J46: 0.8272242474 | K46: 0.7908988473 | L46: 0.7201332392 | M46: 0.7478671483 | N46: 0.7081309874 | O46: 0.6596697581 | P46: 0.8098307034 | Q46: =SUM(Q11:Q12)/SUM(Q11:Q16) -> 0.5846525409 | R46: =SUM(R11:R12)/SUM(R11:R16) -> 0.5593798243 | S46: =SUM(S11:S12)/SUM(S11:S16) -> 0.5825124143 | T46: 0.7026447882 | U46: 0.8431912479 | V46: 0.8762540165 | W46: 0.8756909463 | X46: 0.8595482818 | Y46: 0.8262412595 | Z46: 0.7833160762 | AA46: 0.7313203556 | AB46: 0.7194179524 | AC46: 0.4807211112 | AD46: 0.6689576833 | AE46: 0.7245824942 | AF46: 0.7622702397 | AG46: =SUM(AG11:AG12)/SUM(AG11:AG16) -> 0.8761615419 | AH46: =SUM(AH11:AH12)/SUM(AH11:AH16) -> 0.9127571797 | AI46: =SUM(AI11:AI12)/SUM(AI11:AI16) -> 0.8769806241 | AJ46: =SUM(AJ11:AJ12)/SUM(AJ11:AJ16) -> 0.8839131518 | AK46: 0.8680450535 | AL46: 0.8778797398 | AM46: 0.8389932368 | AN46: 0.6906430953 | AO46: 0.8511998259 | AP46: 0.8512169779 | AQ46: 0.8122786535 | AR46: 0.865287284 | AS46: =SUM(AS11:AS12)/SUM(AS11:AS16) -> 0.8899245207 | AT46: 0.8928639591 | AU46: 0.935501965 | AV46: 0.9514174381 | AW46: 0.8408364481 | AX46: 0.9143968526 | AY46: 0.8305112745 | AZ46: 0.7925153227 | BA46: =SUM(BA11:BA12)/SUM(BA11:BA16) -> 0.653687139 | BB46: 0.8117586273 | BC46: 0.8559196261 | BD46: 0.6467305482 | BE46: 0.8946341789 | BF46: 0.8978786247 | BG46: 0.9424519637 | BH46: 0.9470583392 | BI46: 0.9340124493 | BJ46: 0.8630597117 | BK46: 0.9002652197 | BL46: 0.9091661679 | BM46: 0.8501262843 | BN46: 0.8422118551 | BO46: 0.847032158 | BP46: 0.8852007171 | BQ46: 0.86502142 | BR46: 0.9337993223 | BS46: 0.9189379829 | BT46: 0.9271334213 | BU46: 0.8565299135 | BV46: 0.8509022324 | BW46: 0.8304031636 | BX46: 0.6871563839
D47: depo/jaar | E47: =E40/COUNT($E$40:E40)*12 -> 1255.499838 | F47: =F40/COUNT($E$40:F40)*12 -> 1762.946986 | G47: =G40/COUNT($E$40:G40)*12 -> 2024.35814 | H47: =H40/COUNT($E$40:H40)*12 -> 2137.767877 | I47: =I40/COUNT($E$40:I40)*12 -> 2217.072477 | J47: =J40/COUNT($E$40:J40)*12 -> 2227.141937 | K47: =K40/COUNT($E$40:K40)*12 -> 2193.413727 | L47: =L40/COUNT($E$40:L40)*12 -> 2108.326224 | M47: =M40/COUNT($E$40:M40)*12 -> 2080.485422 | N47: =N40/COUNT($E$40:N40)*12 -> 2064.049065 | O47: =O40/COUNT($E$40:O40)*12 -> 2082.802711 | P47: =P40/COUNT($E$40:P40)*12 -> 1988.513519 | Q47: =Q40/COUNT($E$40:Q40)*12 -> 65.34254342 | R47: =R40/COUNT($E$40:R40)*12 -> 130.0455614 | S47: =S40/COUNT($E$40:S40)*12 -> 270.0161633 | T47: =T40/COUNT($E$40:T40)*12 -> 327.9221676 | U47: =U40/COUNT($E$40:U40)*12 -> 543.3027584 | V47: =V40/COUNT($E$40:V40)*12 -> 621.8790238 | W47: =W40/COUNT($E$40:W40)*12 -> 735.7363549 | X47: =X40/COUNT($E$40:X40)*12 -> 805.9494183 | Y47: =Y40/COUNT($E$40:Y40)*12 -> 842.3655592 | Z47: =Z40/COUNT($E$40:Z40)*12 -> 896.5790521 | AA47: =AA40/COUNT($E$40:AA40)*12 -> 906.1640494 | AB47: =AB40/COUNT($E$40:AB40)*12 -> 911.9338354 | AC47: =AC40/COUNT($E$40:AC40)*12 -> 22.1963218 | AD47: =AD40/COUNT($E$40:AD40)*12 -> 41.77020747 | AE47: =AE40/COUNT($E$40:AE40)*12 -> 78.56077602 | AF47: =AF40/COUNT($E$40:AF40)*12 -> 106.8351233 | AG47: =AG40/COUNT($E$40:AG40)*12 -> 199.1269168 | AH47: =AH40/COUNT($E$40:AH40)*12 -> 282.3375785 | AI47: =AI40/COUNT($E$40:AI40)*12 -> 394.9677584 | AJ47: =AJ40/COUNT($E$40:AJ40)*12 -> 461.969215 | AK47: =AK40/COUNT($E$40:AK40)*12 -> 518.8139461 | AL47: =AL40/COUNT($E$40:AL40)*12 -> 580.836713 | AM47: =AM40/COUNT($E$40:AM40)*12 -> 593.4348556 | AN47: =AN40/COUNT($E$40:AN40)*12 -> 599.4942282 | AO47: =AO40/COUNT($E$40:AO40)*12 -> 37.66280989 | AP47: =AP40/COUNT($E$40:AP40)*12 -> 71.41168429 | AQ47: =AQ40/COUNT($E$40:AQ40)*12 -> 135.2201145 | AR47: =AR40/COUNT($E$40:AR40)*12 -> 201.6329514 | AS47: =AS40/COUNT($E$40:AS40)*12 -> 242.8294311 | AT47: =AT40/COUNT($E$40:AT40)*12 -> 288.3488306 | AU47: =AU40/COUNT($E$40:AU40)*12 -> 377.0848183 | AV47: =AV40/COUNT($E$40:AV40)*12 -> 411.5329437 | AW47: =AW40/COUNT($E$40:AW40)*12 -> 451.8386362 | AX47: =AX40/COUNT($E$40:AX40)*12 -> 499.7289815 | AY47: =AY40/COUNT($E$40:AY40)*12 -> 532.4932826 | AZ47: =AZ40/COUNT($E$40:AZ40)*12 -> 561.7538561 | BA47: =BA40/COUNT($E$40:BA40)*12 -> 21.52969067 | BB47: =BB40/COUNT($E$40:BB40)*12 -> 38.91594009 | BC47: =BC40/COUNT($E$40:BC40)*12 -> 62.48949947 | BD47: =BD40/COUNT($E$40:BD40)*12 -> 76.32542482 | BE47: =BE40/COUNT($E$40:BE40)*12 -> 105.071462 | BF47: =BF40/COUNT($E$40:BF40)*12 -> 143.97479 | BG47: =BG40/COUNT($E$40:BG40)*12 -> 204.0373381 | BH47: =BH40/COUNT($E$40:BH40)*12 -> 261.9761633 | BI47: =BI40/COUNT($E$40:BI40)*12 -> 290.9439775 | BJ47: =BJ40/COUNT($E$40:BJ40)*12 -> 309.0484242 | BK47: =BK40/COUNT($E$40:BK40)*12 -> 340.3151421 | BL47: =BL40/COUNT($E$40:BL40)*12 -> 359.9387735 | BM47: =BM40/COUNT($E$40:BM40)*12 -> 26.09831646 | BN47: =BN40/COUNT($E$40:BN40)*12 -> 50.48248756 | BO47: =BO40/COUNT($E$40:BO40)*12 -> 77.50676183 | BP47: =BP40/COUNT($E$40:BP40)*12 -> 112.9821379 | BQ47: =BQ40/COUNT($E$40:BQ40)*12 -> 194.3521714 | BR47: =BR40/COUNT($E$40:BR40)*12 -> 309.1010116 | BS47: =BS40/COUNT($E$40:BS40)*12 -> 334.7147285 | BT47: =BT40/COUNT($E$40:BT40)*12 -> 379.3550121 | BU47: =BU40/COUNT($E$40:BU40)*12 -> 422.077386 | BV47: =BV40/COUNT($E$40:BV40)*12 -> 489.869915 | BW47: =BW40/COUNT($E$40:BW40)*12 -> 517.4638195 | BX47: =BX40/COUNT($E$40:BX40)*12 -> 536.852449
E49: 2011 | F49: 2012 | G49: 2013 | H49: 2014 | I49: 2015 | J49: 2016
D50: =VLOOKUP($B11,$F$56:$H$75,2) -> Goeree 1 | E50: =P40/1000 -> 1.988513519 | F50: =AB40/1000 -> 1.823867671 | G50: =AN40/1000 -> 1.798482685 | H50: =AZ40/1000 -> 2.247015424 | I50: =BL40/1000 -> 1.799693868 | J50: =BX40/1000 -> 3.221114694
CA51: 2013
D52: Noy | E52: =E12+E13+E14+E15+E24 -> 32.94312362 | F52: =F12+F13+F14+F15+F24 -> 38.3327526 | G52: 54.75092184 | H52: 108.7127091 | I52: 102.0446516 | J52: 76.08379197 | K52: 77.14592103 | L52: 70.67104054 | M52: 77.30022155 | N52: 69.28234939 | O52: 72.3687905 | P52: 29.51532365 | Q52: 35.85571793 | R52: 35.85982554 | S52: 72.48953733 | T52: 29.4509032 | U52: 90.90314054 | V52: 60.28600735 | W52: 100.0204415 | X52: 76.87260172 | Y52: 51.6614703 | Z52: 69.04310561 | AA52: 37.97560188 | AB52: 43.89747162 | AC52: 25.17318081 | AD52: 20.66723054 | AE52: 30.30385058 | AF52: 26.36885195 | AG52: 70.12179399 | AH52: 63.7628971 | AI52: 115.662716 | AJ52: 86.78570839 | AK52: 65.41868542 | AL52: 73.92822312 | AM52: 28.7937263 | AN52: 29.81198132 | AO52: 39.98804649 | AP52: 33.77004037 | AQ52: 61.24527327 | AR52: 67.0234146 | AS52: 51.88978829 | AT52: 73.92460769 | AU52: 95.10054488 | AV52: 60.55336456 | AW52: 61.35373769 | AX52: 64.76402212 | AY52: 45.6999726 | AZ52: 50.31608028 | BA52: 46.7530157 | BB52: 24.91372033 | BC52: 21.20075835 | BD52: 40.19525091 | BE52: 43.67190304 | BF52: 66.04526465 | BG52: 97.93296817 | BH52: 80.6046868 | BI52: 58.52677987 | BJ52: 46.40205786 | BK52: 43.86425875 | BL52: 39.69314397 | BM52: 41.99880196 | BN52: 29.62661236 | BO52: 33.29618941 | BP52: 33.06320812 | BQ52: 81.82327542 | BR52: =BR12+BR13+BR14+BR15+BR24 -> 111.8001105 | BS52: 48.98908024 | BT52: 65.65098793 | BU52: 73.45310311 | BV52: 82.94356202 | BW52: 65.10149403 | BX52: 57.33368892 | CA52: =SUM(AC52:AN52) -> 636.7988455
D53: nhx | E53: =E11+E16+E17 -> 71.68186289 | F53: =F11+F16+F17 -> 150.8667585 | G53: 157.5141156 | H53: 97.78704817 | I53: 109.1462549 | J53: 113.7069774 | K53: 88.77445157 | L53: 55.38843462 | M53: 77.5130287 | N53: 90.39447203 | O53: 116.8261403 | P53: 49.76237716 | Q53: 34.93203744 | R53: 45.07224074 | S53: 113.3108452 | T53: 70.2584495 | U53: 241.5462104 | V53: 102.8536206 | W53: 132.0769181 | X53: 101.4605335 | Y53: 79.22922776 | Z53: 100.5454279 | AA53: 55.11056399 | AB53: 43.15577124 | AC53: 21.06915627 | AD53: 23.59254856 | AE53: 55.95577928 | AF53: 46.15135633 | AG53: 161.8196339 | AH53: 160.8576671 | AI53: 198.8267134 | AJ53: 124.7988224 | AK53: 129.4017598 | AL53: 145.0374451 | AM53: 56.35391582 | AN53: 37.81904124 | AO53: 76.13895067 | AP53: 76.23996274 | AQ53: 152.0830985 | AR53: 165.6210513 | AS53: 105.6675967 | AT53: 105.6290765 | AU53: 246.8991467 | AV53: 97.18016369 | AW53: 124.0870209 | AX53: 156.4688549 | AY53: 124.2709548 | AZ53: 111.100654 | BA53: 41.15988787 | BB53: 49.32312648 | BC53: 82.22986402 | BD53: 24.96788389 | BE53: 89.65021312 | BF53: 117.7756666 | BG53: 189.3516096 | BH53: =BH11+BH16+BH17 -> 206.779609 | BI53: 100.9016846 | BJ53: 65.34809927 | BK53: 135.6178063 | BL53: 86.78460837 | BM53: 90.66764003 | BN53: 98.53313139 | BO53: 112.7881245 | BP53: 162.5976944 | BQ53: 368.346251 | BR53: =BR11+BR16+BR17 -> 535.5145249 | BS53: 119.7792566 | BT53: 215.2035129 | BU53: 203.8134645 | BV53: 347.6859729 | BW53: 138.9849336 | BX53: 102.1200731 | CA53: =SUM(AC53:AN53) -> 1161.683839
B55: month list | F55: nr | G55: naam | H55: cell
A56: NO2 | B56: 2011-01-01 | C56: D | F56: 1 | G56: Goeree 1 | H56: 10
A57: NH3 | B57: 2011-02-01 | C57: E | F57: 2 | G57: Goeree 2 | H57: 11
A58: CL | B58: 2011-03-01 | C58: F | F58: 3 | G58: Oostvoorne Panduin | H58: 12
A59: Na | B59: 2011-04-01 | C59: G | F59: 4 | G59: Oostvoorne Zuid 1 | H59: 13
B60: 2011-05-01 | C60: H | F60: 5 | G60: Oostvoorne Zuid 2 | H60: 14
B61: 2011-06-01 | C61: I | F61: 6 | G61: Oostvoorne Zuid 3 | H61: 15
B62: 2011-07-01 | C62: J | F62: 7 | G62: Oostvoorne Noord 1 | H62: 16
B63: 2011-08-01 | C63: K | F63: 8 | G63: Oostvoorne Noord 2 | H63: 17
B64: 2011-09-01 | C64: L | F64: 9 | G64: Hoek 1 | H64: 18
B65: 2011-10-01 | C65: M | F65: 10 | G65: Hoek 2 | H65: 19
B66: 2011-11-01 | C66: N | F66: 11 | G66: s-Gravezande | H66: 20
B67: 2011-12-01 | C67: O | F67: 12 | G67: Solleveld 1 | H67: 21
B68: 2012-01-01 | C68: P | F68: 13 | G68: Solleveld 2 | H68: 22
B69: 2012-02-01 | C69: Q | F69: 14 | G69: Solleveld 3 | H69: 23
B70: 2012-03-01 | C70: R | F70: 15 | G70: Solleveld 4 | H70: 24
B71: 2012-04-01 | C71: S | F71: 16 | G71: Westduinpark | H71: 25
B72: 2012-05-01 | C72: T | F72: 17 | G72: Meijendell | H72: 26
B73: 2012-06-01 | C73: U | F73: 20 | G73: Maasvlakte 2 Zuid | H73: 27
B74: 2012-07-01 | C74: V | F74: 21 | G74: Maasvlakte 2 Noord | H74: 28
B75: 2012-08-01 | C75: W
B76: 2012-09-01 | C76: X
B77: 2012-10-01 | C77: Y
B78: 2012-11-01 | C78: Z | D78: PICTS
B79: 2012-12-01 | C79: AA
B80: 2013-01-01 | C80: AB
B81: 2013-02-01 | C81: AC
B82: 2013-03-01 | C82: AD
B83: 2013-04-01 | C83: AE
B84: 2013-05-01 | C84: AF
B85: 2013-06-01 | C85: AG
B86: 2013-07-01 | C86: AH
B87: 2013-08-01 | C87: AI
B88: 2013-09-01 | C88: AJ
B89: 2013-10-01 | C89: AK
B90: 2013-11-01 | C90: AL
B91: 2013-12-01 | C91: AM
B92: 2014-01-01 | C92: AN
B93: 2014-02-01 | C93: AO | E93: 2011-01-01 | F93: 2011-02-01 | G93: 2011-03-01 | H93: 2011-04-01 | I93: 2011-05-01 | J93: 2011-06-01 | K93: 2011-07-01 | L93: 2011-08-01 | M93: 2011-09-01 | N93: 2011-10-01 | O93: 2011-11-01 | P93: 2011-12-01 | Q93: 2012-01-01 | R93: 2012-02-01 | S93: 2012-03-01 | T93: 2012-04-01 | U93: 2012-05-01 | V93: 2012-06-01 | W93: 2012-07-01 | X93: 2012-08-01 | Y93: 2012-09-01 | Z93: 2012-10-01 | AA93: 2012-11-01 | AB93: 2012-12-01 | AC93: 2013-01-01 | AD93: 2013-02-01 | AE93: 2013-03-01 | AF93: 2013-04-01 | AG93: 2013-05-01 | AH93: 2013-06-01 | AI93: 2013-07-01 | AJ93: 2013-08-01 | AK93: 2013-09-01 | AL93: 2013-10-01 | AM93: 2013-11-01 | AN93: 2013-12-01 | AO93: 2014-01-01 | AP93: 2014-02-01 | AQ93: 2014-03-01 | AR93: 2014-04-01 | AS93: 2014-05-01 | AT93: 2014-06-01 | AU93: 2014-07-01 | AV93: 2014-08-01 | AW93: 2014-09-01 | AX93: 2014-10-01 | AY93: 2014-11-01 | AZ93: 2014-12-01 | BA93: 2015-01-01 | BB93: 2015-02-01 | BC93: 2015-03-01 | BD93: 2015-04-01 | BE93: 2015-05-01 | BF93: 2015-06-01 | BG93: 2015-07-01 | BH93: 2015-08-01 | BI93: 2015-09-01 | BJ93: 2015-10-01 | BK93: 2015-11-01 | BL93: 2015-12-01 | BM93: 2016-01-01
B94: 2014-03-01 | C94: AP | D94: 1 | E94: 997.0672346 | F94: 1341.935391 | G94: 1488.205957 | H94: 1739.460805 | I94: 1815.353616 | J94: 1920.444273 | K94: 1916.249662 | L94: 1897.167925 | M94: 1853.048503 | N94: 1844.461187 | O94: 1847.191533 | P94: 1774.644197 | Q94: 1715.374903 | R94: 1665.715413 | S94: 1705.399751 | T94: 1671.163346 | U94: 1759.401481 | V94: 1750.802962 | W94: 1875.028199 | X94: 1832.467036 | Y94: 1778.528
B95: 2014-04-01 | C95: AQ | D95: 2 | E95: 744.9229035 | F95: 1355.194162 | G95: 1494.733665 | H95: 1662.305403 | I95: 1691.981941 | J95: 1786.986983 | K95: 1801.541317 | L95: 1782.446646 | M95: 1698.733716 | N95: 1693.321166 | O95: 1666.529842 | P95: 1596.102818 | Q95: 1542.022702 | R95: 1496.845753 | S95: 1536.392712 | T95: 1512.28087 | U95: 1571.996449 | V95: 1586.431232 | W95: 1745.680508 | X95: 1721.665627 | Y95: 1674.449791
B96: 2014-05-01 | C96: AR | D96: 3 | E96: 1047.987915 | F96: 751.9418951 | G96: 1424.390198 | H96: 1470.281029 | I96: 1450.44883 | J96: 1361.481633 | K96: 1284.381232 | L96: 1220.090137 | M96: 1149.077863 | N96: 1091.450054 | O96: 1036.73316 | P96: 978.4900565 | Q96: 922.105372 | R96: 883.8846959 | S96: 847.6786279 | T96: 820.9693375 | U96: 842.8585158 | V96: 833.5959618 | W96: 829.7091832 | X96: 856.9421093 | Y96: 854.8617198
B97: 2014-06-01 | C97: AS | D97: 4 | E97: 597.9388904 | F97: 984.6715469 | G97: 1339.937047 | H97: 1511.12457 | I97: 1586.683111 | J97: 1495.709646 | K97: 1443.467447 | L97: 1407.180505 | M97: 1379.025222 | N97: 1348.344832 | O97: 1377.089426 | P97: 1317.692672 | Q97: 1261.445504 | R97: 1234.380741 | S97: 1186.979138 | T97: 1152.751059 | U97: 1206.676274 | V97: 1206.405407 | W97: 1243.519862 | X97: 1257.889076 | Y97: 1232.946805
B98: 2014-07-01 | C98: AT | D98: 5 | E98: 833.4560365 | F98: 1337.765415 | G98: 1709.06856 | H98: 1913.496136 | I98: 1946.708298 | J98: 1849.562692 | K98: 1741.589678 | L98: 1662.1391 | M98: 1589.772986 | N98: 1552.99632 | O98: 1547.165251 | P98: 1506.59946 | Q98: 1439.268838 | R98: 1392.462552 | S98: 1393.427391 | T98: 1351.515304 | U98: 1396.893288 | V98: 1398.07548 | W98: 1419.171707 | X98: 1430.479377 | Y98: 1397.608071
B99: 2014-08-01 | C99: AU | D99: 6 | E99: 683.9948204 | F99: 930.0279578 | G99: 1309.859944 | H99: 1589.485581 | I99: 1704.321534 | J99: 1647.338962 | K99: 1563.511351 | L99: 1504.534076 | M99: 1412.609414 | N99: 1386.270959 | O99: 1404.65208 | P99: 1343.429415 | Q99: 1297.159954 | R99: 1266.819915 | S99: 1318.165992 | T99: 1292.486532 | U99: 1364.924775 | V99: 1353.872022 | W99: 1400.414345 | X99: 1414.888666 | Y99: 1427.582401
B100: 2014-09-01 | C100: AV | D100: 7 | E100: 1842.451641 | F100: 1752.147245 | G100: 1743.825999 | H100: 1910.048411 | I100: 1931.036303 | J100: 1871.19755 | K100: 1809.968221 | L100: 1737.763844 | M100: 1677.372927 | N100: 1643.26703 | O100: 1662.807047 | P100: 1579.033248 | Q100: 1532.354624 | R100: 1496.557595 | S100: 1530.125272 | T100: 1487.859854 | U100: 1604.005186 | V100: 1580.518116 | W100: 1612.773238 | X100: 1580.838079 | Y100: 1557.587924
B101: 2014-10-01 | C101: AW | D101: 8 | E101: 2213.394997 | F101: 1873.740322 | G101: 1737.94469 | H101: 1811.596967 | I101: 1806.548269 | J101: 1785.23014 | K101: 2096.761949 | L101: 1997.78622 | M101: 1943.373695 | N101: 1863.80451 | O101: 1860.897959 | P101: 1765.276817 | Q101: 1718.338669 | R101: 1661.606931 | S101: 1684.83128 | T101: 1634.581034 | U101: 1698.452251 | V101: 1695.774291 | W101: 1741.861975 | X101: 1750.39284 | Y101: 1716.930836
B102: 2014-11-01 | C102: AX | D102: 9 | E102: 1382.854308 | F102: 1666.054953 | G102: 1872.864069 | H102: 1975.852495 | I102: 2022.290834 | J102: 2037.986209 | K102: 2012.567891 | L102: 1963.35694 | M102: 1905.830572 | N102: 2023.971021 | O102: 2102.220081 | P102: 2037.349978 | Q102: 2019.812237 | R102: 2016.273627 | S102: 2093.4067 | T102: 2033.879124 | U102: 2057.709473 | V102: 2027.844103 | W102: 1996.482214 | X102: 1942.98315 | Y102: 1883.11894
B103: 2014-12-01 | C103: AY | D103: 10 | E103: 1015.424818 | F103: 1571.796607 | G103: 1736.483074 | H103: 1573.203875 | I103: 1481.785301 | J103: 1545.889476 | K103: 1654.445019 | L103: 1781.648097 | M103: 1827.60924 | N103: 1839.075756 | O103: 1871.939562 | P103: 1779.880925 | Q103: 1774.685067 | R103: 1738.794317 | S103: 1800.512489 | T103: 1761.883871 | U103: 1821.73257 | V103: 1840.941679 | W103: 1964.79599 | X103: 2085.569606 | Y103: 2013.64345
B104: 2015-01-01 | C104: AZ | D104: 11 | E104: 1242.783016 | F104: 2001.233952 | G104: 2156.661423 | H104: 2237.002745 | I104: 2327.247501 | J104: 2356.556148 | K104: 2189.739575 | L104: 2135.85412 | M104: 2172.259508 | N104: 2232.413183 | O104: 2313.056504 | P104: 2185.837834 | Q104: 2113.073875 | R104: 2014.51694 | S104: 2015.775632 | T104: 1973.731875 | U104: 1997.834604 | V104: 1968.436081 | W104: 1983.513866 | X104: 1989.222909 | Y104: 1969.534233
B105: 2015-02-01 | C105: BA | D105: 12 | E105: 1181.268272 | F105: 1670.976049 | G105: 1946.626281 | H105: 1969.595449 | I105: 2073.892553 | J105: 2102.979857 | K105: 2113.102176 | L105: 2106.754069 | M105: 2162.174703 | N105: 2259.703443 | O105: 2273.033671 | P105: 2193.812624 | Q105: 2135.582811 | R105: 2095.876432 | S105: 2128.662496 | T105: 2055.723679 | U105: 2065.00798 | V105: 2012.917865 | W105: 2016.498536 | X105: 2014.838951 | Y105: 1978.225327
B106: 2015-03-01 | C106: BB | D106: 13 | E106: 924.3115829 | F106: 1240.449275 | G106: 1453.471777 | H106: 1532.588111 | I106: 1742.713375 | J106: 1855.782645 | K106: 1864.49281 | L106: 1849.639603 | M106: 1806.384282 | N106: 1844.123925 | O106: 1892.643454 | P106: 1831.501488 | Q106: 1755.992544 | R106: 1721.682368 | S106: 1747.994885 | T106: 1721.29856 | U106: 1789.331399 | V106: 1800.653969 | W106: 1857.517846 | X106: 1877.990341 | Y106: 1833.924497
B107: 2015-04-01 | C107: BC | D107: 14 | E107: 903.8624083 | F107: 1267.558807 | G107: 1371.959744 | H107: 1459.670123 | I107: 1604.770183 | J107: 1721.578544 | K107: 1747.910031 | L107: 1728.433452 | M107: 1736.896057 | N107: 1775.426072 | O107: 1841.486346 | P107: 1777.30368 | Q107: 1724.023701 | R107: 1694.16683 | S107: 1690.022798 | T107: 1666.380277 | U107: 1734.238244 | V107: 1738.143149 | W107: 1768.926112 | X107: 1746.831734 | Y107: 1720.520453
B108: 2015-05-01 | C108: BD | D108: 15 | E108: 928.2249615 | F108: 1479.647739 | G108: 1601.959816 | H108: 1713.785646 | I108: 1820.631518 | J108: 1892.793672 | K108: 1804.782688 | L108: 1779.43498 | M108: 1771.375952 | N108: 1803.235434 | O108: 1846.242021 | P108: 1781.390889 | Q108: 1818.837473 | R108: 1810.942291 | S108: 1904.702187 | T108: 1900.929597 | U108: 2025.921371 | V108: 2064.337976 | W108: 2156.381319 | X108: 2084.959361 | Y108: 2072.935179
B109: 2015-06-01 | C109: BE
B110: 2015-07-01 | C110: BF
B111: 2015-08-01 | C111: BG
B112: 2015-09-01 | C112: BH
B113: 2015-10-01 | C113: BI
B114: 2015-11-01 | C114: BJ
B115: 2015-12-01 | C115: BK
B116: 2016-01-01 | C116: BL
B117: 2016-02-01 | C117: BM
B118: 2016-03-01 | C118: BN
B119: 2016-04-01 | C119: BO
B120: 2016-05-01 | C120: BP
B121: 2016-06-01 | C121: BQ
B122: 2016-07-01 | C122: BR
B123: 2016-08-01 | C123: BS
B124: 2016-09-01 | C124: BT
B125: 2016-10-01 | C125: BU
B126: 2016-11-01 | C126: BV
B127: 2016-12-01 | C127: BW

Sheet Goeree old
D3: ="Station: " &TEXT(VLOOKUP($B10,$F$42:$H$61,2),"") -> Station: Oostvoorne Zuid 1 | CA3: val | CB3: sqr | CD3: jaar | CE3: maand | CF3: stathit/maand
B4: 4 | D4: =" Depo 2011: "&TEXT(P28/1000,"0.0")&" *1000 mol/ha" -> Depo 2011: 1.7 *1000 mol/ha | BZ4: onzeker | CA4: 3 | CB4: =CA4*CA4 -> 9 | CD4: 5 | CE4: 6 | CF4: 5 | CG4: =CF4*CE4*CD4 -> 150 | CH4: meetpunten
D5: =" Depo 2012: "&TEXT(AB28/1000,"0.0") -> Depo 2012: 1.8 | BZ5: 0.5 | CA5: =CA4*BZ5 -> 1.5 | CB5: =CA5*CA5 -> 2.25 | CC5: =CB5/CB4 -> 0.25 | CG5: =50/SQRT(CG4) -> 4.082482905 | CH5: % | CJ5: =50/6 -> 8.333333333
D6: =" Depo 2013: "&TEXT(AN28/1000,"0.0") -> Depo 2013: 1.6 | CA6: ratio | CB6: =CB4/CB5 -> 4 | CJ6: =CJ5*CJ5 -> 69.44444444 | CK6: =CJ6/12/5 -> 1.157407407
D7: =" Depo 2014: "&TEXT(AZ28/1000,"0.0") -> Depo 2014: 2.0 | CF7: =50/SQRT(48) -> 7.216878365
E8: 2011-01-01 | F8: 2011-02-01 | G8: 2011-03-01 | H8: 2011-04-01 | I8: 2011-05-01 | J8: 2011-06-01 | K8: 2011-07-01 | L8: 2011-08-01 | M8: 2011-09-01 | N8: 2011-10-01 | O8: 2011-11-01 | P8: 2011-12-01 | Q8: 2012-01-01 | R8: 2012-02-01 | S8: 2012-03-01 | T8: 2012-04-01 | U8: 2012-05-01 | V8: 2012-06-01 | W8: 2012-07-01 | X8: 2012-08-01 | Y8: 2012-09-01 | Z8: 2012-10-01 | AA8: 2012-11-01 | AB8: 2012-12-01 | AC8: 2013-01-01 | AD8: 2013-02-01 | AE8: 2013-03-01 | AF8: 2013-04-01 | AG8: 2013-05-01 | AH8: 2013-06-01 | AI8: 2013-07-01 | AJ8: 2013-08-01 | AK8: 2013-09-01 | AL8: 2013-10-01 | AM8: 2013-11-01 | AN8: 2013-12-01 | AO8: 2014-01-01 | AP8: 2014-02-01 | AQ8: 2014-03-01 | AR8: 2014-04-01 | AS8: 2014-05-01 | AT8: 2014-06-01 | AU8: 2014-07-01 | AV8: 2014-08-01 | AW8: 2014-09-01 | AX8: 2014-10-01 | AY8: 2014-11-01 | AZ8: 2014-12-01 | BA8: 2015-01-01 | BB8: 2015-02-01 | BC8: 2015-03-01 | BD8: 2015-04-01 | BE8: 2015-05-01 | BF8: 2015-06-01 | BG8: 2015-07-01 | BH8: 2015-08-01 | BI8: 2015-09-01 | BJ8: 2015-10-01 | BK8: 2015-11-01 | BL8: 2015-12-01 | BM8: 2016-01-01 | BN8: 2016-02-01 | BO8: 2016-03-01 | BP8: 2016-04-01 | BQ8: 2016-05-01 | BR8: 2016-06-01 | BS8: 2016-07-01 | BT8: 2016-08-01 | BU8: 2016-09-01 | BV8: 2016-10-01 | BW8: 2016-11-01 | BX8: 2016-12-01 | CB8: AVG mol/ha | CC8: error in value at 50 % error per datapoint | CE8: stdev
B9: stat nr | C9: comp | D9: Station list
B10: =B4 -> 4 | C10: ddnh3 | D10: Ammoniak | E10: =INDIRECT(TEXT($C10," ")&"!"&TEXT(VLOOKUP(E$8,$B$42:$C$113,2)&VLOOKUP($B10,$F$42:$H$60,3)," ")) -> 8.869318665 | F10: 88.02724953 | G10: 109.1416022 | H10: 51.57910723 | I10: 63.39111207 | J10: 51.87862692 | K10: 48.67103795 | L10: 31.70632144 | M10: 83.4119792 | N10: 47.62863855 | O10: =INDIRECT(TEXT($C10," ")&"!"&TEXT(VLOOKUP(O$8,$B$42:$C$113,2)&VLOOKUP($B10,$F$42:$H$60,3)," ")) -> 83.98604521 | P10: 15.48084251 | Q10: 12.09117808 | R10: 28.28644711 | S10: 56.89080507 | T10: 20.26512361 | U10: 101.0560647 | V10: 68.40014516 | W10: 128.3403728 | X10: 91.60704854 | Y10: =INDIRECT(TEXT($C10," ")&"!"&TEXT(VLOOKUP(Y$8,$B$42:$C$113,2)&VLOOKUP($B10,$F$42:$H$60,3)," ")) -> 47.59640399 | Z10: 77.57398691 | AA10: 64.12628015 | AB10: 32.50248427 | AC10: 30.56378126 | AD10: 14.00788713 | AE10: 44.13011108 | AF10: 59.81484918 | AG10: 84.68720842 | AH10: 86.52652387 | AI10: =INDIRECT(TEXT($C10," ")&"!"&TEXT(VLOOKUP(AI$8,$B$42:$C$113,2)&VLOOKUP($B10,$F$42:$H$60,3)," ")) -> 154.6191078 | AJ10: 67.82871558 | AK10: 91.49199269 | AL10: 93.41216424 | AM10: 13.88135581 | AN10: 16.55590696 | AO10: 42.98214633 | AP10: 62.08056468 | AQ10: 154.8600855 | AR10: 128.0275087 | AS10: =INDIRECT(TEXT($C10," ")&"!"&TEXT(VLOOKUP(AS$8,$B$42:$C$113,2)&VLOOKUP($B10,$F$42:$H$60,3)," ")) -> 82.38835134 | AT10: 82.26768344 | AU10: 100.030564 | AV10: 55.7775316 | AW10: 171.2137272 | AX10: 95.44072321 | AY10: 101.1068374 | AZ10: 69.76085532 | BA10: 27.61032918 | BB10: 33.11978036 | BC10: 89.51244293 | BD10: 80.50270077 | BE10: 66.62922631 | BF10: 124.3050286 | BG10: 0 | BH10: 0 | BI10: =INDIRECT(TEXT($C10," ")&"!"&TEXT(VLOOKUP(BI$8,$B$42:$C$113,2)&VLOOKUP($B10,$F$42:$H$60,3)," ")) -> 0 | BJ10: 0 | BK10: 0 | BL10: 0 | BM10: 0 | BN10: 0 | CA10: =D10 -> Ammoniak | CB10: =AVERAGE(E10:AN10) -> 60.27855072 | CC10: =SQRT(SUMSQ(E10:AN10)/$CB$6)/COUNT(E10:AN10) -> 5.796644242 | CD10: =CC10/CB10 -> 0.09616429348
B11: =B10 -> 4 | C11: no2 | D11: NO2 | E11: 27.55274495 | F11: 23.75162628 | G11: 31.62482338 | H11: 38.62245078 | I11: 22.26396659 | J11: 12.42814435 | K11: 19.93000273 | L11: 18.12099803 | M11: 14.35684068 | N11: 24.14671331 | O11: 41.45835282 | P11: 16.93292388 | Q11: 22.99221082 | R11: 33.92177834 | S11: 38.04173704 | T11: 15.60196745 | U11: 20.22348113 | V11: 14.14279832 | W11: 16.5108 | X11: 15.8989348 | Y11: 12.91897327 | Z11: 21.26591738 | AA11: 23.34190322 | AB11: 20.14313896 | AC11: 28.79182597 | AD11: 25.16219506 | AE11: 26.47931361 | AF11: 21.04459019 | AG11: 23.34976443 | AH11: 20.54479803 | AI11: 18.34391749 | AJ11: 18.34391749 | AK11: 15.78385792 | AL11: 22.17248677 | AM11: 20.9627024 | AN11: 26.19604347 | AO11: 15.56347243 | AP11: 18.77264336 | AQ11: 29.45464415 | AR11: 20.35090176 | AS11: 21.89146248 | AT11: 18.53558697 | AU11: 16.036711 | AV11: 11.20242328 | AW11: 13.16565451 | AX11: 17.76653943 | AY11: 28.18826491 | AZ11: 23.54731035 | BA11: 18.72189791 | BB11: 27.20802253 | BC11: 28.54566578 | BD11: 20.84214115 | BE11: 16.38795179 | BF11: 14.06366357 | BG11: 0 | BH11: 0 | BL11: 0 | BM11: 0 | BN11: 0 | CA11: NO2 | CB11: 22.59357337 | CC11: 1.972634484 | CD11: =CC11/CB11 -> 0.0873095394 | CE11: =STDEV(E11:AN11) -> 7.162455174
B12: =B11 -> 4 | C12: ddhno3 | D12: HNO3 | E12: =MAX(INDIRECT(TEXT($C12," ")&"!"&TEXT(VLOOKUP(E$8,$B$42:$C$113,2)&VLOOKUP($B12,$F$42:$H$60,3)," "))-E11,0) -> 0 | F12: =MAX(INDIRECT(TEXT($C12," ")&"!"&TEXT(VLOOKUP(F$8,$B$42:$C$113,2)&VLOOKUP($B12,$F$42:$H$60,3)," "))-F11,0) -> 0 | G12: 0 | H12: 0 | I12: 23.02370338 | J12: 3.432167552 | K12: 0 | L12: 0 | M12: 2.443712393 | N12: 0 | O12: 0 | P12: 0 | Q12: 0 | R12: 0 | S12: 0 | T12: 0 | U12: 0 | V12: 0 | W12: 0 | X12: 0 | Y12: 0 | Z12: 0 | AA12: 0 | AB12: 0 | AC12: 0 | AD12: 0 | AE12: 0 | AF12: 0 | AG12: 0 | AH12: 0 | AI12: 5.285634724 | AJ12: 0 | AK12: 0 | AL12: 0 | AM12: 0 | AN12: 0 | AO12: 0 | AP12: 0 | AQ12: 0 | AR12: 0 | AS12: 0 | AT12: 0 | AU12: 0 | AV12: 0 | AW12: 10.1489469 | AX12: 0 | AY12: 0 | AZ12: 2.638295635 | BA12: 0 | BB12: =MAX(INDIRECT(TEXT($C12," ")&"!"&TEXT(VLOOKUP(BB$8,$B$42:$C$113,2)&VLOOKUP($B12,$F$42:$H$60,3)," "))-BB11,0) -> 0 | BC12: 0 | BD12: 0 | BE12: 0 | BF12: 0 | BG12: 0 | BH12: 0 | BL12: =MAX(INDIRECT(TEXT($C12," ")&"!"&TEXT(VLOOKUP(BL$8,$B$42:$C$113,2)&VLOOKUP($B12,$F$42:$H$60,3)," "))-BL11,0) -> 0 | BM12: =MAX(INDIRECT(TEXT($C12," ")&"!"&TEXT(VLOOKUP(BM$8,$B$42:$C$113,2)&VLOOKUP($B12,$F$42:$H$60,3)," "))-BM11,0) -> 0 | BN12: =MAX(INDIRECT(TEXT($C12," ")&"!"&TEXT(VLOOKUP(BN$8,$B$42:$C$113,2)&VLOOKUP($B12,$F$42:$H$60,3)," "))-BN11,0) -> 0 | CA12: HNO3 | CB12: 0.9495893904 | CC12: 0.333269773 | CD12: =CC12/CB12 -> 0.3509619803
B13: =B12 -> 4 | C13: ddhno2 | D13: HNO2 | E13: 2.107941152 | F13: 0 | G13: 9.417383597 | H13: 0 | I13: 0 | J13: 0 | K13: 0 | L13: 0 | M13: 0 | N13: 2.906010696 | O13: 53.40528061 | P13: 0 | Q13: 0 | R13: 0.6553319823 | S13: 26.38186583 | T13: 0 | U13: 1.912501848 | V13: 0.865495256 | W13: 2.149167518 | X13: 0.1362193702 | Y13: 0 | Z13: 4.630476958 | AA13: 1.531383167 | AB13: 0 | AC13: 0.2827466555 | AD13: 0.8166908525 | AE13: 0 | AF13: 0 | AG13: 0 | AH13: 0 | AI13: 1.011059052 | AJ13: 1.84331286 | AK13: 0 | AL13: 0 | AM13: 0.4047025238 | AN13: 2.456587968 | AO13: 2.187944852 | AP13: 0 | AQ13: 8.411099233 | AR13: 0.8215313458 | AS13: 0.4162393351 | AT13: 0.5852144217 | AU13: 0.06337461459 | AV13: 0.1089250973 | AW13: 2.493580589 | AX13: 0.1731487557 | AY13: 13.59871546 | AZ13: 0 | BA13: 0 | BB13: 0.2434471921 | BC13: 1.327528522 | BD13: 0.1584212763 | BE13: 0.1154602155 | BF13: 0 | BG13: 0 | BH13: 0 | BI13: 0 | BJ13: 0 | BK13: 0 | BL13: 0 | BM13: 0 | BN13: 0 | CA13: HNO2 | CB13: 3.136504386 | CC13: 0.8441803296 | CD13: 0.2691468673
B14: =B13 -> 4 | C14: ddno3 | D14: PM NO3 | E14: 1.659434776 | F14: 2.13175989 | G14: 6.601751459 | H14: =INDIRECT(TEXT($C14," ")&"!"&TEXT(VLOOKUP(H$8,$B$42:$C$113,2)&VLOOKUP($B14,$F$42:$H$60,3)," ")) -> 4.875900663 | I14: 4.774346491 | J14: 2.082733289 | K14: 1.552958864 | L14: 1.097575584 | M14: 3.041135367 | N14: 3.167991868 | O14: 4.0835003 | P14: 1.080537463 | Q14: 1.610407928 | R14: 6.026079066 | S14: 10.82435445 | T14: 1.883743444 | U14: 6.100281453 | V14: 3.031421887 | W14: 2.896057807 | X14: 2.847619777 | Y14: 2.278592481 | Z14: 0.7588532327 | AA14: 1.125817035 | AB14: 1.590959074 | AC14: 3.728961478 | AD14: 2.045832466 | AE14: 3.28264187 | AF14: 3.886212118 | AG14: 4.24560634 | AH14: 3.547268249 | AI14: 3.329348102 | AJ14: 3.070087011 | AK14: 2.464209872 | AL14: 2.157628735 | AM14: 1.029010195 | AN14: 1.145704085 | AO14: 1.758544479 | AP14: 2.307407139 | AQ14: 7.167261409 | AR14: 4.946452396 | AS14: 3.330054342 | AT14: 2.98675239 | AU14: 3.057397527 | AV14: 1.743744628 | AW14: 2.778973042 | AX14: 1.504844626 | AY14: 0.8411656944 | AZ14: 2.424157745 | BA14: 1.61394977 | BB14: 2.337747034 | BC14: 2.353746037 | BD14: 6.393186105 | BE14: 2.972361337 | BF14: 2.775206329 | BG14: 0 | BH14: 0 | BI14: 0 | BJ14: 0 | BK14: 0 | BL14: 0 | BM14: 0 | BN14: 0 | CA14: PM NO3 | CB14: 3.084897894 | CC14: 0.3051782703 | CD14: 0.09892653853
B15: =B14 -> 4 | C15: ddnh4 | D15: PM NH4 | E15: 1.660812002 | F15: 1.771117768 | G15: 8.702527562 | H15: 6.55885726 | I15: 3.708118899 | J15: 2.036360091 | K15: 2.261529686 | L15: 1.020145208 | M15: 3.03756355 | N15: 3.632061664 | O15: 8.414951076 | P15: 1.106261658 | Q15: 1.503728528 | R15: 7.009292433 | S15: 13.77904015 | T15: 1.847086235 | U15: 10.18556425 | V15: 3.645599348 | W15: 3.539287996 | X15: 2.688785576 | Y15: 1.831313216 | Z15: 3.735576359 | AA15: 1.226634486 | AB15: 0.8543892723 | AC15: 5.068784163 | AD15: 3.813908201 | AE15: 4.860042705 | AF15: 6.454323378 | AG15: 4.039441094 | AH15: 3.223494953 | AI15: 3.750780839 | AJ15: 3.1577361 | AK15: 1.893815534 | AL15: 2.7421715 | AM15: 1.145774588 | AN15: 1.55836735 | AO15: 1.760003959 | AP15: 1.917049758 | AQ15: 9.44799124 | AR15: 5.420928495 | AS15: 3.837378887 | AT15: 3.287423788 | AU15: 3.434951295 | AV15: 1.86886402 | AW15: 4.560841532 | AX15: 1.475996869 | AY15: 1.336373922 | AZ15: 3.064862546 | BA15: 2.028531984 | BB15: 3.413752026 | BC15: 2.980737073 | BD15: 6.038009099 | BE15: 3.723794329 | BF15: 2.104267419 | BG15: 0 | BH15: 0 | BI15: 0 | BJ15: 0 | BK15: 0 | BL15: 0 | BM15: 0 | BN15: 0 | CA15: PM NH4 | CB15: 3.818479019 | CC15: 0.3965674676 | CD15: 0.1038548243
C16: bdnh4 | D16: WET DEPO NH4 | E16: =IF(AND(E17="na",E18="na"),E25,AVERAGE(E17:E18)) -> 23.64334393 | F16: 43.84083253 | G16: 21.24255781 | H16: 6.692567681 | I16: 15.57778953 | J16: 44.12980319 | K16: =IF(AND(K17="na",K18="na"),K25,AVERAGE(K17:K18)) -> 37.49264164 | L16: =IF(AND(L17="na",L18="na"),L25,AVERAGE(L17:L18)) -> 32.15834511 | M16: 26.93684256 | N16: 17.82007356 | O16: 15.60627305 | P16: 17.76536361 | Q16: =IF(AND(Q17="na",Q18="na"),Q25,AVERAGE(Q17:Q18)) -> 17.41881453 | R16: 11.7575077 | S16: 31.39485159 | T16: 27.19736628 | U16: 46.82227498 | V16: 38.29593648 | W16: =IF(AND(W17="na",W18="na"),W25,AVERAGE(W17:W18)) -> 43.7420717 | X16: 21.08548301 | Y16: 22.50475103 | Z16: 36.57911054 | AA16: 15.17732656 | AB16: =IF(AND(AB17="na",AB18="na"),AB25,AVERAGE(AB17:AB18)) -> 20.26952996 | AC16: =IF(AND(AC17="na",AC18="na"),AC25,AVERAGE(AC17:AC18)) -> 14.19183934 | AD16: 8.9023637 | AE16: 21.92237214 | AF16: 16.76539412 | AG16: 46.13925534 | AH16: 24.58751259 | AI16: 20.89670272 | AJ16: 25.43213306 | AK16: 32.05958838 | AL16: 35.36933689 | AM16: 13.91131703 | AN16: 17.63796689 | AO16: 21.72246332 | AP16: 18.8902238 | AQ16: 14.19181154 | AR16: 34.86535928 | AS16: 9.893805999 | AT16: 15.82801333 | AU16: 27.91981799 | AV16: 28.49259453 | AW16: 6.528727117 | AX16: 29.53319753 | AY16: 6.237003405 | AZ16: 10.87377986 | BA16: 17.57494558 | BB16: =IF(AND(BB17="na",BB18="na"),BB25,AVERAGE(BB17:BB18)) -> 11.54520279 | BC16: 2.413030162 | BD16: 13.03908165 | BE16: 8.979360694 | BF16: 21.3737119 | BG16: 0 | BK16: 12.80335466 | BL16: =IF(AND(BL17="na",BL18="na"),BL25,AVERAGE(BL17:BL18)) -> 25.58390455 | BM16: =IF(AND(BM17="na",BM18="na"),BM25,AVERAGE(BM17:BM18)) -> 15.42105549 | BN16: =IF(AND(BN17="na",BN18="na"),BN25,AVERAGE(BN17:BN18)) -> 23.21095103 | CA16: WET DEPO NH4 | CB16: 25.36020113 | CC16: 2.304111809 | CD16: 0.09085542331
B17: 1 | C17: wdnh4 | D17: =VLOOKUP(B17,$F$42:$H$56,2)&" "&C17 -> Goeree 1 wdnh4 | E17: =INDIRECT(TEXT($C17," ")&"!"&TEXT(VLOOKUP(E$8,$B$42:$C$113,2)&VLOOKUP($B17,$F$42:$H$60,3)," ")) ->  | H17: 1.928878488 | I17: 21.99165096 | J17: 44.12980319 | K17: 28.65136813 | L17: 32.15834511 | M17: 23.48300094 | N17: 13.3406688 | O17: =INDIRECT(TEXT($C17," ")&"!"&TEXT(VLOOKUP(O$8,$B$42:$C$113,2)&VLOOKUP($B17,$F$42:$H$60,3)," ")) -> 3.810185215 | P17: 16.4953843 | Q17: 14.88057819 | R17: 10.9257024 | S17: 29.89695812 | T17: 31.70649569 | U17: 44.84502567 | V17: 35.68836722 | X17: 21.08548301 | Y17: =INDIRECT(TEXT($C17," ")&"!"&TEXT(VLOOKUP(Y$8,$B$42:$C$113,2)&VLOOKUP($B17,$F$42:$H$60,3)," ")) -> 18.89965117 | Z17: 35.5184916 | AA17: 14.58560036 | AB17: 18.09916166 | AC17: 8.586620364 | AD17: 7.377737994 | AE17: 21.60416334 | AF17: 14.26165149 | AG17: 46.00008117 | AH17: 23.27724073 | AI17: =INDIRECT(TEXT($C17," ")&"!"&TEXT(VLOOKUP(AI$8,$B$42:$C$113,2)&VLOOKUP($B17,$F$42:$H$60,3)," ")) -> 23.02292112 | AJ17: 24.28826409 | AK17: 32.88130417 | AL17: 40.6911386 | AM17: 13.11301571 | AO17: 20.12910956 | AP17: 15.97225955 | AQ17: 13.05342755 | AR17: 43.69359155 | AS17: =INDIRECT(TEXT($C17," ")&"!"&TEXT(VLOOKUP(AS$8,$B$42:$C$113,2)&VLOOKUP($B17,$F$42:$H$60,3)," ")) -> 8.261683845 | AT17: 12.88931321 | AU17: 17.22163553 | AV17: 28.54799421 | AW17: 1.815957286 | AX17: 35.11635385 | AY17: 6.237003405 | AZ17: 10.29920372 | BA17: 18.11167188 | BB17: 10.24521224 | BC17: 1.633571438 | BD17: 6.318813663 | BE17: 5.605895697 | BF17: 21.3737119 | BG17: 0 | BI17: =INDIRECT(TEXT($C17," ")&"!"&TEXT(VLOOKUP(BI$8,$B$42:$C$113,2)&VLOOKUP($B17,$F$42:$H$60,3)," ")) ->  | CA17: Goeree 1 wdnh4 | CB17: 23.13628836 | CC17: 2.332820514 | CD17: 0.1008295055
B18: 1 | C18: bdnh4 | D18: =VLOOKUP(B18,$F$42:$H$56,2)&" "&C18 -> Goeree 1 bdnh4 | E18: 23.64334393 | F18: 43.84083253 | G18: 21.24255781 | H18: 11.45625687 | I18: 9.163928108 | K18: 46.33391514 | M18: 30.39068418 | N18: 22.29947831 | O18: 27.40236088 | P18: 19.03534293 | Q18: 19.95705087 | R18: 12.589313 | S18: 32.89274505 | T18: 22.68823687 | U18: 48.79952428 | V18: 40.90350573 | W18: 43.7420717 | Y18: 26.10985089 | Z18: 37.63972948 | AA18: 15.76905276 | AB18: 22.43989826 | AC18: 19.79705831 | AD18: 10.42698941 | AE18: 22.24058094 | AF18: 19.26913676 | AG18: 46.27842951 | AH18: 25.89778445 | AI18: 18.77048432 | AJ18: 26.57600203 | AK18: 31.23787258 | AL18: 30.04753517 | AM18: 14.70961835 | AN18: 17.63796689 | AO18: 23.31581709 | AP18: 21.80818805 | AQ18: 15.33019552 | AR18: 26.03712701 | AS18: 11.52592815 | AT18: 18.76671345 | AU18: 38.61800044 | AV18: 28.43719486 | AW18: 11.24149695 | AX18: 23.95004121 | AZ18: 11.44835601 | BA18: 17.03821927 | BB18: 12.84519335 | BC18: 3.192488886 | BD18: 19.75934963 | BE18: 12.35282569 | BG18: 0 | BK18: 12.80335466 | BL18: 25.58390455 | BM18: 15.42105549 | BN18: 23.21095103 | CA18: Goeree 1 bdnh4 | CB18: 26.09785268 | CC18: 2.463887559 | CD18: 0.09440958954
A19: POEP | B19: 1 | C19: wdpo4 | D19: =VLOOKUP(B19,$F$42:$H$56,2)&" "&C19 -> Goeree 1 wdpo4 | H19: 0 | I19: 0 | J19: 0 | K19: 1.787099344 | L19: 0 | M19: 0 | N19: 0.2681244517 | O19: 0.02181023441 | P19: 0 | Q19: -0.269166579 | R19: 0 | S19: 0.1081579201 | T19: -0.2331387515 | U19: 0 | V19: -1.18087904 | X19: 0.1733653104 | Y19: 0.6574334141 | Z19: 0.7300845704 | AA19: -0.3382447276 | AB19: 0 | AC19: 0 | AD19: 0.2471330316 | AE19: -0.2139338352 | AF19: 0.0537439906 | AG19: -0.5474145525 | AH19: 0.5329736464 | AI19: 0.3785899393 | AJ19: 0.3432320508 | AK19: -1.652143866 | AL19: 1.150061849 | AM19: 0 | AO19: 0.4920329333 | AP19: 1.203805839 | AQ19: 0.2361162579 | AR19: 1.270204232 | AS19: 0 | AT19: 0 | AU19: 0 | AV19: 0.4303241131 | AW19: 0 | AX19: 2.490981858 | AY19: 0.4700738236 | AZ19: 0 | BA19: -1.724273959 | BB19: -0.1447812489 | BC19: -0.1231198898 | BD19: 0 | BE19: 0.4225081588 | BF19: 0.336607099 | BG19: 0 | CA19: Goeree 1 wdpo4 | CB19: 0.06506091615 | CC19: 0.05328830659 | CD19: 0.8190525086
A20: CHECK | B20: 1 | C20: bdpo4 | D20: =VLOOKUP(B20,$F$42:$H$56,2)&" "&C20 -> Goeree 1 bdpo4 | E20: 0.3054795854 | F20: 0 | G20: 0.05489213177 | H20: 0 | I20: 0 | K20: 0.8552129169 | M20: 0 | N20: 0.4879390826 | O20: 0.07649169842 | P20: -0.3074284185 | Q20: 0.5108378713 | R20: 0.3162793687 | S20: 0 | T20: -0.2031658487 | U20: 0 | V20: -0.8042184513 | W20: -0.4945163942 | Y20: 1.540065342 | Z20: 0.3868433665 | AA20: 0 | AB20: 0 | AC20: 0 | AD20: 0.1309778233 | AE20: 0.07982095493 | AF20: 0.05927700621 | AG20: -0.3219634652 | AH20: 0.1561502506 | AI20: 0 | AJ20: 1.0604088 | AK20: -0.3363361092 | AL20: 2.32934274 | AM20: 0 | AN20: 0.2981714614 | AO20: 0 | AP20: 0.5635375659 | AQ20: 0.111814298 | AR20: 0.283717616 | AS20: 0 | AT20: 0.5304074035 | AU20: 3.813866339 | AV20: 0.3896854148 | AW20: 0.4686943559 | AX20: 0.8841206076 | AZ20: 0.5546866156 | BA20: -0.7004430898 | BB20: 0.2038154597 | BC20: 0 | BD20: -0.2127476113 | BE20: 0.2428733227 | BG20: 0 | BK20: 1.052694669 | BL20: 0.7978847438 | BM20: 1.101090691 | BN20: 0.2142092361 | CA20: Goeree 1 bdpo4 | CB20: 0.1872897489 | CC20: 0.05224222059 | CD20: 0.2789379606
C21: bdno3 | D21: WET DEPO NO3 | E21: =AVERAGE(E22:E25) -> 28.37201271 | F21: 30.919324 | G21: 22.5778043 | H21: 13.76769399 | I21: 23.25497793 | J21: 17.63974027 | K21: 17.8626077 | L21: 28.36291976 | M21: 18.6547279 | N21: 18.62443152 | O21: 9.401537232 | P21: 22.12419175 | Q21: 18.54845892 | R21: 9.652250425 | S21: 9.974803093 | T21: 16.02766392 | U21: 45.71144115 | V21: 33.48645392 | W21: 49.00232764 | X21: 20.64345521 | Y21: 13.21177002 | Z21: 42.13952512 | AA21: 22.1294395 | AB21: =AVERAGE(AB22:AB25) -> 34.27245162 | AC21: 14.1812907 | AD21: 9.319963135 | AE21: 15.46496145 | AF21: 9.649647096 | AG21: 39.70662661 | AH21: 14.05361439 | AI21: 25.31695943 | AJ21: 16.07090231 | AK21: 32.15055615 | AL21: 33.10361106 | AM21: 21.9390406 | AN21: 20.76994232 | AO21: 31.70118665 | AP21: 22.06930882 | AQ21: 20.55220193 | AR21: 33.64983743 | AS21: 24.74886005 | AT21: 35.91764254 | AU21: 43.84377894 | AV21: 34.98189875 | AW21: 10.44350015 | AX21: 31.13606979 | AY21: 11.43450624 | AZ21: 18.65959558 | BA21: 30.65416054 | BB21: =AVERAGE(BB22:BB25) -> 11.01699633 | BC21: 5.087242537 | BD21: 26.23060559 | BE21: 26.74444821 | BF21: 28.17927191 | BG21: 0 | BH21: 24.67641014 | BI21: 16.2179098 | BJ21: 4.910590804 | BK21: 16.6316341 | BL21: =AVERAGE(BL22:BL25) -> 22.9473907 | BM21: =AVERAGE(BM22:BM25) -> 21.98636968 | BN21: =AVERAGE(BN22:BN25) -> 13.00558376 | CA21: WET DEPO NO3 | CB21: 22.72469791 | CC21: 2.082906043 | CD21: 0.09165825003
B22: 1 | C22: bdno3 | D22: =VLOOKUP(B22,$F$42:$H$56,2)&" "&C22 -> Goeree 1 bdno3 | E22: =INDIRECT(TEXT($C22," ")&"!"&TEXT(VLOOKUP(E$8,$B$42:$C$113,2)&VLOOKUP($B22,$F$42:$H$60,3)," ")) -> 28.37201271 | F22: 30.919324 | G22: 22.5778043 | H22: 18.38208489 | I22: 31.59143637 | K22: 30.25888336 | M22: 26.66937592 | N22: 23.01881632 | O22: =INDIRECT(TEXT($C22," ")&"!"&TEXT(VLOOKUP(O$8,$B$42:$C$113,2)&VLOOKUP($B22,$F$42:$H$60,3)," ")) -> 14.46235713 | P22: 21.75467763 | Q22: 22.21633964 | R22: 9.372044122 | S22: 16.63760941 | T22: 16.84770065 | U22: 45.7765449 | V22: 39.12509244 | W22: 57.958245 | Y22: =INDIRECT(TEXT($C22," ")&"!"&TEXT(VLOOKUP(Y$8,$B$42:$C$113,2)&VLOOKUP($B22,$F$42:$H$60,3)," ")) -> 40.29998725 | Z22: 48.76055865 | AA22: 27.80332987 | AB22: 36.46483467 | AC22: 20.92831879 | AD22: 15.06120692 | AE22: 18.00427981 | AF22: 16.51640293 | AG22: 59.80597044 | AH22: 30.04142996 | AI22: =INDIRECT(TEXT($C22," ")&"!"&TEXT(VLOOKUP(AI$8,$B$42:$C$113,2)&VLOOKUP($B22,$F$42:$H$60,3)," ")) -> 46.27142647 | AJ22: 41.68784633 | AK22: 49.08808549 | AL22: 42.92505025 | AM22: 27.78483466 | AN22: 20.76994232 | AO22: 36.2008739 | AP22: 26.16982565 | AQ22: 25.9624279 | AR22: 38.89884035 | AS22: =INDIRECT(TEXT($C22," ")&"!"&TEXT(VLOOKUP(AS$8,$B$42:$C$113,2)&VLOOKUP($B22,$F$42:$H$60,3)," ")) -> 37.4592665 | AT22: 45.15740425 | AU22: 91.88420795 | AV22: 56.01265655 | AW22: 26.30988648 | AX22: 44.96742432 | AZ22: 33.52732831 | BA22: 51.88912234 | BB22: 16.00015311 | BC22: 12.63115168 | BD22: 59.7485096 | BE22: 29.8974187 | BG22: 0 | BI22: =INDIRECT(TEXT($C22," ")&"!"&TEXT(VLOOKUP(BI$8,$B$42:$C$113,2)&VLOOKUP($B22,$F$42:$H$60,3)," ")) ->  | BK22: 38.99203466 | BL22: 67.04747401 | BM22: 47.88643547 | BN22: 19.89510089 | CA22: Goeree 1 bdno3 | CB22: 30.24708647 | CC22: 2.864926775 | CD22: 0.09471744586
B23: 1 | C23: wdno3 | D23: =VLOOKUP(B23,$F$42:$H$56,2)&" "&C23 -> Goeree 1 wdno3 | H23: 17.91101453 | I23: 26.38998115 | J23: 32.05217284 | K23: 24.69945529 | L23: 25.01204619 | M23: 23.48300094 | N23: 14.23004672 | O23: 4.340717334 | P23: 22.49370587 | Q23: 14.88057819 | R23: 9.932456728 | S23: 15.06806689 | T23: 17.78657075 | U23: 31.97645308 | V23: 31.33612732 | X23: 11.11780013 | Y23: 11.14594813 | Z23: 35.5184916 | AA23: 16.45554912 | AB23: 34.29314841 | AC23: 10.42661044 | AD23: 9.017235326 | AE23: 10.72323436 | AF23: 6.774284458 | AG23: 38.73691046 | AH23: 18.26821425 | AI23: 20.92992829 | AJ23: 21.25223108 | AK23: 26.30504334 | AL23: 39.41954052 | AM23: 16.09324655 | AO23: 27.20149941 | AP23: 17.96879199 | AQ23: 15.14197596 | AR23: 28.40083451 | AS23: 12.0384536 | AT23: 26.67788083 | AU23: 26.38207996 | AV23: 31.40279363 | AW23: 7.782674082 | AX23: 26.1651264 | AY23: 11.43450624 | AZ23: 18.45274 | BA23: 30.50386843 | BB23: 11.20570089 | BC23: 4.628452408 | BD23: 14.01128247 | BE23: 23.59147772 | BF23: 28.17927191 | BG23: 0 | BH23: 0 | BI23: 0 | BJ23: 0 | BK23: 0 | BL23: 0 | BM23: 0 | BN23: 0 | CA23: Goeree 1 wdno3 | CB23: 20.58289711 | CC23: 2.037811801 | CD23: 0.09900510072
A24: Back up | B24: 5 | C24: =C23 -> wdno3 | D24: =VLOOKUP(B24,$F$42:$H$56,2)&" "&C24 -> Oostvoorne Zuid 2 wdno3 | H24: 16.69126802 | I24: 20.29816215 | J24: 10.43352399 | K24: 14.57440701 | L24: 27.60281412 | M24: 14.49868725 | S24: 3.333644575 | T24: 11.70693276 | U24: 38.36720052 | V24: 26.62257249 | W24: 74.8308722 | X24: 18.0858284 | Y24: 0.8849334997 | AB24: 45.84699557 | AC24: 13.86906101 | AD24: 7.33411683 | AE24: 11.6937641 | AF24: 6.168855624 | AG24: 30.45909501 | AH24: 7.904813341 | AI24: 16.33324526 | AJ24: 0.6804901577 | AK24: 25.20430853 | AL24: 29.20741452 | AU24: 21.90967609 | AV24: 23.14094517 | AW24: 3.765411794 | AX24: 20.16565258 | AZ24: 12.68865586 | BA24: 23.12859956 | BB24: 8.297239208 | BC24: 2.686405267 | BD24: 17.85043872 | BG24: 0 | BH24: 35.36952121 | BI24: 23.98423281 | BJ24: 9.876983776 | BK24: 14.0601711 | BL24: 13.022152 | BM24: 23.14522499 | BN24: 16.82855123 | CA24: Oostvoorne Zuid 2 wdno3 | CB24: 19.69304196 | CC24: 2.594500248 | CD24: 0.1317470533
A25: Back up | B25: 5 | C25: wdnh4 | D25: =VLOOKUP(B25,$F$42:$H$56,2)&" "&C25 -> Oostvoorne Zuid 2 wdnh4 | H25: 2.086408502 | I25: 14.74033204 | J25: 10.43352399 | K25: 1.917685132 | L25: 32.47389896 | M25: 9.967847484 | S25: 4.859891489 | T25: 17.7694515 | U25: 66.72556611 | V25: 36.86202345 | W25: 14.21786572 | X25: 32.7267371 | Y25: 0.5162112081 | AB25: 20.48482781 | AC25: 11.50117255 | AD25: 5.867293464 | AE25: 21.43856752 | AF25: 9.139045369 | AG25: 29.82453053 | AH25: 0 | AI25: 17.73323771 | AJ25: 0.6630416921 | AK25: 28.00478726 | AL25: 20.86243894 | AU25: 35.19915176 | AV25: 29.37119964 | AW25: 3.916028266 | AX25: 33.24607587 | AZ25: 9.969658174 | BA25: 17.09505185 | BB25: 8.564892086 | BC25: 0.40296079 | BD25: 13.31219159 | BG25: 0 | BH25: 38.65970923 | BI25: 24.6694966 | BJ25: 4.854788636 | BK25: 13.47433063 | BL25: 11.7199368 | BM25: 16.91381826 | BN25: 15.29868294 | CA25: Oostvoorne Zuid 2 wdnh4 | CB25: 17.1173494 | CC25: 2.326011388 | CD25: 0.1358861897
C26: no2 | D26: =VLOOKUP(B26,$F$42:$H$56,2)&" "&C26 ->  | E26: =INDIRECT(TEXT($C26," ")&"!"&TEXT(VLOOKUP(E$8,$B$42:$C$91,2)&VLOOKUP($B26,$F$42:$H$61,3)," ")) ->  | AC26: =INDIRECT(TEXT($C26," ")&"!"&TEXT(VLOOKUP(AC$8,$B$42:$C$113,2)&VLOOKUP($B26,$F$42:$H$60,3)," ")) ->  | AD26: =INDIRECT(TEXT($C26," ")&"!"&TEXT(VLOOKUP(AD$8,$B$42:$C$113,2)&VLOOKUP($B26,$F$42:$H$60,3)," ")) ->  | AE26: =INDIRECT(TEXT($C26," ")&"!"&TEXT(VLOOKUP(AE$8,$B$42:$C$113,2)&VLOOKUP($B26,$F$42:$H$60,3)," ")) -> 
D28: cumulative mol/ha | E28: =SUMIF(E10:E15,">0")+E16+E21 -> 93.86560818 | F28: =SUMIF(F10:F15,">0")+F16+F21+E28 -> 284.3075182 | G28: =SUMIF(G10:G15,">0")+G16+G21+F28 -> 493.6159685 | H28: 615.7125461 | I28: 771.706561 | J28: 905.3341366 | K28: 1033.104915 | L28: 1145.57122 | M28: 1297.454022 | N28: 1415.379943 | O28: 1631.735883 | P28: 1706.226004 | Q28: =SUMIF(Q10:Q15,">0")+Q16+Q21 -> 74.1647988 | R28: =SUMIF(R10:R15,">0")+R16+R21+Q28 -> 171.4734859 | S28: =SUMIF(S10:S15,">0")+S16+S21+R28 -> 358.7609431 | T28: 441.583894 | U28: 673.5955035 | V28: 835.4633539 | W28: 1081.643439 | X28: 1236.550986 | Y28: 1336.89279 | Z28: 1523.576236 | AA28: 1652.23502 | AB28: 1761.867973 | AC28: =SUMIF(AC10:AC15,">0")+AC16+AC21 -> 96.80922956 | AD28: =SUMIF(AD10:AD15,">0")+AD16+AD21+AC28 -> 160.8780701 | AE28: =SUMIF(AE10:AE15,">0")+AE16+AE21+AD28 -> 277.017513 | AF28: =SUMIF(AF10:AF15,">0")+AF16+AF21+AE28 -> 394.632529 | AG28: 596.8004313 | AH28: 749.2836433 | AI28: 981.8371535 | AJ28: 1117.583958 | AK28: 1293.427978 | AL28: 1482.385378 | AM28: 1555.659281 | AN28: 1641.9798 | AO28: =SUMIF(AO10:AO15,">0")+AO16+AO21 -> 117.675762 | AP28: =SUMIF(AP10:AP15,">0")+AP16+AP21+AO28 -> 243.7129596 | AQ28: 487.7980546 | AR28: 715.880574 | AS28: 862.3867264 | AT28: 1021.795043 | AU28: 1216.181639 | AV28: 1350.357621 | AW28: 1571.691572 | AX28: 1748.722092 | AY28: 1911.464959 | AZ28: 2042.433816 | BA28: =SUMIF(BA10:BA15,">0")+BA16+BA21 -> 98.20381497 | BB28: =SUMIF(BB10:BB15,">0")+BB16+BB21+BA28 -> 187.0887632 | BC28: 319.3091563 | BD28: 472.5133019 | BE28: 598.0659048 | BF28: 790.8670545 | BG28: 790.8670545 | BM28: =SUMIF(BM10:BM15,">0")+BM16+BM21 -> 37.40742517 | BN28: =SUMIF(BN10:BN15,">0")+BN16+BN21+BM28 -> 73.62395997 | BO28: 73.62395997 | BP28: 73.62395997 | BQ28: 73.62395997 | BR28: 73.62395997 | BS28: 73.62395997 | BT28: 73.62395997 | BU28: 73.62395997 | BV28: 73.62395997 | BW28: 73.62395997 | BX28: 73.62395997 | CA28: =D28 -> cumulative mol/ha | CB28: =AVERAGE(E28:AN28) -> 913.614381 | CC28: =SQRT(SUMSQ(E28:AN28)/$CB$6)/COUNT(E28:AN28) -> 88.17481303 | CD28: 0.09651206775
D29: wet depo | E29: =AVERAGE(E17:E20) -> 11.97441176 | F29: =AVERAGE(F17:F20) -> 21.92041627 | G29: =AVERAGE(G17:G20) -> 10.64872497 | H29: =AVERAGE(H17:H20) -> 3.34628384 | I29: =AVERAGE(I17:I20)+AVERAGE(I22:I25) -> 31.04387269 | J29: =AVERAGE(J17:J20)+AVERAGE(J22:J25) -> 39.70464186 | K29: 37.26950658 | L29: 44.44209231 | M29: 32.12314918 | N29: 27.72348418 | O29: 17.22924924 | P29: 30.93001645 | Q29: 27.31828401 | R29: 15.61007412 | S29: 25.69926837 | T29: 29.51727091 | U29: 69.12257864 | V29: 52.13814779 | W29: 70.62610529 | X29: 31.27287937 | Y29: 25.01352023 | Z29: 60.70831237 | AA29: 29.63354159 | AB29: 44.4072166 | AC29: 21.27721037 | AD29: 13.8656727 | AE29: 26.3926193 | AF29: 18.06059941 | AG29: 62.55890978 | AH29: 26.51965166 | AI29: 35.85995828 | AJ29: 29.13787906 | AK29: 47.68323035 | AL29: 51.65813065 | AM29: 28.89469912 | AN29: 29.7380115 | AO29: =AVERAGE(AO17:AO20)+AVERAGE(AO22:AO25) -> 42.68542655 | AP29: 31.95625657 | AQ29: 27.73509034 | AR29: 51.47099753 | AS29: 29.69576305 | AT29: 43.96425106 | AU29: 58.75715452 | AV29: 49.4331984 | AW29: 13.8250373 | AX29: 46.74644417 | AY29: 14.78804486 | AZ29: 24.23515717 | BA29: =AVERAGE(BA17:BA20)+AVERAGE(BA22:BA25) -> 38.83545407 | BB29: 16.80435628 | BC29: 6.262977645 | BD29: 32.69695951 | BE29: 31.40047393 | BF29: 39.03443142 | BG29: 0 | BK29: 23.55965876 | BL29: 36.13828535 | BM29: 30.24744277 | BN29: 24.7181639 | CA29: =D29 -> wet depo | CB29: =AVERAGE(E29:AN29) -> 32.80748947 | CC29: =SQRT(SUMSQ(E29:AN29)/$CB$6)/COUNT(E29:AN29) -> 3.040786476 | CD29: 0.09268574113
D30: dry depo | E30: =SUM(E10:E15) -> 41.85025154 | F30: =SUM(F10:F15) -> 115.6817535 | G30: =SUM(G10:G15) -> 165.4880882 | H30: =SUM(H10:H15) -> 101.6363159 | I30: =SUM(I10:I15) -> 117.1612474 | J30: =SUM(J10:J15) -> 71.8580322 | K30: 72.41552923 | L30: 51.94504026 | M30: 106.2912312 | N30: 81.48141609 | O30: 191.34813 | P30: 34.60056552 | Q30: 38.19752535 | R30: 75.89892893 | S30: 145.9178025 | T30: 39.59792074 | U30: 139.4778934 | V30: 90.08545998 | W30: 153.4356861 | X30: 113.1786081 | Y30: 64.62528296 | Z30: 107.9648108 | AA30: 91.35201806 | AB30: 55.09097158 | AC30: 68.43609953 | AD30: 45.84651371 | AE30: 78.75210926 | AF30: 91.19997486 | AG30: 116.3220203 | AH30: 113.8420851 | AI30: 186.339848 | AJ30: 94.24376904 | AK30: 111.633876 | AL30: 120.4844512 | AM30: 37.42354552 | AN30: 47.91260984 | AO30: =SUM(AO10:AO15) -> 64.25211205 | AP30: 85.07766494 | AQ30: 209.3410815 | AR30: 159.5673227 | AS30: 111.8634864 | AT30: 107.662661 | AU30: 122.6229984 | AV30: 70.70148862 | AW30: 204.3617238 | AX30: 116.3612529 | AY30: 145.0713574 | AZ30: 101.4354816 | BA30: =SUM(BA10:BA15) -> 49.97470885 | BB30: 66.32274914 | BC30: 124.7201203 | BD30: 113.9344584 | BE30: 89.82879397 | BF30: 143.2481659 | BG30: 0 | BH30: 0 | BL30: 0 | BM30: 0 | BN30: 0 | BO30: 0 | BP30: 0 | BQ30: 0 | BR30: 0 | BS30: 0 | BT30: 0 | BU30: 0 | BV30: 0 | BW30: 0 | BX30: 0 | CA30: =D30 -> dry depo | CB30: =AVERAGE(E30:AN30) -> 93.86159478 | CC30: =SQRT(SUMSQ(E30:AN30)/$CB$6)/COUNT(E30:AN30) -> 8.547252167 | CD30: 0.0910622943
